Workbook

Sheet Readme
A1: © 2023 VH2 LLC Rev D2
C2: SFI Volatility Futures Worksheet Readme Notes
B4: Setup
B5: 1 | C5: The volatility futures settlement data to download is located at https://markets.cboe.com/us/futures/market_statistics/historical_data/ Download the .csv data for each month (e.g., "X (Nov 17)"). The computation sheets (e.g. Master) will show lots of "#REF" and "#NA" errors until all the data is provided.
B6: 2 | C6: Excel uses the short date format specified in your "regions and languages" settings of your MS windows OS to interpret the .csv file when importing. This date format should be set to a "month-day-year format (e.g, mm/dd/yy ) format for these files to import correctly. You can set the format back to whatever you want, once this step has been completed.
B7: 3 | C7: For each of the months downloaded there is a sheet within the SFI Volatility Futures Worksheet wth the same name (e.g., CFE_X04_VX). To transfer the data, first open the SFI Volatility Worksheet, then open each of the downloaded .csv files with another copy of Excel. Select the whole sheet (ctrl a), copy the entire sheet (ctrl c), and then paste the whole sheet (ctrl v) into the sheet of the Futures Worksheet with the same name (e.g., "CFE_X04_VX"). See the "Sample_VX" sheet to see an example of what the contents should look like when you are done. The starting column titled "Trade Date" must be in column A, starting with row 1. The letter/year in column B (e.g, X (Nov 04) must match the sheet name (CFE_X04_VX in this case).
B8: 4
B10: Notes
B11: 1 | C11: Email support is available at vh2solutions@gmail.com and phone support at 970-481-7426
B12: 2 | C12: Sheet descriptions * Master -- this sheet gives the summarized results (M1 = first month) * Exp Dates -- this sheet holds expiration dates and sheet names of futures months * Lookup -- This sheet pulls in the information from the month sheets and maps in interpolation/ extrapolation data when necessary * Interpolate -- this sheet pulls in the raw information from the month sheets and does interpolation / extrapolation on missing data. This was not necessary after 2008. * Sample_VX -- example of what a month sheet should look like * CFE_J04_VX, CFE_Z04_VX, CFE_J05_VX, CFE_N05_VX, CFE_U05_VX dummy sheets provided for months with no data available
B13: 3 | C13: Interpolation/ extrapolation is done using algorithms documented by some ETN providers. See "Composition of the Indices" in http://www.ibb.ubs.com/mc/etracs_US/downloads/multivix_long_prospectus.pdf for an example. Extrapolation for the first month is not covered in these documents to my knowledge. I adapted their approach for handling missing front month data.
B14: 4 | C14: No macros are used. All calculations are visible in the cells (some will make your head hurt…)
B15: 5 | C15: The spreadsheet is setup to handle data through Feb 2020. The November / December information will populate if futures data from the active months is incorporated.
B16: 6 | C16: Revision history: Rev B: Improved interpolation and added rounding to 2 decimal places Rev C: Further imroved interpolation and changed rounding to 3 decimal places Rev C1: Error in M6-I formula on Interpolate sheet 26-Mar-04 thru 20-Apr-04, impacts M6 & M7 for those dates. Reset seed setting 16-Jan-07 to 0% error Rev C2: Estimated low values for M2 on 15-Nov-07 (26.09 vs existing 18) and M1 for 31-Dec-08 (41 vs 30.11 existing) because values in CBOE data were unrealistic. Applied ratio from adjacent month for the estimate. Rev C3: Changed expiration date from 20-Dec-05 to the correct 21-Dec-05 Rev C4: Fixed trade date 10-Nov-12 to 12-Nov-12 Rev C5: Refixed Roll Dwn number on 31-Oct-12 to force it to 17 -- Due to hurricane ~0.05% error Rev C6: Fixed omission of 1-Feb-2016 on CM sheet Rev C7: Fixed left shift of Futures O-H-L-C data on 20-Dec-2005 O-H-L & MT O-H-L sheets Rev C8: Changed roundoff on Short-Term M1-M2 index to 4 digits from 2 starting in 2014 Rev C9: Fixed roll counters for Jan 2007 futures to account for NYSE shutdown 2-Jan-07 for President Ford memorial Rev C10 Fixed ommision of 16&17 Feb 2023
B17: 7 | C17: If you have the full spreadsheet including index calculations the "I1" cell on the master sheet is used to switch between TR (T-bill interest included) and ER (no interest). Zero in that cell indicates TR, any non-zero causes a ER calculation.
B18: 8 | C18: This content is sold for educational / informational purposes only, and is not intended for trading purposes or advice. VH2 LLC (the owner of this site) is not liable for any informational errors, incompleteness, or delays, or for any actions taken in reliance on information contained herein. It is not intended as advice to buy or sell any securities. VH2 LLC is not a registered investment firm, and I am not a registered investment adviser. Please do your own homework and accept full responsibility for any investment decisions you make.

Sheet Sheet4
A3: Row Labels | B3: Sum of SPX
A4: 2004-03-26 | B4: 1108.06
A5: 2004-03-29 | B5: 1122.47
A6: 2004-03-30 | B6: 1127
A7: 2004-03-31 | B7: 1126.21
A8: 2004-04-01 | B8: 1132.17
A9: 2004-04-02 | B9: 1141.81
A10: 2004-04-05 | B10: 1150.57
A11: 2004-04-06 | B11: 1148.16
A12: 2004-04-07 | B12: 1140.53
A13: 2004-04-08 | B13: 1139.32
A14: 2004-04-12 | B14: 1145.2
A15: 2004-04-13 | B15: 1129.44
A16: 2004-04-14 | B16: 1128.17
A17: 2004-04-15 | B17: 1128.84
A18: 2004-04-16 | B18: 1134.61
A19: 2004-04-19 | B19: 1135.82
A20: 2004-04-20 | B20: 1118.15
A21: 2004-04-21 | B21: 1124.09
A22: 2004-04-22 | B22: 1139.93
A23: 2004-04-23 | B23: 1140.6
A24: 2004-04-26 | B24: 1135.53
A25: 2004-04-27 | B25: 1138.11
A26: 2004-04-28 | B26: 1122.41
A27: 2004-04-29 | B27: 1113.89
A28: 2004-04-30 | B28: 1107.3
A29: 2004-05-03 | B29: 1117.49
A30: 2004-05-04 | B30: 1119.55
A31: 2004-05-05 | B31: 1121.53
A32: 2004-05-06 | B32: 1113.99
A33: 2004-05-07 | B33: 1098.7
A34: 2004-05-10 | B34: 1087.12
A35: 2004-05-11 | B35: 1095.45
A36: 2004-05-12 | B36: 1097.28
A37: 2004-05-13 | B37: 1096.44
A38: 2004-05-14 | B38: 1095.7
A39: 2004-05-17 | B39: 1084.1
A40: 2004-05-18 | B40: 1091.49
A41: 2004-05-19 | B41: 1088.68
A42: 2004-05-20 | B42: 1089.19
A43: 2004-05-21 | B43: 1093.56
A44: 2004-05-24 | B44: 1095.41
A45: 2004-05-25 | B45: 1113.05
A46: 2004-05-26 | B46: 1114.94
A47: 2004-05-27 | B47: 1121.28
A48: 2004-05-28 | B48: 1120.68
A49: 2004-06-01 | B49: 1121.2
A50: 2004-06-02 | B50: 1124.99
A51: 2004-06-03 | B51: 1116.64
A52: 2004-06-04 | B52: 1122.5
A53: 2004-06-07 | B53: 1140.42
A54: 2004-06-08 | B54: 1142.18
A55: 2004-06-09 | B55: 1131.33
A56: 2004-06-10 | B56: 1136.47
A57: 2004-06-14 | B57: 1125.29
A58: 2004-06-15 | B58: 1132.01
A59: 2004-06-16 | B59: 1133.56
A60: 2004-06-17 | B60: 1132.05
A61: 2004-06-18 | B61: 1135.02
A62: 2004-06-21 | B62: 1130.3
A63: 2004-06-22 | B63: 1134.41
A64: 2004-06-23 | B64: 1144.06
A65: 2004-06-24 | B65: 1140.65
A66: 2004-06-25 | B66: 1134.43
A67: 2004-06-28 | B67: 1133.35
A68: 2004-06-29 | B68: 1136.2
A69: 2004-06-30 | B69: 1140.84
A70: 2004-07-01 | B70: 1128.94
A71: 2004-07-02 | B71: 1125.38
A72: 2004-07-06 | B72: 1116.21
A73: 2004-07-07 | B73: 1118.33
A74: 2004-07-08 | B74: 1109.11
A75: 2004-07-09 | B75: 1112.81
A76: 2004-07-12 | B76: 1114.35
A77: 2004-07-13 | B77: 1115.14
A78: 2004-07-14 | B78: 1111.47
A79: 2004-07-15 | B79: 1106.69
A80: 2004-07-16 | B80: 1101.39
A81: 2004-07-19 | B81: 1100.9
A82: 2004-07-20 | B82: 1108.67
A83: 2004-07-21 | B83: 1093.88
A84: 2004-07-22 | B84: 1096.84
A85: 2004-07-23 | B85: 1086.2
A86: 2004-07-26 | B86: 1084.07
A87: 2004-07-27 | B87: 1094.83
A88: 2004-07-28 | B88: 1095.42
A89: 2004-07-29 | B89: 1100.43
A90: 2004-07-30 | B90: 1101.72
A91: 2004-08-02 | B91: 1106.62
A92: 2004-08-03 | B92: 1099.69
A93: 2004-08-04 | B93: 1098.63
A94: 2004-08-05 | B94: 1080.7
A95: 2004-08-06 | B95: 1063.97
A96: 2004-08-09 | B96: 1065.22
A97: 2004-08-10 | B97: 1079.04
A98: 2004-08-11 | B98: 1075.79
A99: 2004-08-12 | B99: 1063.23
A100: 2004-08-13 | B100: 1064.8
A101: 2004-08-16 | B101: 1079.34
A102: 2004-08-17 | B102: 1081.71
A103: 2004-08-18 | B103: 1095.17
A104: 2004-08-19 | B104: 1091.23
A105: 2004-08-20 | B105: 1098.35
A106: 2004-08-23 | B106: 1095.68
A107: 2004-08-24 | B107: 1096.19
A108: 2004-08-25 | B108: 1104.96
A109: 2004-08-26 | B109: 1105.09
A110: 2004-08-27 | B110: 1107.77
A111: 2004-08-30 | B111: 1099.15
A112: 2004-08-31 | B112: 1104.24
A113: 2004-09-01 | B113: 1105.91
A114: 2004-09-02 | B114: 1118.31
A115: 2004-09-03 | B115: 1113.63
A116: 2004-09-07 | B116: 1121.3
A117: 2004-09-08 | B117: 1116.27
A118: 2004-09-09 | B118: 1118.38
A119: 2004-09-10 | B119: 1123.92
A120: 2004-09-13 | B120: 1125.82
A121: 2004-09-14 | B121: 1128.33
A122: 2004-09-15 | B122: 1120.37
A123: 2004-09-16 | B123: 1123.5
A124: 2004-09-17 | B124: 1128.55
A125: 2004-09-20 | B125: 1122.2
... 156 more rows

Sheet Sheet1
A3: Row Labels | B3: Sum of M1/M2 | C3: Sum of M1-M2 M
A4: 2020-06-01 | B4: 0.9593826158 | C4: 48.6331
A5: 2020-06-02 | B5: 0.9400499584 | C5: 46.904
A6: 2020-06-03 | B6: 0.9286328461 | C6: 45.1381
A7: 2020-06-04 | B7: 0.9303742385 | C7: 44.6328
A8: 2020-06-05 | B8: 0.9319227231 | C8: 42.2528
A9: 2020-06-08 | B9: 0.9319606088 | C9: 43.4196
A10: 2020-06-09 | B10: 0.9340659341 | C10: 46.0164
A11: 2020-06-10 | B11: 0.9465977606 | C11: 45.3122
A12: 2020-06-11 | B12: 1.023944549 | C12: 62.9584
A13: 2020-06-12 | B13: 1.007178751 | C13: 55.1164
A14: 2020-06-15 | B14: 0.99486427 | C14: 53.8595
A15: 2020-06-16 | B15: 0.9843866171 | C15: 53.1189
A16: 2020-06-17 | B16: 1.010518407 | C16: 53.1189
A17: 2020-06-18 | B17: 1.005992509 | C17: 53.0498
A18: 2020-06-19 | B18: 1.015838733 | C18: 55.6911
A19: 2020-06-22 | B19: 0.998421468 | C19: 50.036
A20: 2020-06-23 | B20: 1 | C20: 50.4973
A21: 2020-06-24 | B21: 1.002987304 | C21: 53.0742
A22: 2020-06-25 | B22: 0.9953596288 | C22: 50.9584
A23: 2020-06-26 | B23: 1.001450326 | C23: 54.583
A24: 2020-06-29 | B24: 0.9847677075 | C24: 51.3932
A25: 2020-06-30 | B25: 0.9701492537 | C25: 49.3679
A26: 2020-07-01 | B26: 0.9675587997 | C26: 47.7431
A27: 2020-07-02 | B27: 0.9667497922 | C27: 46.5607
A28: 2020-07-06 | B28: 0.9685430464 | C28: 46.7968
A29: 2020-07-07 | B29: 0.9823293173 | C29: 48.5394
A30: 2020-07-08 | B30: 0.9704190633 | C30: 47.2105
A31: 2020-07-09 | B31: 0.9679743795 | C31: 48.4069
A32: 2020-07-10 | B32: 0.9488870569 | C32: 46.7093
A33: 2020-07-13 | B33: 0.9651250948 | C33: 51.0353
A34: 2020-07-14 | B34: 0.9472422062 | C34: 48.1859
A35: 2020-07-15 | B35: 0.9325102881 | C35: 46.654
A36: 2020-07-16 | B36: 0.9289843105 | C36: 46.4728
A37: 2020-07-17 | B37: 0.9119930975 | C37: 44.382
A38: 2020-07-20 | B38: 0.8982742961 | C38: 42.1124
A39: 2020-07-21 | B39: 0.8903863432 | C39: 42.5573
A40: 2020-07-22 | B40: 0.9356223176 | C40: 41.6779
A41: 2020-07-23 | B41: 0.9504541701 | C41: 43.9738
A42: 2020-07-24 | B42: 0.941031941 | C42: 43.9434
A43: 2020-07-27 | B43: 0.9197994987 | C43: 42.2611
A44: 2020-07-28 | B44: 0.9213389121 | C44: 42.246
A45: 2020-07-29 | B45: 0.9083969466 | C45: 41.2504
A46: 2020-07-30 | B46: 0.9111483655 | C46: 41.8261
A47: 2020-07-31 | B47: 0.9054852321 | C47: 41.3833
A48: 2020-08-03 | B48: 0.9114893617 | C48: 41.1908
A49: 2020-08-04 | B49: 0.9102902375 | C49: 39.831
A50: 2020-08-05 | B50: 0.9004444444 | C50: 39.2075
A51: 2020-08-06 | B51: 0.8923766816 | C51: 38.7113
A52: 2020-08-07 | B52: 0.8849955076 | C52: 38.5226
A53: 2020-08-10 | B53: 0.8764976959 | C53: 37.4371
A54: 2020-08-11 | B54: 0.884649512 | C54: 38.985
A55: 2020-08-12 | B55: 0.8660465116 | C55: 37.0081
A56: 2020-08-13 | B56: 0.8657968313 | C56: 36.9374
A57: 2020-08-14 | B57: 0.8628359592 | C57: 37.1271
A58: 2020-08-17 | B58: 0.8431752178 | C58: 35.4734
A59: 2020-08-18 | B59: 0.8547595682 | C59: 35.0131
A60: 2020-08-19 | B60: 0.8927659574 | C60: 36.0439
A61: 2020-08-20 | B61: 0.8853721129 | C61: 35.5803
A62: 2020-08-21 | B62: 0.8765849535 | C62: 35.691
A63: 2020-08-24 | B63: 0.8732037194 | C63: 35.5776
A64: 2020-08-25 | B64: 0.8642917727 | C64: 35.1801
A65: 2020-08-26 | B65: 0.858436214 | C65: 36.0805
A66: 2020-08-27 | B66: 0.8627294493 | C66: 37.33
A67: 2020-08-28 | B67: 0.8508287293 | C67: 37.4364
A68: 2020-08-31 | B68: 0.8389766742 | C68: 38.9734
A69: 2020-09-01 | B69: 0.8448918717 | C69: 39.4591
A70: 2020-09-02 | B70: 0.8174097665 | C70: 40.9935
A71: 2020-09-03 | B71: 0.868033312 | C71: 46.3329
A72: 2020-09-04 | B72: 0.8196268141 | C72: 42.1441
A73: 2020-09-08 | B73: 0.8729241877 | C73: 41.0583
A74: 2020-09-09 | B74: 0.8540255831 | C74: 39.1955
A75: 2020-09-10 | B75: 0.8806426932 | C75: 38.7695
A76: 2020-09-11 | B76: 0.8258823529 | C76: 37.487
A77: 2020-09-14 | B77: 0.8199203187 | C77: 36.8754
A78: 2020-09-15 | B78: 0.8340180772 | C78: 35.7856
A79: 2020-09-16 | B79: 0.9918765232 | C79: 35.9032
A80: 2020-09-17 | B80: 0.9754701554 | C80: 35.1037
A81: 2020-09-18 | B81: 0.9804400978 | C81: 35.3833
A82: 2020-09-21 | B82: 0.9857932123 | C82: 36.7119
A83: 2020-09-22 | B83: 0.9751359751 | C83: 36.9535
A84: 2020-09-23 | B84: 0.9744936234 | C84: 38.2542
A85: 2020-09-24 | B85: 0.9569413512 | C85: 38.1301
A86: 2020-09-25 | B86: 0.9483675019 | C86: 37.0434
A87: 2020-09-28 | B87: 0.9347990902 | C87: 36.7449
A88: 2020-09-29 | B88: 0.9282930631 | C88: 35.5867
A89: 2020-09-30 | B89: 0.9239543726 | C89: 36.3751
A90: 2020-10-01 | B90: 0.9445727483 | C90: 36.3659
A91: 2020-10-02 | B91: 0.9668425019 | C91: 37.5927
A92: 2020-10-05 | B92: 0.9565554694 | C92: 36.333
A93: 2020-10-06 | B93: 0.9689681924 | C93: 36.5353
A94: 2020-10-07 | B94: 0.9464144996 | C94: 35.6399
A95: 2020-10-08 | B95: 0.9244042728 | C95: 33.9033
A96: 2020-10-09 | B96: 0.9259259259 | C96: 32.3594
A97: 2020-10-12 | B97: 0.9212598425 | C97: 31.8152
A98: 2020-10-13 | B98: 0.937007874 | C98: 31.9378
A99: 2020-10-14 | B99: 0.960106383 | C99: 31.6661
A100: 2020-10-15 | B100: 0.954978355 | C100: 32.3973
A101: 2020-10-16 | B101: 0.9603789836 | C101: 32.5868
A102: 2020-10-19 | B102: 0.9652605459 | C102: 33.9474
A103: 2020-10-20 | B103: 0.976647206 | C103: 33.682
A104: 2020-10-21 | B104: 1.013876843 | C104: 32.8392
A105: 2020-10-22 | B105: 1.01051709 | C105: 32.395
A106: 2020-10-23 | B106: 1.005240175 | C106: 32.3556
A107: 2020-10-26 | B107: 1.03127572 | C107: 35.0901
A108: 2020-10-27 | B108: 1.012934519 | C108: 35.2141
A109: 2020-10-28 | B109: 1.036717063 | C109: 40.2397
A110: 2020-10-29 | B110: 1.016884114 | C110: 37.2373
A111: 2020-10-30 | B111: 1.000733676 | C111: 38.5475
A112: 2020-11-02 | B112: 1.006028636 | C112: 37.6485
A113: 2020-11-03 | B113: 0.9952494062 | C113: 35.621
A114: 2020-11-04 | B114: 0.9725792631 | C114: 32.5395
A115: 2020-11-05 | B115: 0.9652476108 | C115: 31.9862
A116: 2020-11-06 | B116: 0.9374425023 | C116: 29.8669
A117: 2020-11-09 | B117: 0.973358706 | C117: 29.2489
A118: 2020-11-10 | B118: 0.9705014749 | C118: 28.2782
A119: 2020-11-11 | B119: 0.953953954 | C119: 27.6619
A120: 2020-11-12 | B120: 0.9736594544 | C120: 29.5511
A121: 2020-11-13 | B121: 0.9302093719 | C121: 27.7007
A122: 2020-11-16 | B122: 0.9347604485 | C122: 27.1055
A123: 2020-11-17 | B123: 0.9562955255 | C123: 26.5816
A124: 2020-11-18 | B124: 0.9503342884 | C124: 27.5221
A125: 2020-11-19 | B125: 0.9440694311 | C125: 27.0895
A126: 2020-11-20 | B126: 0.9438528558 | C126: 26.9795
A127: 2020-11-23 | B127: 0.9368318756 | C127: 26.7082
A128: 2020-11-24 | B128: 0.9209756098 | C128: 26.2539
A129: 2020-11-25 | B129: 0.9113796576 | C129: 25.2433
A130: 2020-11-27 | B130: 0.9120879121 | C130: 25.4598
A131: 2020-11-30 | B131: 0.9104781282 | C131: 24.9751
A132: 2020-12-01 | B132: 0.934493347 | C132: 25.1866
A133: 2020-12-02 | B133: 0.9321685509 | C133: 25.0517
A134: 2020-12-03 | B134: 0.9387129724 | C134: 25.2869
A135: 2020-12-04 | B135: 0.9277605779 | C135: 24.9101
A136: 2020-12-07 | B136: 0.923946557 | C136: 24.9768
A137: 2020-12-08 | B137: 0.9047619048 | C137: 24.1075
A138: 2020-12-09 | B138: 0.9241025641 | C138: 25.0027
A139: 2020-12-10 | B139: 0.9128672746 | C139: 25.2496
A140: 2020-12-11 | B140: 0.9237536657 | C140: 26.2162
A141: 2020-12-14 | B141: 0.9291866029 | C141: 26.7954
A142: 2020-12-15 | B142: 0.9159159159 | C142: 25.5979
A143: 2020-12-16 | B143: 0.9423264907 | C143: 24.7011
A144: 2020-12-17 | B144: 0.9370698132 | C144: 24.4258
A145: 2020-12-18 | B145: 0.9397473275 | C145: 24.7778
A146: 2020-12-21 | B146: 0.9705069124 | C146: 26.8584
A147: 2020-12-22 | B147: 0.9572887651 | C147: 26.3649
A148: 2020-12-23 | B148: 0.9407831901 | C148: 25.2924
A149: 2020-12-24 | B149: 0.9297560976 | C149: 24.5534
A150: 2020-12-28 | B150: 0.9257086999 | C150: 24.4345
A151: 2020-12-29 | B151: 0.9318826868 | C151: 25.3507
A152: 2020-12-30 | B152: 0.923902439 | C152: 24.4624
A153: 2020-12-31 | B153: 0.9257086999 | C153: 24.4398
A154: Grand Total | B154: 140.4377369 | C154: 5573.4335

Sheet Master
B1: =Readme!A1 -> © 2023 VH2 LLC Rev D2 | I1: 0 | Y1: l | AA1: 1 | AB1: 22 | AC1: 43 | AD1: 64
B2: Trade Date | C2: Count | D2: Roll # | E2: Roll dwn | F2: NearExp | G2: ExpMoYr | H2: Split | I2: TBR | J2: VIX | K2: VIX3M | L2: VIX/VIX3M | M2: VIX6M | N2: SPX | O2: M7-Vix | P2: M2/m1-1 | Q2: M1 | R2: M2 | S2: M3 | T2: M4 | U2: M5 | V2: M6 | W2: M7 | X2: M1/M2 | Y2: Spare2 | Z2: Spare 3 | AA2: m1-m2OI | AB2: 1-2 Cont | AC2: 2-3 Cont | AD2: MT Cont | AE2: End
B3: 2004-03-26 | C3: 1 | D3: =VLOOKUP($B3,'Exp Dates'!$E$4:$K$400,MATCH("Days1M",'Exp Dates'!$E$2:$X$2,0),1) -> 25 | E3: =VLOOKUP($B3,'Exp Dates'!$E$4:$K$400,MATCH("Trade Count",'Exp Dates'!$E$2:$X$2,0),1)-C3+D3-VLOOKUP($B3,'Exp Dates'!$E$4:$K$400,MATCH("Trade Day Adj",'Exp Dates'!$E$2:$X$2,0),1)*IF($B3>VLOOKUP($B3,'Exp Dates'!$E$4:$K$400,MATCH("Trade Day Adj Start",'Exp Dates'!$E$2:$X$2,0),1),1,0) -> 17 | F3: =IF(E3>8,D3-E3,-E3) -> 8 | G3: =VLOOKUP($B3,'Exp Dates'!$E$6:$U$400,MATCH("ExpMoYr",'Exp Dates'!$E$2:$U$2,0),1) -> Apr-2004 | H3: 0.1 | I3: 0 | J3: 17.33 | K3: 19.11 | L3: =J3/K3 -> 0.9068550497 | N3: 1108.06 | O3: =W3-J3 -> 3.29 | P3: =R3/Q3-1 -> -0.01071080818 | Q3: =ROUND(IF(Lookup!D3>0,Lookup!D3,VLOOKUP(Master!$B3,Interpolate!$B$3:$T$2500,MATCH("M1-I",Interpolate!$B$2:$T$2,0),0)),3) -> 20.54 | R3: =ROUND(IF(Lookup!E3>0,Lookup!E3,VLOOKUP(Master!$B3,Interpolate!$B$3:$T$2500,MATCH("M2-I",Interpolate!$B$2:$T$2,0),0)),3) -> 20.32 | S3: =ROUND(IF(Lookup!F3>0,Lookup!F3,VLOOKUP(Master!$B3,Interpolate!$B$3:$T$2500,MATCH("M3-I",Interpolate!$B$2:$T$2,0),0)),3) -> 20.16 | T3: =ROUND(IF(Lookup!G3>0,Lookup!G3,VLOOKUP(Master!$B3,Interpolate!$B$3:$T$2500,MATCH("M4-I",Interpolate!$B$2:$T$2,0),0)),3) -> 20.138 | U3: =ROUND(IF(Lookup!H3>0,Lookup!H3,VLOOKUP(Master!$B3,Interpolate!$B$3:$T$2500,MATCH("M5-I",Interpolate!$B$2:$T$2,0),0)),3) -> 20.11 | V3: =ROUND(IF(Lookup!I3>0,Lookup!I3,VLOOKUP(Master!$B3,Interpolate!$B$3:$T$2500,MATCH("M6-I",Interpolate!$B$2:$T$2,0),0)),3) -> 20.36 | W3: =ROUND(IF(Lookup!J3>0,Lookup!J3,VLOOKUP(Master!$B3,Interpolate!$B$3:$T$2500,MATCH("M7-I",Interpolate!$B$2:$T$2,0),0)),3) -> 20.62 | AA3: =Lookup!S3 -> 144 | AB3: =R3/Q3-1 -> -0.01071080818 | AC3: =SLOPE(R3:S3,$AA$1:$AB$1) -> -0.007619047619 | AD3: =SLOPE(T3:W3,$AA$1:$AD$1) -> 0.008076190476
B4: 2004-03-29 | C4: =C3+1 -> 2 | D4: =VLOOKUP($B4,'Exp Dates'!$E$4:$K$400,MATCH("Days1M",'Exp Dates'!$E$2:$X$2,0),1) -> 25 | E4: =VLOOKUP($B4,'Exp Dates'!$E$4:$K$400,MATCH("Trade Count",'Exp Dates'!$E$2:$X$2,0),1)-C4+D4-VLOOKUP($B4,'Exp Dates'!$E$4:$K$400,MATCH("Trade Day Adj",'Exp Dates'!$E$2:$X$2,0),1)*IF($B4>VLOOKUP($B4,'Exp Dates'!$E$4:$K$400,MATCH("Trade Day Adj Start",'Exp Dates'!$E$2:$X$2,0),1),1,0) -> 16 | F4: =IF(E4>8,D4-E4,-E4) -> 9 | G4: =VLOOKUP($B4,'Exp Dates'!$E$6:$U$400,MATCH("ExpMoYr",'Exp Dates'!$E$2:$U$2,0),1) -> Apr-2004 | H4: 0.1 | I4: =IF($I$1=0,(1/(1-91/360*VLOOKUP($B3,'T-bills'!$B$4:$C$1500,2,1)/100))^(($B4-$B3)/91)-1,0) -> 7.759424809e-05 | J4: 16.5 | K4: 17.93 | L4: 0.9202453988 | N4: 1122.47 | O4: =W4-J4 -> 3.982 | P4: =R4/Q4-1 -> -0.002116722105 | Q4: =ROUND(IF(Lookup!D4>0,Lookup!D4,VLOOKUP(Master!$B4,Interpolate!$B$3:$T$2500,MATCH("M1-I",Interpolate!$B$2:$T$2,0),0)),3) -> 19.842 | R4: =ROUND(IF(Lookup!E4>0,Lookup!E4,VLOOKUP(Master!$B4,Interpolate!$B$3:$T$2500,MATCH("M2-I",Interpolate!$B$2:$T$2,0),0)),3) -> 19.8 | S4: =ROUND(IF(Lookup!F4>0,Lookup!F4,VLOOKUP(Master!$B4,Interpolate!$B$3:$T$2500,MATCH("M3-I",Interpolate!$B$2:$T$2,0),0)),3) -> 19.77 | T4: =ROUND(IF(Lookup!G4>0,Lookup!G4,VLOOKUP(Master!$B4,Interpolate!$B$3:$T$2500,MATCH("M4-I",Interpolate!$B$2:$T$2,0),0)),3) -> 19.731 | U4: =ROUND(IF(Lookup!H4>0,Lookup!H4,VLOOKUP(Master!$B4,Interpolate!$B$3:$T$2500,MATCH("M5-I",Interpolate!$B$2:$T$2,0),0)),3) -> 19.68 | V4: =ROUND(IF(Lookup!I4>0,Lookup!I4,VLOOKUP(Master!$B4,Interpolate!$B$3:$T$2500,MATCH("M6-I",Interpolate!$B$2:$T$2,0),0)),3) -> 20.075 | W4: =ROUND(IF(Lookup!J4>0,Lookup!J4,VLOOKUP(Master!$B4,Interpolate!$B$3:$T$2500,MATCH("M7-I",Interpolate!$B$2:$T$2,0),0)),3) -> 20.482 | AA4: =Lookup!S4 -> 113 | AB4: =R4/Q4-1 -> -0.002116722105 | AC4: -0.001428571429 | AD4: 0.01260952381
B5: 2004-03-30 | C5: =C4+1 -> 3 | D5: =VLOOKUP($B5,'Exp Dates'!$E$4:$K$400,MATCH("Days1M",'Exp Dates'!$E$2:$X$2,0),1) -> 25 | E5: =VLOOKUP($B5,'Exp Dates'!$E$4:$K$400,MATCH("Trade Count",'Exp Dates'!$E$2:$X$2,0),1)-C5+D5-VLOOKUP($B5,'Exp Dates'!$E$4:$K$400,MATCH("Trade Day Adj",'Exp Dates'!$E$2:$X$2,0),1)*IF($B5>VLOOKUP($B5,'Exp Dates'!$E$4:$K$400,MATCH("Trade Day Adj Start",'Exp Dates'!$E$2:$X$2,0),1),1,0) -> 15 | F5: 10 | G5: =VLOOKUP($B5,'Exp Dates'!$E$6:$U$400,MATCH("ExpMoYr",'Exp Dates'!$E$2:$U$2,0),1) -> Apr-2004 | H5: 0.1 | I5: =IF($I$1=0,(1/(1-91/360*VLOOKUP($B4,'T-bills'!$B$4:$C$1500,2,1)/100))^(($B5-$B4)/91)-1,0) -> 2.628174772e-05 | J5: 16.28 | K5: 17.99 | L5: 0.9049471929 | N5: 1127 | O5: 4.314 | P5: 0.01233166503 | Q5: =ROUND(IF(Lookup!D5>0,Lookup!D5,VLOOKUP(Master!$B5,Interpolate!$B$3:$T$2500,MATCH("M1-I",Interpolate!$B$2:$T$2,0),0)),3) -> 19.381 | R5: =ROUND(IF(Lookup!E5>0,Lookup!E5,VLOOKUP(Master!$B5,Interpolate!$B$3:$T$2500,MATCH("M2-I",Interpolate!$B$2:$T$2,0),0)),3) -> 19.62 | S5: =ROUND(IF(Lookup!F5>0,Lookup!F5,VLOOKUP(Master!$B5,Interpolate!$B$3:$T$2500,MATCH("M3-I",Interpolate!$B$2:$T$2,0),0)),3) -> 19.79 | T5: =ROUND(IF(Lookup!G5>0,Lookup!G5,VLOOKUP(Master!$B5,Interpolate!$B$3:$T$2500,MATCH("M4-I",Interpolate!$B$2:$T$2,0),0)),3) -> 19.842 | U5: =ROUND(IF(Lookup!H5>0,Lookup!H5,VLOOKUP(Master!$B5,Interpolate!$B$3:$T$2500,MATCH("M5-I",Interpolate!$B$2:$T$2,0),0)),3) -> 19.91 | V5: =ROUND(IF(Lookup!I5>0,Lookup!I5,VLOOKUP(Master!$B5,Interpolate!$B$3:$T$2500,MATCH("M6-I",Interpolate!$B$2:$T$2,0),0)),3) -> 20.246 | W5: =ROUND(IF(Lookup!J5>0,Lookup!J5,VLOOKUP(Master!$B5,Interpolate!$B$3:$T$2500,MATCH("M7-I",Interpolate!$B$2:$T$2,0),0)),3) -> 20.594 | AA5: =Lookup!S5 -> 159 | AB5: =R5/Q5-1 -> 0.01233166503 | AC5: 0.008095238095 | AD5: 0.01234285714
B6: 2004-03-31 | C6: 4 | D6: =VLOOKUP($B6,'Exp Dates'!$E$4:$K$400,MATCH("Days1M",'Exp Dates'!$E$2:$X$2,0),1) -> 25 | E6: =VLOOKUP($B6,'Exp Dates'!$E$4:$K$400,MATCH("Trade Count",'Exp Dates'!$E$2:$X$2,0),1)-C6+D6-VLOOKUP($B6,'Exp Dates'!$E$4:$K$400,MATCH("Trade Day Adj",'Exp Dates'!$E$2:$X$2,0),1)*IF($B6>VLOOKUP($B6,'Exp Dates'!$E$4:$K$400,MATCH("Trade Day Adj Start",'Exp Dates'!$E$2:$X$2,0),1),1,0) -> 14 | F6: 11 | G6: =VLOOKUP($B6,'Exp Dates'!$E$6:$U$400,MATCH("ExpMoYr",'Exp Dates'!$E$2:$U$2,0),1) -> Apr-2004 | H6: 0.1 | I6: =IF($I$1=0,(1/(1-91/360*VLOOKUP($B5,'T-bills'!$B$4:$C$1500,2,1)/100))^(($B6-$B5)/91)-1,0) -> 2.628174772e-05 | J6: 16.74 | K6: 17.98 | L6: 0.9310344828 | N6: 1126.21 | O6: 3.982 | P6: 0.007139214686 | Q6: =ROUND(IF(Lookup!D6>0,Lookup!D6,VLOOKUP(Master!$B6,Interpolate!$B$3:$T$2500,MATCH("M1-I",Interpolate!$B$2:$T$2,0),0)),3) -> 19.61 | R6: =ROUND(IF(Lookup!E6>0,Lookup!E6,VLOOKUP(Master!$B6,Interpolate!$B$3:$T$2500,MATCH("M2-I",Interpolate!$B$2:$T$2,0),0)),3) -> 19.75 | S6: =ROUND(IF(Lookup!F6>0,Lookup!F6,VLOOKUP(Master!$B6,Interpolate!$B$3:$T$2500,MATCH("M3-I",Interpolate!$B$2:$T$2,0),0)),3) -> 19.85 | T6: =ROUND(IF(Lookup!G6>0,Lookup!G6,VLOOKUP(Master!$B6,Interpolate!$B$3:$T$2500,MATCH("M4-I",Interpolate!$B$2:$T$2,0),0)),3) -> 19.98 | U6: =ROUND(IF(Lookup!H6>0,Lookup!H6,VLOOKUP(Master!$B6,Interpolate!$B$3:$T$2500,MATCH("M5-I",Interpolate!$B$2:$T$2,0),0)),3) -> 20.15 | V6: =ROUND(IF(Lookup!I6>0,Lookup!I6,VLOOKUP(Master!$B6,Interpolate!$B$3:$T$2500,MATCH("M6-I",Interpolate!$B$2:$T$2,0),0)),3) -> 20.431 | W6: =ROUND(IF(Lookup!J6>0,Lookup!J6,VLOOKUP(Master!$B6,Interpolate!$B$3:$T$2500,MATCH("M7-I",Interpolate!$B$2:$T$2,0),0)),3) -> 20.722 | AA6: =Lookup!S6 -> 684 | AB6: 0.007139214686 | AC6: 0.004761904762 | AD6: 0.01193809524
B7: 2004-04-01 | C7: 5 | D7: =VLOOKUP($B7,'Exp Dates'!$E$4:$K$400,MATCH("Days1M",'Exp Dates'!$E$2:$X$2,0),1) -> 25 | E7: =VLOOKUP($B7,'Exp Dates'!$E$4:$K$400,MATCH("Trade Count",'Exp Dates'!$E$2:$X$2,0),1)-C7+D7-VLOOKUP($B7,'Exp Dates'!$E$4:$K$400,MATCH("Trade Day Adj",'Exp Dates'!$E$2:$X$2,0),1)*IF($B7>VLOOKUP($B7,'Exp Dates'!$E$4:$K$400,MATCH("Trade Day Adj Start",'Exp Dates'!$E$2:$X$2,0),1),1,0) -> 13 | F7: 12 | G7: =VLOOKUP($B7,'Exp Dates'!$E$6:$U$400,MATCH("ExpMoYr",'Exp Dates'!$E$2:$U$2,0),1) -> Apr-2004 | H7: 0.1 | I7: =IF($I$1=0,(1/(1-91/360*VLOOKUP($B6,'T-bills'!$B$4:$C$1500,2,1)/100))^(($B7-$B6)/91)-1,0) -> 2.628174772e-05 | J7: 16.65 | K7: 18.02 | L7: 0.9239733629 | N7: 1132.17 | O7: 4.146 | P7: -0.0007130487929 | Q7: =ROUND(IF(Lookup!D7>0,Lookup!D7,VLOOKUP(Master!$B7,Interpolate!$B$3:$T$2500,MATCH("M1-I",Interpolate!$B$2:$T$2,0),0)),3) -> 19.634 | R7: =ROUND(IF(Lookup!E7>0,Lookup!E7,VLOOKUP(Master!$B7,Interpolate!$B$3:$T$2500,MATCH("M2-I",Interpolate!$B$2:$T$2,0),0)),3) -> 19.62 | S7: =ROUND(IF(Lookup!F7>0,Lookup!F7,VLOOKUP(Master!$B7,Interpolate!$B$3:$T$2500,MATCH("M3-I",Interpolate!$B$2:$T$2,0),0)),3) -> 19.61 | T7: =ROUND(IF(Lookup!G7>0,Lookup!G7,VLOOKUP(Master!$B7,Interpolate!$B$3:$T$2500,MATCH("M4-I",Interpolate!$B$2:$T$2,0),0)),3) -> 19.867 | U7: =ROUND(IF(Lookup!H7>0,Lookup!H7,VLOOKUP(Master!$B7,Interpolate!$B$3:$T$2500,MATCH("M5-I",Interpolate!$B$2:$T$2,0),0)),3) -> 20.2 | V7: =ROUND(IF(Lookup!I7>0,Lookup!I7,VLOOKUP(Master!$B7,Interpolate!$B$3:$T$2500,MATCH("M6-I",Interpolate!$B$2:$T$2,0),0)),3) -> 20.493 | W7: =ROUND(IF(Lookup!J7>0,Lookup!J7,VLOOKUP(Master!$B7,Interpolate!$B$3:$T$2500,MATCH("M7-I",Interpolate!$B$2:$T$2,0),0)),3) -> 20.796 | AA7: =Lookup!S7 -> 708 | AB7: -0.0007130487929 | AC7: -0.0004761904762 | AD7: 0.01466666667
B8: 2004-04-02 | C8: 6 | D8: =VLOOKUP($B8,'Exp Dates'!$E$4:$K$400,MATCH("Days1M",'Exp Dates'!$E$2:$X$2,0),1) -> 25 | E8: =VLOOKUP($B8,'Exp Dates'!$E$4:$K$400,MATCH("Trade Count",'Exp Dates'!$E$2:$X$2,0),1)-C8+D8-VLOOKUP($B8,'Exp Dates'!$E$4:$K$400,MATCH("Trade Day Adj",'Exp Dates'!$E$2:$X$2,0),1)*IF($B8>VLOOKUP($B8,'Exp Dates'!$E$4:$K$400,MATCH("Trade Day Adj Start",'Exp Dates'!$E$2:$X$2,0),1),1,0) -> 12 | F8: 13 | G8: =VLOOKUP($B8,'Exp Dates'!$E$6:$U$400,MATCH("ExpMoYr",'Exp Dates'!$E$2:$U$2,0),1) -> Apr-2004 | H8: 0.1 | I8: =IF($I$1=0,(1/(1-91/360*VLOOKUP($B7,'T-bills'!$B$4:$C$1500,2,1)/100))^(($B8-$B7)/91)-1,0) -> 2.628174772e-05 | J8: 15.64 | K8: 17.23 | L8: 0.9077190946 | N8: 1141.81 | O8: 4.994 | P8: 0.02063972336 | Q8: =ROUND(IF(Lookup!D8>0,Lookup!D8,VLOOKUP(Master!$B8,Interpolate!$B$3:$T$2500,MATCH("M1-I",Interpolate!$B$2:$T$2,0),0)),3) -> 18.508 | R8: =ROUND(IF(Lookup!E8>0,Lookup!E8,VLOOKUP(Master!$B8,Interpolate!$B$3:$T$2500,MATCH("M2-I",Interpolate!$B$2:$T$2,0),0)),3) -> 18.89 | S8: =ROUND(IF(Lookup!F8>0,Lookup!F8,VLOOKUP(Master!$B8,Interpolate!$B$3:$T$2500,MATCH("M3-I",Interpolate!$B$2:$T$2,0),0)),3) -> 19.16 | T8: =ROUND(IF(Lookup!G8>0,Lookup!G8,VLOOKUP(Master!$B8,Interpolate!$B$3:$T$2500,MATCH("M4-I",Interpolate!$B$2:$T$2,0),0)),3) -> 19.549 | U8: =ROUND(IF(Lookup!H8>0,Lookup!H8,VLOOKUP(Master!$B8,Interpolate!$B$3:$T$2500,MATCH("M5-I",Interpolate!$B$2:$T$2,0),0)),3) -> 20.05 | V8: =ROUND(IF(Lookup!I8>0,Lookup!I8,VLOOKUP(Master!$B8,Interpolate!$B$3:$T$2500,MATCH("M6-I",Interpolate!$B$2:$T$2,0),0)),3) -> 20.337 | W8: =ROUND(IF(Lookup!J8>0,Lookup!J8,VLOOKUP(Master!$B8,Interpolate!$B$3:$T$2500,MATCH("M7-I",Interpolate!$B$2:$T$2,0),0)),3) -> 20.634 | AA8: =Lookup!S8 -> 804 | AB8: 0.02063972336 | AC8: 0.01285714286 | AD8: 0.01686666667
B9: 2004-04-05 | C9: 7 | D9: =VLOOKUP($B9,'Exp Dates'!$E$4:$K$400,MATCH("Days1M",'Exp Dates'!$E$2:$X$2,0),1) -> 25 | E9: =VLOOKUP($B9,'Exp Dates'!$E$4:$K$400,MATCH("Trade Count",'Exp Dates'!$E$2:$X$2,0),1)-C9+D9-VLOOKUP($B9,'Exp Dates'!$E$4:$K$400,MATCH("Trade Day Adj",'Exp Dates'!$E$2:$X$2,0),1)*IF($B9>VLOOKUP($B9,'Exp Dates'!$E$4:$K$400,MATCH("Trade Day Adj Start",'Exp Dates'!$E$2:$X$2,0),1),1,0) -> 11 | F9: 14 | G9: =VLOOKUP($B9,'Exp Dates'!$E$6:$U$400,MATCH("ExpMoYr",'Exp Dates'!$E$2:$U$2,0),1) -> Apr-2004 | H9: 0.1 | I9: =IF($I$1=0,(1/(1-91/360*VLOOKUP($B8,'T-bills'!$B$4:$C$1500,2,1)/100))^(($B9-$B8)/91)-1,0) -> 7.884731537e-05 | J9: 14.97 | K9: 16.79 | L9: 0.8916021441 | N9: 1150.57 | O9: 5.659 | P9: 0.006846337753 | Q9: =ROUND(IF(Lookup!D9>0,Lookup!D9,VLOOKUP(Master!$B9,Interpolate!$B$3:$T$2500,MATCH("M1-I",Interpolate!$B$2:$T$2,0),0)),3) -> 18.404 | R9: =ROUND(IF(Lookup!E9>0,Lookup!E9,VLOOKUP(Master!$B9,Interpolate!$B$3:$T$2500,MATCH("M2-I",Interpolate!$B$2:$T$2,0),0)),3) -> 18.53 | S9: =ROUND(IF(Lookup!F9>0,Lookup!F9,VLOOKUP(Master!$B9,Interpolate!$B$3:$T$2500,MATCH("M3-I",Interpolate!$B$2:$T$2,0),0)),3) -> 18.62 | T9: =ROUND(IF(Lookup!G9>0,Lookup!G9,VLOOKUP(Master!$B9,Interpolate!$B$3:$T$2500,MATCH("M4-I",Interpolate!$B$2:$T$2,0),0)),3) -> 19.215 | U9: =ROUND(IF(Lookup!H9>0,Lookup!H9,VLOOKUP(Master!$B9,Interpolate!$B$3:$T$2500,MATCH("M5-I",Interpolate!$B$2:$T$2,0),0)),3) -> 19.97 | V9: =ROUND(IF(Lookup!I9>0,Lookup!I9,VLOOKUP(Master!$B9,Interpolate!$B$3:$T$2500,MATCH("M6-I",Interpolate!$B$2:$T$2,0),0)),3) -> 20.294 | W9: =ROUND(IF(Lookup!J9>0,Lookup!J9,VLOOKUP(Master!$B9,Interpolate!$B$3:$T$2500,MATCH("M7-I",Interpolate!$B$2:$T$2,0),0)),3) -> 20.629 | AA9: =Lookup!S9 -> 839 | AB9: 0.006846337753 | AC9: 0.004285714286 | AD9: 0.02174285714
B10: 2004-04-06 | C10: 8 | D10: =VLOOKUP($B10,'Exp Dates'!$E$4:$K$400,MATCH("Days1M",'Exp Dates'!$E$2:$X$2,0),1) -> 25 | E10: =VLOOKUP($B10,'Exp Dates'!$E$4:$K$400,MATCH("Trade Count",'Exp Dates'!$E$2:$X$2,0),1)-C10+D10-VLOOKUP($B10,'Exp Dates'!$E$4:$K$400,MATCH("Trade Day Adj",'Exp Dates'!$E$2:$X$2,0),1)*IF($B10>VLOOKUP($B10,'Exp Dates'!$E$4:$K$400,MATCH("Trade Day Adj Start",'Exp Dates'!$E$2:$X$2,0),1),1,0) -> 10 | F10: 15 | G10: =VLOOKUP($B10,'Exp Dates'!$E$6:$U$400,MATCH("ExpMoYr",'Exp Dates'!$E$2:$U$2,0),1) -> Apr-2004 | H10: 0.1 | I10: =IF($I$1=0,(1/(1-91/360*VLOOKUP($B9,'T-bills'!$B$4:$C$1500,2,1)/100))^(($B10-$B9)/91)-1,0) -> 2.586408041e-05 | J10: 15.32 | K10: 17.16 | L10: 0.8927738928 | N10: 1148.16 | O10: 5.501 | P10: 0 | Q10: =ROUND(IF(Lookup!D10>0,Lookup!D10,VLOOKUP(Master!$B10,Interpolate!$B$3:$T$2500,MATCH("M1-I",Interpolate!$B$2:$T$2,0),0)),3) -> 18.79 | R10: =ROUND(IF(Lookup!E10>0,Lookup!E10,VLOOKUP(Master!$B10,Interpolate!$B$3:$T$2500,MATCH("M2-I",Interpolate!$B$2:$T$2,0),0)),3) -> 18.79 | S10: =ROUND(IF(Lookup!F10>0,Lookup!F10,VLOOKUP(Master!$B10,Interpolate!$B$3:$T$2500,MATCH("M3-I",Interpolate!$B$2:$T$2,0),0)),3) -> 18.79 | T10: =ROUND(IF(Lookup!G10>0,Lookup!G10,VLOOKUP(Master!$B10,Interpolate!$B$3:$T$2500,MATCH("M4-I",Interpolate!$B$2:$T$2,0),0)),3) -> 19.447 | U10: =ROUND(IF(Lookup!H10>0,Lookup!H10,VLOOKUP(Master!$B10,Interpolate!$B$3:$T$2500,MATCH("M5-I",Interpolate!$B$2:$T$2,0),0)),3) -> 20.28 | V10: =ROUND(IF(Lookup!I10>0,Lookup!I10,VLOOKUP(Master!$B10,Interpolate!$B$3:$T$2500,MATCH("M6-I",Interpolate!$B$2:$T$2,0),0)),3) -> 20.545 | W10: =ROUND(IF(Lookup!J10>0,Lookup!J10,VLOOKUP(Master!$B10,Interpolate!$B$3:$T$2500,MATCH("M7-I",Interpolate!$B$2:$T$2,0),0)),3) -> 20.821 | AA10: =Lookup!S10 -> 1126 | AB10: 0 | AC10: 0 | AD10: 0.02089047619
B11: 2004-04-07 | C11: 9 | D11: =VLOOKUP($B11,'Exp Dates'!$E$4:$K$400,MATCH("Days1M",'Exp Dates'!$E$2:$X$2,0),1) -> 25 | E11: =VLOOKUP($B11,'Exp Dates'!$E$4:$K$400,MATCH("Trade Count",'Exp Dates'!$E$2:$X$2,0),1)-C11+D11-VLOOKUP($B11,'Exp Dates'!$E$4:$K$400,MATCH("Trade Day Adj",'Exp Dates'!$E$2:$X$2,0),1)*IF($B11>VLOOKUP($B11,'Exp Dates'!$E$4:$K$400,MATCH("Trade Day Adj Start",'Exp Dates'!$E$2:$X$2,0),1),1,0) -> 9 | F11: 16 | G11: =VLOOKUP($B11,'Exp Dates'!$E$6:$U$400,MATCH("ExpMoYr",'Exp Dates'!$E$2:$U$2,0),1) -> Apr-2004 | H11: 0.1 | I11: =IF($I$1=0,(1/(1-91/360*VLOOKUP($B10,'T-bills'!$B$4:$C$1500,2,1)/100))^(($B11-$B10)/91)-1,0) -> 2.586408041e-05 | J11: 15.76 | K11: 17.56 | L11: 0.8974943052 | N11: 1140.53 | O11: 5.414 | P11: 0.002204955901 | Q11: =ROUND(IF(Lookup!D11>0,Lookup!D11,VLOOKUP(Master!$B11,Interpolate!$B$3:$T$2500,MATCH("M1-I",Interpolate!$B$2:$T$2,0),0)),3) -> 19.048 | R11: =ROUND(IF(Lookup!E11>0,Lookup!E11,VLOOKUP(Master!$B11,Interpolate!$B$3:$T$2500,MATCH("M2-I",Interpolate!$B$2:$T$2,0),0)),3) -> 19.09 | S11: =ROUND(IF(Lookup!F11>0,Lookup!F11,VLOOKUP(Master!$B11,Interpolate!$B$3:$T$2500,MATCH("M3-I",Interpolate!$B$2:$T$2,0),0)),3) -> 19.12 | T11: =ROUND(IF(Lookup!G11>0,Lookup!G11,VLOOKUP(Master!$B11,Interpolate!$B$3:$T$2500,MATCH("M4-I",Interpolate!$B$2:$T$2,0),0)),3) -> 19.746 | U11: =ROUND(IF(Lookup!H11>0,Lookup!H11,VLOOKUP(Master!$B11,Interpolate!$B$3:$T$2500,MATCH("M5-I",Interpolate!$B$2:$T$2,0),0)),3) -> 20.54 | V11: =ROUND(IF(Lookup!I11>0,Lookup!I11,VLOOKUP(Master!$B11,Interpolate!$B$3:$T$2500,MATCH("M6-I",Interpolate!$B$2:$T$2,0),0)),3) -> 20.851 | W11: =ROUND(IF(Lookup!J11>0,Lookup!J11,VLOOKUP(Master!$B11,Interpolate!$B$3:$T$2500,MATCH("M7-I",Interpolate!$B$2:$T$2,0),0)),3) -> 21.174 | AA11: =Lookup!S11 -> 1325 | AB11: 0.002204955901 | AC11: 0.001428571429 | AD11: 0.02188095238
B12: 2004-04-08 | C12: 10 | D12: =VLOOKUP($B12,'Exp Dates'!$E$4:$K$400,MATCH("Days1M",'Exp Dates'!$E$2:$X$2,0),1) -> 25 | E12: =VLOOKUP($B12,'Exp Dates'!$E$4:$K$400,MATCH("Trade Count",'Exp Dates'!$E$2:$X$2,0),1)-C12+D12-VLOOKUP($B12,'Exp Dates'!$E$4:$K$400,MATCH("Trade Day Adj",'Exp Dates'!$E$2:$X$2,0),1)*IF($B12>VLOOKUP($B12,'Exp Dates'!$E$4:$K$400,MATCH("Trade Day Adj Start",'Exp Dates'!$E$2:$X$2,0),1),1,0) -> 8 | F12: -8 | G12: =VLOOKUP($B12,'Exp Dates'!$E$6:$U$400,MATCH("ExpMoYr",'Exp Dates'!$E$2:$U$2,0),1) -> Apr-2004 | H12: 0.1 | I12: =IF($I$1=0,(1/(1-91/360*VLOOKUP($B11,'T-bills'!$B$4:$C$1500,2,1)/100))^(($B12-$B11)/91)-1,0) -> 2.586408041e-05 | J12: 16.26 | K12: 17.83 | L12: 0.9119461582 | N12: 1139.32 | O12: 4.815 | P12: -0.003608975365 | Q12: =ROUND(IF(Lookup!D12>0,Lookup!D12,VLOOKUP(Master!$B12,Interpolate!$B$3:$T$2500,MATCH("M1-I",Interpolate!$B$2:$T$2,0),0)),3) -> 19.119 | R12: =ROUND(IF(Lookup!E12>0,Lookup!E12,VLOOKUP(Master!$B12,Interpolate!$B$3:$T$2500,MATCH("M2-I",Interpolate!$B$2:$T$2,0),0)),3) -> 19.05 | S12: =ROUND(IF(Lookup!F12>0,Lookup!F12,VLOOKUP(Master!$B12,Interpolate!$B$3:$T$2500,MATCH("M3-I",Interpolate!$B$2:$T$2,0),0)),3) -> 19 | T12: =ROUND(IF(Lookup!G12>0,Lookup!G12,VLOOKUP(Master!$B12,Interpolate!$B$3:$T$2500,MATCH("M4-I",Interpolate!$B$2:$T$2,0),0)),3) -> 19.666 | U12: =ROUND(IF(Lookup!H12>0,Lookup!H12,VLOOKUP(Master!$B12,Interpolate!$B$3:$T$2500,MATCH("M5-I",Interpolate!$B$2:$T$2,0),0)),3) -> 20.51 | V12: =ROUND(IF(Lookup!I12>0,Lookup!I12,VLOOKUP(Master!$B12,Interpolate!$B$3:$T$2500,MATCH("M6-I",Interpolate!$B$2:$T$2,0),0)),3) -> 20.787 | W12: =ROUND(IF(Lookup!J12>0,Lookup!J12,VLOOKUP(Master!$B12,Interpolate!$B$3:$T$2500,MATCH("M7-I",Interpolate!$B$2:$T$2,0),0)),3) -> 21.075 | AA12: =Lookup!S12 -> 1485 | AB12: -0.003608975365 | AC12: -0.002380952381 | AD12: 0.02144761905
B13: 2004-04-12 | C13: 11 | D13: =VLOOKUP($B13,'Exp Dates'!$E$4:$K$400,MATCH("Days1M",'Exp Dates'!$E$2:$X$2,0),1) -> 25 | E13: =VLOOKUP($B13,'Exp Dates'!$E$4:$K$400,MATCH("Trade Count",'Exp Dates'!$E$2:$X$2,0),1)-C13+D13-VLOOKUP($B13,'Exp Dates'!$E$4:$K$400,MATCH("Trade Day Adj",'Exp Dates'!$E$2:$X$2,0),1)*IF($B13>VLOOKUP($B13,'Exp Dates'!$E$4:$K$400,MATCH("Trade Day Adj Start",'Exp Dates'!$E$2:$X$2,0),1),1,0) -> 7 | F13: -7 | G13: =VLOOKUP($B13,'Exp Dates'!$E$6:$U$400,MATCH("ExpMoYr",'Exp Dates'!$E$2:$U$2,0),1) -> Apr-2004 | H13: 0.1 | I13: =IF($I$1=0,(1/(1-91/360*VLOOKUP($B12,'T-bills'!$B$4:$C$1500,2,1)/100))^(($B13-$B12)/91)-1,0) -> 0.0001034603354 | J13: 15.28 | K13: 17.73 | L13: 0.8618161309 | N13: 1145.2 | O13: 5.663 | P13: 0.01766052546 | Q13: =ROUND(IF(Lookup!D13>0,Lookup!D13,VLOOKUP(Master!$B13,Interpolate!$B$3:$T$2500,MATCH("M1-I",Interpolate!$B$2:$T$2,0),0)),3) -> 18.346 | R13: =ROUND(IF(Lookup!E13>0,Lookup!E13,VLOOKUP(Master!$B13,Interpolate!$B$3:$T$2500,MATCH("M2-I",Interpolate!$B$2:$T$2,0),0)),3) -> 18.67 | S13: =ROUND(IF(Lookup!F13>0,Lookup!F13,VLOOKUP(Master!$B13,Interpolate!$B$3:$T$2500,MATCH("M3-I",Interpolate!$B$2:$T$2,0),0)),3) -> 18.9 | T13: =ROUND(IF(Lookup!G13>0,Lookup!G13,VLOOKUP(Master!$B13,Interpolate!$B$3:$T$2500,MATCH("M4-I",Interpolate!$B$2:$T$2,0),0)),3) -> 19.535 | U13: =ROUND(IF(Lookup!H13>0,Lookup!H13,VLOOKUP(Master!$B13,Interpolate!$B$3:$T$2500,MATCH("M5-I",Interpolate!$B$2:$T$2,0),0)),3) -> 20.34 | V13: =ROUND(IF(Lookup!I13>0,Lookup!I13,VLOOKUP(Master!$B13,Interpolate!$B$3:$T$2500,MATCH("M6-I",Interpolate!$B$2:$T$2,0),0)),3) -> 20.636 | W13: =ROUND(IF(Lookup!J13>0,Lookup!J13,VLOOKUP(Master!$B13,Interpolate!$B$3:$T$2500,MATCH("M7-I",Interpolate!$B$2:$T$2,0),0)),3) -> 20.943 | AA13: =Lookup!S13 -> 1486 | AB13: 0.01766052546 | AC13: 0.01095238095 | AD13: 0.02152380952
B14: 2004-04-13 | C14: 12 | D14: =VLOOKUP($B14,'Exp Dates'!$E$4:$K$400,MATCH("Days1M",'Exp Dates'!$E$2:$X$2,0),1) -> 25 | E14: =VLOOKUP($B14,'Exp Dates'!$E$4:$K$400,MATCH("Trade Count",'Exp Dates'!$E$2:$X$2,0),1)-C14+D14-VLOOKUP($B14,'Exp Dates'!$E$4:$K$400,MATCH("Trade Day Adj",'Exp Dates'!$E$2:$X$2,0),1)*IF($B14>VLOOKUP($B14,'Exp Dates'!$E$4:$K$400,MATCH("Trade Day Adj Start",'Exp Dates'!$E$2:$X$2,0),1),1,0) -> 6 | F14: -6 | G14: =VLOOKUP($B14,'Exp Dates'!$E$6:$U$400,MATCH("ExpMoYr",'Exp Dates'!$E$2:$U$2,0),1) -> Apr-2004 | H14: 0.1 | I14: =IF($I$1=0,(1/(1-91/360*VLOOKUP($B13,'T-bills'!$B$4:$C$1500,2,1)/100))^(($B14-$B13)/91)-1,0) -> 2.544642914e-05 | J14: 17.26 | K14: 18.92 | L14: 0.9122621564 | N14: 1129.44 | O14: 4.058 | P14: -0.0007248627938 | Q14: =ROUND(IF(Lookup!D14>0,Lookup!D14,VLOOKUP(Master!$B14,Interpolate!$B$3:$T$2500,MATCH("M1-I",Interpolate!$B$2:$T$2,0),0)),3) -> 19.314 | R14: =ROUND(IF(Lookup!E14>0,Lookup!E14,VLOOKUP(Master!$B14,Interpolate!$B$3:$T$2500,MATCH("M2-I",Interpolate!$B$2:$T$2,0),0)),3) -> 19.3 | S14: =ROUND(IF(Lookup!F14>0,Lookup!F14,VLOOKUP(Master!$B14,Interpolate!$B$3:$T$2500,MATCH("M3-I",Interpolate!$B$2:$T$2,0),0)),3) -> 19.29 | T14: =ROUND(IF(Lookup!G14>0,Lookup!G14,VLOOKUP(Master!$B14,Interpolate!$B$3:$T$2500,MATCH("M4-I",Interpolate!$B$2:$T$2,0),0)),3) -> 19.929 | U14: =ROUND(IF(Lookup!H14>0,Lookup!H14,VLOOKUP(Master!$B14,Interpolate!$B$3:$T$2500,MATCH("M5-I",Interpolate!$B$2:$T$2,0),0)),3) -> 20.74 | V14: =ROUND(IF(Lookup!I14>0,Lookup!I14,VLOOKUP(Master!$B14,Interpolate!$B$3:$T$2500,MATCH("M6-I",Interpolate!$B$2:$T$2,0),0)),3) -> 21.023 | W14: =ROUND(IF(Lookup!J14>0,Lookup!J14,VLOOKUP(Master!$B14,Interpolate!$B$3:$T$2500,MATCH("M7-I",Interpolate!$B$2:$T$2,0),0)),3) -> 21.318 | AA14: =Lookup!S14 -> 1464 | AB14: -0.0007248627938 | AC14: -0.0004761904762 | AD14: 0.02119047619
B15: 2004-04-14 | C15: 13 | D15: =VLOOKUP($B15,'Exp Dates'!$E$4:$K$400,MATCH("Days1M",'Exp Dates'!$E$2:$X$2,0),1) -> 25 | E15: =VLOOKUP($B15,'Exp Dates'!$E$4:$K$400,MATCH("Trade Count",'Exp Dates'!$E$2:$X$2,0),1)-C15+D15-VLOOKUP($B15,'Exp Dates'!$E$4:$K$400,MATCH("Trade Day Adj",'Exp Dates'!$E$2:$X$2,0),1)*IF($B15>VLOOKUP($B15,'Exp Dates'!$E$4:$K$400,MATCH("Trade Day Adj Start",'Exp Dates'!$E$2:$X$2,0),1),1,0) -> 5 | F15: -5 | G15: =VLOOKUP($B15,'Exp Dates'!$E$6:$U$400,MATCH("ExpMoYr",'Exp Dates'!$E$2:$U$2,0),1) -> Apr-2004 | H15: 0.1 | I15: =IF($I$1=0,(1/(1-91/360*VLOOKUP($B14,'T-bills'!$B$4:$C$1500,2,1)/100))^(($B15-$B14)/91)-1,0) -> 2.544642914e-05 | J15: 15.62 | K15: 18.17 | L15: 0.8596587782 | N15: 1128.17 | O15: 5.464 | P15: 0.0007199424046 | Q15: =ROUND(IF(Lookup!D15>0,Lookup!D15,VLOOKUP(Master!$B15,Interpolate!$B$3:$T$2500,MATCH("M1-I",Interpolate!$B$2:$T$2,0),0)),3) -> 19.446 | R15: =ROUND(IF(Lookup!E15>0,Lookup!E15,VLOOKUP(Master!$B15,Interpolate!$B$3:$T$2500,MATCH("M2-I",Interpolate!$B$2:$T$2,0),0)),3) -> 19.46 | S15: =ROUND(IF(Lookup!F15>0,Lookup!F15,VLOOKUP(Master!$B15,Interpolate!$B$3:$T$2500,MATCH("M3-I",Interpolate!$B$2:$T$2,0),0)),3) -> 19.47 | T15: =ROUND(IF(Lookup!G15>0,Lookup!G15,VLOOKUP(Master!$B15,Interpolate!$B$3:$T$2500,MATCH("M4-I",Interpolate!$B$2:$T$2,0),0)),3) -> 19.819 | U15: =ROUND(IF(Lookup!H15>0,Lookup!H15,VLOOKUP(Master!$B15,Interpolate!$B$3:$T$2500,MATCH("M5-I",Interpolate!$B$2:$T$2,0),0)),3) -> 20.27 | V15: =ROUND(IF(Lookup!I15>0,Lookup!I15,VLOOKUP(Master!$B15,Interpolate!$B$3:$T$2500,MATCH("M6-I",Interpolate!$B$2:$T$2,0),0)),3) -> 20.671 | W15: =ROUND(IF(Lookup!J15>0,Lookup!J15,VLOOKUP(Master!$B15,Interpolate!$B$3:$T$2500,MATCH("M7-I",Interpolate!$B$2:$T$2,0),0)),3) -> 21.084 | AA15: =Lookup!S15 -> 1589 | AB15: 0.0007199424046 | AC15: 0.0004761904762 | AD15: 0.01998095238
B16: 2004-04-15 | C16: 14 | D16: =VLOOKUP($B16,'Exp Dates'!$E$4:$K$400,MATCH("Days1M",'Exp Dates'!$E$2:$X$2,0),1) -> 25 | E16: =VLOOKUP($B16,'Exp Dates'!$E$4:$K$400,MATCH("Trade Count",'Exp Dates'!$E$2:$X$2,0),1)-C16+D16-VLOOKUP($B16,'Exp Dates'!$E$4:$K$400,MATCH("Trade Day Adj",'Exp Dates'!$E$2:$X$2,0),1)*IF($B16>VLOOKUP($B16,'Exp Dates'!$E$4:$K$400,MATCH("Trade Day Adj Start",'Exp Dates'!$E$2:$X$2,0),1),1,0) -> 4 | F16: -4 | G16: =VLOOKUP($B16,'Exp Dates'!$E$6:$U$400,MATCH("ExpMoYr",'Exp Dates'!$E$2:$U$2,0),1) -> Apr-2004 | H16: 0.1 | I16: =IF($I$1=0,(1/(1-91/360*VLOOKUP($B15,'T-bills'!$B$4:$C$1500,2,1)/100))^(($B16-$B15)/91)-1,0) -> 2.544642914e-05 | J16: 15.74 | K16: 17.99 | L16: 0.874930517 | N16: 1128.84 | O16: 5.454 | P16: 0.008758210823 | Q16: =ROUND(IF(Lookup!D16>0,Lookup!D16,VLOOKUP(Master!$B16,Interpolate!$B$3:$T$2500,MATCH("M1-I",Interpolate!$B$2:$T$2,0),0)),3) -> 19.182 | R16: =ROUND(IF(Lookup!E16>0,Lookup!E16,VLOOKUP(Master!$B16,Interpolate!$B$3:$T$2500,MATCH("M2-I",Interpolate!$B$2:$T$2,0),0)),3) -> 19.35 | S16: =ROUND(IF(Lookup!F16>0,Lookup!F16,VLOOKUP(Master!$B16,Interpolate!$B$3:$T$2500,MATCH("M3-I",Interpolate!$B$2:$T$2,0),0)),3) -> 19.47 | T16: =ROUND(IF(Lookup!G16>0,Lookup!G16,VLOOKUP(Master!$B16,Interpolate!$B$3:$T$2500,MATCH("M4-I",Interpolate!$B$2:$T$2,0),0)),3) -> 19.89 | U16: =ROUND(IF(Lookup!H16>0,Lookup!H16,VLOOKUP(Master!$B16,Interpolate!$B$3:$T$2500,MATCH("M5-I",Interpolate!$B$2:$T$2,0),0)),3) -> 20.43 | V16: =ROUND(IF(Lookup!I16>0,Lookup!I16,VLOOKUP(Master!$B16,Interpolate!$B$3:$T$2500,MATCH("M6-I",Interpolate!$B$2:$T$2,0),0)),3) -> 20.806 | W16: =ROUND(IF(Lookup!J16>0,Lookup!J16,VLOOKUP(Master!$B16,Interpolate!$B$3:$T$2500,MATCH("M7-I",Interpolate!$B$2:$T$2,0),0)),3) -> 21.194 | AA16: =Lookup!S16 -> 1667 | AB16: 0.008758210823 | AC16: 0.005714285714 | AD16: 0.02041904762
B17: 2004-04-16 | C17: 15 | D17: =VLOOKUP($B17,'Exp Dates'!$E$4:$K$400,MATCH("Days1M",'Exp Dates'!$E$2:$X$2,0),1) -> 25 | E17: =VLOOKUP($B17,'Exp Dates'!$E$4:$K$400,MATCH("Trade Count",'Exp Dates'!$E$2:$X$2,0),1)-C17+D17-VLOOKUP($B17,'Exp Dates'!$E$4:$K$400,MATCH("Trade Day Adj",'Exp Dates'!$E$2:$X$2,0),1)*IF($B17>VLOOKUP($B17,'Exp Dates'!$E$4:$K$400,MATCH("Trade Day Adj Start",'Exp Dates'!$E$2:$X$2,0),1),1,0) -> 3 | F17: -3 | G17: =VLOOKUP($B17,'Exp Dates'!$E$6:$U$400,MATCH("ExpMoYr",'Exp Dates'!$E$2:$U$2,0),1) -> Apr-2004 | H17: 0.1 | I17: =IF($I$1=0,(1/(1-91/360*VLOOKUP($B16,'T-bills'!$B$4:$C$1500,2,1)/100))^(($B17-$B16)/91)-1,0) -> 2.544642914e-05 | J17: 14.94 | K17: 17.53 | L17: 0.8522532801 | N17: 1134.61 | O17: 6.159 | P17: 0.03339497444 | Q17: =ROUND(IF(Lookup!D17>0,Lookup!D17,VLOOKUP(Master!$B17,Interpolate!$B$3:$T$2500,MATCH("M1-I",Interpolate!$B$2:$T$2,0),0)),3) -> 18.386 | R17: =ROUND(IF(Lookup!E17>0,Lookup!E17,VLOOKUP(Master!$B17,Interpolate!$B$3:$T$2500,MATCH("M2-I",Interpolate!$B$2:$T$2,0),0)),3) -> 19 | S17: =ROUND(IF(Lookup!F17>0,Lookup!F17,VLOOKUP(Master!$B17,Interpolate!$B$3:$T$2500,MATCH("M3-I",Interpolate!$B$2:$T$2,0),0)),3) -> 19.43 | T17: =ROUND(IF(Lookup!G17>0,Lookup!G17,VLOOKUP(Master!$B17,Interpolate!$B$3:$T$2500,MATCH("M4-I",Interpolate!$B$2:$T$2,0),0)),3) -> 19.793 | U17: =ROUND(IF(Lookup!H17>0,Lookup!H17,VLOOKUP(Master!$B17,Interpolate!$B$3:$T$2500,MATCH("M5-I",Interpolate!$B$2:$T$2,0),0)),3) -> 20.26 | V17: =ROUND(IF(Lookup!I17>0,Lookup!I17,VLOOKUP(Master!$B17,Interpolate!$B$3:$T$2500,MATCH("M6-I",Interpolate!$B$2:$T$2,0),0)),3) -> 20.673 | W17: =ROUND(IF(Lookup!J17>0,Lookup!J17,VLOOKUP(Master!$B17,Interpolate!$B$3:$T$2500,MATCH("M7-I",Interpolate!$B$2:$T$2,0),0)),3) -> 21.099 | AA17: =Lookup!S17 -> 1718 | AB17: 0.03339497444 | AC17: 0.02047619048 | AD17: 0.02062380952
B18: 2004-04-19 | C18: 16 | D18: =VLOOKUP($B18,'Exp Dates'!$E$4:$K$400,MATCH("Days1M",'Exp Dates'!$E$2:$X$2,0),1) -> 25 | E18: =VLOOKUP($B18,'Exp Dates'!$E$4:$K$400,MATCH("Trade Count",'Exp Dates'!$E$2:$X$2,0),1)-C18+D18-VLOOKUP($B18,'Exp Dates'!$E$4:$K$400,MATCH("Trade Day Adj",'Exp Dates'!$E$2:$X$2,0),1)*IF($B18>VLOOKUP($B18,'Exp Dates'!$E$4:$K$400,MATCH("Trade Day Adj Start",'Exp Dates'!$E$2:$X$2,0),1),1,0) -> 2 | F18: -2 | G18: =VLOOKUP($B18,'Exp Dates'!$E$6:$U$400,MATCH("ExpMoYr",'Exp Dates'!$E$2:$U$2,0),1) -> Apr-2004 | H18: 0.1 | I18: =IF($I$1=0,(1/(1-91/360*VLOOKUP($B17,'T-bills'!$B$4:$C$1500,2,1)/100))^(($B18-$B17)/91)-1,0) -> 7.634123e-05 | J18: 15.42 | K18: 17.68 | L18: 0.8721719457 | N18: 1135.82 | O18: 5.745 | P18: 0.0670662746 | Q18: =ROUND(IF(Lookup!D18>0,Lookup!D18,VLOOKUP(Master!$B18,Interpolate!$B$3:$T$2500,MATCH("M1-I",Interpolate!$B$2:$T$2,0),0)),3) -> 17.684 | R18: =ROUND(IF(Lookup!E18>0,Lookup!E18,VLOOKUP(Master!$B18,Interpolate!$B$3:$T$2500,MATCH("M2-I",Interpolate!$B$2:$T$2,0),0)),3) -> 18.87 | S18: =ROUND(IF(Lookup!F18>0,Lookup!F18,VLOOKUP(Master!$B18,Interpolate!$B$3:$T$2500,MATCH("M3-I",Interpolate!$B$2:$T$2,0),0)),3) -> 19.68 | T18: =ROUND(IF(Lookup!G18>0,Lookup!G18,VLOOKUP(Master!$B18,Interpolate!$B$3:$T$2500,MATCH("M4-I",Interpolate!$B$2:$T$2,0),0)),3) -> 19.981 | U18: =ROUND(IF(Lookup!H18>0,Lookup!H18,VLOOKUP(Master!$B18,Interpolate!$B$3:$T$2500,MATCH("M5-I",Interpolate!$B$2:$T$2,0),0)),3) -> 20.37 | V18: =ROUND(IF(Lookup!I18>0,Lookup!I18,VLOOKUP(Master!$B18,Interpolate!$B$3:$T$2500,MATCH("M6-I",Interpolate!$B$2:$T$2,0),0)),3) -> 20.761 | W18: =ROUND(IF(Lookup!J18>0,Lookup!J18,VLOOKUP(Master!$B18,Interpolate!$B$3:$T$2500,MATCH("M7-I",Interpolate!$B$2:$T$2,0),0)),3) -> 21.165 | AA18: =Lookup!S18 -> 1723 | AB18: 0.0670662746 | AC18: 0.03857142857 | AD18: 0.01877619048
B19: 2004-04-20 | C19: 17 | D19: =VLOOKUP($B19,'Exp Dates'!$E$4:$K$400,MATCH("Days1M",'Exp Dates'!$E$2:$X$2,0),1) -> 25 | E19: =VLOOKUP($B19,'Exp Dates'!$E$4:$K$400,MATCH("Trade Count",'Exp Dates'!$E$2:$X$2,0),1)-C19+D19-VLOOKUP($B19,'Exp Dates'!$E$4:$K$400,MATCH("Trade Day Adj",'Exp Dates'!$E$2:$X$2,0),1)*IF($B19>VLOOKUP($B19,'Exp Dates'!$E$4:$K$400,MATCH("Trade Day Adj Start",'Exp Dates'!$E$2:$X$2,0),1),1,0) -> 1 | F19: -1 | G19: =VLOOKUP($B19,'Exp Dates'!$E$6:$U$400,MATCH("ExpMoYr",'Exp Dates'!$E$2:$U$2,0),1) -> Apr-2004 | H19: 0.1 | I19: =IF($I$1=0,(1/(1-91/360*VLOOKUP($B18,'T-bills'!$B$4:$C$1500,2,1)/100))^(($B19-$B18)/91)-1,0) -> 2.600330106e-05 | J19: 16.67 | K19: 18.73 | L19: 0.8900160171 | N19: 1118.15 | O19: 4.689 | P19: 0.06596159198 | Q19: =ROUND(IF(Lookup!D19>0,Lookup!D19,VLOOKUP(Master!$B19,Interpolate!$B$3:$T$2500,MATCH("M1-I",Interpolate!$B$2:$T$2,0),0)),3) -> 17.965 | R19: =ROUND(IF(Lookup!E19>0,Lookup!E19,VLOOKUP(Master!$B19,Interpolate!$B$3:$T$2500,MATCH("M2-I",Interpolate!$B$2:$T$2,0),0)),3) -> 19.15 | S19: =ROUND(IF(Lookup!F19>0,Lookup!F19,VLOOKUP(Master!$B19,Interpolate!$B$3:$T$2500,MATCH("M3-I",Interpolate!$B$2:$T$2,0),0)),3) -> 19.96 | T19: =ROUND(IF(Lookup!G19>0,Lookup!G19,VLOOKUP(Master!$B19,Interpolate!$B$3:$T$2500,MATCH("M4-I",Interpolate!$B$2:$T$2,0),0)),3) -> 20.204 | U19: =ROUND(IF(Lookup!H19>0,Lookup!H19,VLOOKUP(Master!$B19,Interpolate!$B$3:$T$2500,MATCH("M5-I",Interpolate!$B$2:$T$2,0),0)),3) -> 20.52 | V19: =ROUND(IF(Lookup!I19>0,Lookup!I19,VLOOKUP(Master!$B19,Interpolate!$B$3:$T$2500,MATCH("M6-I",Interpolate!$B$2:$T$2,0),0)),3) -> 20.933 | W19: =ROUND(IF(Lookup!J19>0,Lookup!J19,VLOOKUP(Master!$B19,Interpolate!$B$3:$T$2500,MATCH("M7-I",Interpolate!$B$2:$T$2,0),0)),3) -> 21.359 | AA19: =Lookup!S19 -> 1836 | AB19: 0.06596159198 | AC19: 0.03857142857 | AD19: 0.01846666667
B20: 2004-04-21 | C20: 18 | D20: =VLOOKUP($B20,'Exp Dates'!$E$4:$K$400,MATCH("Days1M",'Exp Dates'!$E$2:$X$2,0),1) -> 20 | E20: =VLOOKUP($B20,'Exp Dates'!$E$4:$K$400,MATCH("Trade Count",'Exp Dates'!$E$2:$X$2,0),1)-C20+D20-VLOOKUP($B20,'Exp Dates'!$E$4:$K$400,MATCH("Trade Day Adj",'Exp Dates'!$E$2:$X$2,0),1)*IF($B20>VLOOKUP($B20,'Exp Dates'!$E$4:$K$400,MATCH("Trade Day Adj Start",'Exp Dates'!$E$2:$X$2,0),1),1,0) -> 20 | F20: 0 | G20: =VLOOKUP($B20,'Exp Dates'!$E$6:$U$400,MATCH("ExpMoYr",'Exp Dates'!$E$2:$U$2,0),1) -> May-2004 | H20: 0.1 | I20: =IF($I$1=0,(1/(1-91/360*VLOOKUP($B19,'T-bills'!$B$4:$C$1500,2,1)/100))^(($B20-$B19)/91)-1,0) -> 2.600330106e-05 | J20: 15.6 | K20: 17.92 | L20: 0.8705357143 | N20: 1124.09 | O20: 5.98 | P20: 0.05460385439 | Q20: =ROUND(IF(Lookup!D20>0,Lookup!D20,VLOOKUP(Master!$B20,Interpolate!$B$3:$T$2500,MATCH("M1-I",Interpolate!$B$2:$T$2,0),0)),3) -> 18.68 | R20: =ROUND(IF(Lookup!E20>0,Lookup!E20,VLOOKUP(Master!$B20,Interpolate!$B$3:$T$2500,MATCH("M2-I",Interpolate!$B$2:$T$2,0),0)),3) -> 19.7 | S20: =ROUND(IF(Lookup!F20>0,Lookup!F20,VLOOKUP(Master!$B20,Interpolate!$B$3:$T$2500,MATCH("M3-I",Interpolate!$B$2:$T$2,0),0)),3) -> 19.926 | T20: =ROUND(IF(Lookup!G20>0,Lookup!G20,VLOOKUP(Master!$B20,Interpolate!$B$3:$T$2500,MATCH("M4-I",Interpolate!$B$2:$T$2,0),0)),3) -> 20.22 | U20: =ROUND(IF(Lookup!H20>0,Lookup!H20,VLOOKUP(Master!$B20,Interpolate!$B$3:$T$2500,MATCH("M5-I",Interpolate!$B$2:$T$2,0),0)),3) -> 20.633 | V20: =ROUND(IF(Lookup!I20>0,Lookup!I20,VLOOKUP(Master!$B20,Interpolate!$B$3:$T$2500,MATCH("M6-I",Interpolate!$B$2:$T$2,0),0)),3) -> 21.059 | W20: =ROUND(IF(Lookup!J20>0,Lookup!J20,VLOOKUP(Master!$B20,Interpolate!$B$3:$T$2500,MATCH("M7-I",Interpolate!$B$2:$T$2,0),0)),3) -> 21.58 | AA20: =Lookup!S20 -> 2375 | AB20: 0.05460385439 | AC20: 0.01076190476 | AD20: 0.02145714286
B21: 2004-04-22 | C21: 19 | D21: =VLOOKUP($B21,'Exp Dates'!$E$4:$K$400,MATCH("Days1M",'Exp Dates'!$E$2:$X$2,0),1) -> 20 | E21: =VLOOKUP($B21,'Exp Dates'!$E$4:$K$400,MATCH("Trade Count",'Exp Dates'!$E$2:$X$2,0),1)-C21+D21-VLOOKUP($B21,'Exp Dates'!$E$4:$K$400,MATCH("Trade Day Adj",'Exp Dates'!$E$2:$X$2,0),1)*IF($B21>VLOOKUP($B21,'Exp Dates'!$E$4:$K$400,MATCH("Trade Day Adj Start",'Exp Dates'!$E$2:$X$2,0),1),1,0) -> 19 | F21: 1 | G21: =VLOOKUP($B21,'Exp Dates'!$E$6:$U$400,MATCH("ExpMoYr",'Exp Dates'!$E$2:$U$2,0),1) -> May-2004 | H21: 0.1 | I21: =IF($I$1=0,(1/(1-91/360*VLOOKUP($B20,'T-bills'!$B$4:$C$1500,2,1)/100))^(($B21-$B20)/91)-1,0) -> 2.600330106e-05 | J21: 14.61 | K21: 17.11 | L21: 0.853886616 | N21: 1139.93 | O21: 6.49 | P21: 0.0818443804 | Q21: =ROUND(IF(Lookup!D21>0,Lookup!D21,VLOOKUP(Master!$B21,Interpolate!$B$3:$T$2500,MATCH("M1-I",Interpolate!$B$2:$T$2,0),0)),3) -> 17.35 | R21: =ROUND(IF(Lookup!E21>0,Lookup!E21,VLOOKUP(Master!$B21,Interpolate!$B$3:$T$2500,MATCH("M2-I",Interpolate!$B$2:$T$2,0),0)),3) -> 18.77 | S21: =ROUND(IF(Lookup!F21>0,Lookup!F21,VLOOKUP(Master!$B21,Interpolate!$B$3:$T$2500,MATCH("M3-I",Interpolate!$B$2:$T$2,0),0)),3) -> 19.164 | T21: =ROUND(IF(Lookup!G21>0,Lookup!G21,VLOOKUP(Master!$B21,Interpolate!$B$3:$T$2500,MATCH("M4-I",Interpolate!$B$2:$T$2,0),0)),3) -> 19.67 | U21: =ROUND(IF(Lookup!H21>0,Lookup!H21,VLOOKUP(Master!$B21,Interpolate!$B$3:$T$2500,MATCH("M5-I",Interpolate!$B$2:$T$2,0),0)),3) -> 20.105 | V21: =ROUND(IF(Lookup!I21>0,Lookup!I21,VLOOKUP(Master!$B21,Interpolate!$B$3:$T$2500,MATCH("M6-I",Interpolate!$B$2:$T$2,0),0)),3) -> 20.553 | W21: =ROUND(IF(Lookup!J21>0,Lookup!J21,VLOOKUP(Master!$B21,Interpolate!$B$3:$T$2500,MATCH("M7-I",Interpolate!$B$2:$T$2,0),0)),3) -> 21.1 | AA21: =Lookup!S21 -> 2509 | AB21: 0.0818443804 | AC21: 0.01876190476 | AD21: 0.02256190476
B22: 2004-04-23 | C22: 20 | D22: =VLOOKUP($B22,'Exp Dates'!$E$4:$K$400,MATCH("Days1M",'Exp Dates'!$E$2:$X$2,0),1) -> 20 | E22: =VLOOKUP($B22,'Exp Dates'!$E$4:$K$400,MATCH("Trade Count",'Exp Dates'!$E$2:$X$2,0),1)-C22+D22-VLOOKUP($B22,'Exp Dates'!$E$4:$K$400,MATCH("Trade Day Adj",'Exp Dates'!$E$2:$X$2,0),1)*IF($B22>VLOOKUP($B22,'Exp Dates'!$E$4:$K$400,MATCH("Trade Day Adj Start",'Exp Dates'!$E$2:$X$2,0),1),1,0) -> 18 | F22: 2 | G22: =VLOOKUP($B22,'Exp Dates'!$E$6:$U$400,MATCH("ExpMoYr",'Exp Dates'!$E$2:$U$2,0),1) -> May-2004 | H22: 0.1 | I22: =IF($I$1=0,(1/(1-91/360*VLOOKUP($B21,'T-bills'!$B$4:$C$1500,2,1)/100))^(($B22-$B21)/91)-1,0) -> 2.600330106e-05 | J22: 14.01 | K22: 16.62 | L22: 0.8429602888 | N22: 1140.6 | O22: 7.21 | P22: 0.100922722 | Q22: =ROUND(IF(Lookup!D22>0,Lookup!D22,VLOOKUP(Master!$B22,Interpolate!$B$3:$T$2500,MATCH("M1-I",Interpolate!$B$2:$T$2,0),0)),3) -> 17.34 | R22: =ROUND(IF(Lookup!E22>0,Lookup!E22,VLOOKUP(Master!$B22,Interpolate!$B$3:$T$2500,MATCH("M2-I",Interpolate!$B$2:$T$2,0),0)),3) -> 19.09 | S22: =ROUND(IF(Lookup!F22>0,Lookup!F22,VLOOKUP(Master!$B22,Interpolate!$B$3:$T$2500,MATCH("M3-I",Interpolate!$B$2:$T$2,0),0)),3) -> 19.404 | T22: =ROUND(IF(Lookup!G22>0,Lookup!G22,VLOOKUP(Master!$B22,Interpolate!$B$3:$T$2500,MATCH("M4-I",Interpolate!$B$2:$T$2,0),0)),3) -> 19.81 | U22: =ROUND(IF(Lookup!H22>0,Lookup!H22,VLOOKUP(Master!$B22,Interpolate!$B$3:$T$2500,MATCH("M5-I",Interpolate!$B$2:$T$2,0),0)),3) -> 20.239 | V22: =ROUND(IF(Lookup!I22>0,Lookup!I22,VLOOKUP(Master!$B22,Interpolate!$B$3:$T$2500,MATCH("M6-I",Interpolate!$B$2:$T$2,0),0)),3) -> 20.681 | W22: =ROUND(IF(Lookup!J22>0,Lookup!J22,VLOOKUP(Master!$B22,Interpolate!$B$3:$T$2500,MATCH("M7-I",Interpolate!$B$2:$T$2,0),0)),3) -> 21.22 | AA22: =Lookup!S22 -> 2630 | AB22: 0.100922722 | AC22: 0.01495238095 | AD22: 0.02224761905
B23: 2004-04-26 | C23: 21 | D23: =VLOOKUP($B23,'Exp Dates'!$E$4:$K$400,MATCH("Days1M",'Exp Dates'!$E$2:$X$2,0),1) -> 20 | E23: =VLOOKUP($B23,'Exp Dates'!$E$4:$K$400,MATCH("Trade Count",'Exp Dates'!$E$2:$X$2,0),1)-C23+D23-VLOOKUP($B23,'Exp Dates'!$E$4:$K$400,MATCH("Trade Day Adj",'Exp Dates'!$E$2:$X$2,0),1)*IF($B23>VLOOKUP($B23,'Exp Dates'!$E$4:$K$400,MATCH("Trade Day Adj Start",'Exp Dates'!$E$2:$X$2,0),1),1,0) -> 17 | F23: 3 | G23: =VLOOKUP($B23,'Exp Dates'!$E$6:$U$400,MATCH("ExpMoYr",'Exp Dates'!$E$2:$U$2,0),1) -> May-2004 | H23: 0.1 | I23: =IF($I$1=0,(1/(1-91/360*VLOOKUP($B22,'T-bills'!$B$4:$C$1500,2,1)/100))^(($B23-$B22)/91)-1,0) -> 7.801193172e-05 | J23: 14.77 | K23: 17.06 | L23: 0.8657678781 | N23: 1135.53 | O23: 6.43 | P23: 0.1068301226 | Q23: =ROUND(IF(Lookup!D23>0,Lookup!D23,VLOOKUP(Master!$B23,Interpolate!$B$3:$T$2500,MATCH("M1-I",Interpolate!$B$2:$T$2,0),0)),3) -> 17.13 | R23: =ROUND(IF(Lookup!E23>0,Lookup!E23,VLOOKUP(Master!$B23,Interpolate!$B$3:$T$2500,MATCH("M2-I",Interpolate!$B$2:$T$2,0),0)),3) -> 18.96 | S23: =ROUND(IF(Lookup!F23>0,Lookup!F23,VLOOKUP(Master!$B23,Interpolate!$B$3:$T$2500,MATCH("M3-I",Interpolate!$B$2:$T$2,0),0)),3) -> 19.332 | T23: =ROUND(IF(Lookup!G23>0,Lookup!G23,VLOOKUP(Master!$B23,Interpolate!$B$3:$T$2500,MATCH("M4-I",Interpolate!$B$2:$T$2,0),0)),3) -> 19.81 | U23: =ROUND(IF(Lookup!H23>0,Lookup!H23,VLOOKUP(Master!$B23,Interpolate!$B$3:$T$2500,MATCH("M5-I",Interpolate!$B$2:$T$2,0),0)),3) -> 20.233 | V23: =ROUND(IF(Lookup!I23>0,Lookup!I23,VLOOKUP(Master!$B23,Interpolate!$B$3:$T$2500,MATCH("M6-I",Interpolate!$B$2:$T$2,0),0)),3) -> 20.668 | W23: =ROUND(IF(Lookup!J23>0,Lookup!J23,VLOOKUP(Master!$B23,Interpolate!$B$3:$T$2500,MATCH("M7-I",Interpolate!$B$2:$T$2,0),0)),3) -> 21.2 | AA23: =Lookup!S23 -> 2469 | AB23: 0.1068301226 | AC23: 0.01771428571 | AD23: 0.02192857143
B24: 2004-04-27 | C24: 22 | D24: =VLOOKUP($B24,'Exp Dates'!$E$4:$K$400,MATCH("Days1M",'Exp Dates'!$E$2:$X$2,0),1) -> 20 | E24: =VLOOKUP($B24,'Exp Dates'!$E$4:$K$400,MATCH("Trade Count",'Exp Dates'!$E$2:$X$2,0),1)-C24+D24-VLOOKUP($B24,'Exp Dates'!$E$4:$K$400,MATCH("Trade Day Adj",'Exp Dates'!$E$2:$X$2,0),1)*IF($B24>VLOOKUP($B24,'Exp Dates'!$E$4:$K$400,MATCH("Trade Day Adj Start",'Exp Dates'!$E$2:$X$2,0),1),1,0) -> 16 | F24: 4 | G24: =VLOOKUP($B24,'Exp Dates'!$E$6:$U$400,MATCH("ExpMoYr",'Exp Dates'!$E$2:$U$2,0),1) -> May-2004 | H24: 0.1 | I24: =IF($I$1=0,(1/(1-91/360*VLOOKUP($B23,'T-bills'!$B$4:$C$1500,2,1)/100))^(($B24-$B23)/91)-1,0) -> 2.697789558e-05 | J24: 15.07 | K24: 17.15 | L24: 0.8787172012 | N24: 1138.11 | O24: 6.13 | P24: 0.1172619048 | Q24: =ROUND(IF(Lookup!D24>0,Lookup!D24,VLOOKUP(Master!$B24,Interpolate!$B$3:$T$2500,MATCH("M1-I",Interpolate!$B$2:$T$2,0),0)),3) -> 16.8 | R24: =ROUND(IF(Lookup!E24>0,Lookup!E24,VLOOKUP(Master!$B24,Interpolate!$B$3:$T$2500,MATCH("M2-I",Interpolate!$B$2:$T$2,0),0)),3) -> 18.77 | S24: =ROUND(IF(Lookup!F24>0,Lookup!F24,VLOOKUP(Master!$B24,Interpolate!$B$3:$T$2500,MATCH("M3-I",Interpolate!$B$2:$T$2,0),0)),3) -> 19.222 | T24: =ROUND(IF(Lookup!G24>0,Lookup!G24,VLOOKUP(Master!$B24,Interpolate!$B$3:$T$2500,MATCH("M4-I",Interpolate!$B$2:$T$2,0),0)),3) -> 19.8 | U24: =ROUND(IF(Lookup!H24>0,Lookup!H24,VLOOKUP(Master!$B24,Interpolate!$B$3:$T$2500,MATCH("M5-I",Interpolate!$B$2:$T$2,0),0)),3) -> 20.226 | V24: =ROUND(IF(Lookup!I24>0,Lookup!I24,VLOOKUP(Master!$B24,Interpolate!$B$3:$T$2500,MATCH("M6-I",Interpolate!$B$2:$T$2,0),0)),3) -> 20.664 | W24: =ROUND(IF(Lookup!J24>0,Lookup!J24,VLOOKUP(Master!$B24,Interpolate!$B$3:$T$2500,MATCH("M7-I",Interpolate!$B$2:$T$2,0),0)),3) -> 21.2 | AA24: =Lookup!S24 -> 2490 | AB24: 0.1172619048 | AC24: 0.02152380952 | AD24: 0.02208571429
B25: 2004-04-28 | C25: 23 | D25: =VLOOKUP($B25,'Exp Dates'!$E$4:$K$400,MATCH("Days1M",'Exp Dates'!$E$2:$X$2,0),1) -> 20 | E25: =VLOOKUP($B25,'Exp Dates'!$E$4:$K$400,MATCH("Trade Count",'Exp Dates'!$E$2:$X$2,0),1)-C25+D25-VLOOKUP($B25,'Exp Dates'!$E$4:$K$400,MATCH("Trade Day Adj",'Exp Dates'!$E$2:$X$2,0),1)*IF($B25>VLOOKUP($B25,'Exp Dates'!$E$4:$K$400,MATCH("Trade Day Adj Start",'Exp Dates'!$E$2:$X$2,0),1),1,0) -> 15 | F25: 5 | G25: =VLOOKUP($B25,'Exp Dates'!$E$6:$U$400,MATCH("ExpMoYr",'Exp Dates'!$E$2:$U$2,0),1) -> May-2004 | H25: 0.1 | I25: =IF($I$1=0,(1/(1-91/360*VLOOKUP($B24,'T-bills'!$B$4:$C$1500,2,1)/100))^(($B25-$B24)/91)-1,0) -> 2.697789558e-05 | J25: 16.29 | K25: 18.07 | L25: 0.9014941893 | N25: 1122.41 | O25: 4.97 | P25: 0.1093839954 | Q25: =ROUND(IF(Lookup!D25>0,Lookup!D25,VLOOKUP(Master!$B25,Interpolate!$B$3:$T$2500,MATCH("M1-I",Interpolate!$B$2:$T$2,0),0)),3) -> 17.37 | R25: =ROUND(IF(Lookup!E25>0,Lookup!E25,VLOOKUP(Master!$B25,Interpolate!$B$3:$T$2500,MATCH("M2-I",Interpolate!$B$2:$T$2,0),0)),3) -> 19.27 | S25: =ROUND(IF(Lookup!F25>0,Lookup!F25,VLOOKUP(Master!$B25,Interpolate!$B$3:$T$2500,MATCH("M3-I",Interpolate!$B$2:$T$2,0),0)),3) -> 19.704 | T25: =ROUND(IF(Lookup!G25>0,Lookup!G25,VLOOKUP(Master!$B25,Interpolate!$B$3:$T$2500,MATCH("M4-I",Interpolate!$B$2:$T$2,0),0)),3) -> 20.26 | U25: =ROUND(IF(Lookup!H25>0,Lookup!H25,VLOOKUP(Master!$B25,Interpolate!$B$3:$T$2500,MATCH("M5-I",Interpolate!$B$2:$T$2,0),0)),3) -> 20.562 | V25: =ROUND(IF(Lookup!I25>0,Lookup!I25,VLOOKUP(Master!$B25,Interpolate!$B$3:$T$2500,MATCH("M6-I",Interpolate!$B$2:$T$2,0),0)),3) -> 20.875 | W25: =ROUND(IF(Lookup!J25>0,Lookup!J25,VLOOKUP(Master!$B25,Interpolate!$B$3:$T$2500,MATCH("M7-I",Interpolate!$B$2:$T$2,0),0)),3) -> 21.26 | AA25: =Lookup!S25 -> 2595 | AB25: 0.1093839954 | AC25: 0.02066666667 | AD25: 0.01577619048
B26: 2004-04-29 | C26: 24 | D26: =VLOOKUP($B26,'Exp Dates'!$E$4:$K$400,MATCH("Days1M",'Exp Dates'!$E$2:$X$2,0),1) -> 20 | E26: =VLOOKUP($B26,'Exp Dates'!$E$4:$K$400,MATCH("Trade Count",'Exp Dates'!$E$2:$X$2,0),1)-C26+D26-VLOOKUP($B26,'Exp Dates'!$E$4:$K$400,MATCH("Trade Day Adj",'Exp Dates'!$E$2:$X$2,0),1)*IF($B26>VLOOKUP($B26,'Exp Dates'!$E$4:$K$400,MATCH("Trade Day Adj Start",'Exp Dates'!$E$2:$X$2,0),1),1,0) -> 14 | F26: 6 | G26: =VLOOKUP($B26,'Exp Dates'!$E$6:$U$400,MATCH("ExpMoYr",'Exp Dates'!$E$2:$U$2,0),1) -> May-2004 | H26: 0.1 | I26: =IF($I$1=0,(1/(1-91/360*VLOOKUP($B25,'T-bills'!$B$4:$C$1500,2,1)/100))^(($B26-$B25)/91)-1,0) -> 2.697789558e-05 | J26: 16.6 | K26: 18.51 | L26: 0.8968125338 | N26: 1113.89 | O26: 4.78 | P26: 0.1052335397 | Q26: =ROUND(IF(Lookup!D26>0,Lookup!D26,VLOOKUP(Master!$B26,Interpolate!$B$3:$T$2500,MATCH("M1-I",Interpolate!$B$2:$T$2,0),0)),3) -> 17.77 | R26: =ROUND(IF(Lookup!E26>0,Lookup!E26,VLOOKUP(Master!$B26,Interpolate!$B$3:$T$2500,MATCH("M2-I",Interpolate!$B$2:$T$2,0),0)),3) -> 19.64 | S26: =ROUND(IF(Lookup!F26>0,Lookup!F26,VLOOKUP(Master!$B26,Interpolate!$B$3:$T$2500,MATCH("M3-I",Interpolate!$B$2:$T$2,0),0)),3) -> 20.096 | T26: =ROUND(IF(Lookup!G26>0,Lookup!G26,VLOOKUP(Master!$B26,Interpolate!$B$3:$T$2500,MATCH("M4-I",Interpolate!$B$2:$T$2,0),0)),3) -> 20.68 | U26: =ROUND(IF(Lookup!H26>0,Lookup!H26,VLOOKUP(Master!$B26,Interpolate!$B$3:$T$2500,MATCH("M5-I",Interpolate!$B$2:$T$2,0),0)),3) -> 20.89 | V26: =ROUND(IF(Lookup!I26>0,Lookup!I26,VLOOKUP(Master!$B26,Interpolate!$B$3:$T$2500,MATCH("M6-I",Interpolate!$B$2:$T$2,0),0)),3) -> 21.109 | W26: =ROUND(IF(Lookup!J26>0,Lookup!J26,VLOOKUP(Master!$B26,Interpolate!$B$3:$T$2500,MATCH("M7-I",Interpolate!$B$2:$T$2,0),0)),3) -> 21.38 | AA26: =Lookup!S26 -> 2822 | AB26: 0.1052335397 | AC26: 0.02171428571 | AD26: 0.01104285714
B27: 2004-04-30 | C27: 25 | D27: =VLOOKUP($B27,'Exp Dates'!$E$4:$K$400,MATCH("Days1M",'Exp Dates'!$E$2:$X$2,0),1) -> 20 | E27: =VLOOKUP($B27,'Exp Dates'!$E$4:$K$400,MATCH("Trade Count",'Exp Dates'!$E$2:$X$2,0),1)-C27+D27-VLOOKUP($B27,'Exp Dates'!$E$4:$K$400,MATCH("Trade Day Adj",'Exp Dates'!$E$2:$X$2,0),1)*IF($B27>VLOOKUP($B27,'Exp Dates'!$E$4:$K$400,MATCH("Trade Day Adj Start",'Exp Dates'!$E$2:$X$2,0),1),1,0) -> 13 | F27: 7 | G27: =VLOOKUP($B27,'Exp Dates'!$E$6:$U$400,MATCH("ExpMoYr",'Exp Dates'!$E$2:$U$2,0),1) -> May-2004 | H27: 0.1 | I27: =IF($I$1=0,(1/(1-91/360*VLOOKUP($B26,'T-bills'!$B$4:$C$1500,2,1)/100))^(($B27-$B26)/91)-1,0) -> 2.697789558e-05 | J27: 17.19 | K27: 18.71 | L27: 0.9187600214 | N27: 1107.3 | O27: 4.23 | P27: 0.08946212953 | Q27: =ROUND(IF(Lookup!D27>0,Lookup!D27,VLOOKUP(Master!$B27,Interpolate!$B$3:$T$2500,MATCH("M1-I",Interpolate!$B$2:$T$2,0),0)),3) -> 18.22 | R27: =ROUND(IF(Lookup!E27>0,Lookup!E27,VLOOKUP(Master!$B27,Interpolate!$B$3:$T$2500,MATCH("M2-I",Interpolate!$B$2:$T$2,0),0)),3) -> 19.85 | S27: =ROUND(IF(Lookup!F27>0,Lookup!F27,VLOOKUP(Master!$B27,Interpolate!$B$3:$T$2500,MATCH("M3-I",Interpolate!$B$2:$T$2,0),0)),3) -> 20.323 | T27: =ROUND(IF(Lookup!G27>0,Lookup!G27,VLOOKUP(Master!$B27,Interpolate!$B$3:$T$2500,MATCH("M4-I",Interpolate!$B$2:$T$2,0),0)),3) -> 20.93 | U27: =ROUND(IF(Lookup!H27>0,Lookup!H27,VLOOKUP(Master!$B27,Interpolate!$B$3:$T$2500,MATCH("M5-I",Interpolate!$B$2:$T$2,0),0)),3) -> 21.077 | V27: =ROUND(IF(Lookup!I27>0,Lookup!I27,VLOOKUP(Master!$B27,Interpolate!$B$3:$T$2500,MATCH("M6-I",Interpolate!$B$2:$T$2,0),0)),3) -> 21.23 | W27: =ROUND(IF(Lookup!J27>0,Lookup!J27,VLOOKUP(Master!$B27,Interpolate!$B$3:$T$2500,MATCH("M7-I",Interpolate!$B$2:$T$2,0),0)),3) -> 21.42 | AA27: =Lookup!S27 -> 2717 | AB27: 0.08946212953 | AC27: 0.02252380952 | AD27: 0.007728571429
B28: 2004-05-03 | C28: 26 | D28: =VLOOKUP($B28,'Exp Dates'!$E$4:$K$400,MATCH("Days1M",'Exp Dates'!$E$2:$X$2,0),1) -> 20 | E28: =VLOOKUP($B28,'Exp Dates'!$E$4:$K$400,MATCH("Trade Count",'Exp Dates'!$E$2:$X$2,0),1)-C28+D28-VLOOKUP($B28,'Exp Dates'!$E$4:$K$400,MATCH("Trade Day Adj",'Exp Dates'!$E$2:$X$2,0),1)*IF($B28>VLOOKUP($B28,'Exp Dates'!$E$4:$K$400,MATCH("Trade Day Adj Start",'Exp Dates'!$E$2:$X$2,0),1),1,0) -> 12 | F28: 8 | G28: =VLOOKUP($B28,'Exp Dates'!$E$6:$U$400,MATCH("ExpMoYr",'Exp Dates'!$E$2:$U$2,0),1) -> May-2004 | H28: 0.1 | I28: =IF($I$1=0,(1/(1-91/360*VLOOKUP($B27,'T-bills'!$B$4:$C$1500,2,1)/100))^(($B28-$B27)/91)-1,0) -> 8.093587017e-05 | J28: 16.62 | K28: 18.13 | L28: 0.916712631 | N28: 1117.49 | O28: 4.51 | P28: 0.08931599774 | Q28: =ROUND(IF(Lookup!D28>0,Lookup!D28,VLOOKUP(Master!$B28,Interpolate!$B$3:$T$2500,MATCH("M1-I",Interpolate!$B$2:$T$2,0),0)),3) -> 17.69 | R28: =ROUND(IF(Lookup!E28>0,Lookup!E28,VLOOKUP(Master!$B28,Interpolate!$B$3:$T$2500,MATCH("M2-I",Interpolate!$B$2:$T$2,0),0)),3) -> 19.27 | S28: =ROUND(IF(Lookup!F28>0,Lookup!F28,VLOOKUP(Master!$B28,Interpolate!$B$3:$T$2500,MATCH("M3-I",Interpolate!$B$2:$T$2,0),0)),3) -> 19.86 | T28: =ROUND(IF(Lookup!G28>0,Lookup!G28,VLOOKUP(Master!$B28,Interpolate!$B$3:$T$2500,MATCH("M4-I",Interpolate!$B$2:$T$2,0),0)),3) -> 20.61 | U28: =ROUND(IF(Lookup!H28>0,Lookup!H28,VLOOKUP(Master!$B28,Interpolate!$B$3:$T$2500,MATCH("M5-I",Interpolate!$B$2:$T$2,0),0)),3) -> 20.766 | V28: =ROUND(IF(Lookup!I28>0,Lookup!I28,VLOOKUP(Master!$B28,Interpolate!$B$3:$T$2500,MATCH("M6-I",Interpolate!$B$2:$T$2,0),0)),3) -> 20.928 | W28: =ROUND(IF(Lookup!J28>0,Lookup!J28,VLOOKUP(Master!$B28,Interpolate!$B$3:$T$2500,MATCH("M7-I",Interpolate!$B$2:$T$2,0),0)),3) -> 21.13 | AA28: =Lookup!S28 -> 2644 | AB28: 0.08931599774 | AC28: 0.0280952381 | AD28: 0.0082
B29: 2004-05-04 | C29: 27 | D29: =VLOOKUP($B29,'Exp Dates'!$E$4:$K$400,MATCH("Days1M",'Exp Dates'!$E$2:$X$2,0),1) -> 20 | E29: =VLOOKUP($B29,'Exp Dates'!$E$4:$K$400,MATCH("Trade Count",'Exp Dates'!$E$2:$X$2,0),1)-C29+D29-VLOOKUP($B29,'Exp Dates'!$E$4:$K$400,MATCH("Trade Day Adj",'Exp Dates'!$E$2:$X$2,0),1)*IF($B29>VLOOKUP($B29,'Exp Dates'!$E$4:$K$400,MATCH("Trade Day Adj Start",'Exp Dates'!$E$2:$X$2,0),1),1,0) -> 11 | F29: 9 | G29: =VLOOKUP($B29,'Exp Dates'!$E$6:$U$400,MATCH("ExpMoYr",'Exp Dates'!$E$2:$U$2,0),1) -> May-2004 | H29: 0.1 | I29: =IF($I$1=0,(1/(1-91/360*VLOOKUP($B28,'T-bills'!$B$4:$C$1500,2,1)/100))^(($B29-$B28)/91)-1,0) -> 2.739560569e-05 | J29: 16.55 | K29: 18.19 | L29: 0.9098405717 | N29: 1119.55 | O29: 4.58 | P29: 0.1091854419 | Q29: =ROUND(IF(Lookup!D29>0,Lookup!D29,VLOOKUP(Master!$B29,Interpolate!$B$3:$T$2500,MATCH("M1-I",Interpolate!$B$2:$T$2,0),0)),3) -> 17.31 | R29: =ROUND(IF(Lookup!E29>0,Lookup!E29,VLOOKUP(Master!$B29,Interpolate!$B$3:$T$2500,MATCH("M2-I",Interpolate!$B$2:$T$2,0),0)),3) -> 19.2 | S29: =ROUND(IF(Lookup!F29>0,Lookup!F29,VLOOKUP(Master!$B29,Interpolate!$B$3:$T$2500,MATCH("M3-I",Interpolate!$B$2:$T$2,0),0)),3) -> 19.749 | T29: =ROUND(IF(Lookup!G29>0,Lookup!G29,VLOOKUP(Master!$B29,Interpolate!$B$3:$T$2500,MATCH("M4-I",Interpolate!$B$2:$T$2,0),0)),3) -> 20.45 | U29: =ROUND(IF(Lookup!H29>0,Lookup!H29,VLOOKUP(Master!$B29,Interpolate!$B$3:$T$2500,MATCH("M5-I",Interpolate!$B$2:$T$2,0),0)),3) -> 20.654 | V29: =ROUND(IF(Lookup!I29>0,Lookup!I29,VLOOKUP(Master!$B29,Interpolate!$B$3:$T$2500,MATCH("M6-I",Interpolate!$B$2:$T$2,0),0)),3) -> 20.867 | W29: =ROUND(IF(Lookup!J29>0,Lookup!J29,VLOOKUP(Master!$B29,Interpolate!$B$3:$T$2500,MATCH("M7-I",Interpolate!$B$2:$T$2,0),0)),3) -> 21.13 | AA29: =Lookup!S29 -> 2689 | AB29: 0.1091854419 | AC29: 0.02614285714 | AD29: 0.01072857143
B30: 2004-05-05 | C30: 28 | D30: =VLOOKUP($B30,'Exp Dates'!$E$4:$K$400,MATCH("Days1M",'Exp Dates'!$E$2:$X$2,0),1) -> 20 | E30: =VLOOKUP($B30,'Exp Dates'!$E$4:$K$400,MATCH("Trade Count",'Exp Dates'!$E$2:$X$2,0),1)-C30+D30-VLOOKUP($B30,'Exp Dates'!$E$4:$K$400,MATCH("Trade Day Adj",'Exp Dates'!$E$2:$X$2,0),1)*IF($B30>VLOOKUP($B30,'Exp Dates'!$E$4:$K$400,MATCH("Trade Day Adj Start",'Exp Dates'!$E$2:$X$2,0),1),1,0) -> 10 | F30: 10 | G30: =VLOOKUP($B30,'Exp Dates'!$E$6:$U$400,MATCH("ExpMoYr",'Exp Dates'!$E$2:$U$2,0),1) -> May-2004 | H30: 0.1 | I30: =IF($I$1=0,(1/(1-91/360*VLOOKUP($B29,'T-bills'!$B$4:$C$1500,2,1)/100))^(($B30-$B29)/91)-1,0) -> 2.739560569e-05 | J30: 15.77 | K30: 17.45 | L30: 0.9037249284 | N30: 1121.53 | O30: 5.18 | P30: 0.1305655836 | Q30: =ROUND(IF(Lookup!D30>0,Lookup!D30,VLOOKUP(Master!$B30,Interpolate!$B$3:$T$2500,MATCH("M1-I",Interpolate!$B$2:$T$2,0),0)),3) -> 16.62 | R30: =ROUND(IF(Lookup!E30>0,Lookup!E30,VLOOKUP(Master!$B30,Interpolate!$B$3:$T$2500,MATCH("M2-I",Interpolate!$B$2:$T$2,0),0)),3) -> 18.79 | S30: =ROUND(IF(Lookup!F30>0,Lookup!F30,VLOOKUP(Master!$B30,Interpolate!$B$3:$T$2500,MATCH("M3-I",Interpolate!$B$2:$T$2,0),0)),3) -> 19.438 | T30: =ROUND(IF(Lookup!G30>0,Lookup!G30,VLOOKUP(Master!$B30,Interpolate!$B$3:$T$2500,MATCH("M4-I",Interpolate!$B$2:$T$2,0),0)),3) -> 20.26 | U30: =ROUND(IF(Lookup!H30>0,Lookup!H30,VLOOKUP(Master!$B30,Interpolate!$B$3:$T$2500,MATCH("M5-I",Interpolate!$B$2:$T$2,0),0)),3) -> 20.467 | V30: =ROUND(IF(Lookup!I30>0,Lookup!I30,VLOOKUP(Master!$B30,Interpolate!$B$3:$T$2500,MATCH("M6-I",Interpolate!$B$2:$T$2,0),0)),3) -> 20.683 | W30: =ROUND(IF(Lookup!J30>0,Lookup!J30,VLOOKUP(Master!$B30,Interpolate!$B$3:$T$2500,MATCH("M7-I",Interpolate!$B$2:$T$2,0),0)),3) -> 20.95 | AA30: =Lookup!S30 -> 2833 | AB30: 0.1305655836 | AC30: 0.03085714286 | AD30: 0.01088571429
B31: 2004-05-06 | C31: 29 | D31: =VLOOKUP($B31,'Exp Dates'!$E$4:$K$400,MATCH("Days1M",'Exp Dates'!$E$2:$X$2,0),1) -> 20 | E31: =VLOOKUP($B31,'Exp Dates'!$E$4:$K$400,MATCH("Trade Count",'Exp Dates'!$E$2:$X$2,0),1)-C31+D31-VLOOKUP($B31,'Exp Dates'!$E$4:$K$400,MATCH("Trade Day Adj",'Exp Dates'!$E$2:$X$2,0),1)*IF($B31>VLOOKUP($B31,'Exp Dates'!$E$4:$K$400,MATCH("Trade Day Adj Start",'Exp Dates'!$E$2:$X$2,0),1),1,0) -> 9 | F31: 11 | G31: =VLOOKUP($B31,'Exp Dates'!$E$6:$U$400,MATCH("ExpMoYr",'Exp Dates'!$E$2:$U$2,0),1) -> May-2004 | H31: 0.1 | I31: =IF($I$1=0,(1/(1-91/360*VLOOKUP($B30,'T-bills'!$B$4:$C$1500,2,1)/100))^(($B31-$B30)/91)-1,0) -> 2.739560569e-05 | J31: 17.05 | K31: 18.34 | L31: 0.9296619411 | N31: 1113.99 | O31: 4.18 | P31: 0.1104118993 | Q31: =ROUND(IF(Lookup!D31>0,Lookup!D31,VLOOKUP(Master!$B31,Interpolate!$B$3:$T$2500,MATCH("M1-I",Interpolate!$B$2:$T$2,0),0)),3) -> 17.48 | R31: =ROUND(IF(Lookup!E31>0,Lookup!E31,VLOOKUP(Master!$B31,Interpolate!$B$3:$T$2500,MATCH("M2-I",Interpolate!$B$2:$T$2,0),0)),3) -> 19.41 | S31: =ROUND(IF(Lookup!F31>0,Lookup!F31,VLOOKUP(Master!$B31,Interpolate!$B$3:$T$2500,MATCH("M3-I",Interpolate!$B$2:$T$2,0),0)),3) -> 19.968 | T31: =ROUND(IF(Lookup!G31>0,Lookup!G31,VLOOKUP(Master!$B31,Interpolate!$B$3:$T$2500,MATCH("M4-I",Interpolate!$B$2:$T$2,0),0)),3) -> 20.68 | U31: =ROUND(IF(Lookup!H31>0,Lookup!H31,VLOOKUP(Master!$B31,Interpolate!$B$3:$T$2500,MATCH("M5-I",Interpolate!$B$2:$T$2,0),0)),3) -> 20.845 | V31: =ROUND(IF(Lookup!I31>0,Lookup!I31,VLOOKUP(Master!$B31,Interpolate!$B$3:$T$2500,MATCH("M6-I",Interpolate!$B$2:$T$2,0),0)),3) -> 21.017 | W31: =ROUND(IF(Lookup!J31>0,Lookup!J31,VLOOKUP(Master!$B31,Interpolate!$B$3:$T$2500,MATCH("M7-I",Interpolate!$B$2:$T$2,0),0)),3) -> 21.23 | AA31: =Lookup!S31 -> 2922 | AB31: 0.1104118993 | AC31: 0.02657142857 | AD31: 0.008676190476
B32: 2004-05-07 | C32: 30 | D32: =VLOOKUP($B32,'Exp Dates'!$E$4:$K$400,MATCH("Days1M",'Exp Dates'!$E$2:$X$2,0),1) -> 20 | E32: =VLOOKUP($B32,'Exp Dates'!$E$4:$K$400,MATCH("Trade Count",'Exp Dates'!$E$2:$X$2,0),1)-C32+D32-VLOOKUP($B32,'Exp Dates'!$E$4:$K$400,MATCH("Trade Day Adj",'Exp Dates'!$E$2:$X$2,0),1)*IF($B32>VLOOKUP($B32,'Exp Dates'!$E$4:$K$400,MATCH("Trade Day Adj Start",'Exp Dates'!$E$2:$X$2,0),1),1,0) -> 8 | F32: -8 | G32: =VLOOKUP($B32,'Exp Dates'!$E$6:$U$400,MATCH("ExpMoYr",'Exp Dates'!$E$2:$U$2,0),1) -> May-2004 | H32: 0.1 | I32: =IF($I$1=0,(1/(1-91/360*VLOOKUP($B31,'T-bills'!$B$4:$C$1500,2,1)/100))^(($B32-$B31)/91)-1,0) -> 2.739560569e-05 | J32: 18.13 | K32: 19.32 | L32: 0.9384057971 | N32: 1098.7 | O32: 3.26 | P32: 0.08519934462 | Q32: =ROUND(IF(Lookup!D32>0,Lookup!D32,VLOOKUP(Master!$B32,Interpolate!$B$3:$T$2500,MATCH("M1-I",Interpolate!$B$2:$T$2,0),0)),3) -> 18.31 | R32: =ROUND(IF(Lookup!E32>0,Lookup!E32,VLOOKUP(Master!$B32,Interpolate!$B$3:$T$2500,MATCH("M2-I",Interpolate!$B$2:$T$2,0),0)),3) -> 19.87 | S32: =ROUND(IF(Lookup!F32>0,Lookup!F32,VLOOKUP(Master!$B32,Interpolate!$B$3:$T$2500,MATCH("M3-I",Interpolate!$B$2:$T$2,0),0)),3) -> 20.45 | T32: =ROUND(IF(Lookup!G32>0,Lookup!G32,VLOOKUP(Master!$B32,Interpolate!$B$3:$T$2500,MATCH("M4-I",Interpolate!$B$2:$T$2,0),0)),3) -> 21.19 | U32: =ROUND(IF(Lookup!H32>0,Lookup!H32,VLOOKUP(Master!$B32,Interpolate!$B$3:$T$2500,MATCH("M5-I",Interpolate!$B$2:$T$2,0),0)),3) -> 21.25 | V32: =ROUND(IF(Lookup!I32>0,Lookup!I32,VLOOKUP(Master!$B32,Interpolate!$B$3:$T$2500,MATCH("M6-I",Interpolate!$B$2:$T$2,0),0)),3) -> 21.312 | W32: =ROUND(IF(Lookup!J32>0,Lookup!J32,VLOOKUP(Master!$B32,Interpolate!$B$3:$T$2500,MATCH("M7-I",Interpolate!$B$2:$T$2,0),0)),3) -> 21.39 | AA32: =Lookup!S32 -> 2951 | AB32: 0.08519934462 | AC32: 0.02761904762 | AD32: 0.003152380952
B33: 2004-05-10 | C33: 31 | D33: =VLOOKUP($B33,'Exp Dates'!$E$4:$K$400,MATCH("Days1M",'Exp Dates'!$E$2:$X$2,0),1) -> 20 | E33: =VLOOKUP($B33,'Exp Dates'!$E$4:$K$400,MATCH("Trade Count",'Exp Dates'!$E$2:$X$2,0),1)-C33+D33-VLOOKUP($B33,'Exp Dates'!$E$4:$K$400,MATCH("Trade Day Adj",'Exp Dates'!$E$2:$X$2,0),1)*IF($B33>VLOOKUP($B33,'Exp Dates'!$E$4:$K$400,MATCH("Trade Day Adj Start",'Exp Dates'!$E$2:$X$2,0),1),1,0) -> 7 | F33: -7 | G33: =VLOOKUP($B33,'Exp Dates'!$E$6:$U$400,MATCH("ExpMoYr",'Exp Dates'!$E$2:$U$2,0),1) -> May-2004 | H33: 0.1 | I33: =IF($I$1=0,(1/(1-91/360*VLOOKUP($B32,'T-bills'!$B$4:$C$1500,2,1)/100))^(($B33-$B32)/91)-1,0) -> 8.218906866e-05 | J33: 19.77 | K33: 20.05 | L33: 0.9860349127 | N33: 1087.12 | O33: 1.94 | P33: 0.05581395349 | Q33: =ROUND(IF(Lookup!D33>0,Lookup!D33,VLOOKUP(Master!$B33,Interpolate!$B$3:$T$2500,MATCH("M1-I",Interpolate!$B$2:$T$2,0),0)),3) -> 19.35 | R33: =ROUND(IF(Lookup!E33>0,Lookup!E33,VLOOKUP(Master!$B33,Interpolate!$B$3:$T$2500,MATCH("M2-I",Interpolate!$B$2:$T$2,0),0)),3) -> 20.43 | S33: =ROUND(IF(Lookup!F33>0,Lookup!F33,VLOOKUP(Master!$B33,Interpolate!$B$3:$T$2500,MATCH("M3-I",Interpolate!$B$2:$T$2,0),0)),3) -> 20.952 | T33: =ROUND(IF(Lookup!G33>0,Lookup!G33,VLOOKUP(Master!$B33,Interpolate!$B$3:$T$2500,MATCH("M4-I",Interpolate!$B$2:$T$2,0),0)),3) -> 21.62 | U33: =ROUND(IF(Lookup!H33>0,Lookup!H33,VLOOKUP(Master!$B33,Interpolate!$B$3:$T$2500,MATCH("M5-I",Interpolate!$B$2:$T$2,0),0)),3) -> 21.647 | V33: =ROUND(IF(Lookup!I33>0,Lookup!I33,VLOOKUP(Master!$B33,Interpolate!$B$3:$T$2500,MATCH("M6-I",Interpolate!$B$2:$T$2,0),0)),3) -> 21.675 | W33: =ROUND(IF(Lookup!J33>0,Lookup!J33,VLOOKUP(Master!$B33,Interpolate!$B$3:$T$2500,MATCH("M7-I",Interpolate!$B$2:$T$2,0),0)),3) -> 21.71 | AA33: =Lookup!S33 -> 3055 | AB33: 0.05581395349 | AC33: 0.02485714286 | AD33: 0.001419047619
B34: 2004-05-11 | C34: 32 | D34: =VLOOKUP($B34,'Exp Dates'!$E$4:$K$400,MATCH("Days1M",'Exp Dates'!$E$2:$X$2,0),1) -> 20 | E34: =VLOOKUP($B34,'Exp Dates'!$E$4:$K$400,MATCH("Trade Count",'Exp Dates'!$E$2:$X$2,0),1)-C34+D34-VLOOKUP($B34,'Exp Dates'!$E$4:$K$400,MATCH("Trade Day Adj",'Exp Dates'!$E$2:$X$2,0),1)*IF($B34>VLOOKUP($B34,'Exp Dates'!$E$4:$K$400,MATCH("Trade Day Adj Start",'Exp Dates'!$E$2:$X$2,0),1),1,0) -> 6 | F34: -6 | G34: =VLOOKUP($B34,'Exp Dates'!$E$6:$U$400,MATCH("ExpMoYr",'Exp Dates'!$E$2:$U$2,0),1) -> May-2004 | H34: 0.1 | I34: =IF($I$1=0,(1/(1-91/360*VLOOKUP($B33,'T-bills'!$B$4:$C$1500,2,1)/100))^(($B34-$B33)/91)-1,0) -> 2.948439708e-05 | J34: 18.57 | K34: 19.24 | L34: 0.9651767152 | N34: 1095.45 | O34: 2.88 | P34: 0.08650707291 | Q34: =ROUND(IF(Lookup!D34>0,Lookup!D34,VLOOKUP(Master!$B34,Interpolate!$B$3:$T$2500,MATCH("M1-I",Interpolate!$B$2:$T$2,0),0)),3) -> 18.38 | R34: =ROUND(IF(Lookup!E34>0,Lookup!E34,VLOOKUP(Master!$B34,Interpolate!$B$3:$T$2500,MATCH("M2-I",Interpolate!$B$2:$T$2,0),0)),3) -> 19.97 | S34: =ROUND(IF(Lookup!F34>0,Lookup!F34,VLOOKUP(Master!$B34,Interpolate!$B$3:$T$2500,MATCH("M3-I",Interpolate!$B$2:$T$2,0),0)),3) -> 20.448 | T34: =ROUND(IF(Lookup!G34>0,Lookup!G34,VLOOKUP(Master!$B34,Interpolate!$B$3:$T$2500,MATCH("M4-I",Interpolate!$B$2:$T$2,0),0)),3) -> 21.06 | U34: =ROUND(IF(Lookup!H34>0,Lookup!H34,VLOOKUP(Master!$B34,Interpolate!$B$3:$T$2500,MATCH("M5-I",Interpolate!$B$2:$T$2,0),0)),3) -> 21.177 | V34: =ROUND(IF(Lookup!I34>0,Lookup!I34,VLOOKUP(Master!$B34,Interpolate!$B$3:$T$2500,MATCH("M6-I",Interpolate!$B$2:$T$2,0),0)),3) -> 21.299 | W34: =ROUND(IF(Lookup!J34>0,Lookup!J34,VLOOKUP(Master!$B34,Interpolate!$B$3:$T$2500,MATCH("M7-I",Interpolate!$B$2:$T$2,0),0)),3) -> 21.45 | AA34: =Lookup!S34 -> 2952 | AB34: 0.08650707291 | AC34: 0.02276190476 | AD34: 0.006152380952
B35: 2004-05-12 | C35: 33 | D35: =VLOOKUP($B35,'Exp Dates'!$E$4:$K$400,MATCH("Days1M",'Exp Dates'!$E$2:$X$2,0),1) -> 20 | E35: =VLOOKUP($B35,'Exp Dates'!$E$4:$K$400,MATCH("Trade Count",'Exp Dates'!$E$2:$X$2,0),1)-C35+D35-VLOOKUP($B35,'Exp Dates'!$E$4:$K$400,MATCH("Trade Day Adj",'Exp Dates'!$E$2:$X$2,0),1)*IF($B35>VLOOKUP($B35,'Exp Dates'!$E$4:$K$400,MATCH("Trade Day Adj Start",'Exp Dates'!$E$2:$X$2,0),1),1,0) -> 5 | F35: -5 | G35: =VLOOKUP($B35,'Exp Dates'!$E$6:$U$400,MATCH("ExpMoYr",'Exp Dates'!$E$2:$U$2,0),1) -> May-2004 | H35: 0.1 | I35: =IF($I$1=0,(1/(1-91/360*VLOOKUP($B34,'T-bills'!$B$4:$C$1500,2,1)/100))^(($B35-$B34)/91)-1,0) -> 2.948439708e-05 | J35: 18.14 | K35: 18.85 | L35: 0.9623342175 | N35: 1097.28 | O35: 3.08 | P35: 0.07747252747 | Q35: =ROUND(IF(Lookup!D35>0,Lookup!D35,VLOOKUP(Master!$B35,Interpolate!$B$3:$T$2500,MATCH("M1-I",Interpolate!$B$2:$T$2,0),0)),3) -> 18.2 | R35: =ROUND(IF(Lookup!E35>0,Lookup!E35,VLOOKUP(Master!$B35,Interpolate!$B$3:$T$2500,MATCH("M2-I",Interpolate!$B$2:$T$2,0),0)),3) -> 19.61 | S35: =ROUND(IF(Lookup!F35>0,Lookup!F35,VLOOKUP(Master!$B35,Interpolate!$B$3:$T$2500,MATCH("M3-I",Interpolate!$B$2:$T$2,0),0)),3) -> 20.213 | T35: =ROUND(IF(Lookup!G35>0,Lookup!G35,VLOOKUP(Master!$B35,Interpolate!$B$3:$T$2500,MATCH("M4-I",Interpolate!$B$2:$T$2,0),0)),3) -> 20.98 | U35: =ROUND(IF(Lookup!H35>0,Lookup!H35,VLOOKUP(Master!$B35,Interpolate!$B$3:$T$2500,MATCH("M5-I",Interpolate!$B$2:$T$2,0),0)),3) -> 21.052 | V35: =ROUND(IF(Lookup!I35>0,Lookup!I35,VLOOKUP(Master!$B35,Interpolate!$B$3:$T$2500,MATCH("M6-I",Interpolate!$B$2:$T$2,0),0)),3) -> 21.127 | W35: =ROUND(IF(Lookup!J35>0,Lookup!J35,VLOOKUP(Master!$B35,Interpolate!$B$3:$T$2500,MATCH("M7-I",Interpolate!$B$2:$T$2,0),0)),3) -> 21.22 | AA35: =Lookup!S35 -> 2657 | AB35: 0.07747252747 | AC35: 0.02871428571 | AD35: 0.003785714286
B36: 2004-05-13 | C36: 34 | D36: =VLOOKUP($B36,'Exp Dates'!$E$4:$K$400,MATCH("Days1M",'Exp Dates'!$E$2:$X$2,0),1) -> 20 | E36: =VLOOKUP($B36,'Exp Dates'!$E$4:$K$400,MATCH("Trade Count",'Exp Dates'!$E$2:$X$2,0),1)-C36+D36-VLOOKUP($B36,'Exp Dates'!$E$4:$K$400,MATCH("Trade Day Adj",'Exp Dates'!$E$2:$X$2,0),1)*IF($B36>VLOOKUP($B36,'Exp Dates'!$E$4:$K$400,MATCH("Trade Day Adj Start",'Exp Dates'!$E$2:$X$2,0),1),1,0) -> 4 | F36: -4 | G36: =VLOOKUP($B36,'Exp Dates'!$E$6:$U$400,MATCH("ExpMoYr",'Exp Dates'!$E$2:$U$2,0),1) -> May-2004 | H36: 0.1 | I36: =IF($I$1=0,(1/(1-91/360*VLOOKUP($B35,'T-bills'!$B$4:$C$1500,2,1)/100))^(($B36-$B35)/91)-1,0) -> 2.948439708e-05 | J36: 18.86 | K36: 19.24 | L36: 0.9802494802 | N36: 1096.44 | O36: 2.26 | P36: 0.06528835691 | Q36: =ROUND(IF(Lookup!D36>0,Lookup!D36,VLOOKUP(Master!$B36,Interpolate!$B$3:$T$2500,MATCH("M1-I",Interpolate!$B$2:$T$2,0),0)),3) -> 18.38 | R36: =ROUND(IF(Lookup!E36>0,Lookup!E36,VLOOKUP(Master!$B36,Interpolate!$B$3:$T$2500,MATCH("M2-I",Interpolate!$B$2:$T$2,0),0)),3) -> 19.58 | S36: =ROUND(IF(Lookup!F36>0,Lookup!F36,VLOOKUP(Master!$B36,Interpolate!$B$3:$T$2500,MATCH("M3-I",Interpolate!$B$2:$T$2,0),0)),3) -> 19.951 | T36: =ROUND(IF(Lookup!G36>0,Lookup!G36,VLOOKUP(Master!$B36,Interpolate!$B$3:$T$2500,MATCH("M4-I",Interpolate!$B$2:$T$2,0),0)),3) -> 20.43 | U36: =ROUND(IF(Lookup!H36>0,Lookup!H36,VLOOKUP(Master!$B36,Interpolate!$B$3:$T$2500,MATCH("M5-I",Interpolate!$B$2:$T$2,0),0)),3) -> 20.637 | V36: =ROUND(IF(Lookup!I36>0,Lookup!I36,VLOOKUP(Master!$B36,Interpolate!$B$3:$T$2500,MATCH("M6-I",Interpolate!$B$2:$T$2,0),0)),3) -> 20.853 | W36: =ROUND(IF(Lookup!J36>0,Lookup!J36,VLOOKUP(Master!$B36,Interpolate!$B$3:$T$2500,MATCH("M7-I",Interpolate!$B$2:$T$2,0),0)),3) -> 21.12 | AA36: =Lookup!S36 -> 2773 | AB36: 0.06528835691 | AC36: 0.01766666667 | AD36: 0.01088571429
B37: 2004-05-14 | C37: 35 | D37: =VLOOKUP($B37,'Exp Dates'!$E$4:$K$400,MATCH("Days1M",'Exp Dates'!$E$2:$X$2,0),1) -> 20 | E37: =VLOOKUP($B37,'Exp Dates'!$E$4:$K$400,MATCH("Trade Count",'Exp Dates'!$E$2:$X$2,0),1)-C37+D37-VLOOKUP($B37,'Exp Dates'!$E$4:$K$400,MATCH("Trade Day Adj",'Exp Dates'!$E$2:$X$2,0),1)*IF($B37>VLOOKUP($B37,'Exp Dates'!$E$4:$K$400,MATCH("Trade Day Adj Start",'Exp Dates'!$E$2:$X$2,0),1),1,0) -> 3 | F37: -3 | G37: =VLOOKUP($B37,'Exp Dates'!$E$6:$U$400,MATCH("ExpMoYr",'Exp Dates'!$E$2:$U$2,0),1) -> May-2004 | H37: 0.1 | I37: =IF($I$1=0,(1/(1-91/360*VLOOKUP($B36,'T-bills'!$B$4:$C$1500,2,1)/100))^(($B37-$B36)/91)-1,0) -> 2.948439708e-05 | J37: 18.47 | K37: 19.1 | L37: 0.9670157068 | N37: 1095.7 | O37: 2.68 | P37: 0.06037735849 | Q37: =ROUND(IF(Lookup!D37>0,Lookup!D37,VLOOKUP(Master!$B37,Interpolate!$B$3:$T$2500,MATCH("M1-I",Interpolate!$B$2:$T$2,0),0)),3) -> 18.55 | R37: =ROUND(IF(Lookup!E37>0,Lookup!E37,VLOOKUP(Master!$B37,Interpolate!$B$3:$T$2500,MATCH("M2-I",Interpolate!$B$2:$T$2,0),0)),3) -> 19.67 | S37: =ROUND(IF(Lookup!F37>0,Lookup!F37,VLOOKUP(Master!$B37,Interpolate!$B$3:$T$2500,MATCH("M3-I",Interpolate!$B$2:$T$2,0),0)),3) -> 20.059 | T37: =ROUND(IF(Lookup!G37>0,Lookup!G37,VLOOKUP(Master!$B37,Interpolate!$B$3:$T$2500,MATCH("M4-I",Interpolate!$B$2:$T$2,0),0)),3) -> 20.56 | U37: =ROUND(IF(Lookup!H37>0,Lookup!H37,VLOOKUP(Master!$B37,Interpolate!$B$3:$T$2500,MATCH("M5-I",Interpolate!$B$2:$T$2,0),0)),3) -> 20.737 | V37: =ROUND(IF(Lookup!I37>0,Lookup!I37,VLOOKUP(Master!$B37,Interpolate!$B$3:$T$2500,MATCH("M6-I",Interpolate!$B$2:$T$2,0),0)),3) -> 20.922 | W37: =ROUND(IF(Lookup!J37>0,Lookup!J37,VLOOKUP(Master!$B37,Interpolate!$B$3:$T$2500,MATCH("M7-I",Interpolate!$B$2:$T$2,0),0)),3) -> 21.15 | AA37: =Lookup!S37 -> 2808 | AB37: 0.06037735849 | AC37: 0.01852380952 | AD37: 0.00930952381
B38: 2004-05-17 | C38: 36 | D38: =VLOOKUP($B38,'Exp Dates'!$E$4:$K$400,MATCH("Days1M",'Exp Dates'!$E$2:$X$2,0),1) -> 20 | E38: =VLOOKUP($B38,'Exp Dates'!$E$4:$K$400,MATCH("Trade Count",'Exp Dates'!$E$2:$X$2,0),1)-C38+D38-VLOOKUP($B38,'Exp Dates'!$E$4:$K$400,MATCH("Trade Day Adj",'Exp Dates'!$E$2:$X$2,0),1)*IF($B38>VLOOKUP($B38,'Exp Dates'!$E$4:$K$400,MATCH("Trade Day Adj Start",'Exp Dates'!$E$2:$X$2,0),1),1,0) -> 2 | F38: -2 | G38: =VLOOKUP($B38,'Exp Dates'!$E$6:$U$400,MATCH("ExpMoYr",'Exp Dates'!$E$2:$U$2,0),1) -> May-2004 | H38: 0.1 | I38: =IF($I$1=0,(1/(1-91/360*VLOOKUP($B37,'T-bills'!$B$4:$C$1500,2,1)/100))^(($B38-$B37)/91)-1,0) -> 8.845579927e-05 | J38: 19.96 | K38: 20.22 | L38: 0.9871414441 | N38: 1084.1 | O38: 1.33 | P38: 0.04336602994 | Q38: =ROUND(IF(Lookup!D38>0,Lookup!D38,VLOOKUP(Master!$B38,Interpolate!$B$3:$T$2500,MATCH("M1-I",Interpolate!$B$2:$T$2,0),0)),3) -> 19.37 | R38: =ROUND(IF(Lookup!E38>0,Lookup!E38,VLOOKUP(Master!$B38,Interpolate!$B$3:$T$2500,MATCH("M2-I",Interpolate!$B$2:$T$2,0),0)),3) -> 20.21 | S38: =ROUND(IF(Lookup!F38>0,Lookup!F38,VLOOKUP(Master!$B38,Interpolate!$B$3:$T$2500,MATCH("M3-I",Interpolate!$B$2:$T$2,0),0)),3) -> 20.577 | T38: =ROUND(IF(Lookup!G38>0,Lookup!G38,VLOOKUP(Master!$B38,Interpolate!$B$3:$T$2500,MATCH("M4-I",Interpolate!$B$2:$T$2,0),0)),3) -> 21.05 | U38: =ROUND(IF(Lookup!H38>0,Lookup!H38,VLOOKUP(Master!$B38,Interpolate!$B$3:$T$2500,MATCH("M5-I",Interpolate!$B$2:$T$2,0),0)),3) -> 21.122 | V38: =ROUND(IF(Lookup!I38>0,Lookup!I38,VLOOKUP(Master!$B38,Interpolate!$B$3:$T$2500,MATCH("M6-I",Interpolate!$B$2:$T$2,0),0)),3) -> 21.197 | W38: =ROUND(IF(Lookup!J38>0,Lookup!J38,VLOOKUP(Master!$B38,Interpolate!$B$3:$T$2500,MATCH("M7-I",Interpolate!$B$2:$T$2,0),0)),3) -> 21.29 | AA38: =Lookup!S38 -> 2826 | AB38: 0.04336602994 | AC38: 0.01747619048 | AD38: 0.003785714286
B39: 2004-05-18 | C39: 37 | D39: =VLOOKUP($B39,'Exp Dates'!$E$4:$K$400,MATCH("Days1M",'Exp Dates'!$E$2:$X$2,0),1) -> 20 | E39: =VLOOKUP($B39,'Exp Dates'!$E$4:$K$400,MATCH("Trade Count",'Exp Dates'!$E$2:$X$2,0),1)-C39+D39-VLOOKUP($B39,'Exp Dates'!$E$4:$K$400,MATCH("Trade Day Adj",'Exp Dates'!$E$2:$X$2,0),1)*IF($B39>VLOOKUP($B39,'Exp Dates'!$E$4:$K$400,MATCH("Trade Day Adj Start",'Exp Dates'!$E$2:$X$2,0),1),1,0) -> 1 | F39: -1 | G39: =VLOOKUP($B39,'Exp Dates'!$E$6:$U$400,MATCH("ExpMoYr",'Exp Dates'!$E$2:$U$2,0),1) -> May-2004 | H39: 0.1 | I39: =IF($I$1=0,(1/(1-91/360*VLOOKUP($B38,'T-bills'!$B$4:$C$1500,2,1)/100))^(($B39-$B38)/91)-1,0) -> 2.89273468e-05 | J39: 19.33 | K39: 19.68 | L39: 0.9822154472 | N39: 1091.49 | O39: 1.92 | P39: 0.0425974026 | Q39: =ROUND(IF(Lookup!D39>0,Lookup!D39,VLOOKUP(Master!$B39,Interpolate!$B$3:$T$2500,MATCH("M1-I",Interpolate!$B$2:$T$2,0),0)),3) -> 19.25 | R39: =ROUND(IF(Lookup!E39>0,Lookup!E39,VLOOKUP(Master!$B39,Interpolate!$B$3:$T$2500,MATCH("M2-I",Interpolate!$B$2:$T$2,0),0)),3) -> 20.07 | S39: =ROUND(IF(Lookup!F39>0,Lookup!F39,VLOOKUP(Master!$B39,Interpolate!$B$3:$T$2500,MATCH("M3-I",Interpolate!$B$2:$T$2,0),0)),3) -> 20.494 | T39: =ROUND(IF(Lookup!G39>0,Lookup!G39,VLOOKUP(Master!$B39,Interpolate!$B$3:$T$2500,MATCH("M4-I",Interpolate!$B$2:$T$2,0),0)),3) -> 21.04 | U39: =ROUND(IF(Lookup!H39>0,Lookup!H39,VLOOKUP(Master!$B39,Interpolate!$B$3:$T$2500,MATCH("M5-I",Interpolate!$B$2:$T$2,0),0)),3) -> 21.103 | V39: =ROUND(IF(Lookup!I39>0,Lookup!I39,VLOOKUP(Master!$B39,Interpolate!$B$3:$T$2500,MATCH("M6-I",Interpolate!$B$2:$T$2,0),0)),3) -> 21.168 | W39: =ROUND(IF(Lookup!J39>0,Lookup!J39,VLOOKUP(Master!$B39,Interpolate!$B$3:$T$2500,MATCH("M7-I",Interpolate!$B$2:$T$2,0),0)),3) -> 21.25 | AA39: =Lookup!S39 -> 2917 | AB39: 0.0425974026 | AC39: 0.02019047619 | AD39: 0.00330952381
B40: 2004-05-19 | C40: 38 | D40: =VLOOKUP($B40,'Exp Dates'!$E$4:$K$400,MATCH("Days1M",'Exp Dates'!$E$2:$X$2,0),1) -> 18 | E40: =VLOOKUP($B40,'Exp Dates'!$E$4:$K$400,MATCH("Trade Count",'Exp Dates'!$E$2:$X$2,0),1)-C40+D40-VLOOKUP($B40,'Exp Dates'!$E$4:$K$400,MATCH("Trade Day Adj",'Exp Dates'!$E$2:$X$2,0),1)*IF($B40>VLOOKUP($B40,'Exp Dates'!$E$4:$K$400,MATCH("Trade Day Adj Start",'Exp Dates'!$E$2:$X$2,0),1),1,0) -> 18 | F40: 0 | G40: =VLOOKUP($B40,'Exp Dates'!$E$6:$U$400,MATCH("ExpMoYr",'Exp Dates'!$E$2:$U$2,0),1) -> Jun-2004 | H40: 0.1 | I40: =IF($I$1=0,(1/(1-91/360*VLOOKUP($B39,'T-bills'!$B$4:$C$1500,2,1)/100))^(($B40-$B39)/91)-1,0) -> 2.89273468e-05 | J40: 18.93 | K40: 19.61 | L40: 0.9653238144 | N40: 1088.68 | O40: 2.386 | P40: 0.03521126761 | Q40: =ROUND(IF(Lookup!D40>0,Lookup!D40,VLOOKUP(Master!$B40,Interpolate!$B$3:$T$2500,MATCH("M1-I",Interpolate!$B$2:$T$2,0),0)),3) -> 19.17 | R40: =ROUND(IF(Lookup!E40>0,Lookup!E40,VLOOKUP(Master!$B40,Interpolate!$B$3:$T$2500,MATCH("M2-I",Interpolate!$B$2:$T$2,0),0)),3) -> 19.845 | S40: =ROUND(IF(Lookup!F40>0,Lookup!F40,VLOOKUP(Master!$B40,Interpolate!$B$3:$T$2500,MATCH("M3-I",Interpolate!$B$2:$T$2,0),0)),3) -> 20.7 | T40: =ROUND(IF(Lookup!G40>0,Lookup!G40,VLOOKUP(Master!$B40,Interpolate!$B$3:$T$2500,MATCH("M4-I",Interpolate!$B$2:$T$2,0),0)),3) -> 20.835 | U40: =ROUND(IF(Lookup!H40>0,Lookup!H40,VLOOKUP(Master!$B40,Interpolate!$B$3:$T$2500,MATCH("M5-I",Interpolate!$B$2:$T$2,0),0)),3) -> 20.975 | V40: =ROUND(IF(Lookup!I40>0,Lookup!I40,VLOOKUP(Master!$B40,Interpolate!$B$3:$T$2500,MATCH("M6-I",Interpolate!$B$2:$T$2,0),0)),3) -> 21.15 | W40: =ROUND(IF(Lookup!J40>0,Lookup!J40,VLOOKUP(Master!$B40,Interpolate!$B$3:$T$2500,MATCH("M7-I",Interpolate!$B$2:$T$2,0),0)),3) -> 21.316 | AA40: =Lookup!S40 -> 1868 | AB40: 0.03521126761 | AC40: 0.04071428571 | AD40: 0.007704761905
B41: 2004-05-20 | C41: 39 | D41: =VLOOKUP($B41,'Exp Dates'!$E$4:$K$400,MATCH("Days1M",'Exp Dates'!$E$2:$X$2,0),1) -> 18 | E41: =VLOOKUP($B41,'Exp Dates'!$E$4:$K$400,MATCH("Trade Count",'Exp Dates'!$E$2:$X$2,0),1)-C41+D41-VLOOKUP($B41,'Exp Dates'!$E$4:$K$400,MATCH("Trade Day Adj",'Exp Dates'!$E$2:$X$2,0),1)*IF($B41>VLOOKUP($B41,'Exp Dates'!$E$4:$K$400,MATCH("Trade Day Adj Start",'Exp Dates'!$E$2:$X$2,0),1),1,0) -> 17 | F41: 1 | G41: =VLOOKUP($B41,'Exp Dates'!$E$6:$U$400,MATCH("ExpMoYr",'Exp Dates'!$E$2:$U$2,0),1) -> Jun-2004 | H41: 0.1 | I41: =IF($I$1=0,(1/(1-91/360*VLOOKUP($B40,'T-bills'!$B$4:$C$1500,2,1)/100))^(($B41-$B40)/91)-1,0) -> 2.89273468e-05 | J41: 18.67 | K41: 19.42 | L41: 0.9613800206 | N41: 1089.19 | O41: 2.562 | P41: 0.03024819028 | Q41: =ROUND(IF(Lookup!D41>0,Lookup!D41,VLOOKUP(Master!$B41,Interpolate!$B$3:$T$2500,MATCH("M1-I",Interpolate!$B$2:$T$2,0),0)),3) -> 19.34 | R41: =ROUND(IF(Lookup!E41>0,Lookup!E41,VLOOKUP(Master!$B41,Interpolate!$B$3:$T$2500,MATCH("M2-I",Interpolate!$B$2:$T$2,0),0)),3) -> 19.925 | S41: =ROUND(IF(Lookup!F41>0,Lookup!F41,VLOOKUP(Master!$B41,Interpolate!$B$3:$T$2500,MATCH("M3-I",Interpolate!$B$2:$T$2,0),0)),3) -> 20.67 | T41: =ROUND(IF(Lookup!G41>0,Lookup!G41,VLOOKUP(Master!$B41,Interpolate!$B$3:$T$2500,MATCH("M4-I",Interpolate!$B$2:$T$2,0),0)),3) -> 20.793 | U41: =ROUND(IF(Lookup!H41>0,Lookup!H41,VLOOKUP(Master!$B41,Interpolate!$B$3:$T$2500,MATCH("M5-I",Interpolate!$B$2:$T$2,0),0)),3) -> 20.921 | V41: =ROUND(IF(Lookup!I41>0,Lookup!I41,VLOOKUP(Master!$B41,Interpolate!$B$3:$T$2500,MATCH("M6-I",Interpolate!$B$2:$T$2,0),0)),3) -> 21.08 | W41: =ROUND(IF(Lookup!J41>0,Lookup!J41,VLOOKUP(Master!$B41,Interpolate!$B$3:$T$2500,MATCH("M7-I",Interpolate!$B$2:$T$2,0),0)),3) -> 21.232 | AA41: =Lookup!S41 -> 1819 | AB41: 0.03024819028 | AC41: 0.03547619048 | AD41: 0.007028571429
B42: 2004-05-21 | C42: 40 | D42: =VLOOKUP($B42,'Exp Dates'!$E$4:$K$400,MATCH("Days1M",'Exp Dates'!$E$2:$X$2,0),1) -> 18 | E42: =VLOOKUP($B42,'Exp Dates'!$E$4:$K$400,MATCH("Trade Count",'Exp Dates'!$E$2:$X$2,0),1)-C42+D42-VLOOKUP($B42,'Exp Dates'!$E$4:$K$400,MATCH("Trade Day Adj",'Exp Dates'!$E$2:$X$2,0),1)*IF($B42>VLOOKUP($B42,'Exp Dates'!$E$4:$K$400,MATCH("Trade Day Adj Start",'Exp Dates'!$E$2:$X$2,0),1),1,0) -> 16 | F42: 2 | G42: =VLOOKUP($B42,'Exp Dates'!$E$6:$U$400,MATCH("ExpMoYr",'Exp Dates'!$E$2:$U$2,0),1) -> Jun-2004 | H42: 0.1 | I42: =IF($I$1=0,(1/(1-91/360*VLOOKUP($B41,'T-bills'!$B$4:$C$1500,2,1)/100))^(($B42-$B41)/91)-1,0) -> 2.89273468e-05 | J42: 18.49 | K42: 19.18 | L42: 0.9640250261 | N42: 1093.56 | O42: 2.699 | P42: 0.03896713615 | Q42: =ROUND(IF(Lookup!D42>0,Lookup!D42,VLOOKUP(Master!$B42,Interpolate!$B$3:$T$2500,MATCH("M1-I",Interpolate!$B$2:$T$2,0),0)),3) -> 19.17 | R42: =ROUND(IF(Lookup!E42>0,Lookup!E42,VLOOKUP(Master!$B42,Interpolate!$B$3:$T$2500,MATCH("M2-I",Interpolate!$B$2:$T$2,0),0)),3) -> 19.917 | S42: =ROUND(IF(Lookup!F42>0,Lookup!F42,VLOOKUP(Master!$B42,Interpolate!$B$3:$T$2500,MATCH("M3-I",Interpolate!$B$2:$T$2,0),0)),3) -> 20.86 | T42: =ROUND(IF(Lookup!G42>0,Lookup!G42,VLOOKUP(Master!$B42,Interpolate!$B$3:$T$2500,MATCH("M4-I",Interpolate!$B$2:$T$2,0),0)),3) -> 20.932 | U42: =ROUND(IF(Lookup!H42>0,Lookup!H42,VLOOKUP(Master!$B42,Interpolate!$B$3:$T$2500,MATCH("M5-I",Interpolate!$B$2:$T$2,0),0)),3) -> 21.007 | V42: =ROUND(IF(Lookup!I42>0,Lookup!I42,VLOOKUP(Master!$B42,Interpolate!$B$3:$T$2500,MATCH("M6-I",Interpolate!$B$2:$T$2,0),0)),3) -> 21.1 | W42: =ROUND(IF(Lookup!J42>0,Lookup!J42,VLOOKUP(Master!$B42,Interpolate!$B$3:$T$2500,MATCH("M7-I",Interpolate!$B$2:$T$2,0),0)),3) -> 21.189 | AA42: =Lookup!S42 -> 1875 | AB42: 0.03896713615 | AC42: 0.0449047619 | AD42: 0.004114285714
B43: 2004-05-24 | C43: 41 | D43: =VLOOKUP($B43,'Exp Dates'!$E$4:$K$400,MATCH("Days1M",'Exp Dates'!$E$2:$X$2,0),1) -> 18 | E43: =VLOOKUP($B43,'Exp Dates'!$E$4:$K$400,MATCH("Trade Count",'Exp Dates'!$E$2:$X$2,0),1)-C43+D43-VLOOKUP($B43,'Exp Dates'!$E$4:$K$400,MATCH("Trade Day Adj",'Exp Dates'!$E$2:$X$2,0),1)*IF($B43>VLOOKUP($B43,'Exp Dates'!$E$4:$K$400,MATCH("Trade Day Adj Start",'Exp Dates'!$E$2:$X$2,0),1),1,0) -> 15 | F43: 3 | G43: =VLOOKUP($B43,'Exp Dates'!$E$6:$U$400,MATCH("ExpMoYr",'Exp Dates'!$E$2:$U$2,0),1) -> Jun-2004 | H43: 0.1 | I43: =IF($I$1=0,(1/(1-91/360*VLOOKUP($B42,'T-bills'!$B$4:$C$1500,2,1)/100))^(($B43-$B42)/91)-1,0) -> 8.678455079e-05 | J43: 18.08 | K43: 18.88 | L43: 0.9576271186 | N43: 1095.41 | O43: 3.094 | P43: 0.01438465637 | Q43: =ROUND(IF(Lookup!D43>0,Lookup!D43,VLOOKUP(Master!$B43,Interpolate!$B$3:$T$2500,MATCH("M1-I",Interpolate!$B$2:$T$2,0),0)),3) -> 18.77 | R43: =ROUND(IF(Lookup!E43>0,Lookup!E43,VLOOKUP(Master!$B43,Interpolate!$B$3:$T$2500,MATCH("M2-I",Interpolate!$B$2:$T$2,0),0)),3) -> 19.04 | S43: =ROUND(IF(Lookup!F43>0,Lookup!F43,VLOOKUP(Master!$B43,Interpolate!$B$3:$T$2500,MATCH("M3-I",Interpolate!$B$2:$T$2,0),0)),3) -> 20.53 | T43: =ROUND(IF(Lookup!G43>0,Lookup!G43,VLOOKUP(Master!$B43,Interpolate!$B$3:$T$2500,MATCH("M4-I",Interpolate!$B$2:$T$2,0),0)),3) -> 20.671 | U43: =ROUND(IF(Lookup!H43>0,Lookup!H43,VLOOKUP(Master!$B43,Interpolate!$B$3:$T$2500,MATCH("M5-I",Interpolate!$B$2:$T$2,0),0)),3) -> 20.818 | V43: =ROUND(IF(Lookup!I43>0,Lookup!I43,VLOOKUP(Master!$B43,Interpolate!$B$3:$T$2500,MATCH("M6-I",Interpolate!$B$2:$T$2,0),0)),3) -> 21 | W43: =ROUND(IF(Lookup!J43>0,Lookup!J43,VLOOKUP(Master!$B43,Interpolate!$B$3:$T$2500,MATCH("M7-I",Interpolate!$B$2:$T$2,0),0)),3) -> 21.174 | AA43: =Lookup!S43 -> 2006 | AB43: 0.01438465637 | AC43: 0.07095238095 | AD43: 0.008052380952
B44: 2004-05-25 | C44: 42 | D44: =VLOOKUP($B44,'Exp Dates'!$E$4:$K$400,MATCH("Days1M",'Exp Dates'!$E$2:$X$2,0),1) -> 18 | E44: =VLOOKUP($B44,'Exp Dates'!$E$4:$K$400,MATCH("Trade Count",'Exp Dates'!$E$2:$X$2,0),1)-C44+D44-VLOOKUP($B44,'Exp Dates'!$E$4:$K$400,MATCH("Trade Day Adj",'Exp Dates'!$E$2:$X$2,0),1)*IF($B44>VLOOKUP($B44,'Exp Dates'!$E$4:$K$400,MATCH("Trade Day Adj Start",'Exp Dates'!$E$2:$X$2,0),1),1,0) -> 14 | F44: 4 | G44: =VLOOKUP($B44,'Exp Dates'!$E$6:$U$400,MATCH("ExpMoYr",'Exp Dates'!$E$2:$U$2,0),1) -> Jun-2004 | H44: 0.1 | I44: =IF($I$1=0,(1/(1-91/360*VLOOKUP($B43,'T-bills'!$B$4:$C$1500,2,1)/100))^(($B44-$B43)/91)-1,0) -> 2.920586837e-05 | J44: 15.96 | K44: 17.34 | L44: 0.9204152249 | N44: 1113.05 | O44: 4.973 | P44: 0.02857142857 | Q44: =ROUND(IF(Lookup!D44>0,Lookup!D44,VLOOKUP(Master!$B44,Interpolate!$B$3:$T$2500,MATCH("M1-I",Interpolate!$B$2:$T$2,0),0)),3) -> 17.5 | R44: =ROUND(IF(Lookup!E44>0,Lookup!E44,VLOOKUP(Master!$B44,Interpolate!$B$3:$T$2500,MATCH("M2-I",Interpolate!$B$2:$T$2,0),0)),3) -> 18 | S44: =ROUND(IF(Lookup!F44>0,Lookup!F44,VLOOKUP(Master!$B44,Interpolate!$B$3:$T$2500,MATCH("M3-I",Interpolate!$B$2:$T$2,0),0)),3) -> 19.8 | T44: =ROUND(IF(Lookup!G44>0,Lookup!G44,VLOOKUP(Master!$B44,Interpolate!$B$3:$T$2500,MATCH("M4-I",Interpolate!$B$2:$T$2,0),0)),3) -> 20.05 | U44: =ROUND(IF(Lookup!H44>0,Lookup!H44,VLOOKUP(Master!$B44,Interpolate!$B$3:$T$2500,MATCH("M5-I",Interpolate!$B$2:$T$2,0),0)),3) -> 20.31 | V44: =ROUND(IF(Lookup!I44>0,Lookup!I44,VLOOKUP(Master!$B44,Interpolate!$B$3:$T$2500,MATCH("M6-I",Interpolate!$B$2:$T$2,0),0)),3) -> 20.63 | W44: =ROUND(IF(Lookup!J44>0,Lookup!J44,VLOOKUP(Master!$B44,Interpolate!$B$3:$T$2500,MATCH("M7-I",Interpolate!$B$2:$T$2,0),0)),3) -> 20.933 | AA44: =Lookup!S44 -> 2277 | AB44: 0.02857142857 | AC44: 0.08571428571 | AD44: 0.01413809524
B45: 2004-05-26 | C45: 43 | D45: =VLOOKUP($B45,'Exp Dates'!$E$4:$K$400,MATCH("Days1M",'Exp Dates'!$E$2:$X$2,0),1) -> 18 | E45: =VLOOKUP($B45,'Exp Dates'!$E$4:$K$400,MATCH("Trade Count",'Exp Dates'!$E$2:$X$2,0),1)-C45+D45-VLOOKUP($B45,'Exp Dates'!$E$4:$K$400,MATCH("Trade Day Adj",'Exp Dates'!$E$2:$X$2,0),1)*IF($B45>VLOOKUP($B45,'Exp Dates'!$E$4:$K$400,MATCH("Trade Day Adj Start",'Exp Dates'!$E$2:$X$2,0),1),1,0) -> 13 | F45: 5 | G45: =VLOOKUP($B45,'Exp Dates'!$E$6:$U$400,MATCH("ExpMoYr",'Exp Dates'!$E$2:$U$2,0),1) -> Jun-2004 | H45: 0.1 | I45: =IF($I$1=0,(1/(1-91/360*VLOOKUP($B44,'T-bills'!$B$4:$C$1500,2,1)/100))^(($B45-$B44)/91)-1,0) -> 2.920586837e-05 | J45: 15.97 | K45: 17.34 | L45: 0.9209919262 | N45: 1114.94 | O45: 4.996 | P45: 0.0272572402 | Q45: =ROUND(IF(Lookup!D45>0,Lookup!D45,VLOOKUP(Master!$B45,Interpolate!$B$3:$T$2500,MATCH("M1-I",Interpolate!$B$2:$T$2,0),0)),3) -> 17.61 | R45: =ROUND(IF(Lookup!E45>0,Lookup!E45,VLOOKUP(Master!$B45,Interpolate!$B$3:$T$2500,MATCH("M2-I",Interpolate!$B$2:$T$2,0),0)),3) -> 18.09 | S45: =ROUND(IF(Lookup!F45>0,Lookup!F45,VLOOKUP(Master!$B45,Interpolate!$B$3:$T$2500,MATCH("M3-I",Interpolate!$B$2:$T$2,0),0)),3) -> 19.86 | T45: =ROUND(IF(Lookup!G45>0,Lookup!G45,VLOOKUP(Master!$B45,Interpolate!$B$3:$T$2500,MATCH("M4-I",Interpolate!$B$2:$T$2,0),0)),3) -> 20.104 | U45: =ROUND(IF(Lookup!H45>0,Lookup!H45,VLOOKUP(Master!$B45,Interpolate!$B$3:$T$2500,MATCH("M5-I",Interpolate!$B$2:$T$2,0),0)),3) -> 20.357 | V45: =ROUND(IF(Lookup!I45>0,Lookup!I45,VLOOKUP(Master!$B45,Interpolate!$B$3:$T$2500,MATCH("M6-I",Interpolate!$B$2:$T$2,0),0)),3) -> 20.67 | W45: =ROUND(IF(Lookup!J45>0,Lookup!J45,VLOOKUP(Master!$B45,Interpolate!$B$3:$T$2500,MATCH("M7-I",Interpolate!$B$2:$T$2,0),0)),3) -> 20.966 | AA45: =Lookup!S45 -> 2440 | AB45: 0.0272572402 | AC45: 0.08428571429 | AD45: 0.0138047619
B46: 2004-05-27 | C46: 44 | D46: =VLOOKUP($B46,'Exp Dates'!$E$4:$K$400,MATCH("Days1M",'Exp Dates'!$E$2:$X$2,0),1) -> 18 | E46: =VLOOKUP($B46,'Exp Dates'!$E$4:$K$400,MATCH("Trade Count",'Exp Dates'!$E$2:$X$2,0),1)-C46+D46-VLOOKUP($B46,'Exp Dates'!$E$4:$K$400,MATCH("Trade Day Adj",'Exp Dates'!$E$2:$X$2,0),1)*IF($B46>VLOOKUP($B46,'Exp Dates'!$E$4:$K$400,MATCH("Trade Day Adj Start",'Exp Dates'!$E$2:$X$2,0),1),1,0) -> 12 | F46: 6 | G46: =VLOOKUP($B46,'Exp Dates'!$E$6:$U$400,MATCH("ExpMoYr",'Exp Dates'!$E$2:$U$2,0),1) -> Jun-2004 | H46: 0.1 | I46: =IF($I$1=0,(1/(1-91/360*VLOOKUP($B45,'T-bills'!$B$4:$C$1500,2,1)/100))^(($B46-$B45)/91)-1,0) -> 2.920586837e-05 | J46: 15.28 | K46: 16.95 | L46: 0.9014749263 | N46: 1121.28 | O46: 5.826 | P46: 0.03170028818 | Q46: =ROUND(IF(Lookup!D46>0,Lookup!D46,VLOOKUP(Master!$B46,Interpolate!$B$3:$T$2500,MATCH("M1-I",Interpolate!$B$2:$T$2,0),0)),3) -> 17.35 | R46: =ROUND(IF(Lookup!E46>0,Lookup!E46,VLOOKUP(Master!$B46,Interpolate!$B$3:$T$2500,MATCH("M2-I",Interpolate!$B$2:$T$2,0),0)),3) -> 17.9 | S46: =ROUND(IF(Lookup!F46>0,Lookup!F46,VLOOKUP(Master!$B46,Interpolate!$B$3:$T$2500,MATCH("M3-I",Interpolate!$B$2:$T$2,0),0)),3) -> 19.73 | T46: =ROUND(IF(Lookup!G46>0,Lookup!G46,VLOOKUP(Master!$B46,Interpolate!$B$3:$T$2500,MATCH("M4-I",Interpolate!$B$2:$T$2,0),0)),3) -> 20.035 | U46: =ROUND(IF(Lookup!H46>0,Lookup!H46,VLOOKUP(Master!$B46,Interpolate!$B$3:$T$2500,MATCH("M5-I",Interpolate!$B$2:$T$2,0),0)),3) -> 20.351 | V46: =ROUND(IF(Lookup!I46>0,Lookup!I46,VLOOKUP(Master!$B46,Interpolate!$B$3:$T$2500,MATCH("M6-I",Interpolate!$B$2:$T$2,0),0)),3) -> 20.74 | W46: =ROUND(IF(Lookup!J46>0,Lookup!J46,VLOOKUP(Master!$B46,Interpolate!$B$3:$T$2500,MATCH("M7-I",Interpolate!$B$2:$T$2,0),0)),3) -> 21.106 | AA46: =Lookup!S46 -> 2609 | AB46: 0.03170028818 | AC46: 0.08714285714 | AD46: 0.01715238095
B47: 2004-05-28 | C47: 45 | D47: =VLOOKUP($B47,'Exp Dates'!$E$4:$K$400,MATCH("Days1M",'Exp Dates'!$E$2:$X$2,0),1) -> 18 | E47: =VLOOKUP($B47,'Exp Dates'!$E$4:$K$400,MATCH("Trade Count",'Exp Dates'!$E$2:$X$2,0),1)-C47+D47-VLOOKUP($B47,'Exp Dates'!$E$4:$K$400,MATCH("Trade Day Adj",'Exp Dates'!$E$2:$X$2,0),1)*IF($B47>VLOOKUP($B47,'Exp Dates'!$E$4:$K$400,MATCH("Trade Day Adj Start",'Exp Dates'!$E$2:$X$2,0),1),1,0) -> 11 | F47: 7 | G47: =VLOOKUP($B47,'Exp Dates'!$E$6:$U$400,MATCH("ExpMoYr",'Exp Dates'!$E$2:$U$2,0),1) -> Jun-2004 | H47: 0.1 | I47: =IF($I$1=0,(1/(1-91/360*VLOOKUP($B46,'T-bills'!$B$4:$C$1500,2,1)/100))^(($B47-$B46)/91)-1,0) -> 2.920586837e-05 | J47: 15.5 | K47: 17.08 | L47: 0.9074941452 | N47: 1120.68 | O47: 5.637 | P47: 0.02730375427 | Q47: =ROUND(IF(Lookup!D47>0,Lookup!D47,VLOOKUP(Master!$B47,Interpolate!$B$3:$T$2500,MATCH("M1-I",Interpolate!$B$2:$T$2,0),0)),3) -> 17.58 | R47: =ROUND(IF(Lookup!E47>0,Lookup!E47,VLOOKUP(Master!$B47,Interpolate!$B$3:$T$2500,MATCH("M2-I",Interpolate!$B$2:$T$2,0),0)),3) -> 18.06 | S47: =ROUND(IF(Lookup!F47>0,Lookup!F47,VLOOKUP(Master!$B47,Interpolate!$B$3:$T$2500,MATCH("M3-I",Interpolate!$B$2:$T$2,0),0)),3) -> 19.68 | T47: =ROUND(IF(Lookup!G47>0,Lookup!G47,VLOOKUP(Master!$B47,Interpolate!$B$3:$T$2500,MATCH("M4-I",Interpolate!$B$2:$T$2,0),0)),3) -> 20.004 | U47: =ROUND(IF(Lookup!H47>0,Lookup!H47,VLOOKUP(Master!$B47,Interpolate!$B$3:$T$2500,MATCH("M5-I",Interpolate!$B$2:$T$2,0),0)),3) -> 20.339 | V47: =ROUND(IF(Lookup!I47>0,Lookup!I47,VLOOKUP(Master!$B47,Interpolate!$B$3:$T$2500,MATCH("M6-I",Interpolate!$B$2:$T$2,0),0)),3) -> 20.75 | W47: =ROUND(IF(Lookup!J47>0,Lookup!J47,VLOOKUP(Master!$B47,Interpolate!$B$3:$T$2500,MATCH("M7-I",Interpolate!$B$2:$T$2,0),0)),3) -> 21.137 | AA47: =Lookup!S47 -> 2689 | AB47: 0.02730375427 | AC47: 0.07714285714 | AD47: 0.01814285714
B48: 2004-06-01 | C48: 46 | D48: =VLOOKUP($B48,'Exp Dates'!$E$4:$K$400,MATCH("Days1M",'Exp Dates'!$E$2:$X$2,0),1) -> 18 | E48: =VLOOKUP($B48,'Exp Dates'!$E$4:$K$400,MATCH("Trade Count",'Exp Dates'!$E$2:$X$2,0),1)-C48+D48-VLOOKUP($B48,'Exp Dates'!$E$4:$K$400,MATCH("Trade Day Adj",'Exp Dates'!$E$2:$X$2,0),1)*IF($B48>VLOOKUP($B48,'Exp Dates'!$E$4:$K$400,MATCH("Trade Day Adj Start",'Exp Dates'!$E$2:$X$2,0),1),1,0) -> 10 | F48: 8 | G48: =VLOOKUP($B48,'Exp Dates'!$E$6:$U$400,MATCH("ExpMoYr",'Exp Dates'!$E$2:$U$2,0),1) -> Jun-2004 | H48: 0.1 | I48: =IF($I$1=0,(1/(1-91/360*VLOOKUP($B47,'T-bills'!$B$4:$C$1500,2,1)/100))^(($B48-$B47)/91)-1,0) -> 0.0001168285915 | J48: 16.3 | K48: 17.44 | L48: 0.9346330275 | N48: 1121.2 | O48: 4.843 | P48: 0.03181818182 | Q48: =ROUND(IF(Lookup!D48>0,Lookup!D48,VLOOKUP(Master!$B48,Interpolate!$B$3:$T$2500,MATCH("M1-I",Interpolate!$B$2:$T$2,0),0)),3) -> 17.6 | R48: =ROUND(IF(Lookup!E48>0,Lookup!E48,VLOOKUP(Master!$B48,Interpolate!$B$3:$T$2500,MATCH("M2-I",Interpolate!$B$2:$T$2,0),0)),3) -> 18.16 | S48: =ROUND(IF(Lookup!F48>0,Lookup!F48,VLOOKUP(Master!$B48,Interpolate!$B$3:$T$2500,MATCH("M3-I",Interpolate!$B$2:$T$2,0),0)),3) -> 19.74 | T48: =ROUND(IF(Lookup!G48>0,Lookup!G48,VLOOKUP(Master!$B48,Interpolate!$B$3:$T$2500,MATCH("M4-I",Interpolate!$B$2:$T$2,0),0)),3) -> 20.051 | U48: =ROUND(IF(Lookup!H48>0,Lookup!H48,VLOOKUP(Master!$B48,Interpolate!$B$3:$T$2500,MATCH("M5-I",Interpolate!$B$2:$T$2,0),0)),3) -> 20.374 | V48: =ROUND(IF(Lookup!I48>0,Lookup!I48,VLOOKUP(Master!$B48,Interpolate!$B$3:$T$2500,MATCH("M6-I",Interpolate!$B$2:$T$2,0),0)),3) -> 20.77 | W48: =ROUND(IF(Lookup!J48>0,Lookup!J48,VLOOKUP(Master!$B48,Interpolate!$B$3:$T$2500,MATCH("M7-I",Interpolate!$B$2:$T$2,0),0)),3) -> 21.143 | AA48: =Lookup!S48 -> 2771 | AB48: 0.03181818182 | AC48: 0.07523809524 | AD48: 0.01748571429
B49: 2004-06-02 | C49: 47 | D49: =VLOOKUP($B49,'Exp Dates'!$E$4:$K$400,MATCH("Days1M",'Exp Dates'!$E$2:$X$2,0),1) -> 18 | E49: =VLOOKUP($B49,'Exp Dates'!$E$4:$K$400,MATCH("Trade Count",'Exp Dates'!$E$2:$X$2,0),1)-C49+D49-VLOOKUP($B49,'Exp Dates'!$E$4:$K$400,MATCH("Trade Day Adj",'Exp Dates'!$E$2:$X$2,0),1)*IF($B49>VLOOKUP($B49,'Exp Dates'!$E$4:$K$400,MATCH("Trade Day Adj Start",'Exp Dates'!$E$2:$X$2,0),1),1,0) -> 9 | F49: 9 | G49: =VLOOKUP($B49,'Exp Dates'!$E$6:$U$400,MATCH("ExpMoYr",'Exp Dates'!$E$2:$U$2,0),1) -> Jun-2004 | H49: 0.1 | I49: =IF($I$1=0,(1/(1-91/360*VLOOKUP($B48,'T-bills'!$B$4:$C$1500,2,1)/100))^(($B49-$B48)/91)-1,0) -> 3.143429792e-05 | J49: 16.08 | K49: 17.27 | L49: 0.9310943833 | N49: 1124.99 | O49: 4.981 | P49: 0.02549575071 | Q49: =ROUND(IF(Lookup!D49>0,Lookup!D49,VLOOKUP(Master!$B49,Interpolate!$B$3:$T$2500,MATCH("M1-I",Interpolate!$B$2:$T$2,0),0)),3) -> 17.65 | R49: =ROUND(IF(Lookup!E49>0,Lookup!E49,VLOOKUP(Master!$B49,Interpolate!$B$3:$T$2500,MATCH("M2-I",Interpolate!$B$2:$T$2,0),0)),3) -> 18.1 | S49: =ROUND(IF(Lookup!F49>0,Lookup!F49,VLOOKUP(Master!$B49,Interpolate!$B$3:$T$2500,MATCH("M3-I",Interpolate!$B$2:$T$2,0),0)),3) -> 19.59 | T49: =ROUND(IF(Lookup!G49>0,Lookup!G49,VLOOKUP(Master!$B49,Interpolate!$B$3:$T$2500,MATCH("M4-I",Interpolate!$B$2:$T$2,0),0)),3) -> 19.917 | U49: =ROUND(IF(Lookup!H49>0,Lookup!H49,VLOOKUP(Master!$B49,Interpolate!$B$3:$T$2500,MATCH("M5-I",Interpolate!$B$2:$T$2,0),0)),3) -> 20.255 | V49: =ROUND(IF(Lookup!I49>0,Lookup!I49,VLOOKUP(Master!$B49,Interpolate!$B$3:$T$2500,MATCH("M6-I",Interpolate!$B$2:$T$2,0),0)),3) -> 20.67 | W49: =ROUND(IF(Lookup!J49>0,Lookup!J49,VLOOKUP(Master!$B49,Interpolate!$B$3:$T$2500,MATCH("M7-I",Interpolate!$B$2:$T$2,0),0)),3) -> 21.061 | AA49: =Lookup!S49 -> 2892 | AB49: 0.02549575071 | AC49: 0.07095238095 | AD49: 0.01831904762
B50: 2004-06-03 | C50: 48 | D50: =VLOOKUP($B50,'Exp Dates'!$E$4:$K$400,MATCH("Days1M",'Exp Dates'!$E$2:$X$2,0),1) -> 18 | E50: =VLOOKUP($B50,'Exp Dates'!$E$4:$K$400,MATCH("Trade Count",'Exp Dates'!$E$2:$X$2,0),1)-C50+D50-VLOOKUP($B50,'Exp Dates'!$E$4:$K$400,MATCH("Trade Day Adj",'Exp Dates'!$E$2:$X$2,0),1)*IF($B50>VLOOKUP($B50,'Exp Dates'!$E$4:$K$400,MATCH("Trade Day Adj Start",'Exp Dates'!$E$2:$X$2,0),1),1,0) -> 8 | F50: -8 | G50: =VLOOKUP($B50,'Exp Dates'!$E$6:$U$400,MATCH("ExpMoYr",'Exp Dates'!$E$2:$U$2,0),1) -> Jun-2004 | H50: 0.1 | I50: =IF($I$1=0,(1/(1-91/360*VLOOKUP($B49,'T-bills'!$B$4:$C$1500,2,1)/100))^(($B50-$B49)/91)-1,0) -> 3.143429792e-05 | J50: 17.03 | K50: 18.19 | L50: 0.9362286971 | N50: 1116.64 | O50: 4.009 | P50: 0.04147727273 | Q50: =ROUND(IF(Lookup!D50>0,Lookup!D50,VLOOKUP(Master!$B50,Interpolate!$B$3:$T$2500,MATCH("M1-I",Interpolate!$B$2:$T$2,0),0)),3) -> 17.6 | R50: =ROUND(IF(Lookup!E50>0,Lookup!E50,VLOOKUP(Master!$B50,Interpolate!$B$3:$T$2500,MATCH("M2-I",Interpolate!$B$2:$T$2,0),0)),3) -> 18.33 | S50: =ROUND(IF(Lookup!F50>0,Lookup!F50,VLOOKUP(Master!$B50,Interpolate!$B$3:$T$2500,MATCH("M3-I",Interpolate!$B$2:$T$2,0),0)),3) -> 19.92 | T50: =ROUND(IF(Lookup!G50>0,Lookup!G50,VLOOKUP(Master!$B50,Interpolate!$B$3:$T$2500,MATCH("M4-I",Interpolate!$B$2:$T$2,0),0)),3) -> 20.167 | U50: =ROUND(IF(Lookup!H50>0,Lookup!H50,VLOOKUP(Master!$B50,Interpolate!$B$3:$T$2500,MATCH("M5-I",Interpolate!$B$2:$T$2,0),0)),3) -> 20.424 | V50: =ROUND(IF(Lookup!I50>0,Lookup!I50,VLOOKUP(Master!$B50,Interpolate!$B$3:$T$2500,MATCH("M6-I",Interpolate!$B$2:$T$2,0),0)),3) -> 20.74 | W50: =ROUND(IF(Lookup!J50>0,Lookup!J50,VLOOKUP(Master!$B50,Interpolate!$B$3:$T$2500,MATCH("M7-I",Interpolate!$B$2:$T$2,0),0)),3) -> 21.039 | AA50: =Lookup!S50 -> 2879 | AB50: 0.04147727273 | AC50: 0.07571428571 | AD50: 0.01396190476
B51: 2004-06-04 | C51: 49 | D51: =VLOOKUP($B51,'Exp Dates'!$E$4:$K$400,MATCH("Days1M",'Exp Dates'!$E$2:$X$2,0),1) -> 18 | E51: =VLOOKUP($B51,'Exp Dates'!$E$4:$K$400,MATCH("Trade Count",'Exp Dates'!$E$2:$X$2,0),1)-C51+D51-VLOOKUP($B51,'Exp Dates'!$E$4:$K$400,MATCH("Trade Day Adj",'Exp Dates'!$E$2:$X$2,0),1)*IF($B51>VLOOKUP($B51,'Exp Dates'!$E$4:$K$400,MATCH("Trade Day Adj Start",'Exp Dates'!$E$2:$X$2,0),1),1,0) -> 7 | F51: -7 | G51: =VLOOKUP($B51,'Exp Dates'!$E$6:$U$400,MATCH("ExpMoYr",'Exp Dates'!$E$2:$U$2,0),1) -> Jun-2004 | H51: 0.1 | I51: =IF($I$1=0,(1/(1-91/360*VLOOKUP($B50,'T-bills'!$B$4:$C$1500,2,1)/100))^(($B51-$B50)/91)-1,0) -> 3.143429792e-05 | J51: 16.78 | K51: 18.15 | L51: 0.9245179063 | N51: 1122.5 | O51: 4.383 | P51: 0.07118055556 | Q51: =ROUND(IF(Lookup!D51>0,Lookup!D51,VLOOKUP(Master!$B51,Interpolate!$B$3:$T$2500,MATCH("M1-I",Interpolate!$B$2:$T$2,0),0)),3) -> 17.28 | R51: =ROUND(IF(Lookup!E51>0,Lookup!E51,VLOOKUP(Master!$B51,Interpolate!$B$3:$T$2500,MATCH("M2-I",Interpolate!$B$2:$T$2,0),0)),3) -> 18.51 | S51: =ROUND(IF(Lookup!F51>0,Lookup!F51,VLOOKUP(Master!$B51,Interpolate!$B$3:$T$2500,MATCH("M3-I",Interpolate!$B$2:$T$2,0),0)),3) -> 19.99 | T51: =ROUND(IF(Lookup!G51>0,Lookup!G51,VLOOKUP(Master!$B51,Interpolate!$B$3:$T$2500,MATCH("M4-I",Interpolate!$B$2:$T$2,0),0)),3) -> 20.249 | U51: =ROUND(IF(Lookup!H51>0,Lookup!H51,VLOOKUP(Master!$B51,Interpolate!$B$3:$T$2500,MATCH("M5-I",Interpolate!$B$2:$T$2,0),0)),3) -> 20.518 | V51: =ROUND(IF(Lookup!I51>0,Lookup!I51,VLOOKUP(Master!$B51,Interpolate!$B$3:$T$2500,MATCH("M6-I",Interpolate!$B$2:$T$2,0),0)),3) -> 20.85 | W51: =ROUND(IF(Lookup!J51>0,Lookup!J51,VLOOKUP(Master!$B51,Interpolate!$B$3:$T$2500,MATCH("M7-I",Interpolate!$B$2:$T$2,0),0)),3) -> 21.163 | AA51: =Lookup!S51 -> 3109 | AB51: 0.07118055556 | AC51: 0.07047619048 | AD51: 0.01463809524
B52: 2004-06-07 | C52: 50 | D52: =VLOOKUP($B52,'Exp Dates'!$E$4:$K$400,MATCH("Days1M",'Exp Dates'!$E$2:$X$2,0),1) -> 18 | E52: =VLOOKUP($B52,'Exp Dates'!$E$4:$K$400,MATCH("Trade Count",'Exp Dates'!$E$2:$X$2,0),1)-C52+D52-VLOOKUP($B52,'Exp Dates'!$E$4:$K$400,MATCH("Trade Day Adj",'Exp Dates'!$E$2:$X$2,0),1)*IF($B52>VLOOKUP($B52,'Exp Dates'!$E$4:$K$400,MATCH("Trade Day Adj Start",'Exp Dates'!$E$2:$X$2,0),1),1,0) -> 6 | F52: -6 | G52: =VLOOKUP($B52,'Exp Dates'!$E$6:$U$400,MATCH("ExpMoYr",'Exp Dates'!$E$2:$U$2,0),1) -> Jun-2004 | H52: 0.1 | I52: =IF($I$1=0,(1/(1-91/360*VLOOKUP($B51,'T-bills'!$B$4:$C$1500,2,1)/100))^(($B52-$B51)/91)-1,0) -> 9.430585815e-05 | J52: 15.39 | K52: 17.27 | L52: 0.8911407064 | N52: 1140.42 | O52: 5.617 | P52: 0.08986731001 | Q52: =ROUND(IF(Lookup!D52>0,Lookup!D52,VLOOKUP(Master!$B52,Interpolate!$B$3:$T$2500,MATCH("M1-I",Interpolate!$B$2:$T$2,0),0)),3) -> 16.58 | R52: =ROUND(IF(Lookup!E52>0,Lookup!E52,VLOOKUP(Master!$B52,Interpolate!$B$3:$T$2500,MATCH("M2-I",Interpolate!$B$2:$T$2,0),0)),3) -> 18.07 | S52: =ROUND(IF(Lookup!F52>0,Lookup!F52,VLOOKUP(Master!$B52,Interpolate!$B$3:$T$2500,MATCH("M3-I",Interpolate!$B$2:$T$2,0),0)),3) -> 19.55 | T52: =ROUND(IF(Lookup!G52>0,Lookup!G52,VLOOKUP(Master!$B52,Interpolate!$B$3:$T$2500,MATCH("M4-I",Interpolate!$B$2:$T$2,0),0)),3) -> 19.874 | U52: =ROUND(IF(Lookup!H52>0,Lookup!H52,VLOOKUP(Master!$B52,Interpolate!$B$3:$T$2500,MATCH("M5-I",Interpolate!$B$2:$T$2,0),0)),3) -> 20.209 | V52: =ROUND(IF(Lookup!I52>0,Lookup!I52,VLOOKUP(Master!$B52,Interpolate!$B$3:$T$2500,MATCH("M6-I",Interpolate!$B$2:$T$2,0),0)),3) -> 20.62 | W52: =ROUND(IF(Lookup!J52>0,Lookup!J52,VLOOKUP(Master!$B52,Interpolate!$B$3:$T$2500,MATCH("M7-I",Interpolate!$B$2:$T$2,0),0)),3) -> 21.007 | AA52: =Lookup!S52 -> 3432 | AB52: 0.08986731001 | AC52: 0.07047619048 | AD52: 0.01814285714
B53: 2004-06-08 | C53: 51 | D53: =VLOOKUP($B53,'Exp Dates'!$E$4:$K$400,MATCH("Days1M",'Exp Dates'!$E$2:$X$2,0),1) -> 18 | E53: =VLOOKUP($B53,'Exp Dates'!$E$4:$K$400,MATCH("Trade Count",'Exp Dates'!$E$2:$X$2,0),1)-C53+D53-VLOOKUP($B53,'Exp Dates'!$E$4:$K$400,MATCH("Trade Day Adj",'Exp Dates'!$E$2:$X$2,0),1)*IF($B53>VLOOKUP($B53,'Exp Dates'!$E$4:$K$400,MATCH("Trade Day Adj Start",'Exp Dates'!$E$2:$X$2,0),1),1,0) -> 5 | F53: -5 | G53: =VLOOKUP($B53,'Exp Dates'!$E$6:$U$400,MATCH("ExpMoYr",'Exp Dates'!$E$2:$U$2,0),1) -> Jun-2004 | H53: 0.1 | I53: =IF($I$1=0,(1/(1-91/360*VLOOKUP($B52,'T-bills'!$B$4:$C$1500,2,1)/100))^(($B53-$B52)/91)-1,0) -> 3.422047746e-05 | J53: 15.01 | K53: 16.98 | L53: 0.8839811543 | N53: 1142.18 | O53: 5.867 | P53: 0.09579728059 | Q53: =ROUND(IF(Lookup!D53>0,Lookup!D53,VLOOKUP(Master!$B53,Interpolate!$B$3:$T$2500,MATCH("M1-I",Interpolate!$B$2:$T$2,0),0)),3) -> 16.18 | R53: =ROUND(IF(Lookup!E53>0,Lookup!E53,VLOOKUP(Master!$B53,Interpolate!$B$3:$T$2500,MATCH("M2-I",Interpolate!$B$2:$T$2,0),0)),3) -> 17.73 | S53: =ROUND(IF(Lookup!F53>0,Lookup!F53,VLOOKUP(Master!$B53,Interpolate!$B$3:$T$2500,MATCH("M3-I",Interpolate!$B$2:$T$2,0),0)),3) -> 19.42 | T53: =ROUND(IF(Lookup!G53>0,Lookup!G53,VLOOKUP(Master!$B53,Interpolate!$B$3:$T$2500,MATCH("M4-I",Interpolate!$B$2:$T$2,0),0)),3) -> 19.744 | U53: =ROUND(IF(Lookup!H53>0,Lookup!H53,VLOOKUP(Master!$B53,Interpolate!$B$3:$T$2500,MATCH("M5-I",Interpolate!$B$2:$T$2,0),0)),3) -> 20.079 | V53: =ROUND(IF(Lookup!I53>0,Lookup!I53,VLOOKUP(Master!$B53,Interpolate!$B$3:$T$2500,MATCH("M6-I",Interpolate!$B$2:$T$2,0),0)),3) -> 20.49 | W53: =ROUND(IF(Lookup!J53>0,Lookup!J53,VLOOKUP(Master!$B53,Interpolate!$B$3:$T$2500,MATCH("M7-I",Interpolate!$B$2:$T$2,0),0)),3) -> 20.877 | AA53: =Lookup!S53 -> 3883 | AB53: 0.09579728059 | AC53: 0.08047619048 | AD53: 0.01814285714
B54: 2004-06-09 | C54: 52 | D54: =VLOOKUP($B54,'Exp Dates'!$E$4:$K$400,MATCH("Days1M",'Exp Dates'!$E$2:$X$2,0),1) -> 18 | E54: =VLOOKUP($B54,'Exp Dates'!$E$4:$K$400,MATCH("Trade Count",'Exp Dates'!$E$2:$X$2,0),1)-C54+D54-VLOOKUP($B54,'Exp Dates'!$E$4:$K$400,MATCH("Trade Day Adj",'Exp Dates'!$E$2:$X$2,0),1)*IF($B54>VLOOKUP($B54,'Exp Dates'!$E$4:$K$400,MATCH("Trade Day Adj Start",'Exp Dates'!$E$2:$X$2,0),1),1,0) -> 4 | F54: -4 | G54: =VLOOKUP($B54,'Exp Dates'!$E$6:$U$400,MATCH("ExpMoYr",'Exp Dates'!$E$2:$U$2,0),1) -> Jun-2004 | H54: 0.1 | I54: =IF($I$1=0,(1/(1-91/360*VLOOKUP($B53,'T-bills'!$B$4:$C$1500,2,1)/100))^(($B54-$B53)/91)-1,0) -> 3.422047746e-05 | J54: 15.39 | K54: 17.42 | L54: 0.883467279 | N54: 1131.33 | O54: 5.602 | P54: 0.1024691358 | Q54: =ROUND(IF(Lookup!D54>0,Lookup!D54,VLOOKUP(Master!$B54,Interpolate!$B$3:$T$2500,MATCH("M1-I",Interpolate!$B$2:$T$2,0),0)),3) -> 16.2 | R54: =ROUND(IF(Lookup!E54>0,Lookup!E54,VLOOKUP(Master!$B54,Interpolate!$B$3:$T$2500,MATCH("M2-I",Interpolate!$B$2:$T$2,0),0)),3) -> 17.86 | S54: =ROUND(IF(Lookup!F54>0,Lookup!F54,VLOOKUP(Master!$B54,Interpolate!$B$3:$T$2500,MATCH("M3-I",Interpolate!$B$2:$T$2,0),0)),3) -> 19.71 | T54: =ROUND(IF(Lookup!G54>0,Lookup!G54,VLOOKUP(Master!$B54,Interpolate!$B$3:$T$2500,MATCH("M4-I",Interpolate!$B$2:$T$2,0),0)),3) -> 19.994 | U54: =ROUND(IF(Lookup!H54>0,Lookup!H54,VLOOKUP(Master!$B54,Interpolate!$B$3:$T$2500,MATCH("M5-I",Interpolate!$B$2:$T$2,0),0)),3) -> 20.288 | V54: =ROUND(IF(Lookup!I54>0,Lookup!I54,VLOOKUP(Master!$B54,Interpolate!$B$3:$T$2500,MATCH("M6-I",Interpolate!$B$2:$T$2,0),0)),3) -> 20.65 | W54: =ROUND(IF(Lookup!J54>0,Lookup!J54,VLOOKUP(Master!$B54,Interpolate!$B$3:$T$2500,MATCH("M7-I",Interpolate!$B$2:$T$2,0),0)),3) -> 20.992 | AA54: =Lookup!S54 -> 4051 | AB54: 0.1024691358 | AC54: 0.0880952381 | AD54: 0.01598095238
B55: 2004-06-10 | C55: 53 | D55: =VLOOKUP($B55,'Exp Dates'!$E$4:$K$400,MATCH("Days1M",'Exp Dates'!$E$2:$X$2,0),1) -> 18 | E55: =VLOOKUP($B55,'Exp Dates'!$E$4:$K$400,MATCH("Trade Count",'Exp Dates'!$E$2:$X$2,0),1)-C55+D55-VLOOKUP($B55,'Exp Dates'!$E$4:$K$400,MATCH("Trade Day Adj",'Exp Dates'!$E$2:$X$2,0),1)*IF($B55>VLOOKUP($B55,'Exp Dates'!$E$4:$K$400,MATCH("Trade Day Adj Start",'Exp Dates'!$E$2:$X$2,0),1),1,0) -> 3 | F55: -3 | G55: =VLOOKUP($B55,'Exp Dates'!$E$6:$U$400,MATCH("ExpMoYr",'Exp Dates'!$E$2:$U$2,0),1) -> Jun-2004 | H55: 0.1 | I55: =IF($I$1=0,(1/(1-91/360*VLOOKUP($B54,'T-bills'!$B$4:$C$1500,2,1)/100))^(($B55-$B54)/91)-1,0) -> 3.422047746e-05 | J55: 15.04 | K55: 16.9 | L55: 0.8899408284 | N55: 1136.47 | O55: 5.91 | P55: 0.1183959262 | Q55: =ROUND(IF(Lookup!D55>0,Lookup!D55,VLOOKUP(Master!$B55,Interpolate!$B$3:$T$2500,MATCH("M1-I",Interpolate!$B$2:$T$2,0),0)),3) -> 15.71 | R55: =ROUND(IF(Lookup!E55>0,Lookup!E55,VLOOKUP(Master!$B55,Interpolate!$B$3:$T$2500,MATCH("M2-I",Interpolate!$B$2:$T$2,0),0)),3) -> 17.57 | S55: =ROUND(IF(Lookup!F55>0,Lookup!F55,VLOOKUP(Master!$B55,Interpolate!$B$3:$T$2500,MATCH("M3-I",Interpolate!$B$2:$T$2,0),0)),3) -> 19.75 | T55: =ROUND(IF(Lookup!G55>0,Lookup!G55,VLOOKUP(Master!$B55,Interpolate!$B$3:$T$2500,MATCH("M4-I",Interpolate!$B$2:$T$2,0),0)),3) -> 20.015 | U55: =ROUND(IF(Lookup!H55>0,Lookup!H55,VLOOKUP(Master!$B55,Interpolate!$B$3:$T$2500,MATCH("M5-I",Interpolate!$B$2:$T$2,0),0)),3) -> 20.291 | V55: =ROUND(IF(Lookup!I55>0,Lookup!I55,VLOOKUP(Master!$B55,Interpolate!$B$3:$T$2500,MATCH("M6-I",Interpolate!$B$2:$T$2,0),0)),3) -> 20.63 | W55: =ROUND(IF(Lookup!J55>0,Lookup!J55,VLOOKUP(Master!$B55,Interpolate!$B$3:$T$2500,MATCH("M7-I",Interpolate!$B$2:$T$2,0),0)),3) -> 20.95 | AA55: =Lookup!S55 -> 4518 | AB55: 0.1183959262 | AC55: 0.1038095238 | AD55: 0.01497142857
B56: 2004-06-14 | C56: 54 | D56: =VLOOKUP($B56,'Exp Dates'!$E$4:$K$400,MATCH("Days1M",'Exp Dates'!$E$2:$X$2,0),1) -> 18 | E56: =VLOOKUP($B56,'Exp Dates'!$E$4:$K$400,MATCH("Trade Count",'Exp Dates'!$E$2:$X$2,0),1)-C56+D56-VLOOKUP($B56,'Exp Dates'!$E$4:$K$400,MATCH("Trade Day Adj",'Exp Dates'!$E$2:$X$2,0),1)*IF($B56>VLOOKUP($B56,'Exp Dates'!$E$4:$K$400,MATCH("Trade Day Adj Start",'Exp Dates'!$E$2:$X$2,0),1),1,0) -> 2 | F56: -2 | G56: =VLOOKUP($B56,'Exp Dates'!$E$6:$U$400,MATCH("ExpMoYr",'Exp Dates'!$E$2:$U$2,0),1) -> Jun-2004 | H56: 0.1 | I56: =IF($I$1=0,(1/(1-91/360*VLOOKUP($B55,'T-bills'!$B$4:$C$1500,2,1)/100))^(($B56-$B55)/91)-1,0) -> 0.0001368889362 | J56: 16.07 | K56: 17.65 | L56: 0.9104815864 | N56: 1125.29 | O56: 4.88 | P56: 0.1183959262 | Q56: =ROUND(IF(Lookup!D56>0,Lookup!D56,VLOOKUP(Master!$B56,Interpolate!$B$3:$T$2500,MATCH("M1-I",Interpolate!$B$2:$T$2,0),0)),3) -> 15.71 | R56: =ROUND(IF(Lookup!E56>0,Lookup!E56,VLOOKUP(Master!$B56,Interpolate!$B$3:$T$2500,MATCH("M2-I",Interpolate!$B$2:$T$2,0),0)),3) -> 17.57 | S56: =ROUND(IF(Lookup!F56>0,Lookup!F56,VLOOKUP(Master!$B56,Interpolate!$B$3:$T$2500,MATCH("M3-I",Interpolate!$B$2:$T$2,0),0)),3) -> 19.75 | T56: =ROUND(IF(Lookup!G56>0,Lookup!G56,VLOOKUP(Master!$B56,Interpolate!$B$3:$T$2500,MATCH("M4-I",Interpolate!$B$2:$T$2,0),0)),3) -> 20.015 | U56: =ROUND(IF(Lookup!H56>0,Lookup!H56,VLOOKUP(Master!$B56,Interpolate!$B$3:$T$2500,MATCH("M5-I",Interpolate!$B$2:$T$2,0),0)),3) -> 20.291 | V56: =ROUND(IF(Lookup!I56>0,Lookup!I56,VLOOKUP(Master!$B56,Interpolate!$B$3:$T$2500,MATCH("M6-I",Interpolate!$B$2:$T$2,0),0)),3) -> 20.63 | W56: =ROUND(IF(Lookup!J56>0,Lookup!J56,VLOOKUP(Master!$B56,Interpolate!$B$3:$T$2500,MATCH("M7-I",Interpolate!$B$2:$T$2,0),0)),3) -> 20.95 | AA56: =Lookup!S56 -> 4530 | AB56: 0.1183959262 | AC56: 0.1038095238 | AD56: 0.01497142857
B57: 2004-06-15 | C57: 55 | D57: =VLOOKUP($B57,'Exp Dates'!$E$4:$K$400,MATCH("Days1M",'Exp Dates'!$E$2:$X$2,0),1) -> 18 | E57: =VLOOKUP($B57,'Exp Dates'!$E$4:$K$400,MATCH("Trade Count",'Exp Dates'!$E$2:$X$2,0),1)-C57+D57-VLOOKUP($B57,'Exp Dates'!$E$4:$K$400,MATCH("Trade Day Adj",'Exp Dates'!$E$2:$X$2,0),1)*IF($B57>VLOOKUP($B57,'Exp Dates'!$E$4:$K$400,MATCH("Trade Day Adj Start",'Exp Dates'!$E$2:$X$2,0),1),1,0) -> 1 | F57: -1 | G57: =VLOOKUP($B57,'Exp Dates'!$E$6:$U$400,MATCH("ExpMoYr",'Exp Dates'!$E$2:$U$2,0),1) -> Jun-2004 | H57: 0.1 | I57: =IF($I$1=0,(1/(1-91/360*VLOOKUP($B56,'T-bills'!$B$4:$C$1500,2,1)/100))^(($B57-$B56)/91)-1,0) -> 3.867985068e-05 | J57: 15.05 | K57: 17.26 | L57: 0.8719582851 | N57: 1132.01 | O57: 5.903 | P57: 0.1463739188 | Q57: =ROUND(IF(Lookup!D57>0,Lookup!D57,VLOOKUP(Master!$B57,Interpolate!$B$3:$T$2500,MATCH("M1-I",Interpolate!$B$2:$T$2,0),0)),3) -> 15.03 | R57: =ROUND(IF(Lookup!E57>0,Lookup!E57,VLOOKUP(Master!$B57,Interpolate!$B$3:$T$2500,MATCH("M2-I",Interpolate!$B$2:$T$2,0),0)),3) -> 17.23 | S57: =ROUND(IF(Lookup!F57>0,Lookup!F57,VLOOKUP(Master!$B57,Interpolate!$B$3:$T$2500,MATCH("M3-I",Interpolate!$B$2:$T$2,0),0)),3) -> 19.82 | T57: =ROUND(IF(Lookup!G57>0,Lookup!G57,VLOOKUP(Master!$B57,Interpolate!$B$3:$T$2500,MATCH("M4-I",Interpolate!$B$2:$T$2,0),0)),3) -> 20.07 | U57: =ROUND(IF(Lookup!H57>0,Lookup!H57,VLOOKUP(Master!$B57,Interpolate!$B$3:$T$2500,MATCH("M5-I",Interpolate!$B$2:$T$2,0),0)),3) -> 20.33 | V57: =ROUND(IF(Lookup!I57>0,Lookup!I57,VLOOKUP(Master!$B57,Interpolate!$B$3:$T$2500,MATCH("M6-I",Interpolate!$B$2:$T$2,0),0)),3) -> 20.65 | W57: =ROUND(IF(Lookup!J57>0,Lookup!J57,VLOOKUP(Master!$B57,Interpolate!$B$3:$T$2500,MATCH("M7-I",Interpolate!$B$2:$T$2,0),0)),3) -> 20.953 | AA57: =Lookup!S57 -> 4598 | AB57: 0.1463739188 | AC57: 0.1233333333 | AD57: 0.01413809524
B58: 2004-06-16 | C58: 56 | D58: =VLOOKUP($B58,'Exp Dates'!$E$4:$K$400,MATCH("Days1M",'Exp Dates'!$E$2:$X$2,0),1) -> 19 | E58: =VLOOKUP($B58,'Exp Dates'!$E$4:$K$400,MATCH("Trade Count",'Exp Dates'!$E$2:$X$2,0),1)-C58+D58-VLOOKUP($B58,'Exp Dates'!$E$4:$K$400,MATCH("Trade Day Adj",'Exp Dates'!$E$2:$X$2,0),1)*IF($B58>VLOOKUP($B58,'Exp Dates'!$E$4:$K$400,MATCH("Trade Day Adj Start",'Exp Dates'!$E$2:$X$2,0),1),1,0) -> 19 | F58: 0 | G58: =VLOOKUP($B58,'Exp Dates'!$E$6:$U$400,MATCH("ExpMoYr",'Exp Dates'!$E$2:$U$2,0),1) -> Jul-2004 | H58: 0.1 | I58: =IF($I$1=0,(1/(1-91/360*VLOOKUP($B57,'T-bills'!$B$4:$C$1500,2,1)/100))^(($B58-$B57)/91)-1,0) -> 3.867985068e-05 | J58: 14.79 | K58: 17.05 | L58: 0.8674486804 | N58: 1133.56 | O58: 5.803 | P58: 0.1239766082 | Q58: =ROUND(IF(Lookup!D58>0,Lookup!D58,VLOOKUP(Master!$B58,Interpolate!$B$3:$T$2500,MATCH("M1-I",Interpolate!$B$2:$T$2,0),0)),3) -> 17.1 | R58: =ROUND(IF(Lookup!E58>0,Lookup!E58,VLOOKUP(Master!$B58,Interpolate!$B$3:$T$2500,MATCH("M2-I",Interpolate!$B$2:$T$2,0),0)),3) -> 19.22 | S58: =ROUND(IF(Lookup!F58>0,Lookup!F58,VLOOKUP(Master!$B58,Interpolate!$B$3:$T$2500,MATCH("M3-I",Interpolate!$B$2:$T$2,0),0)),3) -> 19.473 | T58: =ROUND(IF(Lookup!G58>0,Lookup!G58,VLOOKUP(Master!$B58,Interpolate!$B$3:$T$2500,MATCH("M4-I",Interpolate!$B$2:$T$2,0),0)),3) -> 19.736 | U58: =ROUND(IF(Lookup!H58>0,Lookup!H58,VLOOKUP(Master!$B58,Interpolate!$B$3:$T$2500,MATCH("M5-I",Interpolate!$B$2:$T$2,0),0)),3) -> 20.06 | V58: =ROUND(IF(Lookup!I58>0,Lookup!I58,VLOOKUP(Master!$B58,Interpolate!$B$3:$T$2500,MATCH("M6-I",Interpolate!$B$2:$T$2,0),0)),3) -> 20.366 | W58: =ROUND(IF(Lookup!J58>0,Lookup!J58,VLOOKUP(Master!$B58,Interpolate!$B$3:$T$2500,MATCH("M7-I",Interpolate!$B$2:$T$2,0),0)),3) -> 20.593 | AA58: =Lookup!S58 -> 3794 | AB58: 0.1239766082 | AC58: 0.01204761905 | AD58: 0.0137
B59: 2004-06-17 | C59: 57 | D59: =VLOOKUP($B59,'Exp Dates'!$E$4:$K$400,MATCH("Days1M",'Exp Dates'!$E$2:$X$2,0),1) -> 19 | E59: =VLOOKUP($B59,'Exp Dates'!$E$4:$K$400,MATCH("Trade Count",'Exp Dates'!$E$2:$X$2,0),1)-C59+D59-VLOOKUP($B59,'Exp Dates'!$E$4:$K$400,MATCH("Trade Day Adj",'Exp Dates'!$E$2:$X$2,0),1)*IF($B59>VLOOKUP($B59,'Exp Dates'!$E$4:$K$400,MATCH("Trade Day Adj Start",'Exp Dates'!$E$2:$X$2,0),1),1,0) -> 18 | F59: 1 | G59: =VLOOKUP($B59,'Exp Dates'!$E$6:$U$400,MATCH("ExpMoYr",'Exp Dates'!$E$2:$U$2,0),1) -> Jul-2004 | H59: 0.1 | I59: =IF($I$1=0,(1/(1-91/360*VLOOKUP($B58,'T-bills'!$B$4:$C$1500,2,1)/100))^(($B59-$B58)/91)-1,0) -> 3.867985068e-05 | J59: 15.15 | K59: 17.5 | L59: 0.8657142857 | N59: 1132.05 | O59: 5.441 | P59: 0.1184364061 | Q59: =ROUND(IF(Lookup!D59>0,Lookup!D59,VLOOKUP(Master!$B59,Interpolate!$B$3:$T$2500,MATCH("M1-I",Interpolate!$B$2:$T$2,0),0)),3) -> 17.14 | R59: =ROUND(IF(Lookup!E59>0,Lookup!E59,VLOOKUP(Master!$B59,Interpolate!$B$3:$T$2500,MATCH("M2-I",Interpolate!$B$2:$T$2,0),0)),3) -> 19.17 | S59: =ROUND(IF(Lookup!F59>0,Lookup!F59,VLOOKUP(Master!$B59,Interpolate!$B$3:$T$2500,MATCH("M3-I",Interpolate!$B$2:$T$2,0),0)),3) -> 19.432 | T59: =ROUND(IF(Lookup!G59>0,Lookup!G59,VLOOKUP(Master!$B59,Interpolate!$B$3:$T$2500,MATCH("M4-I",Interpolate!$B$2:$T$2,0),0)),3) -> 19.705 | U59: =ROUND(IF(Lookup!H59>0,Lookup!H59,VLOOKUP(Master!$B59,Interpolate!$B$3:$T$2500,MATCH("M5-I",Interpolate!$B$2:$T$2,0),0)),3) -> 20.04 | V59: =ROUND(IF(Lookup!I59>0,Lookup!I59,VLOOKUP(Master!$B59,Interpolate!$B$3:$T$2500,MATCH("M6-I",Interpolate!$B$2:$T$2,0),0)),3) -> 20.357 | W59: =ROUND(IF(Lookup!J59>0,Lookup!J59,VLOOKUP(Master!$B59,Interpolate!$B$3:$T$2500,MATCH("M7-I",Interpolate!$B$2:$T$2,0),0)),3) -> 20.591 | AA59: =Lookup!S59 -> 3902 | AB59: 0.1184364061 | AC59: 0.01247619048 | AD59: 0.01416666667
B60: 2004-06-18 | C60: 58 | D60: =VLOOKUP($B60,'Exp Dates'!$E$4:$K$400,MATCH("Days1M",'Exp Dates'!$E$2:$X$2,0),1) -> 19 | E60: =VLOOKUP($B60,'Exp Dates'!$E$4:$K$400,MATCH("Trade Count",'Exp Dates'!$E$2:$X$2,0),1)-C60+D60-VLOOKUP($B60,'Exp Dates'!$E$4:$K$400,MATCH("Trade Day Adj",'Exp Dates'!$E$2:$X$2,0),1)*IF($B60>VLOOKUP($B60,'Exp Dates'!$E$4:$K$400,MATCH("Trade Day Adj Start",'Exp Dates'!$E$2:$X$2,0),1),1,0) -> 17 | F60: 2 | G60: =VLOOKUP($B60,'Exp Dates'!$E$6:$U$400,MATCH("ExpMoYr",'Exp Dates'!$E$2:$U$2,0),1) -> Jul-2004 | H60: 0.1 | I60: =IF($I$1=0,(1/(1-91/360*VLOOKUP($B59,'T-bills'!$B$4:$C$1500,2,1)/100))^(($B60-$B59)/91)-1,0) -> 3.867985068e-05 | J60: 14.99 | K60: 17.47 | L60: 0.8580423583 | N60: 1135.02 | O60: 5.595 | P60: 0.1282352941 | Q60: =ROUND(IF(Lookup!D60>0,Lookup!D60,VLOOKUP(Master!$B60,Interpolate!$B$3:$T$2500,MATCH("M1-I",Interpolate!$B$2:$T$2,0),0)),3) -> 17 | R60: =ROUND(IF(Lookup!E60>0,Lookup!E60,VLOOKUP(Master!$B60,Interpolate!$B$3:$T$2500,MATCH("M2-I",Interpolate!$B$2:$T$2,0),0)),3) -> 19.18 | S60: =ROUND(IF(Lookup!F60>0,Lookup!F60,VLOOKUP(Master!$B60,Interpolate!$B$3:$T$2500,MATCH("M3-I",Interpolate!$B$2:$T$2,0),0)),3) -> 19.439 | T60: =ROUND(IF(Lookup!G60>0,Lookup!G60,VLOOKUP(Master!$B60,Interpolate!$B$3:$T$2500,MATCH("M4-I",Interpolate!$B$2:$T$2,0),0)),3) -> 19.709 | U60: =ROUND(IF(Lookup!H60>0,Lookup!H60,VLOOKUP(Master!$B60,Interpolate!$B$3:$T$2500,MATCH("M5-I",Interpolate!$B$2:$T$2,0),0)),3) -> 20.04 | V60: =ROUND(IF(Lookup!I60>0,Lookup!I60,VLOOKUP(Master!$B60,Interpolate!$B$3:$T$2500,MATCH("M6-I",Interpolate!$B$2:$T$2,0),0)),3) -> 20.353 | W60: =ROUND(IF(Lookup!J60>0,Lookup!J60,VLOOKUP(Master!$B60,Interpolate!$B$3:$T$2500,MATCH("M7-I",Interpolate!$B$2:$T$2,0),0)),3) -> 20.585 | AA60: =Lookup!S60 -> 4088 | AB60: 0.1282352941 | AC60: 0.01233333333 | AD60: 0.0140047619
B61: 2004-06-21 | C61: 59 | D61: =VLOOKUP($B61,'Exp Dates'!$E$4:$K$400,MATCH("Days1M",'Exp Dates'!$E$2:$X$2,0),1) -> 19 | E61: =VLOOKUP($B61,'Exp Dates'!$E$4:$K$400,MATCH("Trade Count",'Exp Dates'!$E$2:$X$2,0),1)-C61+D61-VLOOKUP($B61,'Exp Dates'!$E$4:$K$400,MATCH("Trade Day Adj",'Exp Dates'!$E$2:$X$2,0),1)*IF($B61>VLOOKUP($B61,'Exp Dates'!$E$4:$K$400,MATCH("Trade Day Adj Start",'Exp Dates'!$E$2:$X$2,0),1),1,0) -> 16 | F61: 3 | G61: =VLOOKUP($B61,'Exp Dates'!$E$6:$U$400,MATCH("ExpMoYr",'Exp Dates'!$E$2:$U$2,0),1) -> Jul-2004 | H61: 0.1 | I61: =IF($I$1=0,(1/(1-91/360*VLOOKUP($B60,'T-bills'!$B$4:$C$1500,2,1)/100))^(($B61-$B60)/91)-1,0) -> 0.0001160440405 | J61: 15.26 | K61: 17.47 | L61: 0.8734974242 | N61: 1130.3 | O61: 4.806 | P61: 0.1077636153 | Q61: =ROUND(IF(Lookup!D61>0,Lookup!D61,VLOOKUP(Master!$B61,Interpolate!$B$3:$T$2500,MATCH("M1-I",Interpolate!$B$2:$T$2,0),0)),3) -> 17.26 | R61: =ROUND(IF(Lookup!E61>0,Lookup!E61,VLOOKUP(Master!$B61,Interpolate!$B$3:$T$2500,MATCH("M2-I",Interpolate!$B$2:$T$2,0),0)),3) -> 19.12 | S61: =ROUND(IF(Lookup!F61>0,Lookup!F61,VLOOKUP(Master!$B61,Interpolate!$B$3:$T$2500,MATCH("M3-I",Interpolate!$B$2:$T$2,0),0)),3) -> 19.416 | T61: =ROUND(IF(Lookup!G61>0,Lookup!G61,VLOOKUP(Master!$B61,Interpolate!$B$3:$T$2500,MATCH("M4-I",Interpolate!$B$2:$T$2,0),0)),3) -> 19.723 | U61: =ROUND(IF(Lookup!H61>0,Lookup!H61,VLOOKUP(Master!$B61,Interpolate!$B$3:$T$2500,MATCH("M5-I",Interpolate!$B$2:$T$2,0),0)),3) -> 20.1 | V61: =ROUND(IF(Lookup!I61>0,Lookup!I61,VLOOKUP(Master!$B61,Interpolate!$B$3:$T$2500,MATCH("M6-I",Interpolate!$B$2:$T$2,0),0)),3) -> 20.081 | W61: =ROUND(IF(Lookup!J61>0,Lookup!J61,VLOOKUP(Master!$B61,Interpolate!$B$3:$T$2500,MATCH("M7-I",Interpolate!$B$2:$T$2,0),0)),3) -> 20.066 | AA61: =Lookup!S61 -> 4301 | AB61: 0.1077636153 | AC61: 0.0140952381 | AD61: 0.00480952381
B62: 2004-06-22 | C62: 60 | D62: =VLOOKUP($B62,'Exp Dates'!$E$4:$K$400,MATCH("Days1M",'Exp Dates'!$E$2:$X$2,0),1) -> 19 | E62: =VLOOKUP($B62,'Exp Dates'!$E$4:$K$400,MATCH("Trade Count",'Exp Dates'!$E$2:$X$2,0),1)-C62+D62-VLOOKUP($B62,'Exp Dates'!$E$4:$K$400,MATCH("Trade Day Adj",'Exp Dates'!$E$2:$X$2,0),1)*IF($B62>VLOOKUP($B62,'Exp Dates'!$E$4:$K$400,MATCH("Trade Day Adj Start",'Exp Dates'!$E$2:$X$2,0),1),1,0) -> 15 | F62: 4 | G62: =VLOOKUP($B62,'Exp Dates'!$E$6:$U$400,MATCH("ExpMoYr",'Exp Dates'!$E$2:$U$2,0),1) -> Jul-2004 | H62: 0.1 | I62: =IF($I$1=0,(1/(1-91/360*VLOOKUP($B61,'T-bills'!$B$4:$C$1500,2,1)/100))^(($B62-$B61)/91)-1,0) -> 3.658929169e-05 | J62: 14.31 | K62: 16.83 | L62: 0.8502673797 | N62: 1134.41 | O62: 5.623 | P62: 0.1138938581 | Q62: =ROUND(IF(Lookup!D62>0,Lookup!D62,VLOOKUP(Master!$B62,Interpolate!$B$3:$T$2500,MATCH("M1-I",Interpolate!$B$2:$T$2,0),0)),3) -> 16.77 | R62: =ROUND(IF(Lookup!E62>0,Lookup!E62,VLOOKUP(Master!$B62,Interpolate!$B$3:$T$2500,MATCH("M2-I",Interpolate!$B$2:$T$2,0),0)),3) -> 18.68 | S62: =ROUND(IF(Lookup!F62>0,Lookup!F62,VLOOKUP(Master!$B62,Interpolate!$B$3:$T$2500,MATCH("M3-I",Interpolate!$B$2:$T$2,0),0)),3) -> 19.01 | T62: =ROUND(IF(Lookup!G62>0,Lookup!G62,VLOOKUP(Master!$B62,Interpolate!$B$3:$T$2500,MATCH("M4-I",Interpolate!$B$2:$T$2,0),0)),3) -> 19.352 | U62: =ROUND(IF(Lookup!H62>0,Lookup!H62,VLOOKUP(Master!$B62,Interpolate!$B$3:$T$2500,MATCH("M5-I",Interpolate!$B$2:$T$2,0),0)),3) -> 19.77 | V62: =ROUND(IF(Lookup!I62>0,Lookup!I62,VLOOKUP(Master!$B62,Interpolate!$B$3:$T$2500,MATCH("M6-I",Interpolate!$B$2:$T$2,0),0)),3) -> 19.863 | W62: =ROUND(IF(Lookup!J62>0,Lookup!J62,VLOOKUP(Master!$B62,Interpolate!$B$3:$T$2500,MATCH("M7-I",Interpolate!$B$2:$T$2,0),0)),3) -> 19.933 | AA62: =Lookup!S62 -> 4231 | AB62: 0.1138938581 | AC62: 0.01571428571 | AD62: 0.008742857143
B63: 2004-06-23 | C63: 61 | D63: =VLOOKUP($B63,'Exp Dates'!$E$4:$K$400,MATCH("Days1M",'Exp Dates'!$E$2:$X$2,0),1) -> 19 | E63: =VLOOKUP($B63,'Exp Dates'!$E$4:$K$400,MATCH("Trade Count",'Exp Dates'!$E$2:$X$2,0),1)-C63+D63-VLOOKUP($B63,'Exp Dates'!$E$4:$K$400,MATCH("Trade Day Adj",'Exp Dates'!$E$2:$X$2,0),1)*IF($B63>VLOOKUP($B63,'Exp Dates'!$E$4:$K$400,MATCH("Trade Day Adj Start",'Exp Dates'!$E$2:$X$2,0),1),1,0) -> 14 | F63: 5 | G63: =VLOOKUP($B63,'Exp Dates'!$E$6:$U$400,MATCH("ExpMoYr",'Exp Dates'!$E$2:$U$2,0),1) -> Jul-2004 | H63: 0.1 | I63: =IF($I$1=0,(1/(1-91/360*VLOOKUP($B62,'T-bills'!$B$4:$C$1500,2,1)/100))^(($B63-$B62)/91)-1,0) -> 3.658929169e-05 | J63: 13.98 | K63: 16.21 | L63: 0.8624305984 | N63: 1144.06 | O63: 5.343 | P63: 0.1317289424 | Q63: =ROUND(IF(Lookup!D63>0,Lookup!D63,VLOOKUP(Master!$B63,Interpolate!$B$3:$T$2500,MATCH("M1-I",Interpolate!$B$2:$T$2,0),0)),3) -> 15.79 | R63: =ROUND(IF(Lookup!E63>0,Lookup!E63,VLOOKUP(Master!$B63,Interpolate!$B$3:$T$2500,MATCH("M2-I",Interpolate!$B$2:$T$2,0),0)),3) -> 17.87 | S63: =ROUND(IF(Lookup!F63>0,Lookup!F63,VLOOKUP(Master!$B63,Interpolate!$B$3:$T$2500,MATCH("M3-I",Interpolate!$B$2:$T$2,0),0)),3) -> 18.256 | T63: =ROUND(IF(Lookup!G63>0,Lookup!G63,VLOOKUP(Master!$B63,Interpolate!$B$3:$T$2500,MATCH("M4-I",Interpolate!$B$2:$T$2,0),0)),3) -> 18.654 | U63: =ROUND(IF(Lookup!H63>0,Lookup!H63,VLOOKUP(Master!$B63,Interpolate!$B$3:$T$2500,MATCH("M5-I",Interpolate!$B$2:$T$2,0),0)),3) -> 19.14 | V63: =ROUND(IF(Lookup!I63>0,Lookup!I63,VLOOKUP(Master!$B63,Interpolate!$B$3:$T$2500,MATCH("M6-I",Interpolate!$B$2:$T$2,0),0)),3) -> 19.245 | W63: =ROUND(IF(Lookup!J63>0,Lookup!J63,VLOOKUP(Master!$B63,Interpolate!$B$3:$T$2500,MATCH("M7-I",Interpolate!$B$2:$T$2,0),0)),3) -> 19.323 | AA63: =Lookup!S63 -> 4505 | AB63: 0.1317289424 | AC63: 0.01838095238 | AD63: 0.01005714286
B64: 2004-06-24 | C64: 62 | D64: =VLOOKUP($B64,'Exp Dates'!$E$4:$K$400,MATCH("Days1M",'Exp Dates'!$E$2:$X$2,0),1) -> 19 | E64: =VLOOKUP($B64,'Exp Dates'!$E$4:$K$400,MATCH("Trade Count",'Exp Dates'!$E$2:$X$2,0),1)-C64+D64-VLOOKUP($B64,'Exp Dates'!$E$4:$K$400,MATCH("Trade Day Adj",'Exp Dates'!$E$2:$X$2,0),1)*IF($B64>VLOOKUP($B64,'Exp Dates'!$E$4:$K$400,MATCH("Trade Day Adj Start",'Exp Dates'!$E$2:$X$2,0),1),1,0) -> 13 | F64: 6 | G64: =VLOOKUP($B64,'Exp Dates'!$E$6:$U$400,MATCH("ExpMoYr",'Exp Dates'!$E$2:$U$2,0),1) -> Jul-2004 | H64: 0.1 | I64: =IF($I$1=0,(1/(1-91/360*VLOOKUP($B63,'T-bills'!$B$4:$C$1500,2,1)/100))^(($B64-$B63)/91)-1,0) -> 3.658929169e-05 | J64: 14.81 | K64: 16.79 | L64: 0.8820726623 | N64: 1140.65 | O64: 4.767 | P64: 0.1392009988 | Q64: =ROUND(IF(Lookup!D64>0,Lookup!D64,VLOOKUP(Master!$B64,Interpolate!$B$3:$T$2500,MATCH("M1-I",Interpolate!$B$2:$T$2,0),0)),3) -> 16.02 | R64: =ROUND(IF(Lookup!E64>0,Lookup!E64,VLOOKUP(Master!$B64,Interpolate!$B$3:$T$2500,MATCH("M2-I",Interpolate!$B$2:$T$2,0),0)),3) -> 18.25 | S64: =ROUND(IF(Lookup!F64>0,Lookup!F64,VLOOKUP(Master!$B64,Interpolate!$B$3:$T$2500,MATCH("M3-I",Interpolate!$B$2:$T$2,0),0)),3) -> 18.593 | T64: =ROUND(IF(Lookup!G64>0,Lookup!G64,VLOOKUP(Master!$B64,Interpolate!$B$3:$T$2500,MATCH("M4-I",Interpolate!$B$2:$T$2,0),0)),3) -> 18.947 | U64: =ROUND(IF(Lookup!H64>0,Lookup!H64,VLOOKUP(Master!$B64,Interpolate!$B$3:$T$2500,MATCH("M5-I",Interpolate!$B$2:$T$2,0),0)),3) -> 19.38 | V64: =ROUND(IF(Lookup!I64>0,Lookup!I64,VLOOKUP(Master!$B64,Interpolate!$B$3:$T$2500,MATCH("M6-I",Interpolate!$B$2:$T$2,0),0)),3) -> 19.493 | W64: =ROUND(IF(Lookup!J64>0,Lookup!J64,VLOOKUP(Master!$B64,Interpolate!$B$3:$T$2500,MATCH("M7-I",Interpolate!$B$2:$T$2,0),0)),3) -> 19.577 | AA64: =Lookup!S64 -> 4548 | AB64: 0.1392009988 | AC64: 0.01633333333 | AD64: 0.009538095238
B65: 2004-06-25 | C65: 63 | D65: =VLOOKUP($B65,'Exp Dates'!$E$4:$K$400,MATCH("Days1M",'Exp Dates'!$E$2:$X$2,0),1) -> 19 | E65: =VLOOKUP($B65,'Exp Dates'!$E$4:$K$400,MATCH("Trade Count",'Exp Dates'!$E$2:$X$2,0),1)-C65+D65-VLOOKUP($B65,'Exp Dates'!$E$4:$K$400,MATCH("Trade Day Adj",'Exp Dates'!$E$2:$X$2,0),1)*IF($B65>VLOOKUP($B65,'Exp Dates'!$E$4:$K$400,MATCH("Trade Day Adj Start",'Exp Dates'!$E$2:$X$2,0),1),1,0) -> 12 | F65: 7 | G65: =VLOOKUP($B65,'Exp Dates'!$E$6:$U$400,MATCH("ExpMoYr",'Exp Dates'!$E$2:$U$2,0),1) -> Jul-2004 | H65: 0.1 | I65: =IF($I$1=0,(1/(1-91/360*VLOOKUP($B64,'T-bills'!$B$4:$C$1500,2,1)/100))^(($B65-$B64)/91)-1,0) -> 3.658929169e-05 | J65: 15.19 | K65: 17.43 | L65: 0.8714859438 | N65: 1134.43 | O65: 4.517 | P65: 0.1312384473 | Q65: =ROUND(IF(Lookup!D65>0,Lookup!D65,VLOOKUP(Master!$B65,Interpolate!$B$3:$T$2500,MATCH("M1-I",Interpolate!$B$2:$T$2,0),0)),3) -> 16.23 | R65: =ROUND(IF(Lookup!E65>0,Lookup!E65,VLOOKUP(Master!$B65,Interpolate!$B$3:$T$2500,MATCH("M2-I",Interpolate!$B$2:$T$2,0),0)),3) -> 18.36 | S65: =ROUND(IF(Lookup!F65>0,Lookup!F65,VLOOKUP(Master!$B65,Interpolate!$B$3:$T$2500,MATCH("M3-I",Interpolate!$B$2:$T$2,0),0)),3) -> 18.755 | T65: =ROUND(IF(Lookup!G65>0,Lookup!G65,VLOOKUP(Master!$B65,Interpolate!$B$3:$T$2500,MATCH("M4-I",Interpolate!$B$2:$T$2,0),0)),3) -> 19.163 | U65: =ROUND(IF(Lookup!H65>0,Lookup!H65,VLOOKUP(Master!$B65,Interpolate!$B$3:$T$2500,MATCH("M5-I",Interpolate!$B$2:$T$2,0),0)),3) -> 19.66 | V65: =ROUND(IF(Lookup!I65>0,Lookup!I65,VLOOKUP(Master!$B65,Interpolate!$B$3:$T$2500,MATCH("M6-I",Interpolate!$B$2:$T$2,0),0)),3) -> 19.687 | W65: =ROUND(IF(Lookup!J65>0,Lookup!J65,VLOOKUP(Master!$B65,Interpolate!$B$3:$T$2500,MATCH("M7-I",Interpolate!$B$2:$T$2,0),0)),3) -> 19.707 | AA65: =Lookup!S65 -> 4568 | AB65: 0.1312384473 | AC65: 0.01880952381 | AD65: 0.0079
B66: 2004-06-28 | C66: 64 | D66: =VLOOKUP($B66,'Exp Dates'!$E$4:$K$400,MATCH("Days1M",'Exp Dates'!$E$2:$X$2,0),1) -> 19 | E66: =VLOOKUP($B66,'Exp Dates'!$E$4:$K$400,MATCH("Trade Count",'Exp Dates'!$E$2:$X$2,0),1)-C66+D66-VLOOKUP($B66,'Exp Dates'!$E$4:$K$400,MATCH("Trade Day Adj",'Exp Dates'!$E$2:$X$2,0),1)*IF($B66>VLOOKUP($B66,'Exp Dates'!$E$4:$K$400,MATCH("Trade Day Adj Start",'Exp Dates'!$E$2:$X$2,0),1),1,0) -> 11 | F66: 8 | G66: =VLOOKUP($B66,'Exp Dates'!$E$6:$U$400,MATCH("ExpMoYr",'Exp Dates'!$E$2:$U$2,0),1) -> Jul-2004 | H66: 0.1 | I66: =IF($I$1=0,(1/(1-91/360*VLOOKUP($B65,'T-bills'!$B$4:$C$1500,2,1)/100))^(($B66-$B65)/91)-1,0) -> 0.0001097718915 | J66: 16.07 | K66: 17.98 | L66: 0.8937708565 | N66: 1133.35 | O66: 3.878 | P66: 0.1276725718 | Q66: =ROUND(IF(Lookup!D66>0,Lookup!D66,VLOOKUP(Master!$B66,Interpolate!$B$3:$T$2500,MATCH("M1-I",Interpolate!$B$2:$T$2,0),0)),3) -> 16.37 | R66: =ROUND(IF(Lookup!E66>0,Lookup!E66,VLOOKUP(Master!$B66,Interpolate!$B$3:$T$2500,MATCH("M2-I",Interpolate!$B$2:$T$2,0),0)),3) -> 18.46 | S66: =ROUND(IF(Lookup!F66>0,Lookup!F66,VLOOKUP(Master!$B66,Interpolate!$B$3:$T$2500,MATCH("M3-I",Interpolate!$B$2:$T$2,0),0)),3) -> 18.893 | T66: =ROUND(IF(Lookup!G66>0,Lookup!G66,VLOOKUP(Master!$B66,Interpolate!$B$3:$T$2500,MATCH("M4-I",Interpolate!$B$2:$T$2,0),0)),3) -> 19.338 | U66: =ROUND(IF(Lookup!H66>0,Lookup!H66,VLOOKUP(Master!$B66,Interpolate!$B$3:$T$2500,MATCH("M5-I",Interpolate!$B$2:$T$2,0),0)),3) -> 19.88 | V66: =ROUND(IF(Lookup!I66>0,Lookup!I66,VLOOKUP(Master!$B66,Interpolate!$B$3:$T$2500,MATCH("M6-I",Interpolate!$B$2:$T$2,0),0)),3) -> 19.919 | W66: =ROUND(IF(Lookup!J66>0,Lookup!J66,VLOOKUP(Master!$B66,Interpolate!$B$3:$T$2500,MATCH("M7-I",Interpolate!$B$2:$T$2,0),0)),3) -> 19.948 | AA66: =Lookup!S66 -> 4434 | AB66: 0.1276725718 | AC66: 0.02061904762 | AD66: 0.0089
B67: 2004-06-29 | C67: 65 | D67: =VLOOKUP($B67,'Exp Dates'!$E$4:$K$400,MATCH("Days1M",'Exp Dates'!$E$2:$X$2,0),1) -> 19 | E67: =VLOOKUP($B67,'Exp Dates'!$E$4:$K$400,MATCH("Trade Count",'Exp Dates'!$E$2:$X$2,0),1)-C67+D67-VLOOKUP($B67,'Exp Dates'!$E$4:$K$400,MATCH("Trade Day Adj",'Exp Dates'!$E$2:$X$2,0),1)*IF($B67>VLOOKUP($B67,'Exp Dates'!$E$4:$K$400,MATCH("Trade Day Adj Start",'Exp Dates'!$E$2:$X$2,0),1),1,0) -> 10 | F67: 9 | G67: =VLOOKUP($B67,'Exp Dates'!$E$6:$U$400,MATCH("ExpMoYr",'Exp Dates'!$E$2:$U$2,0),1) -> Jul-2004 | H67: 0.1 | I67: =IF($I$1=0,(1/(1-91/360*VLOOKUP($B66,'T-bills'!$B$4:$C$1500,2,1)/100))^(($B67-$B66)/91)-1,0) -> 3.770420645e-05 | J67: 15.47 | K67: 17.34 | L67: =J67/K67 -> 0.8921568627 | N67: 1136.2 | O67: 4.516 | P67: 0.1464330413 | Q67: =ROUND(IF(Lookup!D67>0,Lookup!D67,VLOOKUP(Master!$B67,Interpolate!$B$3:$T$2500,MATCH("M1-I",Interpolate!$B$2:$T$2,0),0)),3) -> 15.98 | R67: =ROUND(IF(Lookup!E67>0,Lookup!E67,VLOOKUP(Master!$B67,Interpolate!$B$3:$T$2500,MATCH("M2-I",Interpolate!$B$2:$T$2,0),0)),3) -> 18.32 | S67: =ROUND(IF(Lookup!F67>0,Lookup!F67,VLOOKUP(Master!$B67,Interpolate!$B$3:$T$2500,MATCH("M3-I",Interpolate!$B$2:$T$2,0),0)),3) -> 18.775 | T67: =ROUND(IF(Lookup!G67>0,Lookup!G67,VLOOKUP(Master!$B67,Interpolate!$B$3:$T$2500,MATCH("M4-I",Interpolate!$B$2:$T$2,0),0)),3) -> 19.242 | U67: =ROUND(IF(Lookup!H67>0,Lookup!H67,VLOOKUP(Master!$B67,Interpolate!$B$3:$T$2500,MATCH("M5-I",Interpolate!$B$2:$T$2,0),0)),3) -> 19.81 | V67: =ROUND(IF(Lookup!I67>0,Lookup!I67,VLOOKUP(Master!$B67,Interpolate!$B$3:$T$2500,MATCH("M6-I",Interpolate!$B$2:$T$2,0),0)),3) -> 19.911 | W67: =ROUND(IF(Lookup!J67>0,Lookup!J67,VLOOKUP(Master!$B67,Interpolate!$B$3:$T$2500,MATCH("M7-I",Interpolate!$B$2:$T$2,0),0)),3) -> 19.986 | AA67: =Lookup!S67 -> 4529 | AB67: 0.1464330413 | AC67: =SLOPE(R67:S67,$AA$1:$AB$1) -> 0.02166666667 | AD67: =SLOPE(T67:W67,$AA$1:$AD$1) -> 0.01110952381
B68: 2004-06-30 | C68: 66 | D68: =VLOOKUP($B68,'Exp Dates'!$E$4:$K$400,MATCH("Days1M",'Exp Dates'!$E$2:$X$2,0),1) -> 19 | E68: =VLOOKUP($B68,'Exp Dates'!$E$4:$K$400,MATCH("Trade Count",'Exp Dates'!$E$2:$X$2,0),1)-C68+D68-VLOOKUP($B68,'Exp Dates'!$E$4:$K$400,MATCH("Trade Day Adj",'Exp Dates'!$E$2:$X$2,0),1)*IF($B68>VLOOKUP($B68,'Exp Dates'!$E$4:$K$400,MATCH("Trade Day Adj Start",'Exp Dates'!$E$2:$X$2,0),1),1,0) -> 9 | F68: =IF(E68>8,D68-E68,-E68) -> 10 | G68: =VLOOKUP($B68,'Exp Dates'!$E$6:$U$400,MATCH("ExpMoYr",'Exp Dates'!$E$2:$U$2,0),1) -> Jul-2004 | H68: 0.1 | I68: =IF($I$1=0,(1/(1-91/360*VLOOKUP($B67,'T-bills'!$B$4:$C$1500,2,1)/100))^(($B68-$B67)/91)-1,0) -> 3.770420645e-05 | J68: 14.34 | K68: 16.42 | L68: 0.8733252132 | N68: 1140.84 | O68: =W68-J68 -> 5.529 | P68: =R68/Q68-1 -> 0.1794538362 | Q68: =ROUND(IF(Lookup!D68>0,Lookup!D68,VLOOKUP(Master!$B68,Interpolate!$B$3:$T$2500,MATCH("M1-I",Interpolate!$B$2:$T$2,0),0)),3) -> 15.38 | R68: =ROUND(IF(Lookup!E68>0,Lookup!E68,VLOOKUP(Master!$B68,Interpolate!$B$3:$T$2500,MATCH("M2-I",Interpolate!$B$2:$T$2,0),0)),3) -> 18.14 | S68: =ROUND(IF(Lookup!F68>0,Lookup!F68,VLOOKUP(Master!$B68,Interpolate!$B$3:$T$2500,MATCH("M3-I",Interpolate!$B$2:$T$2,0),0)),3) -> 18.629 | T68: =ROUND(IF(Lookup!G68>0,Lookup!G68,VLOOKUP(Master!$B68,Interpolate!$B$3:$T$2500,MATCH("M4-I",Interpolate!$B$2:$T$2,0),0)),3) -> 19.131 | U68: =ROUND(IF(Lookup!H68>0,Lookup!H68,VLOOKUP(Master!$B68,Interpolate!$B$3:$T$2500,MATCH("M5-I",Interpolate!$B$2:$T$2,0),0)),3) -> 19.74 | V68: =ROUND(IF(Lookup!I68>0,Lookup!I68,VLOOKUP(Master!$B68,Interpolate!$B$3:$T$2500,MATCH("M6-I",Interpolate!$B$2:$T$2,0),0)),3) -> 19.814 | W68: =ROUND(IF(Lookup!J68>0,Lookup!J68,VLOOKUP(Master!$B68,Interpolate!$B$3:$T$2500,MATCH("M7-I",Interpolate!$B$2:$T$2,0),0)),3) -> 19.869 | AA68: =Lookup!S68 -> 4780 | AB68: 0.1794538362 | AC68: 0.02328571429 | AD68: 0.0108952381
B69: 2004-07-01 | C69: 67 | D69: =VLOOKUP($B69,'Exp Dates'!$E$4:$K$400,MATCH("Days1M",'Exp Dates'!$E$2:$X$2,0),1) -> 19 | E69: =VLOOKUP($B69,'Exp Dates'!$E$4:$K$400,MATCH("Trade Count",'Exp Dates'!$E$2:$X$2,0),1)-C69+D69-VLOOKUP($B69,'Exp Dates'!$E$4:$K$400,MATCH("Trade Day Adj",'Exp Dates'!$E$2:$X$2,0),1)*IF($B69>VLOOKUP($B69,'Exp Dates'!$E$4:$K$400,MATCH("Trade Day Adj Start",'Exp Dates'!$E$2:$X$2,0),1),1,0) -> 8 | F69: -8 | G69: =VLOOKUP($B69,'Exp Dates'!$E$6:$U$400,MATCH("ExpMoYr",'Exp Dates'!$E$2:$U$2,0),1) -> Jul-2004 | H69: 0.1 | I69: =IF($I$1=0,(1/(1-91/360*VLOOKUP($B68,'T-bills'!$B$4:$C$1500,2,1)/100))^(($B69-$B68)/91)-1,0) -> 3.770420645e-05 | J69: 15.2 | K69: 17.11 | L69: 0.8883693746 | N69: 1128.94 | O69: 4.854 | P69: 0.1665603063 | Q69: =ROUND(IF(Lookup!D69>0,Lookup!D69,VLOOKUP(Master!$B69,Interpolate!$B$3:$T$2500,MATCH("M1-I",Interpolate!$B$2:$T$2,0),0)),3) -> 15.67 | R69: =ROUND(IF(Lookup!E69>0,Lookup!E69,VLOOKUP(Master!$B69,Interpolate!$B$3:$T$2500,MATCH("M2-I",Interpolate!$B$2:$T$2,0),0)),3) -> 18.28 | S69: =ROUND(IF(Lookup!F69>0,Lookup!F69,VLOOKUP(Master!$B69,Interpolate!$B$3:$T$2500,MATCH("M3-I",Interpolate!$B$2:$T$2,0),0)),3) -> 18.82 | T69: =ROUND(IF(Lookup!G69>0,Lookup!G69,VLOOKUP(Master!$B69,Interpolate!$B$3:$T$2500,MATCH("M4-I",Interpolate!$B$2:$T$2,0),0)),3) -> 19.372 | U69: =ROUND(IF(Lookup!H69>0,Lookup!H69,VLOOKUP(Master!$B69,Interpolate!$B$3:$T$2500,MATCH("M5-I",Interpolate!$B$2:$T$2,0),0)),3) -> 20.04 | V69: =ROUND(IF(Lookup!I69>0,Lookup!I69,VLOOKUP(Master!$B69,Interpolate!$B$3:$T$2500,MATCH("M6-I",Interpolate!$B$2:$T$2,0),0)),3) -> 20.048 | W69: =ROUND(IF(Lookup!J69>0,Lookup!J69,VLOOKUP(Master!$B69,Interpolate!$B$3:$T$2500,MATCH("M7-I",Interpolate!$B$2:$T$2,0),0)),3) -> 20.054 | AA69: =Lookup!S69 -> 5001 | AB69: =R69/Q69-1 -> 0.1665603063 | AC69: 0.02571428571 | AD69: 0.009780952381
B70: 2004-07-02 | C70: =C69+1 -> 68 | D70: =VLOOKUP($B70,'Exp Dates'!$E$4:$K$400,MATCH("Days1M",'Exp Dates'!$E$2:$X$2,0),1) -> 19 | E70: =VLOOKUP($B70,'Exp Dates'!$E$4:$K$400,MATCH("Trade Count",'Exp Dates'!$E$2:$X$2,0),1)-C70+D70-VLOOKUP($B70,'Exp Dates'!$E$4:$K$400,MATCH("Trade Day Adj",'Exp Dates'!$E$2:$X$2,0),1)*IF($B70>VLOOKUP($B70,'Exp Dates'!$E$4:$K$400,MATCH("Trade Day Adj Start",'Exp Dates'!$E$2:$X$2,0),1),1,0) -> 7 | F70: -7 | G70: =VLOOKUP($B70,'Exp Dates'!$E$6:$U$400,MATCH("ExpMoYr",'Exp Dates'!$E$2:$U$2,0),1) -> Jul-2004 | H70: 0.1 | I70: =IF($I$1=0,(1/(1-91/360*VLOOKUP($B69,'T-bills'!$B$4:$C$1500,2,1)/100))^(($B70-$B69)/91)-1,0) -> 3.770420645e-05 | J70: 15.08 | K70: 17.07 | L70: 0.8834212068 | N70: 1125.38 | O70: 5.014 | P70: 0.1741645244 | Q70: =ROUND(IF(Lookup!D70>0,Lookup!D70,VLOOKUP(Master!$B70,Interpolate!$B$3:$T$2500,MATCH("M1-I",Interpolate!$B$2:$T$2,0),0)),3) -> 15.56 | R70: =ROUND(IF(Lookup!E70>0,Lookup!E70,VLOOKUP(Master!$B70,Interpolate!$B$3:$T$2500,MATCH("M2-I",Interpolate!$B$2:$T$2,0),0)),3) -> 18.27 | S70: =ROUND(IF(Lookup!F70>0,Lookup!F70,VLOOKUP(Master!$B70,Interpolate!$B$3:$T$2500,MATCH("M3-I",Interpolate!$B$2:$T$2,0),0)),3) -> 18.813 | T70: =ROUND(IF(Lookup!G70>0,Lookup!G70,VLOOKUP(Master!$B70,Interpolate!$B$3:$T$2500,MATCH("M4-I",Interpolate!$B$2:$T$2,0),0)),3) -> 19.368 | U70: =ROUND(IF(Lookup!H70>0,Lookup!H70,VLOOKUP(Master!$B70,Interpolate!$B$3:$T$2500,MATCH("M5-I",Interpolate!$B$2:$T$2,0),0)),3) -> 20.04 | V70: =ROUND(IF(Lookup!I70>0,Lookup!I70,VLOOKUP(Master!$B70,Interpolate!$B$3:$T$2500,MATCH("M6-I",Interpolate!$B$2:$T$2,0),0)),3) -> 20.071 | W70: =ROUND(IF(Lookup!J70>0,Lookup!J70,VLOOKUP(Master!$B70,Interpolate!$B$3:$T$2500,MATCH("M7-I",Interpolate!$B$2:$T$2,0),0)),3) -> 20.094 | AA70: =Lookup!S70 -> 4997 | AB70: 0.1741645244 | AC70: 0.02585714286 | AD70: 0.01051904762
B71: 2004-07-06 | C71: 69 | D71: =VLOOKUP($B71,'Exp Dates'!$E$4:$K$400,MATCH("Days1M",'Exp Dates'!$E$2:$X$2,0),1) -> 19 | E71: =VLOOKUP($B71,'Exp Dates'!$E$4:$K$400,MATCH("Trade Count",'Exp Dates'!$E$2:$X$2,0),1)-C71+D71-VLOOKUP($B71,'Exp Dates'!$E$4:$K$400,MATCH("Trade Day Adj",'Exp Dates'!$E$2:$X$2,0),1)*IF($B71>VLOOKUP($B71,'Exp Dates'!$E$4:$K$400,MATCH("Trade Day Adj Start",'Exp Dates'!$E$2:$X$2,0),1),1,0) -> 6 | F71: -6 | G71: =VLOOKUP($B71,'Exp Dates'!$E$6:$U$400,MATCH("ExpMoYr",'Exp Dates'!$E$2:$U$2,0),1) -> Jul-2004 | H71: 0.1 | I71: =IF($I$1=0,(1/(1-91/360*VLOOKUP($B70,'T-bills'!$B$4:$C$1500,2,1)/100))^(($B71-$B70)/91)-1,0) -> 0.0001508253557 | J71: 16.25 | K71: 17.84 | L71: 0.9108744395 | N71: 1116.21 | O71: 4.039 | P71: 0.1541307028 | Q71: =ROUND(IF(Lookup!D71>0,Lookup!D71,VLOOKUP(Master!$B71,Interpolate!$B$3:$T$2500,MATCH("M1-I",Interpolate!$B$2:$T$2,0),0)),3) -> 16.22 | R71: =ROUND(IF(Lookup!E71>0,Lookup!E71,VLOOKUP(Master!$B71,Interpolate!$B$3:$T$2500,MATCH("M2-I",Interpolate!$B$2:$T$2,0),0)),3) -> 18.72 | S71: =ROUND(IF(Lookup!F71>0,Lookup!F71,VLOOKUP(Master!$B71,Interpolate!$B$3:$T$2500,MATCH("M3-I",Interpolate!$B$2:$T$2,0),0)),3) -> 19.159 | T71: =ROUND(IF(Lookup!G71>0,Lookup!G71,VLOOKUP(Master!$B71,Interpolate!$B$3:$T$2500,MATCH("M4-I",Interpolate!$B$2:$T$2,0),0)),3) -> 19.61 | U71: =ROUND(IF(Lookup!H71>0,Lookup!H71,VLOOKUP(Master!$B71,Interpolate!$B$3:$T$2500,MATCH("M5-I",Interpolate!$B$2:$T$2,0),0)),3) -> 20.16 | V71: =ROUND(IF(Lookup!I71>0,Lookup!I71,VLOOKUP(Master!$B71,Interpolate!$B$3:$T$2500,MATCH("M6-I",Interpolate!$B$2:$T$2,0),0)),3) -> 20.234 | W71: =ROUND(IF(Lookup!J71>0,Lookup!J71,VLOOKUP(Master!$B71,Interpolate!$B$3:$T$2500,MATCH("M7-I",Interpolate!$B$2:$T$2,0),0)),3) -> 20.289 | AA71: =Lookup!S71 -> 5289 | AB71: 0.1541307028 | AC71: 0.0209047619 | AD71: 0.01005238095
B72: 2004-07-07 | C72: 70 | D72: =VLOOKUP($B72,'Exp Dates'!$E$4:$K$400,MATCH("Days1M",'Exp Dates'!$E$2:$X$2,0),1) -> 19 | E72: =VLOOKUP($B72,'Exp Dates'!$E$4:$K$400,MATCH("Trade Count",'Exp Dates'!$E$2:$X$2,0),1)-C72+D72-VLOOKUP($B72,'Exp Dates'!$E$4:$K$400,MATCH("Trade Day Adj",'Exp Dates'!$E$2:$X$2,0),1)*IF($B72>VLOOKUP($B72,'Exp Dates'!$E$4:$K$400,MATCH("Trade Day Adj Start",'Exp Dates'!$E$2:$X$2,0),1),1,0) -> 5 | F72: -5 | G72: =VLOOKUP($B72,'Exp Dates'!$E$6:$U$400,MATCH("ExpMoYr",'Exp Dates'!$E$2:$U$2,0),1) -> Jul-2004 | H72: 0.1 | I72: =IF($I$1=0,(1/(1-91/360*VLOOKUP($B71,'T-bills'!$B$4:$C$1500,2,1)/100))^(($B72-$B71)/91)-1,0) -> 3.672864978e-05 | J72: 15.81 | K72: 17.66 | L72: 0.8952434881 | N72: 1118.33 | O72: 4.363 | P72: 0.1767708998 | Q72: =ROUND(IF(Lookup!D72>0,Lookup!D72,VLOOKUP(Master!$B72,Interpolate!$B$3:$T$2500,MATCH("M1-I",Interpolate!$B$2:$T$2,0),0)),3) -> 15.67 | R72: =ROUND(IF(Lookup!E72>0,Lookup!E72,VLOOKUP(Master!$B72,Interpolate!$B$3:$T$2500,MATCH("M2-I",Interpolate!$B$2:$T$2,0),0)),3) -> 18.44 | S72: =ROUND(IF(Lookup!F72>0,Lookup!F72,VLOOKUP(Master!$B72,Interpolate!$B$3:$T$2500,MATCH("M3-I",Interpolate!$B$2:$T$2,0),0)),3) -> 18.913 | T72: =ROUND(IF(Lookup!G72>0,Lookup!G72,VLOOKUP(Master!$B72,Interpolate!$B$3:$T$2500,MATCH("M4-I",Interpolate!$B$2:$T$2,0),0)),3) -> 19.399 | U72: =ROUND(IF(Lookup!H72>0,Lookup!H72,VLOOKUP(Master!$B72,Interpolate!$B$3:$T$2500,MATCH("M5-I",Interpolate!$B$2:$T$2,0),0)),3) -> 19.99 | V72: =ROUND(IF(Lookup!I72>0,Lookup!I72,VLOOKUP(Master!$B72,Interpolate!$B$3:$T$2500,MATCH("M6-I",Interpolate!$B$2:$T$2,0),0)),3) -> 20.095 | W72: =ROUND(IF(Lookup!J72>0,Lookup!J72,VLOOKUP(Master!$B72,Interpolate!$B$3:$T$2500,MATCH("M7-I",Interpolate!$B$2:$T$2,0),0)),3) -> 20.173 | AA72: =Lookup!S72 -> 5535 | AB72: 0.1767708998 | AC72: 0.02252380952 | AD72: 0.01155714286
B73: 2004-07-08 | C73: 71 | D73: =VLOOKUP($B73,'Exp Dates'!$E$4:$K$400,MATCH("Days1M",'Exp Dates'!$E$2:$X$2,0),1) -> 19 | E73: =VLOOKUP($B73,'Exp Dates'!$E$4:$K$400,MATCH("Trade Count",'Exp Dates'!$E$2:$X$2,0),1)-C73+D73-VLOOKUP($B73,'Exp Dates'!$E$4:$K$400,MATCH("Trade Day Adj",'Exp Dates'!$E$2:$X$2,0),1)*IF($B73>VLOOKUP($B73,'Exp Dates'!$E$4:$K$400,MATCH("Trade Day Adj Start",'Exp Dates'!$E$2:$X$2,0),1),1,0) -> 4 | F73: -4 | G73: =VLOOKUP($B73,'Exp Dates'!$E$6:$U$400,MATCH("ExpMoYr",'Exp Dates'!$E$2:$U$2,0),1) -> Jul-2004 | H73: 0.1 | I73: =IF($I$1=0,(1/(1-91/360*VLOOKUP($B72,'T-bills'!$B$4:$C$1500,2,1)/100))^(($B73-$B72)/91)-1,0) -> 3.672864978e-05 | J73: 16.2 | K73: 18.14 | L73: 0.8930540243 | N73: 1109.11 | O73: 4.109 | P73: 0.1806775408 | Q73: =ROUND(IF(Lookup!D73>0,Lookup!D73,VLOOKUP(Master!$B73,Interpolate!$B$3:$T$2500,MATCH("M1-I",Interpolate!$B$2:$T$2,0),0)),3) -> 15.94 | R73: =ROUND(IF(Lookup!E73>0,Lookup!E73,VLOOKUP(Master!$B73,Interpolate!$B$3:$T$2500,MATCH("M2-I",Interpolate!$B$2:$T$2,0),0)),3) -> 18.82 | S73: =ROUND(IF(Lookup!F73>0,Lookup!F73,VLOOKUP(Master!$B73,Interpolate!$B$3:$T$2500,MATCH("M3-I",Interpolate!$B$2:$T$2,0),0)),3) -> 19.228 | T73: =ROUND(IF(Lookup!G73>0,Lookup!G73,VLOOKUP(Master!$B73,Interpolate!$B$3:$T$2500,MATCH("M4-I",Interpolate!$B$2:$T$2,0),0)),3) -> 19.647 | U73: =ROUND(IF(Lookup!H73>0,Lookup!H73,VLOOKUP(Master!$B73,Interpolate!$B$3:$T$2500,MATCH("M5-I",Interpolate!$B$2:$T$2,0),0)),3) -> 20.16 | V73: =ROUND(IF(Lookup!I73>0,Lookup!I73,VLOOKUP(Master!$B73,Interpolate!$B$3:$T$2500,MATCH("M6-I",Interpolate!$B$2:$T$2,0),0)),3) -> 20.245 | W73: =ROUND(IF(Lookup!J73>0,Lookup!J73,VLOOKUP(Master!$B73,Interpolate!$B$3:$T$2500,MATCH("M7-I",Interpolate!$B$2:$T$2,0),0)),3) -> 20.309 | AA73: =Lookup!S73 -> 5703 | AB73: 0.1806775408 | AC73: 0.01942857143 | AD73: 0.009861904762
B74: 2004-07-09 | C74: 72 | D74: =VLOOKUP($B74,'Exp Dates'!$E$4:$K$400,MATCH("Days1M",'Exp Dates'!$E$2:$X$2,0),1) -> 19 | E74: =VLOOKUP($B74,'Exp Dates'!$E$4:$K$400,MATCH("Trade Count",'Exp Dates'!$E$2:$X$2,0),1)-C74+D74-VLOOKUP($B74,'Exp Dates'!$E$4:$K$400,MATCH("Trade Day Adj",'Exp Dates'!$E$2:$X$2,0),1)*IF($B74>VLOOKUP($B74,'Exp Dates'!$E$4:$K$400,MATCH("Trade Day Adj Start",'Exp Dates'!$E$2:$X$2,0),1),1,0) -> 3 | F74: -3 | G74: =VLOOKUP($B74,'Exp Dates'!$E$6:$U$400,MATCH("ExpMoYr",'Exp Dates'!$E$2:$U$2,0),1) -> Jul-2004 | H74: 0.1 | I74: =IF($I$1=0,(1/(1-91/360*VLOOKUP($B73,'T-bills'!$B$4:$C$1500,2,1)/100))^(($B74-$B73)/91)-1,0) -> 3.672864978e-05 | J74: 15.78 | K74: 18.05 | L74: 0.8742382271 | N74: 1112.81 | O74: 4.585 | P74: 0.209021601 | Q74: =ROUND(IF(Lookup!D74>0,Lookup!D74,VLOOKUP(Master!$B74,Interpolate!$B$3:$T$2500,MATCH("M1-I",Interpolate!$B$2:$T$2,0),0)),3) -> 15.74 | R74: =ROUND(IF(Lookup!E74>0,Lookup!E74,VLOOKUP(Master!$B74,Interpolate!$B$3:$T$2500,MATCH("M2-I",Interpolate!$B$2:$T$2,0),0)),3) -> 19.03 | S74: =ROUND(IF(Lookup!F74>0,Lookup!F74,VLOOKUP(Master!$B74,Interpolate!$B$3:$T$2500,MATCH("M3-I",Interpolate!$B$2:$T$2,0),0)),3) -> 19.413 | T74: =ROUND(IF(Lookup!G74>0,Lookup!G74,VLOOKUP(Master!$B74,Interpolate!$B$3:$T$2500,MATCH("M4-I",Interpolate!$B$2:$T$2,0),0)),3) -> 19.807 | U74: =ROUND(IF(Lookup!H74>0,Lookup!H74,VLOOKUP(Master!$B74,Interpolate!$B$3:$T$2500,MATCH("M5-I",Interpolate!$B$2:$T$2,0),0)),3) -> 20.29 | V74: =ROUND(IF(Lookup!I74>0,Lookup!I74,VLOOKUP(Master!$B74,Interpolate!$B$3:$T$2500,MATCH("M6-I",Interpolate!$B$2:$T$2,0),0)),3) -> 20.333 | W74: =ROUND(IF(Lookup!J74>0,Lookup!J74,VLOOKUP(Master!$B74,Interpolate!$B$3:$T$2500,MATCH("M7-I",Interpolate!$B$2:$T$2,0),0)),3) -> 20.365 | AA74: =Lookup!S74 -> 6066 | AB74: 0.209021601 | AC74: 0.01823809524 | AD74: 0.008176190476
B75: 2004-07-12 | C75: 73 | D75: =VLOOKUP($B75,'Exp Dates'!$E$4:$K$400,MATCH("Days1M",'Exp Dates'!$E$2:$X$2,0),1) -> 19 | E75: =VLOOKUP($B75,'Exp Dates'!$E$4:$K$400,MATCH("Trade Count",'Exp Dates'!$E$2:$X$2,0),1)-C75+D75-VLOOKUP($B75,'Exp Dates'!$E$4:$K$400,MATCH("Trade Day Adj",'Exp Dates'!$E$2:$X$2,0),1)*IF($B75>VLOOKUP($B75,'Exp Dates'!$E$4:$K$400,MATCH("Trade Day Adj Start",'Exp Dates'!$E$2:$X$2,0),1),1,0) -> 2 | F75: -2 | G75: =VLOOKUP($B75,'Exp Dates'!$E$6:$U$400,MATCH("ExpMoYr",'Exp Dates'!$E$2:$U$2,0),1) -> Jul-2004 | H75: 0.1 | I75: =IF($I$1=0,(1/(1-91/360*VLOOKUP($B74,'T-bills'!$B$4:$C$1500,2,1)/100))^(($B75-$B74)/91)-1,0) -> 0.0001101899964 | J75: 14.96 | K75: 18.33 | L75: 0.8161483906 | N75: 1114.35 | O75: 5.515 | P75: 0.2611000663 | Q75: =ROUND(IF(Lookup!D75>0,Lookup!D75,VLOOKUP(Master!$B75,Interpolate!$B$3:$T$2500,MATCH("M1-I",Interpolate!$B$2:$T$2,0),0)),3) -> 15.09 | R75: =ROUND(IF(Lookup!E75>0,Lookup!E75,VLOOKUP(Master!$B75,Interpolate!$B$3:$T$2500,MATCH("M2-I",Interpolate!$B$2:$T$2,0),0)),3) -> 19.03 | S75: =ROUND(IF(Lookup!F75>0,Lookup!F75,VLOOKUP(Master!$B75,Interpolate!$B$3:$T$2500,MATCH("M3-I",Interpolate!$B$2:$T$2,0),0)),3) -> 19.434 | T75: =ROUND(IF(Lookup!G75>0,Lookup!G75,VLOOKUP(Master!$B75,Interpolate!$B$3:$T$2500,MATCH("M4-I",Interpolate!$B$2:$T$2,0),0)),3) -> 19.851 | U75: =ROUND(IF(Lookup!H75>0,Lookup!H75,VLOOKUP(Master!$B75,Interpolate!$B$3:$T$2500,MATCH("M5-I",Interpolate!$B$2:$T$2,0),0)),3) -> 20.36 | V75: =ROUND(IF(Lookup!I75>0,Lookup!I75,VLOOKUP(Master!$B75,Interpolate!$B$3:$T$2500,MATCH("M6-I",Interpolate!$B$2:$T$2,0),0)),3) -> 20.426 | W75: =ROUND(IF(Lookup!J75>0,Lookup!J75,VLOOKUP(Master!$B75,Interpolate!$B$3:$T$2500,MATCH("M7-I",Interpolate!$B$2:$T$2,0),0)),3) -> 20.475 | AA75: =Lookup!S75 -> 5325 | AB75: 0.2611000663 | AC75: 0.01923809524 | AD75: 0.009228571429
B76: 2004-07-13 | C76: 74 | D76: =VLOOKUP($B76,'Exp Dates'!$E$4:$K$400,MATCH("Days1M",'Exp Dates'!$E$2:$X$2,0),1) -> 19 | E76: =VLOOKUP($B76,'Exp Dates'!$E$4:$K$400,MATCH("Trade Count",'Exp Dates'!$E$2:$X$2,0),1)-C76+D76-VLOOKUP($B76,'Exp Dates'!$E$4:$K$400,MATCH("Trade Day Adj",'Exp Dates'!$E$2:$X$2,0),1)*IF($B76>VLOOKUP($B76,'Exp Dates'!$E$4:$K$400,MATCH("Trade Day Adj Start",'Exp Dates'!$E$2:$X$2,0),1),1,0) -> 1 | F76: -1 | G76: =VLOOKUP($B76,'Exp Dates'!$E$6:$U$400,MATCH("ExpMoYr",'Exp Dates'!$E$2:$U$2,0),1) -> Jul-2004 | H76: 0.1 | I76: =IF($I$1=0,(1/(1-91/360*VLOOKUP($B75,'T-bills'!$B$4:$C$1500,2,1)/100))^(($B76-$B75)/91)-1,0) -> 3.658929169e-05 | J76: 14.46 | K76: 17.96 | L76: 0.8051224944 | N76: 1115.14 | O76: 5.962 | P76: 0.3130677848 | Q76: =ROUND(IF(Lookup!D76>0,Lookup!D76,VLOOKUP(Master!$B76,Interpolate!$B$3:$T$2500,MATCH("M1-I",Interpolate!$B$2:$T$2,0),0)),3) -> 14.31 | R76: =ROUND(IF(Lookup!E76>0,Lookup!E76,VLOOKUP(Master!$B76,Interpolate!$B$3:$T$2500,MATCH("M2-I",Interpolate!$B$2:$T$2,0),0)),3) -> 18.79 | S76: =ROUND(IF(Lookup!F76>0,Lookup!F76,VLOOKUP(Master!$B76,Interpolate!$B$3:$T$2500,MATCH("M3-I",Interpolate!$B$2:$T$2,0),0)),3) -> 19.251 | T76: =ROUND(IF(Lookup!G76>0,Lookup!G76,VLOOKUP(Master!$B76,Interpolate!$B$3:$T$2500,MATCH("M4-I",Interpolate!$B$2:$T$2,0),0)),3) -> 19.724 | U76: =ROUND(IF(Lookup!H76>0,Lookup!H76,VLOOKUP(Master!$B76,Interpolate!$B$3:$T$2500,MATCH("M5-I",Interpolate!$B$2:$T$2,0),0)),3) -> 20.3 | V76: =ROUND(IF(Lookup!I76>0,Lookup!I76,VLOOKUP(Master!$B76,Interpolate!$B$3:$T$2500,MATCH("M6-I",Interpolate!$B$2:$T$2,0),0)),3) -> 20.37 | W76: =ROUND(IF(Lookup!J76>0,Lookup!J76,VLOOKUP(Master!$B76,Interpolate!$B$3:$T$2500,MATCH("M7-I",Interpolate!$B$2:$T$2,0),0)),3) -> 20.422 | AA76: =Lookup!S76 -> 4943 | AB76: 0.3130677848 | AC76: 0.02195238095 | AD76: 0.0103047619
B77: 2004-07-14 | C77: 75 | D77: =VLOOKUP($B77,'Exp Dates'!$E$4:$K$400,MATCH("Days1M",'Exp Dates'!$E$2:$X$2,0),1) -> 25 | E77: =VLOOKUP($B77,'Exp Dates'!$E$4:$K$400,MATCH("Trade Count",'Exp Dates'!$E$2:$X$2,0),1)-C77+D77-VLOOKUP($B77,'Exp Dates'!$E$4:$K$400,MATCH("Trade Day Adj",'Exp Dates'!$E$2:$X$2,0),1)*IF($B77>VLOOKUP($B77,'Exp Dates'!$E$4:$K$400,MATCH("Trade Day Adj Start",'Exp Dates'!$E$2:$X$2,0),1),1,0) -> 25 | F77: 0 | G77: =VLOOKUP($B77,'Exp Dates'!$E$6:$U$400,MATCH("ExpMoYr",'Exp Dates'!$E$2:$U$2,0),1) -> Aug-2004 | H77: 0.1 | I77: =IF($I$1=0,(1/(1-91/360*VLOOKUP($B76,'T-bills'!$B$4:$C$1500,2,1)/100))^(($B77-$B76)/91)-1,0) -> 3.658929169e-05 | J77: 13.76 | K77: 18.09 | L77: 0.7606412383 | N77: 1111.47 | O77: 6.74 | P77: 0.02710779082 | Q77: =ROUND(IF(Lookup!D77>0,Lookup!D77,VLOOKUP(Master!$B77,Interpolate!$B$3:$T$2500,MATCH("M1-I",Interpolate!$B$2:$T$2,0),0)),3) -> 18.74 | R77: =ROUND(IF(Lookup!E77>0,Lookup!E77,VLOOKUP(Master!$B77,Interpolate!$B$3:$T$2500,MATCH("M2-I",Interpolate!$B$2:$T$2,0),0)),3) -> 19.248 | S77: =ROUND(IF(Lookup!F77>0,Lookup!F77,VLOOKUP(Master!$B77,Interpolate!$B$3:$T$2500,MATCH("M3-I",Interpolate!$B$2:$T$2,0),0)),3) -> 19.768 | T77: =ROUND(IF(Lookup!G77>0,Lookup!G77,VLOOKUP(Master!$B77,Interpolate!$B$3:$T$2500,MATCH("M4-I",Interpolate!$B$2:$T$2,0),0)),3) -> 20.4 | U77: =ROUND(IF(Lookup!H77>0,Lookup!H77,VLOOKUP(Master!$B77,Interpolate!$B$3:$T$2500,MATCH("M5-I",Interpolate!$B$2:$T$2,0),0)),3) -> 20.439 | V77: =ROUND(IF(Lookup!I77>0,Lookup!I77,VLOOKUP(Master!$B77,Interpolate!$B$3:$T$2500,MATCH("M6-I",Interpolate!$B$2:$T$2,0),0)),3) -> 20.468 | W77: =ROUND(IF(Lookup!J77>0,Lookup!J77,VLOOKUP(Master!$B77,Interpolate!$B$3:$T$2500,MATCH("M7-I",Interpolate!$B$2:$T$2,0),0)),3) -> 20.5 | AA77: =Lookup!S77 -> 3224 | AB77: 0.02710779082 | AC77: 0.02476190476 | AD77: 0.001566666667
B78: 2004-07-15 | C78: 76 | D78: =VLOOKUP($B78,'Exp Dates'!$E$4:$K$400,MATCH("Days1M",'Exp Dates'!$E$2:$X$2,0),1) -> 25 | E78: =VLOOKUP($B78,'Exp Dates'!$E$4:$K$400,MATCH("Trade Count",'Exp Dates'!$E$2:$X$2,0),1)-C78+D78-VLOOKUP($B78,'Exp Dates'!$E$4:$K$400,MATCH("Trade Day Adj",'Exp Dates'!$E$2:$X$2,0),1)*IF($B78>VLOOKUP($B78,'Exp Dates'!$E$4:$K$400,MATCH("Trade Day Adj Start",'Exp Dates'!$E$2:$X$2,0),1),1,0) -> 24 | F78: 1 | G78: =VLOOKUP($B78,'Exp Dates'!$E$6:$U$400,MATCH("ExpMoYr",'Exp Dates'!$E$2:$U$2,0),1) -> Aug-2004 | H78: 0.1 | I78: =IF($I$1=0,(1/(1-91/360*VLOOKUP($B77,'T-bills'!$B$4:$C$1500,2,1)/100))^(($B78-$B77)/91)-1,0) -> 3.658929169e-05 | J78: 14.71 | K78: 19.36 | L78: 0.7598140496 | N78: 1106.69 | O78: 5.8 | P78: 0.02182687201 | Q78: =ROUND(IF(Lookup!D78>0,Lookup!D78,VLOOKUP(Master!$B78,Interpolate!$B$3:$T$2500,MATCH("M1-I",Interpolate!$B$2:$T$2,0),0)),3) -> 18.83 | R78: =ROUND(IF(Lookup!E78>0,Lookup!E78,VLOOKUP(Master!$B78,Interpolate!$B$3:$T$2500,MATCH("M2-I",Interpolate!$B$2:$T$2,0),0)),3) -> 19.241 | S78: =ROUND(IF(Lookup!F78>0,Lookup!F78,VLOOKUP(Master!$B78,Interpolate!$B$3:$T$2500,MATCH("M3-I",Interpolate!$B$2:$T$2,0),0)),3) -> 19.664 | T78: =ROUND(IF(Lookup!G78>0,Lookup!G78,VLOOKUP(Master!$B78,Interpolate!$B$3:$T$2500,MATCH("M4-I",Interpolate!$B$2:$T$2,0),0)),3) -> 20.18 | U78: =ROUND(IF(Lookup!H78>0,Lookup!H78,VLOOKUP(Master!$B78,Interpolate!$B$3:$T$2500,MATCH("M5-I",Interpolate!$B$2:$T$2,0),0)),3) -> 20.308 | V78: =ROUND(IF(Lookup!I78>0,Lookup!I78,VLOOKUP(Master!$B78,Interpolate!$B$3:$T$2500,MATCH("M6-I",Interpolate!$B$2:$T$2,0),0)),3) -> 20.404 | W78: =ROUND(IF(Lookup!J78>0,Lookup!J78,VLOOKUP(Master!$B78,Interpolate!$B$3:$T$2500,MATCH("M7-I",Interpolate!$B$2:$T$2,0),0)),3) -> 20.51 | AA78: =Lookup!S78 -> 3251 | AB78: 0.02182687201 | AC78: 0.02014285714 | AD78: 0.005171428571
B79: 2004-07-16 | C79: 77 | D79: =VLOOKUP($B79,'Exp Dates'!$E$4:$K$400,MATCH("Days1M",'Exp Dates'!$E$2:$X$2,0),1) -> 25 | E79: =VLOOKUP($B79,'Exp Dates'!$E$4:$K$400,MATCH("Trade Count",'Exp Dates'!$E$2:$X$2,0),1)-C79+D79-VLOOKUP($B79,'Exp Dates'!$E$4:$K$400,MATCH("Trade Day Adj",'Exp Dates'!$E$2:$X$2,0),1)*IF($B79>VLOOKUP($B79,'Exp Dates'!$E$4:$K$400,MATCH("Trade Day Adj Start",'Exp Dates'!$E$2:$X$2,0),1),1,0) -> 23 | F79: 2 | G79: =VLOOKUP($B79,'Exp Dates'!$E$6:$U$400,MATCH("ExpMoYr",'Exp Dates'!$E$2:$U$2,0),1) -> Aug-2004 | H79: 0.1 | I79: =IF($I$1=0,(1/(1-91/360*VLOOKUP($B78,'T-bills'!$B$4:$C$1500,2,1)/100))^(($B79-$B78)/91)-1,0) -> 3.658929169e-05 | J79: 14.34 | K79: 18.04 | L79: 0.7949002217 | N79: 1101.39 | O79: 6.27 | P79: 0.02316622691 | Q79: =ROUND(IF(Lookup!D79>0,Lookup!D79,VLOOKUP(Master!$B79,Interpolate!$B$3:$T$2500,MATCH("M1-I",Interpolate!$B$2:$T$2,0),0)),3) -> 18.95 | R79: =ROUND(IF(Lookup!E79>0,Lookup!E79,VLOOKUP(Master!$B79,Interpolate!$B$3:$T$2500,MATCH("M2-I",Interpolate!$B$2:$T$2,0),0)),3) -> 19.389 | S79: =ROUND(IF(Lookup!F79>0,Lookup!F79,VLOOKUP(Master!$B79,Interpolate!$B$3:$T$2500,MATCH("M3-I",Interpolate!$B$2:$T$2,0),0)),3) -> 19.84 | T79: =ROUND(IF(Lookup!G79>0,Lookup!G79,VLOOKUP(Master!$B79,Interpolate!$B$3:$T$2500,MATCH("M4-I",Interpolate!$B$2:$T$2,0),0)),3) -> 20.39 | U79: =ROUND(IF(Lookup!H79>0,Lookup!H79,VLOOKUP(Master!$B79,Interpolate!$B$3:$T$2500,MATCH("M5-I",Interpolate!$B$2:$T$2,0),0)),3) -> 20.475 | V79: =ROUND(IF(Lookup!I79>0,Lookup!I79,VLOOKUP(Master!$B79,Interpolate!$B$3:$T$2500,MATCH("M6-I",Interpolate!$B$2:$T$2,0),0)),3) -> 20.539 | W79: =ROUND(IF(Lookup!J79>0,Lookup!J79,VLOOKUP(Master!$B79,Interpolate!$B$3:$T$2500,MATCH("M7-I",Interpolate!$B$2:$T$2,0),0)),3) -> 20.61 | AA79: =Lookup!S79 -> 3331 | AB79: 0.02316622691 | AC79: 0.02147619048 | AD79: 0.003447619048
B80: 2004-07-19 | C80: 78 | D80: =VLOOKUP($B80,'Exp Dates'!$E$4:$K$400,MATCH("Days1M",'Exp Dates'!$E$2:$X$2,0),1) -> 25 | E80: =VLOOKUP($B80,'Exp Dates'!$E$4:$K$400,MATCH("Trade Count",'Exp Dates'!$E$2:$X$2,0),1)-C80+D80-VLOOKUP($B80,'Exp Dates'!$E$4:$K$400,MATCH("Trade Day Adj",'Exp Dates'!$E$2:$X$2,0),1)*IF($B80>VLOOKUP($B80,'Exp Dates'!$E$4:$K$400,MATCH("Trade Day Adj Start",'Exp Dates'!$E$2:$X$2,0),1),1,0) -> 22 | F80: 3 | G80: =VLOOKUP($B80,'Exp Dates'!$E$6:$U$400,MATCH("ExpMoYr",'Exp Dates'!$E$2:$U$2,0),1) -> Aug-2004 | H80: 0.1 | I80: =IF($I$1=0,(1/(1-91/360*VLOOKUP($B79,'T-bills'!$B$4:$C$1500,2,1)/100))^(($B80-$B79)/91)-1,0) -> 0.0001097718915 | J80: 15.17 | K80: 18.72 | L80: 0.8103632479 | N80: 1100.9 | O80: 5.61 | P80: 0.04899894626 | Q80: =ROUND(IF(Lookup!D80>0,Lookup!D80,VLOOKUP(Master!$B80,Interpolate!$B$3:$T$2500,MATCH("M1-I",Interpolate!$B$2:$T$2,0),0)),3) -> 18.98 | R80: =ROUND(IF(Lookup!E80>0,Lookup!E80,VLOOKUP(Master!$B80,Interpolate!$B$3:$T$2500,MATCH("M2-I",Interpolate!$B$2:$T$2,0),0)),3) -> 19.91 | S80: =ROUND(IF(Lookup!F80>0,Lookup!F80,VLOOKUP(Master!$B80,Interpolate!$B$3:$T$2500,MATCH("M3-I",Interpolate!$B$2:$T$2,0),0)),3) -> 20.206 | T80: =ROUND(IF(Lookup!G80>0,Lookup!G80,VLOOKUP(Master!$B80,Interpolate!$B$3:$T$2500,MATCH("M4-I",Interpolate!$B$2:$T$2,0),0)),3) -> 20.57 | U80: =ROUND(IF(Lookup!H80>0,Lookup!H80,VLOOKUP(Master!$B80,Interpolate!$B$3:$T$2500,MATCH("M5-I",Interpolate!$B$2:$T$2,0),0)),3) -> 20.652 | V80: =ROUND(IF(Lookup!I80>0,Lookup!I80,VLOOKUP(Master!$B80,Interpolate!$B$3:$T$2500,MATCH("M6-I",Interpolate!$B$2:$T$2,0),0)),3) -> 20.712 | W80: =ROUND(IF(Lookup!J80>0,Lookup!J80,VLOOKUP(Master!$B80,Interpolate!$B$3:$T$2500,MATCH("M7-I",Interpolate!$B$2:$T$2,0),0)),3) -> 20.78 | AA80: =Lookup!S80 -> 3352 | AB80: 0.04899894626 | AC80: 0.0140952381 | AD80: 0.003285714286
B81: 2004-07-20 | C81: 79 | D81: =VLOOKUP($B81,'Exp Dates'!$E$4:$K$400,MATCH("Days1M",'Exp Dates'!$E$2:$X$2,0),1) -> 25 | E81: =VLOOKUP($B81,'Exp Dates'!$E$4:$K$400,MATCH("Trade Count",'Exp Dates'!$E$2:$X$2,0),1)-C81+D81-VLOOKUP($B81,'Exp Dates'!$E$4:$K$400,MATCH("Trade Day Adj",'Exp Dates'!$E$2:$X$2,0),1)*IF($B81>VLOOKUP($B81,'Exp Dates'!$E$4:$K$400,MATCH("Trade Day Adj Start",'Exp Dates'!$E$2:$X$2,0),1),1,0) -> 21 | F81: 4 | G81: =VLOOKUP($B81,'Exp Dates'!$E$6:$U$400,MATCH("ExpMoYr",'Exp Dates'!$E$2:$U$2,0),1) -> Aug-2004 | H81: 0.1 | I81: =IF($I$1=0,(1/(1-91/360*VLOOKUP($B80,'T-bills'!$B$4:$C$1500,2,1)/100))^(($B81-$B80)/91)-1,0) -> 3.700737133e-05 | J81: 14.17 | K81: 17.58 | L81: 0.8060295791 | N81: 1108.67 | O81: 6.52 | P81: 0.06229685807 | Q81: =ROUND(IF(Lookup!D81>0,Lookup!D81,VLOOKUP(Master!$B81,Interpolate!$B$3:$T$2500,MATCH("M1-I",Interpolate!$B$2:$T$2,0),0)),3) -> 18.46 | R81: =ROUND(IF(Lookup!E81>0,Lookup!E81,VLOOKUP(Master!$B81,Interpolate!$B$3:$T$2500,MATCH("M2-I",Interpolate!$B$2:$T$2,0),0)),3) -> 19.61 | S81: =ROUND(IF(Lookup!F81>0,Lookup!F81,VLOOKUP(Master!$B81,Interpolate!$B$3:$T$2500,MATCH("M3-I",Interpolate!$B$2:$T$2,0),0)),3) -> 19.906 | T81: =ROUND(IF(Lookup!G81>0,Lookup!G81,VLOOKUP(Master!$B81,Interpolate!$B$3:$T$2500,MATCH("M4-I",Interpolate!$B$2:$T$2,0),0)),3) -> 20.27 | U81: =ROUND(IF(Lookup!H81>0,Lookup!H81,VLOOKUP(Master!$B81,Interpolate!$B$3:$T$2500,MATCH("M5-I",Interpolate!$B$2:$T$2,0),0)),3) -> 20.434 | V81: =ROUND(IF(Lookup!I81>0,Lookup!I81,VLOOKUP(Master!$B81,Interpolate!$B$3:$T$2500,MATCH("M6-I",Interpolate!$B$2:$T$2,0),0)),3) -> 20.555 | W81: =ROUND(IF(Lookup!J81>0,Lookup!J81,VLOOKUP(Master!$B81,Interpolate!$B$3:$T$2500,MATCH("M7-I",Interpolate!$B$2:$T$2,0),0)),3) -> 20.69 | AA81: =Lookup!S81 -> 2971 | AB81: 0.06229685807 | AC81: 0.0140952381 | AD81: 0.006576190476
B82: 2004-07-21 | C82: 80 | D82: =VLOOKUP($B82,'Exp Dates'!$E$4:$K$400,MATCH("Days1M",'Exp Dates'!$E$2:$X$2,0),1) -> 25 | E82: =VLOOKUP($B82,'Exp Dates'!$E$4:$K$400,MATCH("Trade Count",'Exp Dates'!$E$2:$X$2,0),1)-C82+D82-VLOOKUP($B82,'Exp Dates'!$E$4:$K$400,MATCH("Trade Day Adj",'Exp Dates'!$E$2:$X$2,0),1)*IF($B82>VLOOKUP($B82,'Exp Dates'!$E$4:$K$400,MATCH("Trade Day Adj Start",'Exp Dates'!$E$2:$X$2,0),1),1,0) -> 20 | F82: 5 | G82: =VLOOKUP($B82,'Exp Dates'!$E$6:$U$400,MATCH("ExpMoYr",'Exp Dates'!$E$2:$U$2,0),1) -> Aug-2004 | H82: 0.1 | I82: =IF($I$1=0,(1/(1-91/360*VLOOKUP($B81,'T-bills'!$B$4:$C$1500,2,1)/100))^(($B82-$B81)/91)-1,0) -> 3.700737133e-05 | J82: 16.41 | K82: 19.3 | L82: 0.8502590674 | N82: 1093.88 | O82: 4.63 | P82: 0.07523510972 | Q82: =ROUND(IF(Lookup!D82>0,Lookup!D82,VLOOKUP(Master!$B82,Interpolate!$B$3:$T$2500,MATCH("M1-I",Interpolate!$B$2:$T$2,0),0)),3) -> 19.14 | R82: =ROUND(IF(Lookup!E82>0,Lookup!E82,VLOOKUP(Master!$B82,Interpolate!$B$3:$T$2500,MATCH("M2-I",Interpolate!$B$2:$T$2,0),0)),3) -> 20.58 | S82: =ROUND(IF(Lookup!F82>0,Lookup!F82,VLOOKUP(Master!$B82,Interpolate!$B$3:$T$2500,MATCH("M3-I",Interpolate!$B$2:$T$2,0),0)),3) -> 20.616 | T82: =ROUND(IF(Lookup!G82>0,Lookup!G82,VLOOKUP(Master!$B82,Interpolate!$B$3:$T$2500,MATCH("M4-I",Interpolate!$B$2:$T$2,0),0)),3) -> 20.66 | U82: =ROUND(IF(Lookup!H82>0,Lookup!H82,VLOOKUP(Master!$B82,Interpolate!$B$3:$T$2500,MATCH("M5-I",Interpolate!$B$2:$T$2,0),0)),3) -> 20.808 | V82: =ROUND(IF(Lookup!I82>0,Lookup!I82,VLOOKUP(Master!$B82,Interpolate!$B$3:$T$2500,MATCH("M6-I",Interpolate!$B$2:$T$2,0),0)),3) -> 20.918 | W82: =ROUND(IF(Lookup!J82>0,Lookup!J82,VLOOKUP(Master!$B82,Interpolate!$B$3:$T$2500,MATCH("M7-I",Interpolate!$B$2:$T$2,0),0)),3) -> 21.04 | AA82: =Lookup!S82 -> 3045 | AB82: 0.07523510972 | AC82: 0.001714285714 | AD82: 0.005952380952
B83: 2004-07-22 | C83: 81 | D83: =VLOOKUP($B83,'Exp Dates'!$E$4:$K$400,MATCH("Days1M",'Exp Dates'!$E$2:$X$2,0),1) -> 25 | E83: =VLOOKUP($B83,'Exp Dates'!$E$4:$K$400,MATCH("Trade Count",'Exp Dates'!$E$2:$X$2,0),1)-C83+D83-VLOOKUP($B83,'Exp Dates'!$E$4:$K$400,MATCH("Trade Day Adj",'Exp Dates'!$E$2:$X$2,0),1)*IF($B83>VLOOKUP($B83,'Exp Dates'!$E$4:$K$400,MATCH("Trade Day Adj Start",'Exp Dates'!$E$2:$X$2,0),1),1,0) -> 19 | F83: 6 | G83: =VLOOKUP($B83,'Exp Dates'!$E$6:$U$400,MATCH("ExpMoYr",'Exp Dates'!$E$2:$U$2,0),1) -> Aug-2004 | H83: 0.1 | I83: =IF($I$1=0,(1/(1-91/360*VLOOKUP($B82,'T-bills'!$B$4:$C$1500,2,1)/100))^(($B83-$B82)/91)-1,0) -> 3.700737133e-05 | J83: 15.75 | K83: 18.71 | L83: 0.8417958311 | N83: 1096.84 | O83: 5.2 | P83: 0.09880564604 | Q83: =ROUND(IF(Lookup!D83>0,Lookup!D83,VLOOKUP(Master!$B83,Interpolate!$B$3:$T$2500,MATCH("M1-I",Interpolate!$B$2:$T$2,0),0)),3) -> 18.42 | R83: =ROUND(IF(Lookup!E83>0,Lookup!E83,VLOOKUP(Master!$B83,Interpolate!$B$3:$T$2500,MATCH("M2-I",Interpolate!$B$2:$T$2,0),0)),3) -> 20.24 | S83: =ROUND(IF(Lookup!F83>0,Lookup!F83,VLOOKUP(Master!$B83,Interpolate!$B$3:$T$2500,MATCH("M3-I",Interpolate!$B$2:$T$2,0),0)),3) -> 20.329 | T83: =ROUND(IF(Lookup!G83>0,Lookup!G83,VLOOKUP(Master!$B83,Interpolate!$B$3:$T$2500,MATCH("M4-I",Interpolate!$B$2:$T$2,0),0)),3) -> 20.44 | U83: =ROUND(IF(Lookup!H83>0,Lookup!H83,VLOOKUP(Master!$B83,Interpolate!$B$3:$T$2500,MATCH("M5-I",Interpolate!$B$2:$T$2,0),0)),3) -> 20.639 | V83: =ROUND(IF(Lookup!I83>0,Lookup!I83,VLOOKUP(Master!$B83,Interpolate!$B$3:$T$2500,MATCH("M6-I",Interpolate!$B$2:$T$2,0),0)),3) -> 20.787 | W83: =ROUND(IF(Lookup!J83>0,Lookup!J83,VLOOKUP(Master!$B83,Interpolate!$B$3:$T$2500,MATCH("M7-I",Interpolate!$B$2:$T$2,0),0)),3) -> 20.95 | AA83: =Lookup!S83 -> 3220 | AB83: 0.09880564604 | AC83: 0.004238095238 | AD83: 0.00799047619
B84: 2004-07-23 | C84: 82 | D84: =VLOOKUP($B84,'Exp Dates'!$E$4:$K$400,MATCH("Days1M",'Exp Dates'!$E$2:$X$2,0),1) -> 25 | E84: =VLOOKUP($B84,'Exp Dates'!$E$4:$K$400,MATCH("Trade Count",'Exp Dates'!$E$2:$X$2,0),1)-C84+D84-VLOOKUP($B84,'Exp Dates'!$E$4:$K$400,MATCH("Trade Day Adj",'Exp Dates'!$E$2:$X$2,0),1)*IF($B84>VLOOKUP($B84,'Exp Dates'!$E$4:$K$400,MATCH("Trade Day Adj Start",'Exp Dates'!$E$2:$X$2,0),1),1,0) -> 18 | F84: 7 | G84: =VLOOKUP($B84,'Exp Dates'!$E$6:$U$400,MATCH("ExpMoYr",'Exp Dates'!$E$2:$U$2,0),1) -> Aug-2004 | H84: 0.1 | I84: =IF($I$1=0,(1/(1-91/360*VLOOKUP($B83,'T-bills'!$B$4:$C$1500,2,1)/100))^(($B84-$B83)/91)-1,0) -> 3.700737133e-05 | J84: 16.5 | K84: 19.13 | L84: 0.8625196027 | N84: 1086.2 | O84: 4.66 | P84: 0.1196302338 | Q84: =ROUND(IF(Lookup!D84>0,Lookup!D84,VLOOKUP(Master!$B84,Interpolate!$B$3:$T$2500,MATCH("M1-I",Interpolate!$B$2:$T$2,0),0)),3) -> 18.39 | R84: =ROUND(IF(Lookup!E84>0,Lookup!E84,VLOOKUP(Master!$B84,Interpolate!$B$3:$T$2500,MATCH("M2-I",Interpolate!$B$2:$T$2,0),0)),3) -> 20.59 | S84: =ROUND(IF(Lookup!F84>0,Lookup!F84,VLOOKUP(Master!$B84,Interpolate!$B$3:$T$2500,MATCH("M3-I",Interpolate!$B$2:$T$2,0),0)),3) -> 20.733 | T84: =ROUND(IF(Lookup!G84>0,Lookup!G84,VLOOKUP(Master!$B84,Interpolate!$B$3:$T$2500,MATCH("M4-I",Interpolate!$B$2:$T$2,0),0)),3) -> 20.91 | U84: =ROUND(IF(Lookup!H84>0,Lookup!H84,VLOOKUP(Master!$B84,Interpolate!$B$3:$T$2500,MATCH("M5-I",Interpolate!$B$2:$T$2,0),0)),3) -> 21.007 | V84: =ROUND(IF(Lookup!I84>0,Lookup!I84,VLOOKUP(Master!$B84,Interpolate!$B$3:$T$2500,MATCH("M6-I",Interpolate!$B$2:$T$2,0),0)),3) -> 21.08 | W84: =ROUND(IF(Lookup!J84>0,Lookup!J84,VLOOKUP(Master!$B84,Interpolate!$B$3:$T$2500,MATCH("M7-I",Interpolate!$B$2:$T$2,0),0)),3) -> 21.16 | AA84: =Lookup!S84 -> 3413 | AB84: 0.1196302338 | AC84: 0.00680952381 | AD84: 0.003919047619
B85: 2004-07-26 | C85: 83 | D85: =VLOOKUP($B85,'Exp Dates'!$E$4:$K$400,MATCH("Days1M",'Exp Dates'!$E$2:$X$2,0),1) -> 25 | E85: =VLOOKUP($B85,'Exp Dates'!$E$4:$K$400,MATCH("Trade Count",'Exp Dates'!$E$2:$X$2,0),1)-C85+D85-VLOOKUP($B85,'Exp Dates'!$E$4:$K$400,MATCH("Trade Day Adj",'Exp Dates'!$E$2:$X$2,0),1)*IF($B85>VLOOKUP($B85,'Exp Dates'!$E$4:$K$400,MATCH("Trade Day Adj Start",'Exp Dates'!$E$2:$X$2,0),1),1,0) -> 17 | F85: 8 | G85: =VLOOKUP($B85,'Exp Dates'!$E$6:$U$400,MATCH("ExpMoYr",'Exp Dates'!$E$2:$U$2,0),1) -> Aug-2004 | H85: 0.1 | I85: =IF($I$1=0,(1/(1-91/360*VLOOKUP($B84,'T-bills'!$B$4:$C$1500,2,1)/100))^(($B85-$B84)/91)-1,0) -> 0.0001110262227 | J85: 17.3 | K85: 19.27 | L85: 0.8977685522 | N85: 1084.07 | O85: 4.17 | P85: 0.1137466307 | Q85: =ROUND(IF(Lookup!D85>0,Lookup!D85,VLOOKUP(Master!$B85,Interpolate!$B$3:$T$2500,MATCH("M1-I",Interpolate!$B$2:$T$2,0),0)),3) -> 18.55 | R85: =ROUND(IF(Lookup!E85>0,Lookup!E85,VLOOKUP(Master!$B85,Interpolate!$B$3:$T$2500,MATCH("M2-I",Interpolate!$B$2:$T$2,0),0)),3) -> 20.66 | S85: =ROUND(IF(Lookup!F85>0,Lookup!F85,VLOOKUP(Master!$B85,Interpolate!$B$3:$T$2500,MATCH("M3-I",Interpolate!$B$2:$T$2,0),0)),3) -> 20.825 | T85: =ROUND(IF(Lookup!G85>0,Lookup!G85,VLOOKUP(Master!$B85,Interpolate!$B$3:$T$2500,MATCH("M4-I",Interpolate!$B$2:$T$2,0),0)),3) -> 21.03 | U85: =ROUND(IF(Lookup!H85>0,Lookup!H85,VLOOKUP(Master!$B85,Interpolate!$B$3:$T$2500,MATCH("M5-I",Interpolate!$B$2:$T$2,0),0)),3) -> 21.201 | V85: =ROUND(IF(Lookup!I85>0,Lookup!I85,VLOOKUP(Master!$B85,Interpolate!$B$3:$T$2500,MATCH("M6-I",Interpolate!$B$2:$T$2,0),0)),3) -> 21.329 | W85: =ROUND(IF(Lookup!J85>0,Lookup!J85,VLOOKUP(Master!$B85,Interpolate!$B$3:$T$2500,MATCH("M7-I",Interpolate!$B$2:$T$2,0),0)),3) -> 21.47 | AA85: =Lookup!S85 -> 3576 | AB85: 0.1137466307 | AC85: 0.007857142857 | AD85: 0.006895238095
B86: 2004-07-27 | C86: 84 | D86: =VLOOKUP($B86,'Exp Dates'!$E$4:$K$400,MATCH("Days1M",'Exp Dates'!$E$2:$X$2,0),1) -> 25 | E86: =VLOOKUP($B86,'Exp Dates'!$E$4:$K$400,MATCH("Trade Count",'Exp Dates'!$E$2:$X$2,0),1)-C86+D86-VLOOKUP($B86,'Exp Dates'!$E$4:$K$400,MATCH("Trade Day Adj",'Exp Dates'!$E$2:$X$2,0),1)*IF($B86>VLOOKUP($B86,'Exp Dates'!$E$4:$K$400,MATCH("Trade Day Adj Start",'Exp Dates'!$E$2:$X$2,0),1),1,0) -> 16 | F86: 9 | G86: =VLOOKUP($B86,'Exp Dates'!$E$6:$U$400,MATCH("ExpMoYr",'Exp Dates'!$E$2:$U$2,0),1) -> Aug-2004 | H86: 0.1 | I86: =IF($I$1=0,(1/(1-91/360*VLOOKUP($B85,'T-bills'!$B$4:$C$1500,2,1)/100))^(($B86-$B85)/91)-1,0) -> 3.965558249e-05 | J86: 16.55 | K86: 18.5 | L86: 0.8945945946 | N86: 1094.83 | O86: 4.68 | P86: 0.1325503356 | Q86: =ROUND(IF(Lookup!D86>0,Lookup!D86,VLOOKUP(Master!$B86,Interpolate!$B$3:$T$2500,MATCH("M1-I",Interpolate!$B$2:$T$2,0),0)),3) -> 17.88 | R86: =ROUND(IF(Lookup!E86>0,Lookup!E86,VLOOKUP(Master!$B86,Interpolate!$B$3:$T$2500,MATCH("M2-I",Interpolate!$B$2:$T$2,0),0)),3) -> 20.25 | S86: =ROUND(IF(Lookup!F86>0,Lookup!F86,VLOOKUP(Master!$B86,Interpolate!$B$3:$T$2500,MATCH("M3-I",Interpolate!$B$2:$T$2,0),0)),3) -> 20.483 | T86: =ROUND(IF(Lookup!G86>0,Lookup!G86,VLOOKUP(Master!$B86,Interpolate!$B$3:$T$2500,MATCH("M4-I",Interpolate!$B$2:$T$2,0),0)),3) -> 20.77 | U86: =ROUND(IF(Lookup!H86>0,Lookup!H86,VLOOKUP(Master!$B86,Interpolate!$B$3:$T$2500,MATCH("M5-I",Interpolate!$B$2:$T$2,0),0)),3) -> 20.949 | V86: =ROUND(IF(Lookup!I86>0,Lookup!I86,VLOOKUP(Master!$B86,Interpolate!$B$3:$T$2500,MATCH("M6-I",Interpolate!$B$2:$T$2,0),0)),3) -> 21.083 | W86: =ROUND(IF(Lookup!J86>0,Lookup!J86,VLOOKUP(Master!$B86,Interpolate!$B$3:$T$2500,MATCH("M7-I",Interpolate!$B$2:$T$2,0),0)),3) -> 21.23 | AA86: =Lookup!S86 -> 3756 | AB86: 0.1325503356 | AC86: 0.0110952381 | AD86: 0.00720952381
B87: 2004-07-28 | C87: 85 | D87: =VLOOKUP($B87,'Exp Dates'!$E$4:$K$400,MATCH("Days1M",'Exp Dates'!$E$2:$X$2,0),1) -> 25 | E87: =VLOOKUP($B87,'Exp Dates'!$E$4:$K$400,MATCH("Trade Count",'Exp Dates'!$E$2:$X$2,0),1)-C87+D87-VLOOKUP($B87,'Exp Dates'!$E$4:$K$400,MATCH("Trade Day Adj",'Exp Dates'!$E$2:$X$2,0),1)*IF($B87>VLOOKUP($B87,'Exp Dates'!$E$4:$K$400,MATCH("Trade Day Adj Start",'Exp Dates'!$E$2:$X$2,0),1),1,0) -> 15 | F87: 10 | G87: =VLOOKUP($B87,'Exp Dates'!$E$6:$U$400,MATCH("ExpMoYr",'Exp Dates'!$E$2:$U$2,0),1) -> Aug-2004 | H87: 0.1 | I87: =IF($I$1=0,(1/(1-91/360*VLOOKUP($B86,'T-bills'!$B$4:$C$1500,2,1)/100))^(($B87-$B86)/91)-1,0) -> 3.965558249e-05 | J87: 16.15 | K87: 18.14 | L87: 0.8902976847 | N87: 1095.42 | O87: 5.39 | P87: 0.1457142857 | Q87: =ROUND(IF(Lookup!D87>0,Lookup!D87,VLOOKUP(Master!$B87,Interpolate!$B$3:$T$2500,MATCH("M1-I",Interpolate!$B$2:$T$2,0),0)),3) -> 17.5 | R87: =ROUND(IF(Lookup!E87>0,Lookup!E87,VLOOKUP(Master!$B87,Interpolate!$B$3:$T$2500,MATCH("M2-I",Interpolate!$B$2:$T$2,0),0)),3) -> 20.05 | S87: =ROUND(IF(Lookup!F87>0,Lookup!F87,VLOOKUP(Master!$B87,Interpolate!$B$3:$T$2500,MATCH("M3-I",Interpolate!$B$2:$T$2,0),0)),3) -> 20.269 | T87: =ROUND(IF(Lookup!G87>0,Lookup!G87,VLOOKUP(Master!$B87,Interpolate!$B$3:$T$2500,MATCH("M4-I",Interpolate!$B$2:$T$2,0),0)),3) -> 20.54 | U87: =ROUND(IF(Lookup!H87>0,Lookup!H87,VLOOKUP(Master!$B87,Interpolate!$B$3:$T$2500,MATCH("M5-I",Interpolate!$B$2:$T$2,0),0)),3) -> 20.933 | V87: =ROUND(IF(Lookup!I87>0,Lookup!I87,VLOOKUP(Master!$B87,Interpolate!$B$3:$T$2500,MATCH("M6-I",Interpolate!$B$2:$T$2,0),0)),3) -> 21.223 | W87: =ROUND(IF(Lookup!J87>0,Lookup!J87,VLOOKUP(Master!$B87,Interpolate!$B$3:$T$2500,MATCH("M7-I",Interpolate!$B$2:$T$2,0),0)),3) -> 21.54 | AA87: =Lookup!S87 -> 3799 | AB87: 0.1457142857 | AC87: 0.01042857143 | AD87: 0.01566666667
B88: 2004-07-29 | C88: 86 | D88: =VLOOKUP($B88,'Exp Dates'!$E$4:$K$400,MATCH("Days1M",'Exp Dates'!$E$2:$X$2,0),1) -> 25 | E88: =VLOOKUP($B88,'Exp Dates'!$E$4:$K$400,MATCH("Trade Count",'Exp Dates'!$E$2:$X$2,0),1)-C88+D88-VLOOKUP($B88,'Exp Dates'!$E$4:$K$400,MATCH("Trade Day Adj",'Exp Dates'!$E$2:$X$2,0),1)*IF($B88>VLOOKUP($B88,'Exp Dates'!$E$4:$K$400,MATCH("Trade Day Adj Start",'Exp Dates'!$E$2:$X$2,0),1),1,0) -> 14 | F88: 11 | G88: =VLOOKUP($B88,'Exp Dates'!$E$6:$U$400,MATCH("ExpMoYr",'Exp Dates'!$E$2:$U$2,0),1) -> Aug-2004 | H88: 0.1 | I88: =IF($I$1=0,(1/(1-91/360*VLOOKUP($B87,'T-bills'!$B$4:$C$1500,2,1)/100))^(($B88-$B87)/91)-1,0) -> 3.965558249e-05 | J88: 15.68 | K88: 17.67 | L88: 0.8873797397 | N88: 1100.43 | O88: 6.02 | P88: 0.1897983393 | Q88: =ROUND(IF(Lookup!D88>0,Lookup!D88,VLOOKUP(Master!$B88,Interpolate!$B$3:$T$2500,MATCH("M1-I",Interpolate!$B$2:$T$2,0),0)),3) -> 16.86 | R88: =ROUND(IF(Lookup!E88>0,Lookup!E88,VLOOKUP(Master!$B88,Interpolate!$B$3:$T$2500,MATCH("M2-I",Interpolate!$B$2:$T$2,0),0)),3) -> 20.06 | S88: =ROUND(IF(Lookup!F88>0,Lookup!F88,VLOOKUP(Master!$B88,Interpolate!$B$3:$T$2500,MATCH("M3-I",Interpolate!$B$2:$T$2,0),0)),3) -> 20.297 | T88: =ROUND(IF(Lookup!G88>0,Lookup!G88,VLOOKUP(Master!$B88,Interpolate!$B$3:$T$2500,MATCH("M4-I",Interpolate!$B$2:$T$2,0),0)),3) -> 20.59 | U88: =ROUND(IF(Lookup!H88>0,Lookup!H88,VLOOKUP(Master!$B88,Interpolate!$B$3:$T$2500,MATCH("M5-I",Interpolate!$B$2:$T$2,0),0)),3) -> 21.027 | V88: =ROUND(IF(Lookup!I88>0,Lookup!I88,VLOOKUP(Master!$B88,Interpolate!$B$3:$T$2500,MATCH("M6-I",Interpolate!$B$2:$T$2,0),0)),3) -> 21.348 | W88: =ROUND(IF(Lookup!J88>0,Lookup!J88,VLOOKUP(Master!$B88,Interpolate!$B$3:$T$2500,MATCH("M7-I",Interpolate!$B$2:$T$2,0),0)),3) -> 21.7 | AA88: =Lookup!S88 -> 3837 | AB88: 0.1897983393 | AC88: 0.01128571429 | AD88: 0.01738571429
B89: 2004-07-30 | C89: 87 | D89: =VLOOKUP($B89,'Exp Dates'!$E$4:$K$400,MATCH("Days1M",'Exp Dates'!$E$2:$X$2,0),1) -> 25 | E89: =VLOOKUP($B89,'Exp Dates'!$E$4:$K$400,MATCH("Trade Count",'Exp Dates'!$E$2:$X$2,0),1)-C89+D89-VLOOKUP($B89,'Exp Dates'!$E$4:$K$400,MATCH("Trade Day Adj",'Exp Dates'!$E$2:$X$2,0),1)*IF($B89>VLOOKUP($B89,'Exp Dates'!$E$4:$K$400,MATCH("Trade Day Adj Start",'Exp Dates'!$E$2:$X$2,0),1),1,0) -> 13 | F89: 12 | G89: =VLOOKUP($B89,'Exp Dates'!$E$6:$U$400,MATCH("ExpMoYr",'Exp Dates'!$E$2:$U$2,0),1) -> Aug-2004 | H89: 0.1 | I89: =IF($I$1=0,(1/(1-91/360*VLOOKUP($B88,'T-bills'!$B$4:$C$1500,2,1)/100))^(($B89-$B88)/91)-1,0) -> 3.965558249e-05 | J89: 15.32 | K89: 17.46 | L89: 0.8774341352 | N89: 1101.72 | O89: 6.31 | P89: 0.2026378897 | Q89: =ROUND(IF(Lookup!D89>0,Lookup!D89,VLOOKUP(Master!$B89,Interpolate!$B$3:$T$2500,MATCH("M1-I",Interpolate!$B$2:$T$2,0),0)),3) -> 16.68 | R89: =ROUND(IF(Lookup!E89>0,Lookup!E89,VLOOKUP(Master!$B89,Interpolate!$B$3:$T$2500,MATCH("M2-I",Interpolate!$B$2:$T$2,0),0)),3) -> 20.06 | S89: =ROUND(IF(Lookup!F89>0,Lookup!F89,VLOOKUP(Master!$B89,Interpolate!$B$3:$T$2500,MATCH("M3-I",Interpolate!$B$2:$T$2,0),0)),3) -> 20.257 | T89: =ROUND(IF(Lookup!G89>0,Lookup!G89,VLOOKUP(Master!$B89,Interpolate!$B$3:$T$2500,MATCH("M4-I",Interpolate!$B$2:$T$2,0),0)),3) -> 20.5 | U89: =ROUND(IF(Lookup!H89>0,Lookup!H89,VLOOKUP(Master!$B89,Interpolate!$B$3:$T$2500,MATCH("M5-I",Interpolate!$B$2:$T$2,0),0)),3) -> 20.945 | V89: =ROUND(IF(Lookup!I89>0,Lookup!I89,VLOOKUP(Master!$B89,Interpolate!$B$3:$T$2500,MATCH("M6-I",Interpolate!$B$2:$T$2,0),0)),3) -> 21.272 | W89: =ROUND(IF(Lookup!J89>0,Lookup!J89,VLOOKUP(Master!$B89,Interpolate!$B$3:$T$2500,MATCH("M7-I",Interpolate!$B$2:$T$2,0),0)),3) -> 21.63 | AA89: =Lookup!S89 -> 3953 | AB89: 0.2026378897 | AC89: 0.009380952381 | AD89: 0.0177
B90: 2004-08-02 | C90: 88 | D90: =VLOOKUP($B90,'Exp Dates'!$E$4:$K$400,MATCH("Days1M",'Exp Dates'!$E$2:$X$2,0),1) -> 25 | E90: =VLOOKUP($B90,'Exp Dates'!$E$4:$K$400,MATCH("Trade Count",'Exp Dates'!$E$2:$X$2,0),1)-C90+D90-VLOOKUP($B90,'Exp Dates'!$E$4:$K$400,MATCH("Trade Day Adj",'Exp Dates'!$E$2:$X$2,0),1)*IF($B90>VLOOKUP($B90,'Exp Dates'!$E$4:$K$400,MATCH("Trade Day Adj Start",'Exp Dates'!$E$2:$X$2,0),1),1,0) -> 12 | F90: 13 | G90: =VLOOKUP($B90,'Exp Dates'!$E$6:$U$400,MATCH("ExpMoYr",'Exp Dates'!$E$2:$U$2,0),1) -> Aug-2004 | H90: 0.1 | I90: =IF($I$1=0,(1/(1-91/360*VLOOKUP($B89,'T-bills'!$B$4:$C$1500,2,1)/100))^(($B90-$B89)/91)-1,0) -> 0.0001189714652 | J90: 15.37 | K90: 17.32 | L90: 0.8874133949 | N90: 1106.62 | O90: 6.12 | P90: 0.2053625838 | Q90: =ROUND(IF(Lookup!D90>0,Lookup!D90,VLOOKUP(Master!$B90,Interpolate!$B$3:$T$2500,MATCH("M1-I",Interpolate!$B$2:$T$2,0),0)),3) -> 16.41 | R90: =ROUND(IF(Lookup!E90>0,Lookup!E90,VLOOKUP(Master!$B90,Interpolate!$B$3:$T$2500,MATCH("M2-I",Interpolate!$B$2:$T$2,0),0)),3) -> 19.78 | S90: =ROUND(IF(Lookup!F90>0,Lookup!F90,VLOOKUP(Master!$B90,Interpolate!$B$3:$T$2500,MATCH("M3-I",Interpolate!$B$2:$T$2,0),0)),3) -> 20.049 | T90: =ROUND(IF(Lookup!G90>0,Lookup!G90,VLOOKUP(Master!$B90,Interpolate!$B$3:$T$2500,MATCH("M4-I",Interpolate!$B$2:$T$2,0),0)),3) -> 20.38 | U90: =ROUND(IF(Lookup!H90>0,Lookup!H90,VLOOKUP(Master!$B90,Interpolate!$B$3:$T$2500,MATCH("M5-I",Interpolate!$B$2:$T$2,0),0)),3) -> 20.817 | V90: =ROUND(IF(Lookup!I90>0,Lookup!I90,VLOOKUP(Master!$B90,Interpolate!$B$3:$T$2500,MATCH("M6-I",Interpolate!$B$2:$T$2,0),0)),3) -> 21.138 | W90: =ROUND(IF(Lookup!J90>0,Lookup!J90,VLOOKUP(Master!$B90,Interpolate!$B$3:$T$2500,MATCH("M7-I",Interpolate!$B$2:$T$2,0),0)),3) -> 21.49 | AA90: =Lookup!S90 -> 4014 | AB90: 0.2053625838 | AC90: 0.01280952381 | AD90: 0.01738571429
B91: 2004-08-03 | C91: 89 | D91: =VLOOKUP($B91,'Exp Dates'!$E$4:$K$400,MATCH("Days1M",'Exp Dates'!$E$2:$X$2,0),1) -> 25 | E91: =VLOOKUP($B91,'Exp Dates'!$E$4:$K$400,MATCH("Trade Count",'Exp Dates'!$E$2:$X$2,0),1)-C91+D91-VLOOKUP($B91,'Exp Dates'!$E$4:$K$400,MATCH("Trade Day Adj",'Exp Dates'!$E$2:$X$2,0),1)*IF($B91>VLOOKUP($B91,'Exp Dates'!$E$4:$K$400,MATCH("Trade Day Adj Start",'Exp Dates'!$E$2:$X$2,0),1),1,0) -> 11 | F91: 14 | G91: =VLOOKUP($B91,'Exp Dates'!$E$6:$U$400,MATCH("ExpMoYr",'Exp Dates'!$E$2:$U$2,0),1) -> Aug-2004 | H91: 0.1 | I91: =IF($I$1=0,(1/(1-91/360*VLOOKUP($B90,'T-bills'!$B$4:$C$1500,2,1)/100))^(($B91-$B90)/91)-1,0) -> 4.077081181e-05 | J91: 16.03 | K91: 17.75 | L91: 0.9030985915 | N91: 1099.69 | O91: 5.57 | P91: 0.189384801 | Q91: =ROUND(IF(Lookup!D91>0,Lookup!D91,VLOOKUP(Master!$B91,Interpolate!$B$3:$T$2500,MATCH("M1-I",Interpolate!$B$2:$T$2,0),0)),3) -> 16.58 | R91: =ROUND(IF(Lookup!E91>0,Lookup!E91,VLOOKUP(Master!$B91,Interpolate!$B$3:$T$2500,MATCH("M2-I",Interpolate!$B$2:$T$2,0),0)),3) -> 19.72 | S91: =ROUND(IF(Lookup!F91>0,Lookup!F91,VLOOKUP(Master!$B91,Interpolate!$B$3:$T$2500,MATCH("M3-I",Interpolate!$B$2:$T$2,0),0)),3) -> 20.102 | T91: =ROUND(IF(Lookup!G91>0,Lookup!G91,VLOOKUP(Master!$B91,Interpolate!$B$3:$T$2500,MATCH("M4-I",Interpolate!$B$2:$T$2,0),0)),3) -> 20.57 | U91: =ROUND(IF(Lookup!H91>0,Lookup!H91,VLOOKUP(Master!$B91,Interpolate!$B$3:$T$2500,MATCH("M5-I",Interpolate!$B$2:$T$2,0),0)),3) -> 20.975 | V91: =ROUND(IF(Lookup!I91>0,Lookup!I91,VLOOKUP(Master!$B91,Interpolate!$B$3:$T$2500,MATCH("M6-I",Interpolate!$B$2:$T$2,0),0)),3) -> 21.273 | W91: =ROUND(IF(Lookup!J91>0,Lookup!J91,VLOOKUP(Master!$B91,Interpolate!$B$3:$T$2500,MATCH("M7-I",Interpolate!$B$2:$T$2,0),0)),3) -> 21.6 | AA91: =Lookup!S91 -> 4057 | AB91: 0.189384801 | AC91: 0.01819047619 | AD91: 0.01613333333
B92: 2004-08-04 | C92: 90 | D92: =VLOOKUP($B92,'Exp Dates'!$E$4:$K$400,MATCH("Days1M",'Exp Dates'!$E$2:$X$2,0),1) -> 25 | E92: =VLOOKUP($B92,'Exp Dates'!$E$4:$K$400,MATCH("Trade Count",'Exp Dates'!$E$2:$X$2,0),1)-C92+D92-VLOOKUP($B92,'Exp Dates'!$E$4:$K$400,MATCH("Trade Day Adj",'Exp Dates'!$E$2:$X$2,0),1)*IF($B92>VLOOKUP($B92,'Exp Dates'!$E$4:$K$400,MATCH("Trade Day Adj Start",'Exp Dates'!$E$2:$X$2,0),1),1,0) -> 10 | F92: 15 | G92: =VLOOKUP($B92,'Exp Dates'!$E$6:$U$400,MATCH("ExpMoYr",'Exp Dates'!$E$2:$U$2,0),1) -> Aug-2004 | H92: 0.1 | I92: =IF($I$1=0,(1/(1-91/360*VLOOKUP($B91,'T-bills'!$B$4:$C$1500,2,1)/100))^(($B92-$B91)/91)-1,0) -> 4.077081181e-05 | J92: 16.21 | K92: 17.92 | L92: 0.9045758929 | N92: 1098.63 | O92: 5.44 | P92: 0.1643753736 | Q92: =ROUND(IF(Lookup!D92>0,Lookup!D92,VLOOKUP(Master!$B92,Interpolate!$B$3:$T$2500,MATCH("M1-I",Interpolate!$B$2:$T$2,0),0)),3) -> 16.73 | R92: =ROUND(IF(Lookup!E92>0,Lookup!E92,VLOOKUP(Master!$B92,Interpolate!$B$3:$T$2500,MATCH("M2-I",Interpolate!$B$2:$T$2,0),0)),3) -> 19.48 | S92: =ROUND(IF(Lookup!F92>0,Lookup!F92,VLOOKUP(Master!$B92,Interpolate!$B$3:$T$2500,MATCH("M3-I",Interpolate!$B$2:$T$2,0),0)),3) -> 20.004 | T92: =ROUND(IF(Lookup!G92>0,Lookup!G92,VLOOKUP(Master!$B92,Interpolate!$B$3:$T$2500,MATCH("M4-I",Interpolate!$B$2:$T$2,0),0)),3) -> 20.64 | U92: =ROUND(IF(Lookup!H92>0,Lookup!H92,VLOOKUP(Master!$B92,Interpolate!$B$3:$T$2500,MATCH("M5-I",Interpolate!$B$2:$T$2,0),0)),3) -> 21.037 | V92: =ROUND(IF(Lookup!I92>0,Lookup!I92,VLOOKUP(Master!$B92,Interpolate!$B$3:$T$2500,MATCH("M6-I",Interpolate!$B$2:$T$2,0),0)),3) -> 21.329 | W92: =ROUND(IF(Lookup!J92>0,Lookup!J92,VLOOKUP(Master!$B92,Interpolate!$B$3:$T$2500,MATCH("M7-I",Interpolate!$B$2:$T$2,0),0)),3) -> 21.65 | AA92: =Lookup!S92 -> 4232 | AB92: 0.1643753736 | AC92: 0.02495238095 | AD92: 0.01581904762
B93: 2004-08-05 | C93: 91 | D93: =VLOOKUP($B93,'Exp Dates'!$E$4:$K$400,MATCH("Days1M",'Exp Dates'!$E$2:$X$2,0),1) -> 25 | E93: =VLOOKUP($B93,'Exp Dates'!$E$4:$K$400,MATCH("Trade Count",'Exp Dates'!$E$2:$X$2,0),1)-C93+D93-VLOOKUP($B93,'Exp Dates'!$E$4:$K$400,MATCH("Trade Day Adj",'Exp Dates'!$E$2:$X$2,0),1)*IF($B93>VLOOKUP($B93,'Exp Dates'!$E$4:$K$400,MATCH("Trade Day Adj Start",'Exp Dates'!$E$2:$X$2,0),1),1,0) -> 9 | F93: 16 | G93: =VLOOKUP($B93,'Exp Dates'!$E$6:$U$400,MATCH("ExpMoYr",'Exp Dates'!$E$2:$U$2,0),1) -> Aug-2004 | H93: 0.1 | I93: =IF($I$1=0,(1/(1-91/360*VLOOKUP($B92,'T-bills'!$B$4:$C$1500,2,1)/100))^(($B93-$B92)/91)-1,0) -> 4.077081181e-05 | J93: 18.32 | K93: 18.93 | L93: 0.9677760169 | N93: 1080.7 | O93: 3.37 | P93: 0.1306076093 | Q93: =ROUND(IF(Lookup!D93>0,Lookup!D93,VLOOKUP(Master!$B93,Interpolate!$B$3:$T$2500,MATCH("M1-I",Interpolate!$B$2:$T$2,0),0)),3) -> 17.61 | R93: =ROUND(IF(Lookup!E93>0,Lookup!E93,VLOOKUP(Master!$B93,Interpolate!$B$3:$T$2500,MATCH("M2-I",Interpolate!$B$2:$T$2,0),0)),3) -> 19.91 | S93: =ROUND(IF(Lookup!F93>0,Lookup!F93,VLOOKUP(Master!$B93,Interpolate!$B$3:$T$2500,MATCH("M3-I",Interpolate!$B$2:$T$2,0),0)),3) -> 20.498 | T93: =ROUND(IF(Lookup!G93>0,Lookup!G93,VLOOKUP(Master!$B93,Interpolate!$B$3:$T$2500,MATCH("M4-I",Interpolate!$B$2:$T$2,0),0)),3) -> 21.21 | U93: =ROUND(IF(Lookup!H93>0,Lookup!H93,VLOOKUP(Master!$B93,Interpolate!$B$3:$T$2500,MATCH("M5-I",Interpolate!$B$2:$T$2,0),0)),3) -> 21.397 | V93: =ROUND(IF(Lookup!I93>0,Lookup!I93,VLOOKUP(Master!$B93,Interpolate!$B$3:$T$2500,MATCH("M6-I",Interpolate!$B$2:$T$2,0),0)),3) -> 21.536 | W93: =ROUND(IF(Lookup!J93>0,Lookup!J93,VLOOKUP(Master!$B93,Interpolate!$B$3:$T$2500,MATCH("M7-I",Interpolate!$B$2:$T$2,0),0)),3) -> 21.69 | AA93: =Lookup!S93 -> 4341 | AB93: 0.1306076093 | AC93: 0.028 | AD93: 0.007519047619
B94: 2004-08-06 | C94: 92 | D94: =VLOOKUP($B94,'Exp Dates'!$E$4:$K$400,MATCH("Days1M",'Exp Dates'!$E$2:$X$2,0),1) -> 25 | E94: =VLOOKUP($B94,'Exp Dates'!$E$4:$K$400,MATCH("Trade Count",'Exp Dates'!$E$2:$X$2,0),1)-C94+D94-VLOOKUP($B94,'Exp Dates'!$E$4:$K$400,MATCH("Trade Day Adj",'Exp Dates'!$E$2:$X$2,0),1)*IF($B94>VLOOKUP($B94,'Exp Dates'!$E$4:$K$400,MATCH("Trade Day Adj Start",'Exp Dates'!$E$2:$X$2,0),1),1,0) -> 8 | F94: -8 | G94: =VLOOKUP($B94,'Exp Dates'!$E$6:$U$400,MATCH("ExpMoYr",'Exp Dates'!$E$2:$U$2,0),1) -> Aug-2004 | H94: 0.1 | I94: =IF($I$1=0,(1/(1-91/360*VLOOKUP($B93,'T-bills'!$B$4:$C$1500,2,1)/100))^(($B94-$B93)/91)-1,0) -> 4.077081181e-05 | J94: 19.34 | K94: 19.47 | L94: 0.9933230611 | N94: 1063.97 | O94: 2.61 | P94: 0.1072400653 | Q94: =ROUND(IF(Lookup!D94>0,Lookup!D94,VLOOKUP(Master!$B94,Interpolate!$B$3:$T$2500,MATCH("M1-I",Interpolate!$B$2:$T$2,0),0)),3) -> 18.37 | R94: =ROUND(IF(Lookup!E94>0,Lookup!E94,VLOOKUP(Master!$B94,Interpolate!$B$3:$T$2500,MATCH("M2-I",Interpolate!$B$2:$T$2,0),0)),3) -> 20.34 | S94: =ROUND(IF(Lookup!F94>0,Lookup!F94,VLOOKUP(Master!$B94,Interpolate!$B$3:$T$2500,MATCH("M3-I",Interpolate!$B$2:$T$2,0),0)),3) -> 20.859 | T94: =ROUND(IF(Lookup!G94>0,Lookup!G94,VLOOKUP(Master!$B94,Interpolate!$B$3:$T$2500,MATCH("M4-I",Interpolate!$B$2:$T$2,0),0)),3) -> 21.49 | U94: =ROUND(IF(Lookup!H94>0,Lookup!H94,VLOOKUP(Master!$B94,Interpolate!$B$3:$T$2500,MATCH("M5-I",Interpolate!$B$2:$T$2,0),0)),3) -> 21.669 | V94: =ROUND(IF(Lookup!I94>0,Lookup!I94,VLOOKUP(Master!$B94,Interpolate!$B$3:$T$2500,MATCH("M6-I",Interpolate!$B$2:$T$2,0),0)),3) -> 21.803 | W94: =ROUND(IF(Lookup!J94>0,Lookup!J94,VLOOKUP(Master!$B94,Interpolate!$B$3:$T$2500,MATCH("M7-I",Interpolate!$B$2:$T$2,0),0)),3) -> 21.95 | AA94: =Lookup!S94 -> 4862 | AB94: 0.1072400653 | AC94: 0.02471428571 | AD94: 0.00720952381
B95: 2004-08-09 | C95: 93 | D95: =VLOOKUP($B95,'Exp Dates'!$E$4:$K$400,MATCH("Days1M",'Exp Dates'!$E$2:$X$2,0),1) -> 25 | E95: =VLOOKUP($B95,'Exp Dates'!$E$4:$K$400,MATCH("Trade Count",'Exp Dates'!$E$2:$X$2,0),1)-C95+D95-VLOOKUP($B95,'Exp Dates'!$E$4:$K$400,MATCH("Trade Day Adj",'Exp Dates'!$E$2:$X$2,0),1)*IF($B95>VLOOKUP($B95,'Exp Dates'!$E$4:$K$400,MATCH("Trade Day Adj Start",'Exp Dates'!$E$2:$X$2,0),1),1,0) -> 7 | F95: -7 | G95: =VLOOKUP($B95,'Exp Dates'!$E$6:$U$400,MATCH("ExpMoYr",'Exp Dates'!$E$2:$U$2,0),1) -> Aug-2004 | H95: 0.1 | I95: =IF($I$1=0,(1/(1-91/360*VLOOKUP($B94,'T-bills'!$B$4:$C$1500,2,1)/100))^(($B95-$B94)/91)-1,0) -> 0.0001223174223 | J95: 18.89 | K95: 19.09 | L95: 0.9895233106 | N95: 1065.22 | O95: 2.95 | P95: 0.1061111111 | Q95: =ROUND(IF(Lookup!D95>0,Lookup!D95,VLOOKUP(Master!$B95,Interpolate!$B$3:$T$2500,MATCH("M1-I",Interpolate!$B$2:$T$2,0),0)),3) -> 18 | R95: =ROUND(IF(Lookup!E95>0,Lookup!E95,VLOOKUP(Master!$B95,Interpolate!$B$3:$T$2500,MATCH("M2-I",Interpolate!$B$2:$T$2,0),0)),3) -> 19.91 | S95: =ROUND(IF(Lookup!F95>0,Lookup!F95,VLOOKUP(Master!$B95,Interpolate!$B$3:$T$2500,MATCH("M3-I",Interpolate!$B$2:$T$2,0),0)),3) -> 20.47 | T95: =ROUND(IF(Lookup!G95>0,Lookup!G95,VLOOKUP(Master!$B95,Interpolate!$B$3:$T$2500,MATCH("M4-I",Interpolate!$B$2:$T$2,0),0)),3) -> 21.15 | U95: =ROUND(IF(Lookup!H95>0,Lookup!H95,VLOOKUP(Master!$B95,Interpolate!$B$3:$T$2500,MATCH("M5-I",Interpolate!$B$2:$T$2,0),0)),3) -> 21.42 | V95: =ROUND(IF(Lookup!I95>0,Lookup!I95,VLOOKUP(Master!$B95,Interpolate!$B$3:$T$2500,MATCH("M6-I",Interpolate!$B$2:$T$2,0),0)),3) -> 21.62 | W95: =ROUND(IF(Lookup!J95>0,Lookup!J95,VLOOKUP(Master!$B95,Interpolate!$B$3:$T$2500,MATCH("M7-I",Interpolate!$B$2:$T$2,0),0)),3) -> 21.84 | AA95: =Lookup!S95 -> 4577 | AB95: 0.1061111111 | AC95: 0.02666666667 | AD95: 0.01080952381
B96: 2004-08-10 | C96: 94 | D96: =VLOOKUP($B96,'Exp Dates'!$E$4:$K$400,MATCH("Days1M",'Exp Dates'!$E$2:$X$2,0),1) -> 25 | E96: =VLOOKUP($B96,'Exp Dates'!$E$4:$K$400,MATCH("Trade Count",'Exp Dates'!$E$2:$X$2,0),1)-C96+D96-VLOOKUP($B96,'Exp Dates'!$E$4:$K$400,MATCH("Trade Day Adj",'Exp Dates'!$E$2:$X$2,0),1)*IF($B96>VLOOKUP($B96,'Exp Dates'!$E$4:$K$400,MATCH("Trade Day Adj Start",'Exp Dates'!$E$2:$X$2,0),1),1,0) -> 6 | F96: -6 | G96: =VLOOKUP($B96,'Exp Dates'!$E$6:$U$400,MATCH("ExpMoYr",'Exp Dates'!$E$2:$U$2,0),1) -> Aug-2004 | H96: 0.1 | I96: =IF($I$1=0,(1/(1-91/360*VLOOKUP($B95,'T-bills'!$B$4:$C$1500,2,1)/100))^(($B96-$B95)/91)-1,0) -> 4.091022352e-05 | J96: 17.47 | K96: 18.28 | L96: 0.9556892779 | N96: 1079.04 | O96: 4.13 | P96: 0.09982788296 | Q96: =ROUND(IF(Lookup!D96>0,Lookup!D96,VLOOKUP(Master!$B96,Interpolate!$B$3:$T$2500,MATCH("M1-I",Interpolate!$B$2:$T$2,0),0)),3) -> 17.43 | R96: =ROUND(IF(Lookup!E96>0,Lookup!E96,VLOOKUP(Master!$B96,Interpolate!$B$3:$T$2500,MATCH("M2-I",Interpolate!$B$2:$T$2,0),0)),3) -> 19.17 | S96: =ROUND(IF(Lookup!F96>0,Lookup!F96,VLOOKUP(Master!$B96,Interpolate!$B$3:$T$2500,MATCH("M3-I",Interpolate!$B$2:$T$2,0),0)),3) -> 19.846 | T96: =ROUND(IF(Lookup!G96>0,Lookup!G96,VLOOKUP(Master!$B96,Interpolate!$B$3:$T$2500,MATCH("M4-I",Interpolate!$B$2:$T$2,0),0)),3) -> 20.66 | U96: =ROUND(IF(Lookup!H96>0,Lookup!H96,VLOOKUP(Master!$B96,Interpolate!$B$3:$T$2500,MATCH("M5-I",Interpolate!$B$2:$T$2,0),0)),3) -> 21.029 | V96: =ROUND(IF(Lookup!I96>0,Lookup!I96,VLOOKUP(Master!$B96,Interpolate!$B$3:$T$2500,MATCH("M6-I",Interpolate!$B$2:$T$2,0),0)),3) -> 21.301 | W96: =ROUND(IF(Lookup!J96>0,Lookup!J96,VLOOKUP(Master!$B96,Interpolate!$B$3:$T$2500,MATCH("M7-I",Interpolate!$B$2:$T$2,0),0)),3) -> 21.6 | AA96: =Lookup!S96 -> 4363 | AB96: 0.09982788296 | AC96: 0.03219047619 | AD96: 0.01472380952
B97: 2004-08-11 | C97: 95 | D97: =VLOOKUP($B97,'Exp Dates'!$E$4:$K$400,MATCH("Days1M",'Exp Dates'!$E$2:$X$2,0),1) -> 25 | E97: =VLOOKUP($B97,'Exp Dates'!$E$4:$K$400,MATCH("Trade Count",'Exp Dates'!$E$2:$X$2,0),1)-C97+D97-VLOOKUP($B97,'Exp Dates'!$E$4:$K$400,MATCH("Trade Day Adj",'Exp Dates'!$E$2:$X$2,0),1)*IF($B97>VLOOKUP($B97,'Exp Dates'!$E$4:$K$400,MATCH("Trade Day Adj Start",'Exp Dates'!$E$2:$X$2,0),1),1,0) -> 5 | F97: -5 | G97: =VLOOKUP($B97,'Exp Dates'!$E$6:$U$400,MATCH("ExpMoYr",'Exp Dates'!$E$2:$U$2,0),1) -> Aug-2004 | H97: 0.1 | I97: =IF($I$1=0,(1/(1-91/360*VLOOKUP($B96,'T-bills'!$B$4:$C$1500,2,1)/100))^(($B97-$B96)/91)-1,0) -> 4.091022352e-05 | J97: 18.04 | K97: 18.58 | L97: 0.9709364909 | N97: 1075.79 | O97: 3.54 | P97: 0.1063464837 | Q97: =ROUND(IF(Lookup!D97>0,Lookup!D97,VLOOKUP(Master!$B97,Interpolate!$B$3:$T$2500,MATCH("M1-I",Interpolate!$B$2:$T$2,0),0)),3) -> 17.49 | R97: =ROUND(IF(Lookup!E97>0,Lookup!E97,VLOOKUP(Master!$B97,Interpolate!$B$3:$T$2500,MATCH("M2-I",Interpolate!$B$2:$T$2,0),0)),3) -> 19.35 | S97: =ROUND(IF(Lookup!F97>0,Lookup!F97,VLOOKUP(Master!$B97,Interpolate!$B$3:$T$2500,MATCH("M3-I",Interpolate!$B$2:$T$2,0),0)),3) -> 19.961 | T97: =ROUND(IF(Lookup!G97>0,Lookup!G97,VLOOKUP(Master!$B97,Interpolate!$B$3:$T$2500,MATCH("M4-I",Interpolate!$B$2:$T$2,0),0)),3) -> 20.7 | U97: =ROUND(IF(Lookup!H97>0,Lookup!H97,VLOOKUP(Master!$B97,Interpolate!$B$3:$T$2500,MATCH("M5-I",Interpolate!$B$2:$T$2,0),0)),3) -> 21.045 | V97: =ROUND(IF(Lookup!I97>0,Lookup!I97,VLOOKUP(Master!$B97,Interpolate!$B$3:$T$2500,MATCH("M6-I",Interpolate!$B$2:$T$2,0),0)),3) -> 21.3 | W97: =ROUND(IF(Lookup!J97>0,Lookup!J97,VLOOKUP(Master!$B97,Interpolate!$B$3:$T$2500,MATCH("M7-I",Interpolate!$B$2:$T$2,0),0)),3) -> 21.58 | AA97: =Lookup!S97 -> 4537 | AB97: 0.1063464837 | AC97: 0.0290952381 | AD97: 0.01378571429
B98: 2004-08-12 | C98: 96 | D98: =VLOOKUP($B98,'Exp Dates'!$E$4:$K$400,MATCH("Days1M",'Exp Dates'!$E$2:$X$2,0),1) -> 25 | E98: =VLOOKUP($B98,'Exp Dates'!$E$4:$K$400,MATCH("Trade Count",'Exp Dates'!$E$2:$X$2,0),1)-C98+D98-VLOOKUP($B98,'Exp Dates'!$E$4:$K$400,MATCH("Trade Day Adj",'Exp Dates'!$E$2:$X$2,0),1)*IF($B98>VLOOKUP($B98,'Exp Dates'!$E$4:$K$400,MATCH("Trade Day Adj Start",'Exp Dates'!$E$2:$X$2,0),1),1,0) -> 4 | F98: -4 | G98: =VLOOKUP($B98,'Exp Dates'!$E$6:$U$400,MATCH("ExpMoYr",'Exp Dates'!$E$2:$U$2,0),1) -> Aug-2004 | H98: 0.1 | I98: =IF($I$1=0,(1/(1-91/360*VLOOKUP($B97,'T-bills'!$B$4:$C$1500,2,1)/100))^(($B98-$B97)/91)-1,0) -> 4.091022352e-05 | J98: 19.08 | K98: 18.81 | L98: 1.014354067 | N98: 1063.23 | O98: 2.65 | P98: 0.06622516556 | Q98: =ROUND(IF(Lookup!D98>0,Lookup!D98,VLOOKUP(Master!$B98,Interpolate!$B$3:$T$2500,MATCH("M1-I",Interpolate!$B$2:$T$2,0),0)),3) -> 18.12 | R98: =ROUND(IF(Lookup!E98>0,Lookup!E98,VLOOKUP(Master!$B98,Interpolate!$B$3:$T$2500,MATCH("M2-I",Interpolate!$B$2:$T$2,0),0)),3) -> 19.32 | S98: =ROUND(IF(Lookup!F98>0,Lookup!F98,VLOOKUP(Master!$B98,Interpolate!$B$3:$T$2500,MATCH("M3-I",Interpolate!$B$2:$T$2,0),0)),3) -> 19.987 | T98: =ROUND(IF(Lookup!G98>0,Lookup!G98,VLOOKUP(Master!$B98,Interpolate!$B$3:$T$2500,MATCH("M4-I",Interpolate!$B$2:$T$2,0),0)),3) -> 20.79 | U98: =ROUND(IF(Lookup!H98>0,Lookup!H98,VLOOKUP(Master!$B98,Interpolate!$B$3:$T$2500,MATCH("M5-I",Interpolate!$B$2:$T$2,0),0)),3) -> 21.159 | V98: =ROUND(IF(Lookup!I98>0,Lookup!I98,VLOOKUP(Master!$B98,Interpolate!$B$3:$T$2500,MATCH("M6-I",Interpolate!$B$2:$T$2,0),0)),3) -> 21.431 | W98: =ROUND(IF(Lookup!J98>0,Lookup!J98,VLOOKUP(Master!$B98,Interpolate!$B$3:$T$2500,MATCH("M7-I",Interpolate!$B$2:$T$2,0),0)),3) -> 21.73 | AA98: =Lookup!S98 -> 4863 | AB98: 0.06622516556 | AC98: 0.03176190476 | AD98: 0.01472380952
B99: 2004-08-13 | C99: 97 | D99: =VLOOKUP($B99,'Exp Dates'!$E$4:$K$400,MATCH("Days1M",'Exp Dates'!$E$2:$X$2,0),1) -> 25 | E99: =VLOOKUP($B99,'Exp Dates'!$E$4:$K$400,MATCH("Trade Count",'Exp Dates'!$E$2:$X$2,0),1)-C99+D99-VLOOKUP($B99,'Exp Dates'!$E$4:$K$400,MATCH("Trade Day Adj",'Exp Dates'!$E$2:$X$2,0),1)*IF($B99>VLOOKUP($B99,'Exp Dates'!$E$4:$K$400,MATCH("Trade Day Adj Start",'Exp Dates'!$E$2:$X$2,0),1),1,0) -> 3 | F99: -3 | G99: =VLOOKUP($B99,'Exp Dates'!$E$6:$U$400,MATCH("ExpMoYr",'Exp Dates'!$E$2:$U$2,0),1) -> Aug-2004 | H99: 0.1 | I99: =IF($I$1=0,(1/(1-91/360*VLOOKUP($B98,'T-bills'!$B$4:$C$1500,2,1)/100))^(($B99-$B98)/91)-1,0) -> 4.091022352e-05 | J99: 17.98 | K99: 18.5 | L99: 0.9718918919 | N99: 1064.8 | O99: 3.71 | P99: 0.06435366536 | Q99: =ROUND(IF(Lookup!D99>0,Lookup!D99,VLOOKUP(Master!$B99,Interpolate!$B$3:$T$2500,MATCH("M1-I",Interpolate!$B$2:$T$2,0),0)),3) -> 17.87 | R99: =ROUND(IF(Lookup!E99>0,Lookup!E99,VLOOKUP(Master!$B99,Interpolate!$B$3:$T$2500,MATCH("M2-I",Interpolate!$B$2:$T$2,0),0)),3) -> 19.02 | S99: =ROUND(IF(Lookup!F99>0,Lookup!F99,VLOOKUP(Master!$B99,Interpolate!$B$3:$T$2500,MATCH("M3-I",Interpolate!$B$2:$T$2,0),0)),3) -> 19.868 | T99: =ROUND(IF(Lookup!G99>0,Lookup!G99,VLOOKUP(Master!$B99,Interpolate!$B$3:$T$2500,MATCH("M4-I",Interpolate!$B$2:$T$2,0),0)),3) -> 20.88 | U99: =ROUND(IF(Lookup!H99>0,Lookup!H99,VLOOKUP(Master!$B99,Interpolate!$B$3:$T$2500,MATCH("M5-I",Interpolate!$B$2:$T$2,0),0)),3) -> 21.197 | V99: =ROUND(IF(Lookup!I99>0,Lookup!I99,VLOOKUP(Master!$B99,Interpolate!$B$3:$T$2500,MATCH("M6-I",Interpolate!$B$2:$T$2,0),0)),3) -> 21.432 | W99: =ROUND(IF(Lookup!J99>0,Lookup!J99,VLOOKUP(Master!$B99,Interpolate!$B$3:$T$2500,MATCH("M7-I",Interpolate!$B$2:$T$2,0),0)),3) -> 21.69 | AA99: =Lookup!S99 -> 5025 | AB99: 0.06435366536 | AC99: 0.04038095238 | AD99: 0.01269047619
B100: 2004-08-16 | C100: 98 | D100: =VLOOKUP($B100,'Exp Dates'!$E$4:$K$400,MATCH("Days1M",'Exp Dates'!$E$2:$X$2,0),1) -> 25 | E100: =VLOOKUP($B100,'Exp Dates'!$E$4:$K$400,MATCH("Trade Count",'Exp Dates'!$E$2:$X$2,0),1)-C100+D100-VLOOKUP($B100,'Exp Dates'!$E$4:$K$400,MATCH("Trade Day Adj",'Exp Dates'!$E$2:$X$2,0),1)*IF($B100>VLOOKUP($B100,'Exp Dates'!$E$4:$K$400,MATCH("Trade Day Adj Start",'Exp Dates'!$E$2:$X$2,0),1),1,0) -> 2 | F100: -2 | G100: =VLOOKUP($B100,'Exp Dates'!$E$6:$U$400,MATCH("ExpMoYr",'Exp Dates'!$E$2:$U$2,0),1) -> Aug-2004 | H100: 0.1 | I100: =IF($I$1=0,(1/(1-91/360*VLOOKUP($B99,'T-bills'!$B$4:$C$1500,2,1)/100))^(($B100-$B99)/91)-1,0) -> 0.0001227356916 | J100: 17.57 | K100: 18.17 | L100: 0.966978536 | N100: 1079.34 | O100: 3.99 | P100: 0.07558139535 | Q100: =ROUND(IF(Lookup!D100>0,Lookup!D100,VLOOKUP(Master!$B100,Interpolate!$B$3:$T$2500,MATCH("M1-I",Interpolate!$B$2:$T$2,0),0)),3) -> 17.2 | R100: =ROUND(IF(Lookup!E100>0,Lookup!E100,VLOOKUP(Master!$B100,Interpolate!$B$3:$T$2500,MATCH("M2-I",Interpolate!$B$2:$T$2,0),0)),3) -> 18.5 | S100: =ROUND(IF(Lookup!F100>0,Lookup!F100,VLOOKUP(Master!$B100,Interpolate!$B$3:$T$2500,MATCH("M3-I",Interpolate!$B$2:$T$2,0),0)),3) -> 19.494 | T100: =ROUND(IF(Lookup!G100>0,Lookup!G100,VLOOKUP(Master!$B100,Interpolate!$B$3:$T$2500,MATCH("M4-I",Interpolate!$B$2:$T$2,0),0)),3) -> 20.67 | U100: =ROUND(IF(Lookup!H100>0,Lookup!H100,VLOOKUP(Master!$B100,Interpolate!$B$3:$T$2500,MATCH("M5-I",Interpolate!$B$2:$T$2,0),0)),3) -> 21.019 | V100: =ROUND(IF(Lookup!I100>0,Lookup!I100,VLOOKUP(Master!$B100,Interpolate!$B$3:$T$2500,MATCH("M6-I",Interpolate!$B$2:$T$2,0),0)),3) -> 21.277 | W100: =ROUND(IF(Lookup!J100>0,Lookup!J100,VLOOKUP(Master!$B100,Interpolate!$B$3:$T$2500,MATCH("M7-I",Interpolate!$B$2:$T$2,0),0)),3) -> 21.56 | AA100: =Lookup!S100 -> 5091 | AB100: 0.07558139535 | AC100: 0.04733333333 | AD100: 0.01394285714
B101: 2004-08-17 | C101: 99 | D101: =VLOOKUP($B101,'Exp Dates'!$E$4:$K$400,MATCH("Days1M",'Exp Dates'!$E$2:$X$2,0),1) -> 25 | E101: =VLOOKUP($B101,'Exp Dates'!$E$4:$K$400,MATCH("Trade Count",'Exp Dates'!$E$2:$X$2,0),1)-C101+D101-VLOOKUP($B101,'Exp Dates'!$E$4:$K$400,MATCH("Trade Day Adj",'Exp Dates'!$E$2:$X$2,0),1)*IF($B101>VLOOKUP($B101,'Exp Dates'!$E$4:$K$400,MATCH("Trade Day Adj Start",'Exp Dates'!$E$2:$X$2,0),1),1,0) -> 1 | F101: -1 | G101: =VLOOKUP($B101,'Exp Dates'!$E$6:$U$400,MATCH("ExpMoYr",'Exp Dates'!$E$2:$U$2,0),1) -> Aug-2004 | H101: 0.1 | I101: =IF($I$1=0,(1/(1-91/360*VLOOKUP($B100,'T-bills'!$B$4:$C$1500,2,1)/100))^(($B101-$B100)/91)-1,0) -> 4.091022352e-05 | J101: 17.02 | K101: 17.93 | L101: 0.9492470719 | N101: 1081.71 | O101: 4.59 | P101: 0.09578313253 | Q101: =ROUND(IF(Lookup!D101>0,Lookup!D101,VLOOKUP(Master!$B101,Interpolate!$B$3:$T$2500,MATCH("M1-I",Interpolate!$B$2:$T$2,0),0)),3) -> 16.6 | R101: =ROUND(IF(Lookup!E101>0,Lookup!E101,VLOOKUP(Master!$B101,Interpolate!$B$3:$T$2500,MATCH("M2-I",Interpolate!$B$2:$T$2,0),0)),3) -> 18.19 | S101: =ROUND(IF(Lookup!F101>0,Lookup!F101,VLOOKUP(Master!$B101,Interpolate!$B$3:$T$2500,MATCH("M3-I",Interpolate!$B$2:$T$2,0),0)),3) -> 19.194 | T101: =ROUND(IF(Lookup!G101>0,Lookup!G101,VLOOKUP(Master!$B101,Interpolate!$B$3:$T$2500,MATCH("M4-I",Interpolate!$B$2:$T$2,0),0)),3) -> 20.38 | U101: =ROUND(IF(Lookup!H101>0,Lookup!H101,VLOOKUP(Master!$B101,Interpolate!$B$3:$T$2500,MATCH("M5-I",Interpolate!$B$2:$T$2,0),0)),3) -> 20.865 | V101: =ROUND(IF(Lookup!I101>0,Lookup!I101,VLOOKUP(Master!$B101,Interpolate!$B$3:$T$2500,MATCH("M6-I",Interpolate!$B$2:$T$2,0),0)),3) -> 21.221 | W101: =ROUND(IF(Lookup!J101>0,Lookup!J101,VLOOKUP(Master!$B101,Interpolate!$B$3:$T$2500,MATCH("M7-I",Interpolate!$B$2:$T$2,0),0)),3) -> 21.61 | AA101: =Lookup!S101 -> 5188 | AB101: 0.09578313253 | AC101: 0.04780952381 | AD101: 0.01926666667
B102: 2004-08-18 | C102: 100 | D102: =VLOOKUP($B102,'Exp Dates'!$E$4:$K$400,MATCH("Days1M",'Exp Dates'!$E$2:$X$2,0),1) -> 19 | E102: =VLOOKUP($B102,'Exp Dates'!$E$4:$K$400,MATCH("Trade Count",'Exp Dates'!$E$2:$X$2,0),1)-C102+D102-VLOOKUP($B102,'Exp Dates'!$E$4:$K$400,MATCH("Trade Day Adj",'Exp Dates'!$E$2:$X$2,0),1)*IF($B102>VLOOKUP($B102,'Exp Dates'!$E$4:$K$400,MATCH("Trade Day Adj Start",'Exp Dates'!$E$2:$X$2,0),1),1,0) -> 19 | F102: 0 | G102: =VLOOKUP($B102,'Exp Dates'!$E$6:$U$400,MATCH("ExpMoYr",'Exp Dates'!$E$2:$U$2,0),1) -> Sep-2004 | H102: 0.1 | I102: =IF($I$1=0,(1/(1-91/360*VLOOKUP($B101,'T-bills'!$B$4:$C$1500,2,1)/100))^(($B102-$B101)/91)-1,0) -> 4.091022352e-05 | J102: 16.23 | K102: 17.51 | L102: 0.9268989149 | N102: 1095.17 | O102: 5.476 | P102: 0.06148231331 | Q102: =ROUND(IF(Lookup!D102>0,Lookup!D102,VLOOKUP(Master!$B102,Interpolate!$B$3:$T$2500,MATCH("M1-I",Interpolate!$B$2:$T$2,0),0)),3) -> 17.81 | R102: =ROUND(IF(Lookup!E102>0,Lookup!E102,VLOOKUP(Master!$B102,Interpolate!$B$3:$T$2500,MATCH("M2-I",Interpolate!$B$2:$T$2,0),0)),3) -> 18.905 | S102: =ROUND(IF(Lookup!F102>0,Lookup!F102,VLOOKUP(Master!$B102,Interpolate!$B$3:$T$2500,MATCH("M3-I",Interpolate!$B$2:$T$2,0),0)),3) -> 20.19 | T102: =ROUND(IF(Lookup!G102>0,Lookup!G102,VLOOKUP(Master!$B102,Interpolate!$B$3:$T$2500,MATCH("M4-I",Interpolate!$B$2:$T$2,0),0)),3) -> 20.651 | U102: =ROUND(IF(Lookup!H102>0,Lookup!H102,VLOOKUP(Master!$B102,Interpolate!$B$3:$T$2500,MATCH("M5-I",Interpolate!$B$2:$T$2,0),0)),3) -> 20.99 | V102: =ROUND(IF(Lookup!I102>0,Lookup!I102,VLOOKUP(Master!$B102,Interpolate!$B$3:$T$2500,MATCH("M6-I",Interpolate!$B$2:$T$2,0),0)),3) -> 21.36 | W102: =ROUND(IF(Lookup!J102>0,Lookup!J102,VLOOKUP(Master!$B102,Interpolate!$B$3:$T$2500,MATCH("M7-I",Interpolate!$B$2:$T$2,0),0)),3) -> 21.706 | AA102: =Lookup!S102 -> 2003 | AB102: 0.06148231331 | AC102: 0.06119047619 | AD102: 0.01683333333
B103: 2004-08-19 | C103: 101 | D103: =VLOOKUP($B103,'Exp Dates'!$E$4:$K$400,MATCH("Days1M",'Exp Dates'!$E$2:$X$2,0),1) -> 19 | E103: =VLOOKUP($B103,'Exp Dates'!$E$4:$K$400,MATCH("Trade Count",'Exp Dates'!$E$2:$X$2,0),1)-C103+D103-VLOOKUP($B103,'Exp Dates'!$E$4:$K$400,MATCH("Trade Day Adj",'Exp Dates'!$E$2:$X$2,0),1)*IF($B103>VLOOKUP($B103,'Exp Dates'!$E$4:$K$400,MATCH("Trade Day Adj Start",'Exp Dates'!$E$2:$X$2,0),1),1,0) -> 18 | F103: 1 | G103: =VLOOKUP($B103,'Exp Dates'!$E$6:$U$400,MATCH("ExpMoYr",'Exp Dates'!$E$2:$U$2,0),1) -> Sep-2004 | H103: 0.1 | I103: =IF($I$1=0,(1/(1-91/360*VLOOKUP($B102,'T-bills'!$B$4:$C$1500,2,1)/100))^(($B103-$B102)/91)-1,0) -> 4.091022352e-05 | J103: 16.96 | K103: 17.85 | L103: 0.950140056 | N103: 1091.23 | O103: 4.769 | P103: 0.06171045277 | Q103: =ROUND(IF(Lookup!D103>0,Lookup!D103,VLOOKUP(Master!$B103,Interpolate!$B$3:$T$2500,MATCH("M1-I",Interpolate!$B$2:$T$2,0),0)),3) -> 17.89 | R103: =ROUND(IF(Lookup!E103>0,Lookup!E103,VLOOKUP(Master!$B103,Interpolate!$B$3:$T$2500,MATCH("M2-I",Interpolate!$B$2:$T$2,0),0)),3) -> 18.994 | S103: =ROUND(IF(Lookup!F103>0,Lookup!F103,VLOOKUP(Master!$B103,Interpolate!$B$3:$T$2500,MATCH("M3-I",Interpolate!$B$2:$T$2,0),0)),3) -> 20.29 | T103: =ROUND(IF(Lookup!G103>0,Lookup!G103,VLOOKUP(Master!$B103,Interpolate!$B$3:$T$2500,MATCH("M4-I",Interpolate!$B$2:$T$2,0),0)),3) -> 20.727 | U103: =ROUND(IF(Lookup!H103>0,Lookup!H103,VLOOKUP(Master!$B103,Interpolate!$B$3:$T$2500,MATCH("M5-I",Interpolate!$B$2:$T$2,0),0)),3) -> 21.048 | V103: =ROUND(IF(Lookup!I103>0,Lookup!I103,VLOOKUP(Master!$B103,Interpolate!$B$3:$T$2500,MATCH("M6-I",Interpolate!$B$2:$T$2,0),0)),3) -> 21.4 | W103: =ROUND(IF(Lookup!J103>0,Lookup!J103,VLOOKUP(Master!$B103,Interpolate!$B$3:$T$2500,MATCH("M7-I",Interpolate!$B$2:$T$2,0),0)),3) -> 21.729 | AA103: =Lookup!S103 -> 2174 | AB103: 0.06171045277 | AC103: 0.06171428571 | AD103: 0.01599047619
B104: 2004-08-20 | C104: 102 | D104: =VLOOKUP($B104,'Exp Dates'!$E$4:$K$400,MATCH("Days1M",'Exp Dates'!$E$2:$X$2,0),1) -> 19 | E104: =VLOOKUP($B104,'Exp Dates'!$E$4:$K$400,MATCH("Trade Count",'Exp Dates'!$E$2:$X$2,0),1)-C104+D104-VLOOKUP($B104,'Exp Dates'!$E$4:$K$400,MATCH("Trade Day Adj",'Exp Dates'!$E$2:$X$2,0),1)*IF($B104>VLOOKUP($B104,'Exp Dates'!$E$4:$K$400,MATCH("Trade Day Adj Start",'Exp Dates'!$E$2:$X$2,0),1),1,0) -> 17 | F104: 2 | G104: =VLOOKUP($B104,'Exp Dates'!$E$6:$U$400,MATCH("ExpMoYr",'Exp Dates'!$E$2:$U$2,0),1) -> Sep-2004 | H104: 0.1 | I104: =IF($I$1=0,(1/(1-91/360*VLOOKUP($B103,'T-bills'!$B$4:$C$1500,2,1)/100))^(($B104-$B103)/91)-1,0) -> 4.091022352e-05 | J104: 16 | K104: 17.5 | L104: 0.9142857143 | N104: 1098.35 | O104: 5.722 | P104: 0.06368271955 | Q104: =ROUND(IF(Lookup!D104>0,Lookup!D104,VLOOKUP(Master!$B104,Interpolate!$B$3:$T$2500,MATCH("M1-I",Interpolate!$B$2:$T$2,0),0)),3) -> 17.65 | R104: =ROUND(IF(Lookup!E104>0,Lookup!E104,VLOOKUP(Master!$B104,Interpolate!$B$3:$T$2500,MATCH("M2-I",Interpolate!$B$2:$T$2,0),0)),3) -> 18.774 | S104: =ROUND(IF(Lookup!F104>0,Lookup!F104,VLOOKUP(Master!$B104,Interpolate!$B$3:$T$2500,MATCH("M3-I",Interpolate!$B$2:$T$2,0),0)),3) -> 20.09 | T104: =ROUND(IF(Lookup!G104>0,Lookup!G104,VLOOKUP(Master!$B104,Interpolate!$B$3:$T$2500,MATCH("M4-I",Interpolate!$B$2:$T$2,0),0)),3) -> 20.587 | U104: =ROUND(IF(Lookup!H104>0,Lookup!H104,VLOOKUP(Master!$B104,Interpolate!$B$3:$T$2500,MATCH("M5-I",Interpolate!$B$2:$T$2,0),0)),3) -> 20.952 | V104: =ROUND(IF(Lookup!I104>0,Lookup!I104,VLOOKUP(Master!$B104,Interpolate!$B$3:$T$2500,MATCH("M6-I",Interpolate!$B$2:$T$2,0),0)),3) -> 21.35 | W104: =ROUND(IF(Lookup!J104>0,Lookup!J104,VLOOKUP(Master!$B104,Interpolate!$B$3:$T$2500,MATCH("M7-I",Interpolate!$B$2:$T$2,0),0)),3) -> 21.722 | AA104: =Lookup!S104 -> 2183 | AB104: 0.06368271955 | AC104: 0.06266666667 | AD104: 0.01810952381
B105: 2004-08-23 | C105: 103 | D105: =VLOOKUP($B105,'Exp Dates'!$E$4:$K$400,MATCH("Days1M",'Exp Dates'!$E$2:$X$2,0),1) -> 19 | E105: =VLOOKUP($B105,'Exp Dates'!$E$4:$K$400,MATCH("Trade Count",'Exp Dates'!$E$2:$X$2,0),1)-C105+D105-VLOOKUP($B105,'Exp Dates'!$E$4:$K$400,MATCH("Trade Day Adj",'Exp Dates'!$E$2:$X$2,0),1)*IF($B105>VLOOKUP($B105,'Exp Dates'!$E$4:$K$400,MATCH("Trade Day Adj Start",'Exp Dates'!$E$2:$X$2,0),1),1,0) -> 16 | F105: 3 | G105: =VLOOKUP($B105,'Exp Dates'!$E$6:$U$400,MATCH("ExpMoYr",'Exp Dates'!$E$2:$U$2,0),1) -> Sep-2004 | H105: 0.1 | I105: =IF($I$1=0,(1/(1-91/360*VLOOKUP($B104,'T-bills'!$B$4:$C$1500,2,1)/100))^(($B105-$B104)/91)-1,0) -> 0.0001227356916 | J105: 15.88 | K105: 17.28 | L105: 0.9189814815 | N105: 1095.68 | O105: 5.923 | P105: 0.07441327991 | Q105: =ROUND(IF(Lookup!D105>0,Lookup!D105,VLOOKUP(Master!$B105,Interpolate!$B$3:$T$2500,MATCH("M1-I",Interpolate!$B$2:$T$2,0),0)),3) -> 17.47 | R105: =ROUND(IF(Lookup!E105>0,Lookup!E105,VLOOKUP(Master!$B105,Interpolate!$B$3:$T$2500,MATCH("M2-I",Interpolate!$B$2:$T$2,0),0)),3) -> 18.77 | S105: =ROUND(IF(Lookup!F105>0,Lookup!F105,VLOOKUP(Master!$B105,Interpolate!$B$3:$T$2500,MATCH("M3-I",Interpolate!$B$2:$T$2,0),0)),3) -> 20.21 | T105: =ROUND(IF(Lookup!G105>0,Lookup!G105,VLOOKUP(Master!$B105,Interpolate!$B$3:$T$2500,MATCH("M4-I",Interpolate!$B$2:$T$2,0),0)),3) -> 20.695 | U105: =ROUND(IF(Lookup!H105>0,Lookup!H105,VLOOKUP(Master!$B105,Interpolate!$B$3:$T$2500,MATCH("M5-I",Interpolate!$B$2:$T$2,0),0)),3) -> 21.051 | V105: =ROUND(IF(Lookup!I105>0,Lookup!I105,VLOOKUP(Master!$B105,Interpolate!$B$3:$T$2500,MATCH("M6-I",Interpolate!$B$2:$T$2,0),0)),3) -> 21.44 | W105: =ROUND(IF(Lookup!J105>0,Lookup!J105,VLOOKUP(Master!$B105,Interpolate!$B$3:$T$2500,MATCH("M7-I",Interpolate!$B$2:$T$2,0),0)),3) -> 21.803 | AA105: =Lookup!S105 -> 2289 | AB105: 0.07441327991 | AC105: 0.06857142857 | AD105: 0.01768095238
B106: 2004-08-24 | C106: 104 | D106: =VLOOKUP($B106,'Exp Dates'!$E$4:$K$400,MATCH("Days1M",'Exp Dates'!$E$2:$X$2,0),1) -> 19 | E106: =VLOOKUP($B106,'Exp Dates'!$E$4:$K$400,MATCH("Trade Count",'Exp Dates'!$E$2:$X$2,0),1)-C106+D106-VLOOKUP($B106,'Exp Dates'!$E$4:$K$400,MATCH("Trade Day Adj",'Exp Dates'!$E$2:$X$2,0),1)*IF($B106>VLOOKUP($B106,'Exp Dates'!$E$4:$K$400,MATCH("Trade Day Adj Start",'Exp Dates'!$E$2:$X$2,0),1),1,0) -> 15 | F106: 4 | G106: =VLOOKUP($B106,'Exp Dates'!$E$6:$U$400,MATCH("ExpMoYr",'Exp Dates'!$E$2:$U$2,0),1) -> Sep-2004 | H106: 0.1 | I106: =IF($I$1=0,(1/(1-91/360*VLOOKUP($B105,'T-bills'!$B$4:$C$1500,2,1)/100))^(($B106-$B105)/91)-1,0) -> 4.216500939e-05 | J106: 15.33 | K106: 16.82 | L106: 0.9114149822 | N106: 1096.19 | O106: 6.415 | P106: 0.07719298246 | Q106: =ROUND(IF(Lookup!D106>0,Lookup!D106,VLOOKUP(Master!$B106,Interpolate!$B$3:$T$2500,MATCH("M1-I",Interpolate!$B$2:$T$2,0),0)),3) -> 17.1 | R106: =ROUND(IF(Lookup!E106>0,Lookup!E106,VLOOKUP(Master!$B106,Interpolate!$B$3:$T$2500,MATCH("M2-I",Interpolate!$B$2:$T$2,0),0)),3) -> 18.42 | S106: =ROUND(IF(Lookup!F106>0,Lookup!F106,VLOOKUP(Master!$B106,Interpolate!$B$3:$T$2500,MATCH("M3-I",Interpolate!$B$2:$T$2,0),0)),3) -> 19.96 | T106: =ROUND(IF(Lookup!G106>0,Lookup!G106,VLOOKUP(Master!$B106,Interpolate!$B$3:$T$2500,MATCH("M4-I",Interpolate!$B$2:$T$2,0),0)),3) -> 20.505 | U106: =ROUND(IF(Lookup!H106>0,Lookup!H106,VLOOKUP(Master!$B106,Interpolate!$B$3:$T$2500,MATCH("M5-I",Interpolate!$B$2:$T$2,0),0)),3) -> 20.905 | V106: =ROUND(IF(Lookup!I106>0,Lookup!I106,VLOOKUP(Master!$B106,Interpolate!$B$3:$T$2500,MATCH("M6-I",Interpolate!$B$2:$T$2,0),0)),3) -> 21.34 | W106: =ROUND(IF(Lookup!J106>0,Lookup!J106,VLOOKUP(Master!$B106,Interpolate!$B$3:$T$2500,MATCH("M7-I",Interpolate!$B$2:$T$2,0),0)),3) -> 21.745 | AA106: =Lookup!S106 -> 2505 | AB106: 0.07719298246 | AC106: 0.07333333333 | AD106: 0.01978571429
B107: 2004-08-25 | C107: 105 | D107: =VLOOKUP($B107,'Exp Dates'!$E$4:$K$400,MATCH("Days1M",'Exp Dates'!$E$2:$X$2,0),1) -> 19 | E107: =VLOOKUP($B107,'Exp Dates'!$E$4:$K$400,MATCH("Trade Count",'Exp Dates'!$E$2:$X$2,0),1)-C107+D107-VLOOKUP($B107,'Exp Dates'!$E$4:$K$400,MATCH("Trade Day Adj",'Exp Dates'!$E$2:$X$2,0),1)*IF($B107>VLOOKUP($B107,'Exp Dates'!$E$4:$K$400,MATCH("Trade Day Adj Start",'Exp Dates'!$E$2:$X$2,0),1),1,0) -> 14 | F107: 5 | G107: =VLOOKUP($B107,'Exp Dates'!$E$6:$U$400,MATCH("ExpMoYr",'Exp Dates'!$E$2:$U$2,0),1) -> Sep-2004 | H107: 0.1 | I107: =IF($I$1=0,(1/(1-91/360*VLOOKUP($B106,'T-bills'!$B$4:$C$1500,2,1)/100))^(($B107-$B106)/91)-1,0) -> 4.216500939e-05 | J107: 14.98 | K107: 16.91 | L107: 0.8858663513 | N107: 1104.96 | O107: 5.604 | P107: 0.06606060606 | Q107: =ROUND(IF(Lookup!D107>0,Lookup!D107,VLOOKUP(Master!$B107,Interpolate!$B$3:$T$2500,MATCH("M1-I",Interpolate!$B$2:$T$2,0),0)),3) -> 16.5 | R107: =ROUND(IF(Lookup!E107>0,Lookup!E107,VLOOKUP(Master!$B107,Interpolate!$B$3:$T$2500,MATCH("M2-I",Interpolate!$B$2:$T$2,0),0)),3) -> 17.59 | S107: =ROUND(IF(Lookup!F107>0,Lookup!F107,VLOOKUP(Master!$B107,Interpolate!$B$3:$T$2500,MATCH("M3-I",Interpolate!$B$2:$T$2,0),0)),3) -> 19.21 | T107: =ROUND(IF(Lookup!G107>0,Lookup!G107,VLOOKUP(Master!$B107,Interpolate!$B$3:$T$2500,MATCH("M4-I",Interpolate!$B$2:$T$2,0),0)),3) -> 19.627 | U107: =ROUND(IF(Lookup!H107>0,Lookup!H107,VLOOKUP(Master!$B107,Interpolate!$B$3:$T$2500,MATCH("M5-I",Interpolate!$B$2:$T$2,0),0)),3) -> 19.934 | V107: =ROUND(IF(Lookup!I107>0,Lookup!I107,VLOOKUP(Master!$B107,Interpolate!$B$3:$T$2500,MATCH("M6-I",Interpolate!$B$2:$T$2,0),0)),3) -> 20.27 | W107: =ROUND(IF(Lookup!J107>0,Lookup!J107,VLOOKUP(Master!$B107,Interpolate!$B$3:$T$2500,MATCH("M7-I",Interpolate!$B$2:$T$2,0),0)),3) -> 20.584 | AA107: =Lookup!S107 -> 2448 | AB107: 0.06606060606 | AC107: 0.07714285714 | AD107: 0.01527142857
B108: 2004-08-26 | C108: 106 | D108: =VLOOKUP($B108,'Exp Dates'!$E$4:$K$400,MATCH("Days1M",'Exp Dates'!$E$2:$X$2,0),1) -> 19 | E108: =VLOOKUP($B108,'Exp Dates'!$E$4:$K$400,MATCH("Trade Count",'Exp Dates'!$E$2:$X$2,0),1)-C108+D108-VLOOKUP($B108,'Exp Dates'!$E$4:$K$400,MATCH("Trade Day Adj",'Exp Dates'!$E$2:$X$2,0),1)*IF($B108>VLOOKUP($B108,'Exp Dates'!$E$4:$K$400,MATCH("Trade Day Adj Start",'Exp Dates'!$E$2:$X$2,0),1),1,0) -> 13 | F108: 6 | G108: =VLOOKUP($B108,'Exp Dates'!$E$6:$U$400,MATCH("ExpMoYr",'Exp Dates'!$E$2:$U$2,0),1) -> Sep-2004 | H108: 0.1 | I108: =IF($I$1=0,(1/(1-91/360*VLOOKUP($B107,'T-bills'!$B$4:$C$1500,2,1)/100))^(($B108-$B107)/91)-1,0) -> 4.216500939e-05 | J108: 14.91 | K108: 16.72 | L108: 0.8917464115 | N108: 1105.09 | O108: 5.529 | P108: 0.07190737355 | Q108: =ROUND(IF(Lookup!D108>0,Lookup!D108,VLOOKUP(Master!$B108,Interpolate!$B$3:$T$2500,MATCH("M1-I",Interpolate!$B$2:$T$2,0),0)),3) -> 16.41 | R108: =ROUND(IF(Lookup!E108>0,Lookup!E108,VLOOKUP(Master!$B108,Interpolate!$B$3:$T$2500,MATCH("M2-I",Interpolate!$B$2:$T$2,0),0)),3) -> 17.59 | S108: =ROUND(IF(Lookup!F108>0,Lookup!F108,VLOOKUP(Master!$B108,Interpolate!$B$3:$T$2500,MATCH("M3-I",Interpolate!$B$2:$T$2,0),0)),3) -> 19.22 | T108: =ROUND(IF(Lookup!G108>0,Lookup!G108,VLOOKUP(Master!$B108,Interpolate!$B$3:$T$2500,MATCH("M4-I",Interpolate!$B$2:$T$2,0),0)),3) -> 19.589 | U108: =ROUND(IF(Lookup!H108>0,Lookup!H108,VLOOKUP(Master!$B108,Interpolate!$B$3:$T$2500,MATCH("M5-I",Interpolate!$B$2:$T$2,0),0)),3) -> 19.862 | V108: =ROUND(IF(Lookup!I108>0,Lookup!I108,VLOOKUP(Master!$B108,Interpolate!$B$3:$T$2500,MATCH("M6-I",Interpolate!$B$2:$T$2,0),0)),3) -> 20.16 | W108: =ROUND(IF(Lookup!J108>0,Lookup!J108,VLOOKUP(Master!$B108,Interpolate!$B$3:$T$2500,MATCH("M7-I",Interpolate!$B$2:$T$2,0),0)),3) -> 20.439 | AA108: =Lookup!S108 -> 2554 | AB108: 0.07190737355 | AC108: 0.07761904762 | AD108: 0.01356190476
B109: 2004-08-27 | C109: 107 | D109: =VLOOKUP($B109,'Exp Dates'!$E$4:$K$400,MATCH("Days1M",'Exp Dates'!$E$2:$X$2,0),1) -> 19 | E109: =VLOOKUP($B109,'Exp Dates'!$E$4:$K$400,MATCH("Trade Count",'Exp Dates'!$E$2:$X$2,0),1)-C109+D109-VLOOKUP($B109,'Exp Dates'!$E$4:$K$400,MATCH("Trade Day Adj",'Exp Dates'!$E$2:$X$2,0),1)*IF($B109>VLOOKUP($B109,'Exp Dates'!$E$4:$K$400,MATCH("Trade Day Adj Start",'Exp Dates'!$E$2:$X$2,0),1),1,0) -> 12 | F109: 7 | G109: =VLOOKUP($B109,'Exp Dates'!$E$6:$U$400,MATCH("ExpMoYr",'Exp Dates'!$E$2:$U$2,0),1) -> Sep-2004 | H109: 0.1 | I109: =IF($I$1=0,(1/(1-91/360*VLOOKUP($B108,'T-bills'!$B$4:$C$1500,2,1)/100))^(($B109-$B108)/91)-1,0) -> 4.216500939e-05 | J109: 14.71 | K109: 16.55 | L109: 0.8888217523 | N109: 1107.77 | O109: 5.479 | P109: 0.08173374613 | Q109: =ROUND(IF(Lookup!D109>0,Lookup!D109,VLOOKUP(Master!$B109,Interpolate!$B$3:$T$2500,MATCH("M1-I",Interpolate!$B$2:$T$2,0),0)),3) -> 16.15 | R109: =ROUND(IF(Lookup!E109>0,Lookup!E109,VLOOKUP(Master!$B109,Interpolate!$B$3:$T$2500,MATCH("M2-I",Interpolate!$B$2:$T$2,0),0)),3) -> 17.47 | S109: =ROUND(IF(Lookup!F109>0,Lookup!F109,VLOOKUP(Master!$B109,Interpolate!$B$3:$T$2500,MATCH("M3-I",Interpolate!$B$2:$T$2,0),0)),3) -> 19.06 | T109: =ROUND(IF(Lookup!G109>0,Lookup!G109,VLOOKUP(Master!$B109,Interpolate!$B$3:$T$2500,MATCH("M4-I",Interpolate!$B$2:$T$2,0),0)),3) -> 19.401 | U109: =ROUND(IF(Lookup!H109>0,Lookup!H109,VLOOKUP(Master!$B109,Interpolate!$B$3:$T$2500,MATCH("M5-I",Interpolate!$B$2:$T$2,0),0)),3) -> 19.654 | V109: =ROUND(IF(Lookup!I109>0,Lookup!I109,VLOOKUP(Master!$B109,Interpolate!$B$3:$T$2500,MATCH("M6-I",Interpolate!$B$2:$T$2,0),0)),3) -> 19.93 | W109: =ROUND(IF(Lookup!J109>0,Lookup!J109,VLOOKUP(Master!$B109,Interpolate!$B$3:$T$2500,MATCH("M7-I",Interpolate!$B$2:$T$2,0),0)),3) -> 20.189 | AA109: =Lookup!S109 -> 2553 | AB109: 0.08173374613 | AC109: 0.07571428571 | AD109: 0.01257142857
B110: 2004-08-30 | C110: 108 | D110: =VLOOKUP($B110,'Exp Dates'!$E$4:$K$400,MATCH("Days1M",'Exp Dates'!$E$2:$X$2,0),1) -> 19 | E110: =VLOOKUP($B110,'Exp Dates'!$E$4:$K$400,MATCH("Trade Count",'Exp Dates'!$E$2:$X$2,0),1)-C110+D110-VLOOKUP($B110,'Exp Dates'!$E$4:$K$400,MATCH("Trade Day Adj",'Exp Dates'!$E$2:$X$2,0),1)*IF($B110>VLOOKUP($B110,'Exp Dates'!$E$4:$K$400,MATCH("Trade Day Adj Start",'Exp Dates'!$E$2:$X$2,0),1),1,0) -> 11 | F110: 8 | G110: =VLOOKUP($B110,'Exp Dates'!$E$6:$U$400,MATCH("ExpMoYr",'Exp Dates'!$E$2:$U$2,0),1) -> Sep-2004 | H110: 0.1 | I110: =IF($I$1=0,(1/(1-91/360*VLOOKUP($B109,'T-bills'!$B$4:$C$1500,2,1)/100))^(($B110-$B109)/91)-1,0) -> 0.0001265003619 | J110: 15.44 | K110: 16.98 | L110: 0.9093050648 | N110: 1099.15 | O110: 4.972 | P110: 0.06934306569 | Q110: =ROUND(IF(Lookup!D110>0,Lookup!D110,VLOOKUP(Master!$B110,Interpolate!$B$3:$T$2500,MATCH("M1-I",Interpolate!$B$2:$T$2,0),0)),3) -> 16.44 | R110: =ROUND(IF(Lookup!E110>0,Lookup!E110,VLOOKUP(Master!$B110,Interpolate!$B$3:$T$2500,MATCH("M2-I",Interpolate!$B$2:$T$2,0),0)),3) -> 17.58 | S110: =ROUND(IF(Lookup!F110>0,Lookup!F110,VLOOKUP(Master!$B110,Interpolate!$B$3:$T$2500,MATCH("M3-I",Interpolate!$B$2:$T$2,0),0)),3) -> 19.09 | T110: =ROUND(IF(Lookup!G110>0,Lookup!G110,VLOOKUP(Master!$B110,Interpolate!$B$3:$T$2500,MATCH("M4-I",Interpolate!$B$2:$T$2,0),0)),3) -> 19.491 | U110: =ROUND(IF(Lookup!H110>0,Lookup!H110,VLOOKUP(Master!$B110,Interpolate!$B$3:$T$2500,MATCH("M5-I",Interpolate!$B$2:$T$2,0),0)),3) -> 19.787 | V110: =ROUND(IF(Lookup!I110>0,Lookup!I110,VLOOKUP(Master!$B110,Interpolate!$B$3:$T$2500,MATCH("M6-I",Interpolate!$B$2:$T$2,0),0)),3) -> 20.11 | W110: =ROUND(IF(Lookup!J110>0,Lookup!J110,VLOOKUP(Master!$B110,Interpolate!$B$3:$T$2500,MATCH("M7-I",Interpolate!$B$2:$T$2,0),0)),3) -> 20.412 | AA110: =Lookup!S110 -> 2589 | AB110: 0.06934306569 | AC110: 0.0719047619 | AD110: 0.0146952381
B111: 2004-08-31 | C111: 109 | D111: =VLOOKUP($B111,'Exp Dates'!$E$4:$K$400,MATCH("Days1M",'Exp Dates'!$E$2:$X$2,0),1) -> 19 | E111: =VLOOKUP($B111,'Exp Dates'!$E$4:$K$400,MATCH("Trade Count",'Exp Dates'!$E$2:$X$2,0),1)-C111+D111-VLOOKUP($B111,'Exp Dates'!$E$4:$K$400,MATCH("Trade Day Adj",'Exp Dates'!$E$2:$X$2,0),1)*IF($B111>VLOOKUP($B111,'Exp Dates'!$E$4:$K$400,MATCH("Trade Day Adj Start",'Exp Dates'!$E$2:$X$2,0),1),1,0) -> 10 | F111: 9 | G111: =VLOOKUP($B111,'Exp Dates'!$E$6:$U$400,MATCH("ExpMoYr",'Exp Dates'!$E$2:$U$2,0),1) -> Sep-2004 | H111: 0.1 | I111: =IF($I$1=0,(1/(1-91/360*VLOOKUP($B110,'T-bills'!$B$4:$C$1500,2,1)/100))^(($B111-$B110)/91)-1,0) -> 4.397773361e-05 | J111: 15.29 | K111: 16.87 | L111: 0.90634262 | N111: 1104.24 | O111: 5.006 | P111: 0.08719851577 | Q111: =ROUND(IF(Lookup!D111>0,Lookup!D111,VLOOKUP(Master!$B111,Interpolate!$B$3:$T$2500,MATCH("M1-I",Interpolate!$B$2:$T$2,0),0)),3) -> 16.17 | R111: =ROUND(IF(Lookup!E111>0,Lookup!E111,VLOOKUP(Master!$B111,Interpolate!$B$3:$T$2500,MATCH("M2-I",Interpolate!$B$2:$T$2,0),0)),3) -> 17.58 | S111: =ROUND(IF(Lookup!F111>0,Lookup!F111,VLOOKUP(Master!$B111,Interpolate!$B$3:$T$2500,MATCH("M3-I",Interpolate!$B$2:$T$2,0),0)),3) -> 18.73 | T111: =ROUND(IF(Lookup!G111>0,Lookup!G111,VLOOKUP(Master!$B111,Interpolate!$B$3:$T$2500,MATCH("M4-I",Interpolate!$B$2:$T$2,0),0)),3) -> 19.207 | U111: =ROUND(IF(Lookup!H111>0,Lookup!H111,VLOOKUP(Master!$B111,Interpolate!$B$3:$T$2500,MATCH("M5-I",Interpolate!$B$2:$T$2,0),0)),3) -> 19.558 | V111: =ROUND(IF(Lookup!I111>0,Lookup!I111,VLOOKUP(Master!$B111,Interpolate!$B$3:$T$2500,MATCH("M6-I",Interpolate!$B$2:$T$2,0),0)),3) -> 19.94 | W111: =ROUND(IF(Lookup!J111>0,Lookup!J111,VLOOKUP(Master!$B111,Interpolate!$B$3:$T$2500,MATCH("M7-I",Interpolate!$B$2:$T$2,0),0)),3) -> 20.296 | AA111: =Lookup!S111 -> 2674 | AB111: 0.08719851577 | AC111: 0.05476190476 | AD111: 0.01737619048
B112: 2004-09-01 | C112: 110 | D112: =VLOOKUP($B112,'Exp Dates'!$E$4:$K$400,MATCH("Days1M",'Exp Dates'!$E$2:$X$2,0),1) -> 19 | E112: =VLOOKUP($B112,'Exp Dates'!$E$4:$K$400,MATCH("Trade Count",'Exp Dates'!$E$2:$X$2,0),1)-C112+D112-VLOOKUP($B112,'Exp Dates'!$E$4:$K$400,MATCH("Trade Day Adj",'Exp Dates'!$E$2:$X$2,0),1)*IF($B112>VLOOKUP($B112,'Exp Dates'!$E$4:$K$400,MATCH("Trade Day Adj Start",'Exp Dates'!$E$2:$X$2,0),1),1,0) -> 9 | F112: 10 | G112: =VLOOKUP($B112,'Exp Dates'!$E$6:$U$400,MATCH("ExpMoYr",'Exp Dates'!$E$2:$U$2,0),1) -> Sep-2004 | H112: 0.1 | I112: =IF($I$1=0,(1/(1-91/360*VLOOKUP($B111,'T-bills'!$B$4:$C$1500,2,1)/100))^(($B112-$B111)/91)-1,0) -> 4.397773361e-05 | J112: 14.91 | K112: 16.46 | L112: 0.9058323208 | N112: 1105.91 | O112: 5.356 | P112: 0.08177278402 | Q112: =ROUND(IF(Lookup!D112>0,Lookup!D112,VLOOKUP(Master!$B112,Interpolate!$B$3:$T$2500,MATCH("M1-I",Interpolate!$B$2:$T$2,0),0)),3) -> 16.02 | R112: =ROUND(IF(Lookup!E112>0,Lookup!E112,VLOOKUP(Master!$B112,Interpolate!$B$3:$T$2500,MATCH("M2-I",Interpolate!$B$2:$T$2,0),0)),3) -> 17.33 | S112: =ROUND(IF(Lookup!F112>0,Lookup!F112,VLOOKUP(Master!$B112,Interpolate!$B$3:$T$2500,MATCH("M3-I",Interpolate!$B$2:$T$2,0),0)),3) -> 18.52 | T112: =ROUND(IF(Lookup!G112>0,Lookup!G112,VLOOKUP(Master!$B112,Interpolate!$B$3:$T$2500,MATCH("M4-I",Interpolate!$B$2:$T$2,0),0)),3) -> 19.054 | U112: =ROUND(IF(Lookup!H112>0,Lookup!H112,VLOOKUP(Master!$B112,Interpolate!$B$3:$T$2500,MATCH("M5-I",Interpolate!$B$2:$T$2,0),0)),3) -> 19.445 | V112: =ROUND(IF(Lookup!I112>0,Lookup!I112,VLOOKUP(Master!$B112,Interpolate!$B$3:$T$2500,MATCH("M6-I",Interpolate!$B$2:$T$2,0),0)),3) -> 19.87 | W112: =ROUND(IF(Lookup!J112>0,Lookup!J112,VLOOKUP(Master!$B112,Interpolate!$B$3:$T$2500,MATCH("M7-I",Interpolate!$B$2:$T$2,0),0)),3) -> 20.266 | AA112: =Lookup!S112 -> 2801 | AB112: 0.08177278402 | AC112: 0.05666666667 | AD112: 0.01933809524
B113: 2004-09-02 | C113: 111 | D113: =VLOOKUP($B113,'Exp Dates'!$E$4:$K$400,MATCH("Days1M",'Exp Dates'!$E$2:$X$2,0),1) -> 19 | E113: =VLOOKUP($B113,'Exp Dates'!$E$4:$K$400,MATCH("Trade Count",'Exp Dates'!$E$2:$X$2,0),1)-C113+D113-VLOOKUP($B113,'Exp Dates'!$E$4:$K$400,MATCH("Trade Day Adj",'Exp Dates'!$E$2:$X$2,0),1)*IF($B113>VLOOKUP($B113,'Exp Dates'!$E$4:$K$400,MATCH("Trade Day Adj Start",'Exp Dates'!$E$2:$X$2,0),1),1,0) -> 8 | F113: -8 | G113: =VLOOKUP($B113,'Exp Dates'!$E$6:$U$400,MATCH("ExpMoYr",'Exp Dates'!$E$2:$U$2,0),1) -> Sep-2004 | H113: 0.1 | I113: =IF($I$1=0,(1/(1-91/360*VLOOKUP($B112,'T-bills'!$B$4:$C$1500,2,1)/100))^(($B113-$B112)/91)-1,0) -> 4.397773361e-05 | J113: 14.28 | K113: 15.97 | L113: 0.8941765811 | N113: 1118.31 | O113: 5.545 | P113: 0.07862248213 | Q113: =ROUND(IF(Lookup!D113>0,Lookup!D113,VLOOKUP(Master!$B113,Interpolate!$B$3:$T$2500,MATCH("M1-I",Interpolate!$B$2:$T$2,0),0)),3) -> 15.39 | R113: =ROUND(IF(Lookup!E113>0,Lookup!E113,VLOOKUP(Master!$B113,Interpolate!$B$3:$T$2500,MATCH("M2-I",Interpolate!$B$2:$T$2,0),0)),3) -> 16.6 | S113: =ROUND(IF(Lookup!F113>0,Lookup!F113,VLOOKUP(Master!$B113,Interpolate!$B$3:$T$2500,MATCH("M3-I",Interpolate!$B$2:$T$2,0),0)),3) -> 17.99 | T113: =ROUND(IF(Lookup!G113>0,Lookup!G113,VLOOKUP(Master!$B113,Interpolate!$B$3:$T$2500,MATCH("M4-I",Interpolate!$B$2:$T$2,0),0)),3) -> 18.553 | U113: =ROUND(IF(Lookup!H113>0,Lookup!H113,VLOOKUP(Master!$B113,Interpolate!$B$3:$T$2500,MATCH("M5-I",Interpolate!$B$2:$T$2,0),0)),3) -> 18.964 | V113: =ROUND(IF(Lookup!I113>0,Lookup!I113,VLOOKUP(Master!$B113,Interpolate!$B$3:$T$2500,MATCH("M6-I",Interpolate!$B$2:$T$2,0),0)),3) -> 19.41 | W113: =ROUND(IF(Lookup!J113>0,Lookup!J113,VLOOKUP(Master!$B113,Interpolate!$B$3:$T$2500,MATCH("M7-I",Interpolate!$B$2:$T$2,0),0)),3) -> 19.825 | AA113: =Lookup!S113 -> 3254 | AB113: 0.07862248213 | AC113: 0.06619047619 | AD113: 0.0202952381
B114: 2004-09-03 | C114: 112 | D114: =VLOOKUP($B114,'Exp Dates'!$E$4:$K$400,MATCH("Days1M",'Exp Dates'!$E$2:$X$2,0),1) -> 19 | E114: =VLOOKUP($B114,'Exp Dates'!$E$4:$K$400,MATCH("Trade Count",'Exp Dates'!$E$2:$X$2,0),1)-C114+D114-VLOOKUP($B114,'Exp Dates'!$E$4:$K$400,MATCH("Trade Day Adj",'Exp Dates'!$E$2:$X$2,0),1)*IF($B114>VLOOKUP($B114,'Exp Dates'!$E$4:$K$400,MATCH("Trade Day Adj Start",'Exp Dates'!$E$2:$X$2,0),1),1,0) -> 7 | F114: -7 | G114: =VLOOKUP($B114,'Exp Dates'!$E$6:$U$400,MATCH("ExpMoYr",'Exp Dates'!$E$2:$U$2,0),1) -> Sep-2004 | H114: 0.1 | I114: =IF($I$1=0,(1/(1-91/360*VLOOKUP($B113,'T-bills'!$B$4:$C$1500,2,1)/100))^(($B114-$B113)/91)-1,0) -> 4.397773361e-05 | J114: 13.91 | K114: 15.88 | L114: 0.8759445844 | N114: 1113.63 | O114: 5.631 | P114: 0.08125819135 | Q114: =ROUND(IF(Lookup!D114>0,Lookup!D114,VLOOKUP(Master!$B114,Interpolate!$B$3:$T$2500,MATCH("M1-I",Interpolate!$B$2:$T$2,0),0)),3) -> 15.26 | R114: =ROUND(IF(Lookup!E114>0,Lookup!E114,VLOOKUP(Master!$B114,Interpolate!$B$3:$T$2500,MATCH("M2-I",Interpolate!$B$2:$T$2,0),0)),3) -> 16.5 | S114: =ROUND(IF(Lookup!F114>0,Lookup!F114,VLOOKUP(Master!$B114,Interpolate!$B$3:$T$2500,MATCH("M3-I",Interpolate!$B$2:$T$2,0),0)),3) -> 17.95 | T114: =ROUND(IF(Lookup!G114>0,Lookup!G114,VLOOKUP(Master!$B114,Interpolate!$B$3:$T$2500,MATCH("M4-I",Interpolate!$B$2:$T$2,0),0)),3) -> 18.436 | U114: =ROUND(IF(Lookup!H114>0,Lookup!H114,VLOOKUP(Master!$B114,Interpolate!$B$3:$T$2500,MATCH("M5-I",Interpolate!$B$2:$T$2,0),0)),3) -> 18.792 | V114: =ROUND(IF(Lookup!I114>0,Lookup!I114,VLOOKUP(Master!$B114,Interpolate!$B$3:$T$2500,MATCH("M6-I",Interpolate!$B$2:$T$2,0),0)),3) -> 19.18 | W114: =ROUND(IF(Lookup!J114>0,Lookup!J114,VLOOKUP(Master!$B114,Interpolate!$B$3:$T$2500,MATCH("M7-I",Interpolate!$B$2:$T$2,0),0)),3) -> 19.541 | AA114: =Lookup!S114 -> 3325 | AB114: 0.08125819135 | AC114: 0.06904761905 | AD114: 0.01763333333
B115: 2004-09-07 | C115: 113 | D115: =VLOOKUP($B115,'Exp Dates'!$E$4:$K$400,MATCH("Days1M",'Exp Dates'!$E$2:$X$2,0),1) -> 19 | E115: =VLOOKUP($B115,'Exp Dates'!$E$4:$K$400,MATCH("Trade Count",'Exp Dates'!$E$2:$X$2,0),1)-C115+D115-VLOOKUP($B115,'Exp Dates'!$E$4:$K$400,MATCH("Trade Day Adj",'Exp Dates'!$E$2:$X$2,0),1)*IF($B115>VLOOKUP($B115,'Exp Dates'!$E$4:$K$400,MATCH("Trade Day Adj Start",'Exp Dates'!$E$2:$X$2,0),1),1,0) -> 6 | F115: -6 | G115: =VLOOKUP($B115,'Exp Dates'!$E$6:$U$400,MATCH("ExpMoYr",'Exp Dates'!$E$2:$U$2,0),1) -> Sep-2004 | H115: 0.1 | I115: =IF($I$1=0,(1/(1-91/360*VLOOKUP($B114,'T-bills'!$B$4:$C$1500,2,1)/100))^(($B115-$B114)/91)-1,0) -> 0.000175922539 | J115: 14.07 | K115: 16 | L115: 0.879375 | N115: 1121.3 | O115: 5.265 | P115: 0.08462055071 | Q115: =ROUND(IF(Lookup!D115>0,Lookup!D115,VLOOKUP(Master!$B115,Interpolate!$B$3:$T$2500,MATCH("M1-I",Interpolate!$B$2:$T$2,0),0)),3) -> 14.89 | R115: =ROUND(IF(Lookup!E115>0,Lookup!E115,VLOOKUP(Master!$B115,Interpolate!$B$3:$T$2500,MATCH("M2-I",Interpolate!$B$2:$T$2,0),0)),3) -> 16.15 | S115: =ROUND(IF(Lookup!F115>0,Lookup!F115,VLOOKUP(Master!$B115,Interpolate!$B$3:$T$2500,MATCH("M3-I",Interpolate!$B$2:$T$2,0),0)),3) -> 17.45 | T115: =ROUND(IF(Lookup!G115>0,Lookup!G115,VLOOKUP(Master!$B115,Interpolate!$B$3:$T$2500,MATCH("M4-I",Interpolate!$B$2:$T$2,0),0)),3) -> 18.029 | U115: =ROUND(IF(Lookup!H115>0,Lookup!H115,VLOOKUP(Master!$B115,Interpolate!$B$3:$T$2500,MATCH("M5-I",Interpolate!$B$2:$T$2,0),0)),3) -> 18.452 | V115: =ROUND(IF(Lookup!I115>0,Lookup!I115,VLOOKUP(Master!$B115,Interpolate!$B$3:$T$2500,MATCH("M6-I",Interpolate!$B$2:$T$2,0),0)),3) -> 18.91 | W115: =ROUND(IF(Lookup!J115>0,Lookup!J115,VLOOKUP(Master!$B115,Interpolate!$B$3:$T$2500,MATCH("M7-I",Interpolate!$B$2:$T$2,0),0)),3) -> 19.335 | AA115: =Lookup!S115 -> 3288 | AB115: 0.08462055071 | AC115: 0.0619047619 | AD115: 0.02083809524
B116: 2004-09-08 | C116: 114 | D116: =VLOOKUP($B116,'Exp Dates'!$E$4:$K$400,MATCH("Days1M",'Exp Dates'!$E$2:$X$2,0),1) -> 19 | E116: =VLOOKUP($B116,'Exp Dates'!$E$4:$K$400,MATCH("Trade Count",'Exp Dates'!$E$2:$X$2,0),1)-C116+D116-VLOOKUP($B116,'Exp Dates'!$E$4:$K$400,MATCH("Trade Day Adj",'Exp Dates'!$E$2:$X$2,0),1)*IF($B116>VLOOKUP($B116,'Exp Dates'!$E$4:$K$400,MATCH("Trade Day Adj Start",'Exp Dates'!$E$2:$X$2,0),1),1,0) -> 5 | F116: -5 | G116: =VLOOKUP($B116,'Exp Dates'!$E$6:$U$400,MATCH("ExpMoYr",'Exp Dates'!$E$2:$U$2,0),1) -> Sep-2004 | H116: 0.1 | I116: =IF($I$1=0,(1/(1-91/360*VLOOKUP($B115,'T-bills'!$B$4:$C$1500,2,1)/100))^(($B116-$B115)/91)-1,0) -> 4.551181334e-05 | J116: 14.06 | K116: 15.97 | L116: 0.8804007514 | N116: 1116.27 | O116: 5.348 | P116: 0.1082933516 | Q116: =ROUND(IF(Lookup!D116>0,Lookup!D116,VLOOKUP(Master!$B116,Interpolate!$B$3:$T$2500,MATCH("M1-I",Interpolate!$B$2:$T$2,0),0)),3) -> 14.59 | R116: =ROUND(IF(Lookup!E116>0,Lookup!E116,VLOOKUP(Master!$B116,Interpolate!$B$3:$T$2500,MATCH("M2-I",Interpolate!$B$2:$T$2,0),0)),3) -> 16.17 | S116: =ROUND(IF(Lookup!F116>0,Lookup!F116,VLOOKUP(Master!$B116,Interpolate!$B$3:$T$2500,MATCH("M3-I",Interpolate!$B$2:$T$2,0),0)),3) -> 17.37 | T116: =ROUND(IF(Lookup!G116>0,Lookup!G116,VLOOKUP(Master!$B116,Interpolate!$B$3:$T$2500,MATCH("M4-I",Interpolate!$B$2:$T$2,0),0)),3) -> 17.998 | U116: =ROUND(IF(Lookup!H116>0,Lookup!H116,VLOOKUP(Master!$B116,Interpolate!$B$3:$T$2500,MATCH("M5-I",Interpolate!$B$2:$T$2,0),0)),3) -> 18.455 | V116: =ROUND(IF(Lookup!I116>0,Lookup!I116,VLOOKUP(Master!$B116,Interpolate!$B$3:$T$2500,MATCH("M6-I",Interpolate!$B$2:$T$2,0),0)),3) -> 18.95 | W116: =ROUND(IF(Lookup!J116>0,Lookup!J116,VLOOKUP(Master!$B116,Interpolate!$B$3:$T$2500,MATCH("M7-I",Interpolate!$B$2:$T$2,0),0)),3) -> 19.408 | AA116: =Lookup!S116 -> 3474 | AB116: 0.1082933516 | AC116: 0.05714285714 | AD116: 0.0225
B117: 2004-09-09 | C117: 115 | D117: =VLOOKUP($B117,'Exp Dates'!$E$4:$K$400,MATCH("Days1M",'Exp Dates'!$E$2:$X$2,0),1) -> 19 | E117: =VLOOKUP($B117,'Exp Dates'!$E$4:$K$400,MATCH("Trade Count",'Exp Dates'!$E$2:$X$2,0),1)-C117+D117-VLOOKUP($B117,'Exp Dates'!$E$4:$K$400,MATCH("Trade Day Adj",'Exp Dates'!$E$2:$X$2,0),1)*IF($B117>VLOOKUP($B117,'Exp Dates'!$E$4:$K$400,MATCH("Trade Day Adj Start",'Exp Dates'!$E$2:$X$2,0),1),1,0) -> 4 | F117: -4 | G117: =VLOOKUP($B117,'Exp Dates'!$E$6:$U$400,MATCH("ExpMoYr",'Exp Dates'!$E$2:$U$2,0),1) -> Sep-2004 | H117: 0.1 | I117: =IF($I$1=0,(1/(1-91/360*VLOOKUP($B116,'T-bills'!$B$4:$C$1500,2,1)/100))^(($B117-$B116)/91)-1,0) -> 4.551181334e-05 | J117: 14.01 | K117: 15.82 | L117: 0.8855878635 | N117: 1118.38 | O117: 5.097 | P117: 0.1092669433 | Q117: =ROUND(IF(Lookup!D117>0,Lookup!D117,VLOOKUP(Master!$B117,Interpolate!$B$3:$T$2500,MATCH("M1-I",Interpolate!$B$2:$T$2,0),0)),3) -> 14.46 | R117: =ROUND(IF(Lookup!E117>0,Lookup!E117,VLOOKUP(Master!$B117,Interpolate!$B$3:$T$2500,MATCH("M2-I",Interpolate!$B$2:$T$2,0),0)),3) -> 16.04 | S117: =ROUND(IF(Lookup!F117>0,Lookup!F117,VLOOKUP(Master!$B117,Interpolate!$B$3:$T$2500,MATCH("M3-I",Interpolate!$B$2:$T$2,0),0)),3) -> 17.26 | T117: =ROUND(IF(Lookup!G117>0,Lookup!G117,VLOOKUP(Master!$B117,Interpolate!$B$3:$T$2500,MATCH("M4-I",Interpolate!$B$2:$T$2,0),0)),3) -> 17.827 | U117: =ROUND(IF(Lookup!H117>0,Lookup!H117,VLOOKUP(Master!$B117,Interpolate!$B$3:$T$2500,MATCH("M5-I",Interpolate!$B$2:$T$2,0),0)),3) -> 18.241 | V117: =ROUND(IF(Lookup!I117>0,Lookup!I117,VLOOKUP(Master!$B117,Interpolate!$B$3:$T$2500,MATCH("M6-I",Interpolate!$B$2:$T$2,0),0)),3) -> 18.69 | W117: =ROUND(IF(Lookup!J117>0,Lookup!J117,VLOOKUP(Master!$B117,Interpolate!$B$3:$T$2500,MATCH("M7-I",Interpolate!$B$2:$T$2,0),0)),3) -> 19.107 | AA117: =Lookup!S117 -> 4039 | AB117: 0.1092669433 | AC117: 0.0580952381 | AD117: 0.02042380952
B118: 2004-09-10 | C118: 116 | D118: =VLOOKUP($B118,'Exp Dates'!$E$4:$K$400,MATCH("Days1M",'Exp Dates'!$E$2:$X$2,0),1) -> 19 | E118: =VLOOKUP($B118,'Exp Dates'!$E$4:$K$400,MATCH("Trade Count",'Exp Dates'!$E$2:$X$2,0),1)-C118+D118-VLOOKUP($B118,'Exp Dates'!$E$4:$K$400,MATCH("Trade Day Adj",'Exp Dates'!$E$2:$X$2,0),1)*IF($B118>VLOOKUP($B118,'Exp Dates'!$E$4:$K$400,MATCH("Trade Day Adj Start",'Exp Dates'!$E$2:$X$2,0),1),1,0) -> 3 | F118: -3 | G118: =VLOOKUP($B118,'Exp Dates'!$E$6:$U$400,MATCH("ExpMoYr",'Exp Dates'!$E$2:$U$2,0),1) -> Sep-2004 | H118: 0.1 | I118: =IF($I$1=0,(1/(1-91/360*VLOOKUP($B117,'T-bills'!$B$4:$C$1500,2,1)/100))^(($B118-$B117)/91)-1,0) -> 4.551181334e-05 | J118: 13.76 | K118: 15.74 | L118: 0.874205845 | N118: 1123.92 | O118: 5.247 | P118: 0.1091672498 | Q118: =ROUND(IF(Lookup!D118>0,Lookup!D118,VLOOKUP(Master!$B118,Interpolate!$B$3:$T$2500,MATCH("M1-I",Interpolate!$B$2:$T$2,0),0)),3) -> 14.29 | R118: =ROUND(IF(Lookup!E118>0,Lookup!E118,VLOOKUP(Master!$B118,Interpolate!$B$3:$T$2500,MATCH("M2-I",Interpolate!$B$2:$T$2,0),0)),3) -> 15.85 | S118: =ROUND(IF(Lookup!F118>0,Lookup!F118,VLOOKUP(Master!$B118,Interpolate!$B$3:$T$2500,MATCH("M3-I",Interpolate!$B$2:$T$2,0),0)),3) -> 17.25 | T118: =ROUND(IF(Lookup!G118>0,Lookup!G118,VLOOKUP(Master!$B118,Interpolate!$B$3:$T$2500,MATCH("M4-I",Interpolate!$B$2:$T$2,0),0)),3) -> 17.789 | U118: =ROUND(IF(Lookup!H118>0,Lookup!H118,VLOOKUP(Master!$B118,Interpolate!$B$3:$T$2500,MATCH("M5-I",Interpolate!$B$2:$T$2,0),0)),3) -> 18.182 | V118: =ROUND(IF(Lookup!I118>0,Lookup!I118,VLOOKUP(Master!$B118,Interpolate!$B$3:$T$2500,MATCH("M6-I",Interpolate!$B$2:$T$2,0),0)),3) -> 18.61 | W118: =ROUND(IF(Lookup!J118>0,Lookup!J118,VLOOKUP(Master!$B118,Interpolate!$B$3:$T$2500,MATCH("M7-I",Interpolate!$B$2:$T$2,0),0)),3) -> 19.007 | AA118: =Lookup!S118 -> 3841 | AB118: 0.1091672498 | AC118: 0.06666666667 | AD118: 0.01943809524
B119: 2004-09-13 | C119: 117 | D119: =VLOOKUP($B119,'Exp Dates'!$E$4:$K$400,MATCH("Days1M",'Exp Dates'!$E$2:$X$2,0),1) -> 19 | E119: =VLOOKUP($B119,'Exp Dates'!$E$4:$K$400,MATCH("Trade Count",'Exp Dates'!$E$2:$X$2,0),1)-C119+D119-VLOOKUP($B119,'Exp Dates'!$E$4:$K$400,MATCH("Trade Day Adj",'Exp Dates'!$E$2:$X$2,0),1)*IF($B119>VLOOKUP($B119,'Exp Dates'!$E$4:$K$400,MATCH("Trade Day Adj Start",'Exp Dates'!$E$2:$X$2,0),1),1,0) -> 2 | F119: -2 | G119: =VLOOKUP($B119,'Exp Dates'!$E$6:$U$400,MATCH("ExpMoYr",'Exp Dates'!$E$2:$U$2,0),1) -> Sep-2004 | H119: 0.1 | I119: =IF($I$1=0,(1/(1-91/360*VLOOKUP($B118,'T-bills'!$B$4:$C$1500,2,1)/100))^(($B119-$B118)/91)-1,0) -> 0.0001365416541 | J119: 13.17 | K119: 15.45 | L119: 0.8524271845 | N119: 1125.82 | O119: 5.067 | P119: 0.1361981063 | Q119: =ROUND(IF(Lookup!D119>0,Lookup!D119,VLOOKUP(Master!$B119,Interpolate!$B$3:$T$2500,MATCH("M1-I",Interpolate!$B$2:$T$2,0),0)),3) -> 13.73 | R119: =ROUND(IF(Lookup!E119>0,Lookup!E119,VLOOKUP(Master!$B119,Interpolate!$B$3:$T$2500,MATCH("M2-I",Interpolate!$B$2:$T$2,0),0)),3) -> 15.6 | S119: =ROUND(IF(Lookup!F119>0,Lookup!F119,VLOOKUP(Master!$B119,Interpolate!$B$3:$T$2500,MATCH("M3-I",Interpolate!$B$2:$T$2,0),0)),3) -> 16.89 | T119: =ROUND(IF(Lookup!G119>0,Lookup!G119,VLOOKUP(Master!$B119,Interpolate!$B$3:$T$2500,MATCH("M4-I",Interpolate!$B$2:$T$2,0),0)),3) -> 17.3 | U119: =ROUND(IF(Lookup!H119>0,Lookup!H119,VLOOKUP(Master!$B119,Interpolate!$B$3:$T$2500,MATCH("M5-I",Interpolate!$B$2:$T$2,0),0)),3) -> 17.601 | V119: =ROUND(IF(Lookup!I119>0,Lookup!I119,VLOOKUP(Master!$B119,Interpolate!$B$3:$T$2500,MATCH("M6-I",Interpolate!$B$2:$T$2,0),0)),3) -> 17.93 | W119: =ROUND(IF(Lookup!J119>0,Lookup!J119,VLOOKUP(Master!$B119,Interpolate!$B$3:$T$2500,MATCH("M7-I",Interpolate!$B$2:$T$2,0),0)),3) -> 18.237 | AA119: =Lookup!S119 -> 3794 | AB119: 0.1361981063 | AC119: 0.06142857143 | AD119: 0.01495238095
B120: 2004-09-14 | C120: 118 | D120: =VLOOKUP($B120,'Exp Dates'!$E$4:$K$400,MATCH("Days1M",'Exp Dates'!$E$2:$X$2,0),1) -> 19 | E120: =VLOOKUP($B120,'Exp Dates'!$E$4:$K$400,MATCH("Trade Count",'Exp Dates'!$E$2:$X$2,0),1)-C120+D120-VLOOKUP($B120,'Exp Dates'!$E$4:$K$400,MATCH("Trade Day Adj",'Exp Dates'!$E$2:$X$2,0),1)*IF($B120>VLOOKUP($B120,'Exp Dates'!$E$4:$K$400,MATCH("Trade Day Adj Start",'Exp Dates'!$E$2:$X$2,0),1),1,0) -> 1 | F120: -1 | G120: =VLOOKUP($B120,'Exp Dates'!$E$6:$U$400,MATCH("ExpMoYr",'Exp Dates'!$E$2:$U$2,0),1) -> Sep-2004 | H120: 0.1 | I120: =IF($I$1=0,(1/(1-91/360*VLOOKUP($B119,'T-bills'!$B$4:$C$1500,2,1)/100))^(($B120-$B119)/91)-1,0) -> 4.565128587e-05 | J120: 13.56 | K120: 15.4 | L120: 0.8805194805 | N120: 1128.33 | O120: 4.816 | P120: 0.1259259259 | Q120: =ROUND(IF(Lookup!D120>0,Lookup!D120,VLOOKUP(Master!$B120,Interpolate!$B$3:$T$2500,MATCH("M1-I",Interpolate!$B$2:$T$2,0),0)),3) -> 13.5 | R120: =ROUND(IF(Lookup!E120>0,Lookup!E120,VLOOKUP(Master!$B120,Interpolate!$B$3:$T$2500,MATCH("M2-I",Interpolate!$B$2:$T$2,0),0)),3) -> 15.2 | S120: =ROUND(IF(Lookup!F120>0,Lookup!F120,VLOOKUP(Master!$B120,Interpolate!$B$3:$T$2500,MATCH("M3-I",Interpolate!$B$2:$T$2,0),0)),3) -> 16.39 | T120: =ROUND(IF(Lookup!G120>0,Lookup!G120,VLOOKUP(Master!$B120,Interpolate!$B$3:$T$2500,MATCH("M4-I",Interpolate!$B$2:$T$2,0),0)),3) -> 17.003 | U120: =ROUND(IF(Lookup!H120>0,Lookup!H120,VLOOKUP(Master!$B120,Interpolate!$B$3:$T$2500,MATCH("M5-I",Interpolate!$B$2:$T$2,0),0)),3) -> 17.448 | V120: =ROUND(IF(Lookup!I120>0,Lookup!I120,VLOOKUP(Master!$B120,Interpolate!$B$3:$T$2500,MATCH("M6-I",Interpolate!$B$2:$T$2,0),0)),3) -> 17.93 | W120: =ROUND(IF(Lookup!J120>0,Lookup!J120,VLOOKUP(Master!$B120,Interpolate!$B$3:$T$2500,MATCH("M7-I",Interpolate!$B$2:$T$2,0),0)),3) -> 18.376 | AA120: =Lookup!S120 -> 3744 | AB120: 0.1259259259 | AC120: 0.05666666667 | AD120: 0.02190952381
B121: 2004-09-15 | C121: 119 | D121: =VLOOKUP($B121,'Exp Dates'!$E$4:$K$400,MATCH("Days1M",'Exp Dates'!$E$2:$X$2,0),1) -> 20 | E121: =VLOOKUP($B121,'Exp Dates'!$E$4:$K$400,MATCH("Trade Count",'Exp Dates'!$E$2:$X$2,0),1)-C121+D121-VLOOKUP($B121,'Exp Dates'!$E$4:$K$400,MATCH("Trade Day Adj",'Exp Dates'!$E$2:$X$2,0),1)*IF($B121>VLOOKUP($B121,'Exp Dates'!$E$4:$K$400,MATCH("Trade Day Adj Start",'Exp Dates'!$E$2:$X$2,0),1),1,0) -> 20 | F121: 0 | G121: =VLOOKUP($B121,'Exp Dates'!$E$6:$U$400,MATCH("ExpMoYr",'Exp Dates'!$E$2:$U$2,0),1) -> Oct-2004 | H121: 0.1 | I121: =IF($I$1=0,(1/(1-91/360*VLOOKUP($B120,'T-bills'!$B$4:$C$1500,2,1)/100))^(($B121-$B120)/91)-1,0) -> 4.565128587e-05 | J121: 14.64 | K121: 16.02 | L121: 0.9138576779 | N121: 1120.37 | O121: 4.364 | P121: 0.07945736434 | Q121: =ROUND(IF(Lookup!D121>0,Lookup!D121,VLOOKUP(Master!$B121,Interpolate!$B$3:$T$2500,MATCH("M1-I",Interpolate!$B$2:$T$2,0),0)),3) -> 15.48 | R121: =ROUND(IF(Lookup!E121>0,Lookup!E121,VLOOKUP(Master!$B121,Interpolate!$B$3:$T$2500,MATCH("M2-I",Interpolate!$B$2:$T$2,0),0)),3) -> 16.71 | S121: =ROUND(IF(Lookup!F121>0,Lookup!F121,VLOOKUP(Master!$B121,Interpolate!$B$3:$T$2500,MATCH("M3-I",Interpolate!$B$2:$T$2,0),0)),3) -> 17.261 | T121: =ROUND(IF(Lookup!G121>0,Lookup!G121,VLOOKUP(Master!$B121,Interpolate!$B$3:$T$2500,MATCH("M4-I",Interpolate!$B$2:$T$2,0),0)),3) -> 17.664 | U121: =ROUND(IF(Lookup!H121>0,Lookup!H121,VLOOKUP(Master!$B121,Interpolate!$B$3:$T$2500,MATCH("M5-I",Interpolate!$B$2:$T$2,0),0)),3) -> 18.1 | V121: =ROUND(IF(Lookup!I121>0,Lookup!I121,VLOOKUP(Master!$B121,Interpolate!$B$3:$T$2500,MATCH("M6-I",Interpolate!$B$2:$T$2,0),0)),3) -> 18.505 | W121: =ROUND(IF(Lookup!J121>0,Lookup!J121,VLOOKUP(Master!$B121,Interpolate!$B$3:$T$2500,MATCH("M7-I",Interpolate!$B$2:$T$2,0),0)),3) -> 19.004 | AA121: =Lookup!S121 -> 5495 | AB121: 0.07945736434 | AC121: 0.02623809524 | AD121: 0.02107142857
B122: 2004-09-16 | C122: 120 | D122: =VLOOKUP($B122,'Exp Dates'!$E$4:$K$400,MATCH("Days1M",'Exp Dates'!$E$2:$X$2,0),1) -> 20 | E122: =VLOOKUP($B122,'Exp Dates'!$E$4:$K$400,MATCH("Trade Count",'Exp Dates'!$E$2:$X$2,0),1)-C122+D122-VLOOKUP($B122,'Exp Dates'!$E$4:$K$400,MATCH("Trade Day Adj",'Exp Dates'!$E$2:$X$2,0),1)*IF($B122>VLOOKUP($B122,'Exp Dates'!$E$4:$K$400,MATCH("Trade Day Adj Start",'Exp Dates'!$E$2:$X$2,0),1),1,0) -> 19 | F122: 1 | G122: =VLOOKUP($B122,'Exp Dates'!$E$6:$U$400,MATCH("ExpMoYr",'Exp Dates'!$E$2:$U$2,0),1) -> Oct-2004 | H122: 0.1 | I122: =IF($I$1=0,(1/(1-91/360*VLOOKUP($B121,'T-bills'!$B$4:$C$1500,2,1)/100))^(($B122-$B121)/91)-1,0) -> 4.565128587e-05 | J122: 14.39 | K122: 16.29 | L122: 0.883364027 | N122: 1123.5 | O122: 4.648 | P122: 0.0805931657 | Q122: =ROUND(IF(Lookup!D122>0,Lookup!D122,VLOOKUP(Master!$B122,Interpolate!$B$3:$T$2500,MATCH("M1-I",Interpolate!$B$2:$T$2,0),0)),3) -> 15.51 | R122: =ROUND(IF(Lookup!E122>0,Lookup!E122,VLOOKUP(Master!$B122,Interpolate!$B$3:$T$2500,MATCH("M2-I",Interpolate!$B$2:$T$2,0),0)),3) -> 16.76 | S122: =ROUND(IF(Lookup!F122>0,Lookup!F122,VLOOKUP(Master!$B122,Interpolate!$B$3:$T$2500,MATCH("M3-I",Interpolate!$B$2:$T$2,0),0)),3) -> 17.307 | T122: =ROUND(IF(Lookup!G122>0,Lookup!G122,VLOOKUP(Master!$B122,Interpolate!$B$3:$T$2500,MATCH("M4-I",Interpolate!$B$2:$T$2,0),0)),3) -> 17.707 | U122: =ROUND(IF(Lookup!H122>0,Lookup!H122,VLOOKUP(Master!$B122,Interpolate!$B$3:$T$2500,MATCH("M5-I",Interpolate!$B$2:$T$2,0),0)),3) -> 18.14 | V122: =ROUND(IF(Lookup!I122>0,Lookup!I122,VLOOKUP(Master!$B122,Interpolate!$B$3:$T$2500,MATCH("M6-I",Interpolate!$B$2:$T$2,0),0)),3) -> 18.542 | W122: =ROUND(IF(Lookup!J122>0,Lookup!J122,VLOOKUP(Master!$B122,Interpolate!$B$3:$T$2500,MATCH("M7-I",Interpolate!$B$2:$T$2,0),0)),3) -> 19.038 | AA122: =Lookup!S122 -> 5633 | AB122: 0.0805931657 | AC122: 0.02604761905 | AD122: 0.02092857143
B123: 2004-09-17 | C123: 121 | D123: =VLOOKUP($B123,'Exp Dates'!$E$4:$K$400,MATCH("Days1M",'Exp Dates'!$E$2:$X$2,0),1) -> 20 | E123: =VLOOKUP($B123,'Exp Dates'!$E$4:$K$400,MATCH("Trade Count",'Exp Dates'!$E$2:$X$2,0),1)-C123+D123-VLOOKUP($B123,'Exp Dates'!$E$4:$K$400,MATCH("Trade Day Adj",'Exp Dates'!$E$2:$X$2,0),1)*IF($B123>VLOOKUP($B123,'Exp Dates'!$E$4:$K$400,MATCH("Trade Day Adj Start",'Exp Dates'!$E$2:$X$2,0),1),1,0) -> 18 | F123: 2 | G123: =VLOOKUP($B123,'Exp Dates'!$E$6:$U$400,MATCH("ExpMoYr",'Exp Dates'!$E$2:$U$2,0),1) -> Oct-2004 | H123: 0.1 | I123: =IF($I$1=0,(1/(1-91/360*VLOOKUP($B122,'T-bills'!$B$4:$C$1500,2,1)/100))^(($B123-$B122)/91)-1,0) -> 4.565128587e-05 | J123: 14.03 | K123: 15.81 | L123: 0.8874130297 | N123: 1128.55 | O123: 4.421 | P123: 0.07722007722 | Q123: =ROUND(IF(Lookup!D123>0,Lookup!D123,VLOOKUP(Master!$B123,Interpolate!$B$3:$T$2500,MATCH("M1-I",Interpolate!$B$2:$T$2,0),0)),3) -> 15.54 | R123: =ROUND(IF(Lookup!E123>0,Lookup!E123,VLOOKUP(Master!$B123,Interpolate!$B$3:$T$2500,MATCH("M2-I",Interpolate!$B$2:$T$2,0),0)),3) -> 16.74 | S123: =ROUND(IF(Lookup!F123>0,Lookup!F123,VLOOKUP(Master!$B123,Interpolate!$B$3:$T$2500,MATCH("M3-I",Interpolate!$B$2:$T$2,0),0)),3) -> 17.146 | T123: =ROUND(IF(Lookup!G123>0,Lookup!G123,VLOOKUP(Master!$B123,Interpolate!$B$3:$T$2500,MATCH("M4-I",Interpolate!$B$2:$T$2,0),0)),3) -> 17.444 | U123: =ROUND(IF(Lookup!H123>0,Lookup!H123,VLOOKUP(Master!$B123,Interpolate!$B$3:$T$2500,MATCH("M5-I",Interpolate!$B$2:$T$2,0),0)),3) -> 17.77 | V123: =ROUND(IF(Lookup!I123>0,Lookup!I123,VLOOKUP(Master!$B123,Interpolate!$B$3:$T$2500,MATCH("M6-I",Interpolate!$B$2:$T$2,0),0)),3) -> 18.074 | W123: =ROUND(IF(Lookup!J123>0,Lookup!J123,VLOOKUP(Master!$B123,Interpolate!$B$3:$T$2500,MATCH("M7-I",Interpolate!$B$2:$T$2,0),0)),3) -> 18.451 | AA123: =Lookup!S123 -> 5841 | AB123: 0.07722007722 | AC123: 0.01933333333 | AD123: 0.01583333333
B124: 2004-09-20 | C124: 122 | D124: =VLOOKUP($B124,'Exp Dates'!$E$4:$K$400,MATCH("Days1M",'Exp Dates'!$E$2:$X$2,0),1) -> 20 | E124: =VLOOKUP($B124,'Exp Dates'!$E$4:$K$400,MATCH("Trade Count",'Exp Dates'!$E$2:$X$2,0),1)-C124+D124-VLOOKUP($B124,'Exp Dates'!$E$4:$K$400,MATCH("Trade Day Adj",'Exp Dates'!$E$2:$X$2,0),1)*IF($B124>VLOOKUP($B124,'Exp Dates'!$E$4:$K$400,MATCH("Trade Day Adj Start",'Exp Dates'!$E$2:$X$2,0),1),1,0) -> 17 | F124: 3 | G124: =VLOOKUP($B124,'Exp Dates'!$E$6:$U$400,MATCH("ExpMoYr",'Exp Dates'!$E$2:$U$2,0),1) -> Oct-2004 | H124: 0.1 | I124: =IF($I$1=0,(1/(1-91/360*VLOOKUP($B123,'T-bills'!$B$4:$C$1500,2,1)/100))^(($B124-$B123)/91)-1,0) -> 0.0001369601098 | J124: 14.43 | K124: 16.07 | L124: 0.8979464841 | N124: 1122.2 | O124: 3.884 | P124: 0.07918263091 | Q124: =ROUND(IF(Lookup!D124>0,Lookup!D124,VLOOKUP(Master!$B124,Interpolate!$B$3:$T$2500,MATCH("M1-I",Interpolate!$B$2:$T$2,0),0)),3) -> 15.66 | R124: =ROUND(IF(Lookup!E124>0,Lookup!E124,VLOOKUP(Master!$B124,Interpolate!$B$3:$T$2500,MATCH("M2-I",Interpolate!$B$2:$T$2,0),0)),3) -> 16.9 | S124: =ROUND(IF(Lookup!F124>0,Lookup!F124,VLOOKUP(Master!$B124,Interpolate!$B$3:$T$2500,MATCH("M3-I",Interpolate!$B$2:$T$2,0),0)),3) -> 17.35 | T124: =ROUND(IF(Lookup!G124>0,Lookup!G124,VLOOKUP(Master!$B124,Interpolate!$B$3:$T$2500,MATCH("M4-I",Interpolate!$B$2:$T$2,0),0)),3) -> 17.68 | U124: =ROUND(IF(Lookup!H124>0,Lookup!H124,VLOOKUP(Master!$B124,Interpolate!$B$3:$T$2500,MATCH("M5-I",Interpolate!$B$2:$T$2,0),0)),3) -> 18.04 | V124: =ROUND(IF(Lookup!I124>0,Lookup!I124,VLOOKUP(Master!$B124,Interpolate!$B$3:$T$2500,MATCH("M6-I",Interpolate!$B$2:$T$2,0),0)),3) -> 18.162 | W124: =ROUND(IF(Lookup!J124>0,Lookup!J124,VLOOKUP(Master!$B124,Interpolate!$B$3:$T$2500,MATCH("M7-I",Interpolate!$B$2:$T$2,0),0)),3) -> 18.314 | AA124: =Lookup!S124 -> 6040 | AB124: 0.07918263091 | AC124: 0.02142857143 | AD124: 0.009638095238
B125: 2004-09-21 | C125: 123 | D125: =VLOOKUP($B125,'Exp Dates'!$E$4:$K$400,MATCH("Days1M",'Exp Dates'!$E$2:$X$2,0),1) -> 20 | E125: =VLOOKUP($B125,'Exp Dates'!$E$4:$K$400,MATCH("Trade Count",'Exp Dates'!$E$2:$X$2,0),1)-C125+D125-VLOOKUP($B125,'Exp Dates'!$E$4:$K$400,MATCH("Trade Day Adj",'Exp Dates'!$E$2:$X$2,0),1)*IF($B125>VLOOKUP($B125,'Exp Dates'!$E$4:$K$400,MATCH("Trade Day Adj Start",'Exp Dates'!$E$2:$X$2,0),1),1,0) -> 16 | F125: 4 | G125: =VLOOKUP($B125,'Exp Dates'!$E$6:$U$400,MATCH("ExpMoYr",'Exp Dates'!$E$2:$U$2,0),1) -> Oct-2004 | H125: 0.1 | I125: =IF($I$1=0,(1/(1-91/360*VLOOKUP($B124,'T-bills'!$B$4:$C$1500,2,1)/100))^(($B125-$B124)/91)-1,0) -> 4.690661917e-05 | J125: 13.66 | K125: 15.53 | L125: 0.8795878944 | N125: 1129.3 | O125: 4.634 | P125: 0.08083441982 | Q125: =ROUND(IF(Lookup!D125>0,Lookup!D125,VLOOKUP(Master!$B125,Interpolate!$B$3:$T$2500,MATCH("M1-I",Interpolate!$B$2:$T$2,0),0)),3) -> 15.34 | R125: =ROUND(IF(Lookup!E125>0,Lookup!E125,VLOOKUP(Master!$B125,Interpolate!$B$3:$T$2500,MATCH("M2-I",Interpolate!$B$2:$T$2,0),0)),3) -> 16.58 | S125: =ROUND(IF(Lookup!F125>0,Lookup!F125,VLOOKUP(Master!$B125,Interpolate!$B$3:$T$2500,MATCH("M3-I",Interpolate!$B$2:$T$2,0),0)),3) -> 16.934 | T125: =ROUND(IF(Lookup!G125>0,Lookup!G125,VLOOKUP(Master!$B125,Interpolate!$B$3:$T$2500,MATCH("M4-I",Interpolate!$B$2:$T$2,0),0)),3) -> 17.195 | U125: =ROUND(IF(Lookup!H125>0,Lookup!H125,VLOOKUP(Master!$B125,Interpolate!$B$3:$T$2500,MATCH("M5-I",Interpolate!$B$2:$T$2,0),0)),3) -> 17.48 | V125: =ROUND(IF(Lookup!I125>0,Lookup!I125,VLOOKUP(Master!$B125,Interpolate!$B$3:$T$2500,MATCH("M6-I",Interpolate!$B$2:$T$2,0),0)),3) -> 17.844 | W125: =ROUND(IF(Lookup!J125>0,Lookup!J125,VLOOKUP(Master!$B125,Interpolate!$B$3:$T$2500,MATCH("M7-I",Interpolate!$B$2:$T$2,0),0)),3) -> 18.294 | AA125: =Lookup!S125 -> 6134 | AB125: 0.08083441982 | AC125: 0.01685714286 | AD125: 0.01743333333
... 156 more rows

Sheet Exp Dates
A1: =Readme!A1 -> © 2023 VH2 LLC Rev D2 | E1: The columns below must have labels and the labels must stay the same for column index calculation to work | X1: =COLUMN() -> 24 | AB1: 2007-03-26
D2: Exp Month | E2: Index | F2: Exp 1 | G2: Exp 2 | H2: Trade Count | I2: Trade Day Adj Start | J2: Trade Day Adj | K2: Days1M | L2: Days-Strat | M2: Days-Wstrat | N2: Days-Back | O2: Days-Fwd | P2: ExpMo | Q2: ExpMoYr | R2: M1 | S2: M2 | T2: M3 | U2: M4 | V2: M5 | W2: M6 | X2: M7 | Y2: M8 | Z2: M9 | AA2: M10 | AB2: VRO
D3: CFE_F04_VX | G3: 2004-01-21 | H3: =VLOOKUP(E3,Master!$B$3:$C$8000,2,0) ->  | O3: =K5 -> 20 | P3: Jan | Q3: =P3&"-"&YEAR(G3) -> Jan-2004 | R3: =D3 -> CFE_F04_VX | S3: CFE_G04_VX | T3: CFE_H04_VX | U3: CFE_J04_VX | V3: CFE_K04_VX | W3: CFE_M04_VX | X3: CFE_N04_VX | Y3: CFE_Q04_VX | Z3: CFE_U04_VX | AA3: CFE_V04_VX
D4: CFE_G04_VX | E4: 2004-01-21 | F4: 2004-01-21 | G4: 2004-02-18 | H4: =VLOOKUP(E4,Master!$B$3:$C$8000,2,0) ->  | K4: =VLOOKUP(E5,Master!$B$3:$C$1996,2,0)-VLOOKUP(E4,Master!$B$3:$C$3000,2,0) ->  | L4: =K4+K5 ->  | M4: =L4+K6 ->  | N4: =K3 -> 0 | O4: 25 | P4: Feb | Q4: Feb-2004 | R4: =D4 -> CFE_G04_VX | S4: CFE_H04_VX | T4: CFE_J04_VX | U4: CFE_K04_VX | V4: CFE_M04_VX | W4: CFE_N04_VX | X4: CFE_Q04_VX | Y4: CFE_U04_VX | Z4: CFE_V04_VX | AA4: CFE_X04_VX
D5: CFE_H04_VX | E5: 2004-02-18 | F5: 2004-02-18 | G5: 2004-03-17 | H5: =VLOOKUP(E5,Master!$B$3:$C$8000,2,0) ->  | K5: 20 | L5: =K5+K6 -> 45 | M5: =L5+K7 -> 65 | N5: =K4 ->  | O5: 20 | P5: Mar | Q5: Mar-2004 | R5: CFE_H04_VX | S5: CFE_J04_VX | T5: CFE_K04_VX | U5: CFE_M04_VX | V5: CFE_N04_VX | W5: CFE_Q04_VX | X5: CFE_U04_VX | Y5: CFE_V04_VX | Z5: CFE_X04_VX | AA5: CFE_Z04_VX
B6: Start Trading | D6: CFE_J04_VX | E6: 2004-03-17 | F6: 2004-03-17 | G6: 2004-04-21 | H6: -7 | K6: 25 | L6: =K6+K7 -> 45 | M6: =L6+K8 -> 63 | N6: =K5 -> 20 | O6: 18 | P6: Apr | Q6: Apr-2004 | R6: CFE_J04_VX | S6: CFE_K04_VX | T6: CFE_M04_VX | U6: CFE_N04_VX | V6: CFE_Q04_VX | W6: CFE_U04_VX | X6: CFE_V04_VX | Y6: CFE_X04_VX | Z6: CFE_Z04_VX | AA6: CFE_F05_VX
D7: CFE_K04_VX | E7: 2004-04-21 | F7: 2004-04-21 | G7: 2004-05-19 | H7: =VLOOKUP(E7,Master!$B$3:$C$8000,2,0) -> 18 | K7: =VLOOKUP(E8,Master!$B$3:$C$5000,2,0)-VLOOKUP(E7,Master!$B$3:$C$5000,2,0)+J7 -> 20 | L7: =K7+K8 -> 38 | M7: =L7+K9 -> 57 | N7: =K6 -> 25 | O7: 19 | P7: May | Q7: May-2004 | R7: CFE_K04_VX | S7: CFE_M04_VX | T7: CFE_N04_VX | U7: CFE_Q04_VX | V7: CFE_U04_VX | W7: CFE_V04_VX | X7: CFE_X04_VX | Y7: CFE_Z04_VX | Z7: CFE_F05_VX | AA7: CFE_G05_VX | AB7: =VLOOKUP(G7,INDIRECT(R7&"!A1:Z1000"),7,0)/IF(G7<AB$1,10,1) -> 18.355
D8: CFE_M04_VX | E8: 2004-05-19 | F8: 2004-05-19 | G8: 2004-06-16 | H8: =VLOOKUP(E8,Master!$B$3:$C$8000,2,0) -> 38 | K8: =VLOOKUP(E9,Master!$B$3:$C$5000,2,0)-VLOOKUP(E8,Master!$B$3:$C$5000,2,0)+J8 -> 18 | L8: =K8+K9 -> 37 | M8: =L8+K10 -> 62 | N8: =K7 -> 20 | O8: 25 | P8: Jun | Q8: Jun-2004 | R8: CFE_M04_VX | S8: CFE_N04_VX | T8: CFE_Q04_VX | U8: CFE_U04_VX | V8: CFE_V04_VX | W8: CFE_X04_VX | X8: CFE_Z04_VX | Y8: CFE_F05_VX | Z8: CFE_G05_VX | AA8: CFE_H05_VX | AB8: =VLOOKUP(G8,INDIRECT(R8&"!A1:Z1000"),7,0)/IF(G8<AB$1,10,1) -> 13.997
D9: CFE_N04_VX | E9: 2004-06-16 | F9: 2004-06-16 | G9: 2004-07-14 | H9: =VLOOKUP(E9,Master!$B$3:$C$8000,2,0) -> 56 | K9: =VLOOKUP(E10,Master!$B$3:$C$5000,2,0)-VLOOKUP(E9,Master!$B$3:$C$5000,2,0)+J9 -> 19 | L9: =K9+K10 -> 44 | M9: =L9+K11 -> 63 | N9: 18 | O9: 19 | P9: Jul | Q9: Jul-2004 | R9: CFE_N04_VX | S9: CFE_Q04_VX | T9: CFE_U04_VX | U9: CFE_V04_VX | V9: CFE_X04_VX | W9: CFE_Z04_VX | X9: CFE_F05_VX | Y9: CFE_G05_VX | Z9: CFE_H05_VX | AA9: CFE_J05_VX | AB9: 13.134
C10: =G10-F10 -> 35 | D10: CFE_Q04_VX | E10: 2004-07-14 | F10: 2004-07-14 | G10: 2004-08-18 | H10: =VLOOKUP(E10,Master!$B$3:$C$8000,2,0) -> 75 | K10: =VLOOKUP(E11,Master!$B$3:$C$5000,2,0)-VLOOKUP(E10,Master!$B$3:$C$5000,2,0)+J10 -> 25 | L10: 44 | M10: 64 | N10: 19 | O10: 20 | P10: Aug | Q10: Aug-2004 | R10: CFE_Q04_VX | S10: CFE_U04_VX | T10: CFE_V04_VX | U10: CFE_X04_VX | V10: CFE_Z04_VX | W10: CFE_F05_VX | X10: CFE_G05_VX | Y10: CFE_H05_VX | Z10: CFE_J05_VX | AA10: CFE_K05_VX | AB10: 17.489
C11: =G11-F11 -> 28 | D11: CFE_U04_VX | E11: 2004-08-18 | F11: 2004-08-18 | G11: 2004-09-15 | H11: =VLOOKUP(E11,Master!$B$3:$C$8000,2,0) -> 100 | K11: =VLOOKUP(E12,Master!$B$3:$C$5000,2,0)-VLOOKUP(E11,Master!$B$3:$C$5000,2,0)+J11 -> 19 | L11: 39 | M11: 64 | N11: 25 | O11: 25 | P11: Sep | Q11: Sep-2004 | R11: CFE_U04_VX | S11: CFE_V04_VX | T11: CFE_X04_VX | U11: CFE_Z04_VX | V11: CFE_F05_VX | W11: CFE_G05_VX | X11: CFE_H05_VX | Y11: CFE_J05_VX | Z11: CFE_K05_VX | AA11: CFE_M05_VX | AB11: 13.725
C12: 28 | D12: CFE_V04_VX | E12: 2004-09-15 | F12: 2004-09-15 | G12: 2004-10-13 | H12: =VLOOKUP(E12,Master!$B$3:$C$8000,2,0) -> 119 | K12: =VLOOKUP(E13,Master!$B$3:$C$5000,2,0)-VLOOKUP(E12,Master!$B$3:$C$5000,2,0)+J12 -> 20 | L12: 45 | M12: 69 | N12: 19 | O12: 24 | P12: Oct | Q12: Oct-2004 | R12: CFE_V04_VX | S12: CFE_X04_VX | T12: CFE_Z04_VX | U12: CFE_F05_VX | V12: CFE_G05_VX | W12: CFE_H05_VX | X12: CFE_J05_VX | Y12: CFE_K05_VX | Z12: CFE_M05_VX | AA12: CFE_N05_VX | AB12: 13.157
C13: 35 | D13: CFE_X04_VX | E13: 2004-10-13 | F13: 2004-10-13 | G13: 2004-11-17 | H13: =VLOOKUP(E13,Master!$B$3:$C$8000,2,0) -> 139 | K13: =VLOOKUP(E14,Master!$B$3:$C$5000,2,0)-VLOOKUP(E13,Master!$B$3:$C$5000,2,0)+J13 -> 25 | L13: 49 | M13: 67 | N13: 20 | O13: 18 | P13: Nov | Q13: Nov-2004 | R13: CFE_X04_VX | S13: CFE_Z04_VX | T13: CFE_F05_VX | U13: CFE_G05_VX | V13: CFE_H05_VX | W13: CFE_J05_VX | X13: CFE_K05_VX | Y13: CFE_M05_VX | Z13: CFE_N05_VX | AA13: CFE_Q05_VX | AB13: 12.844
C14: 35 | D14: CFE_Z04_VX | E14: 2004-11-17 | F14: 2004-11-17 | G14: 2004-12-22 | H14: =VLOOKUP(E14,Master!$B$3:$C$8000,2,0) -> 164 | K14: =VLOOKUP(E15,Master!$B$3:$C$5000,2,0)-VLOOKUP(E14,Master!$B$3:$C$5000,2,0)+J14 -> 24 | L14: 42 | M14: 62 | N14: 25 | O14: 20 | P14: Dec | Q14: Dec-2004 | R14: CFE_Z04_VX | S14: CFE_F05_VX | T14: CFE_G05_VX | U14: CFE_H05_VX | V14: CFE_J05_VX | W14: CFE_K05_VX | X14: CFE_M05_VX | Y14: CFE_N05_VX | Z14: CFE_Q05_VX | AA14: CFE_U05_VX | AB14: 11.42
C15: 28 | D15: CFE_F05_VX | E15: 2004-12-22 | F15: 2004-12-22 | G15: 2005-01-19 | H15: =VLOOKUP(E15,Master!$B$3:$C$8000,2,0) -> 188 | K15: =VLOOKUP(E16,Master!$B$3:$C$5000,2,0)-VLOOKUP(E15,Master!$B$3:$C$5000,2,0)+J15 -> 18 | L15: 38 | M15: 57 | N15: 24 | O15: 19 | P15: =P3 -> Jan | Q15: Jan-2005 | R15: CFE_F05_VX | S15: CFE_G05_VX | T15: CFE_H05_VX | U15: CFE_J05_VX | V15: CFE_K05_VX | W15: CFE_M05_VX | X15: CFE_N05_VX | Y15: CFE_Q05_VX | Z15: CFE_U05_VX | AA15: CFE_V05_VX | AB15: 12.772
C16: 28 | D16: CFE_G05_VX | E16: 2005-01-19 | F16: 2005-01-19 | G16: 2005-02-16 | H16: =VLOOKUP(E16,Master!$B$3:$C$8000,2,0) -> 206 | K16: =VLOOKUP(E17,Master!$B$3:$C$5000,2,0)-VLOOKUP(E16,Master!$B$3:$C$5000,2,0)+J16 -> 20 | L16: 39 | M16: 63 | N16: 18 | O16: 24 | P16: =P4 -> Feb | Q16: Feb-2005 | R16: CFE_G05_VX | S16: CFE_H05_VX | T16: CFE_J05_VX | U16: CFE_K05_VX | V16: CFE_M05_VX | W16: CFE_N05_VX | X16: CFE_Q05_VX | Y16: CFE_U05_VX | Z16: CFE_V05_VX | AA16: CFE_X05_VX | AB16: 11.293
C17: 28 | D17: CFE_H05_VX | E17: 2005-02-16 | F17: 2005-02-16 | G17: 2005-03-16 | H17: =VLOOKUP(E17,Master!$B$3:$C$8000,2,0) -> 226 | K17: =VLOOKUP(E18,Master!$B$3:$C$5000,2,0)-VLOOKUP(E17,Master!$B$3:$C$5000,2,0)+J17 -> 19 | L17: 43 | M17: 63 | N17: 20 | O17: 20 | P17: Mar | Q17: Mar-2005 | R17: CFE_H05_VX | S17: CFE_J05_VX | T17: CFE_K05_VX | U17: CFE_M05_VX | V17: CFE_N05_VX | W17: CFE_Q05_VX | X17: CFE_U05_VX | Y17: CFE_V05_VX | Z17: CFE_X05_VX | AA17: CFE_Z05_VX | AB17: 13.626
C18: 35 | D18: CFE_J05_VX | E18: 2005-03-16 | F18: 2005-03-16 | G18: 2005-04-20 | H18: =VLOOKUP(E18,Master!$B$3:$C$8000,2,0) -> 245 | K18: =VLOOKUP(E19,Master!$B$3:$C$5000,2,0)-VLOOKUP(E18,Master!$B$3:$C$5000,2,0)+J18 -> 24 | L18: 44 | M18: 63 | N18: 19 | O18: 19 | P18: Apr | Q18: Apr-2005 | R18: CFE_J05_VX | S18: CFE_K05_VX | T18: CFE_M05_VX | U18: CFE_N05_VX | V18: CFE_Q05_VX | W18: CFE_U05_VX | X18: CFE_V05_VX | Y18: CFE_X05_VX | Z18: CFE_Z05_VX | AA18: CFE_F06_VX | AB18: 14.86
C19: 28 | D19: CFE_K05_VX | E19: 2005-04-20 | F19: 2005-04-20 | G19: 2005-05-18 | H19: =VLOOKUP(E19,Master!$B$3:$C$8000,2,0) -> 269 | K19: =VLOOKUP(E20,Master!$B$3:$C$5000,2,0)-VLOOKUP(E19,Master!$B$3:$C$5000,2,0)+J19 -> 20 | L19: 39 | M19: 63 | N19: 24 | O19: 24 | P19: May | Q19: May-2005 | R19: CFE_K05_VX | S19: CFE_M05_VX | T19: CFE_N05_VX | U19: CFE_Q05_VX | V19: CFE_U05_VX | W19: CFE_V05_VX | X19: CFE_X05_VX | Y19: CFE_Z05_VX | Z19: CFE_F06_VX | AA19: CFE_G06_VX | AB19: 13.864
C20: 28 | D20: CFE_M05_VX | E20: 2005-05-18 | F20: 2005-05-18 | G20: 2005-06-15 | H20: =VLOOKUP(E20,Master!$B$3:$C$8000,2,0) -> 289 | K20: =VLOOKUP(E21,Master!$B$3:$C$5000,2,0)-VLOOKUP(E20,Master!$B$3:$C$5000,2,0)+J20 -> 19 | L20: 43 | M20: 63 | N20: 20 | O20: 20 | P20: Jun | Q20: Jun-2005 | R20: CFE_M05_VX | S20: CFE_N05_VX | T20: CFE_Q05_VX | U20: CFE_U05_VX | V20: CFE_V05_VX | W20: CFE_X05_VX | X20: CFE_Z05_VX | Y20: CFE_F06_VX | Z20: CFE_G06_VX | AA20: CFE_H06_VX | AB20: 11.012
C21: 35 | D21: CFE_N05_VX | E21: 2005-06-15 | F21: 2005-06-15 | G21: 2005-07-20 | H21: =VLOOKUP(E21,Master!$B$3:$C$8000,2,0) -> 308 | K21: =VLOOKUP(E22,Master!$B$3:$C$5000,2,0)-VLOOKUP(E21,Master!$B$3:$C$5000,2,0)+J21 -> 24 | L21: 44 | M21: 63 | N21: 19 | O21: 19 | P21: Jul | Q21: Jul-2005 | R21: CFE_N05_VX | S21: CFE_Q05_VX | T21: CFE_U05_VX | U21: CFE_V05_VX | V21: CFE_X05_VX | W21: CFE_Z05_VX | X21: CFE_F06_VX | Y21: CFE_G06_VX | Z21: CFE_H06_VX | AA21: CFE_J06_VX | AB21: 10.8
C22: 28 | D22: CFE_Q05_VX | E22: 2005-07-20 | F22: 2005-07-20 | G22: 2005-08-17 | H22: =VLOOKUP(E22,Master!$B$3:$C$8000,2,0) -> 332 | K22: =VLOOKUP(E23,Master!$B$3:$C$5000,2,0)-VLOOKUP(E22,Master!$B$3:$C$5000,2,0)+J22 -> 20 | L22: 39 | M22: 64 | N22: 24 | O22: 25 | P22: Aug | Q22: Aug-2005 | R22: CFE_Q05_VX | S22: CFE_U05_VX | T22: CFE_V05_VX | U22: CFE_X05_VX | V22: CFE_Z05_VX | W22: CFE_F06_VX | X22: CFE_G06_VX | Y22: CFE_H06_VX | Z22: CFE_J06_VX | AA22: CFE_K06_VX | AB22: 12.819
C23: 28 | D23: CFE_U05_VX | E23: 2005-08-17 | F23: 2005-08-17 | G23: 2005-09-14 | H23: =VLOOKUP(E23,Master!$B$3:$C$8000,2,0) -> 352 | K23: =VLOOKUP(E24,Master!$B$3:$C$5000,2,0)-VLOOKUP(E23,Master!$B$3:$C$5000,2,0)+J23 -> 19 | L23: 44 | M23: 64 | N23: 20 | O23: 20 | P23: Sep | Q23: Sep-2005 | R23: CFE_U05_VX | S23: CFE_V05_VX | T23: CFE_X05_VX | U23: CFE_Z05_VX | V23: CFE_F06_VX | W23: CFE_G06_VX | X23: CFE_H06_VX | Y23: CFE_J06_VX | Z23: CFE_K06_VX | AA23: CFE_M06_VX | AB23: 12.79
C24: 35 | D24: CFE_V05_VX | E24: 2005-09-14 | F24: 2005-09-14 | G24: 2005-10-19 | H24: =VLOOKUP(E24,Master!$B$3:$C$8000,2,0) -> 371 | K24: =VLOOKUP(E25,Master!$B$3:$C$5000,2,0)-VLOOKUP(E24,Master!$B$3:$C$5000,2,0)+J24 -> 25 | L24: 45 | M24: 69 | N24: 19 | O24: 24 | P24: Oct | Q24: Oct-2005 | R24: CFE_V05_VX | S24: CFE_X05_VX | T24: CFE_Z05_VX | U24: CFE_F06_VX | V24: CFE_G06_VX | W24: CFE_H06_VX | X24: CFE_J06_VX | Y24: CFE_K06_VX | Z24: CFE_M06_VX | AA24: CFE_N06_VX | AB24: 15.172
C25: 28 | D25: CFE_X05_VX | E25: 2005-10-19 | F25: 2005-10-19 | G25: 2005-11-16 | H25: =VLOOKUP(E25,Master!$B$3:$C$8000,2,0) -> 396 | K25: =VLOOKUP(E26,Master!$B$3:$C$5000,2,0)-VLOOKUP(E25,Master!$B$3:$C$5000,2,0)+J25 -> 20 | L25: 44 | M25: 61 | N25: 25 | O25: 17 | P25: Nov | Q25: Nov-2005 | R25: CFE_X05_VX | S25: CFE_Z05_VX | T25: CFE_F06_VX | U25: CFE_G06_VX | V25: CFE_H06_VX | W25: CFE_J06_VX | X25: CFE_K06_VX | Y25: CFE_M06_VX | Z25: CFE_N06_VX | AA25: CFE_Q06_VX | AB25: 12.306
C26: 35 | D26: CFE_Z05_VX | E26: 2005-11-16 | F26: 2005-11-16 | G26: 2005-12-21 | H26: =VLOOKUP(E26,Master!$B$3:$C$8000,2,0) -> 416 | K26: =VLOOKUP(E27,Master!$B$3:$C$5000,2,0)-VLOOKUP(E26,Master!$B$3:$C$5000,2,0)+J26 -> 24 | L26: 41 | M26: 61 | N26: 20 | O26: 20 | P26: Dec | Q26: Dec-2005 | R26: CFE_Z05_VX | S26: CFE_F06_VX | T26: CFE_G06_VX | U26: CFE_H06_VX | V26: CFE_J06_VX | W26: CFE_K06_VX | X26: CFE_M06_VX | Y26: CFE_N06_VX | Z26: CFE_Q06_VX | AA26: CFE_U06_VX | AB26: 10.175
C27: 28 | D27: CFE_F06_VX | E27: 2005-12-21 | F27: 2005-12-21 | G27: 2006-01-18 | H27: =VLOOKUP(E27,Master!$B$3:$C$8000,2,0) -> 440 | K27: =VLOOKUP(E28,Master!$B$3:$C$5000,2,0)-VLOOKUP(E27,Master!$B$3:$C$5000,2,0)+J27 -> 17 | L27: 37 | M27: 61 | N27: 24 | O27: 24 | P27: =P15 -> Jan | Q27: Jan-2006 | R27: CFE_F06_VX | S27: CFE_G06_VX | T27: CFE_H06_VX | U27: CFE_J06_VX | V27: CFE_K06_VX | W27: CFE_M06_VX | X27: CFE_N06_VX | Y27: CFE_Q06_VX | Z27: CFE_U06_VX | AA27: CFE_V06_VX | AB27: 12.615
C28: 28 | D28: CFE_G06_VX | E28: 2006-01-18 | F28: 2006-01-18 | G28: 2006-02-15 | H28: =VLOOKUP(E28,Master!$B$3:$C$8000,2,0) -> 457 | K28: =VLOOKUP(E29,Master!$B$3:$C$5000,2,0)-VLOOKUP(E28,Master!$B$3:$C$5000,2,0)+J28 -> 20 | L28: 44 | M28: 63 | N28: 17 | O28: 19 | P28: =P16 -> Feb | Q28: Feb-2006 | R28: CFE_G06_VX | S28: CFE_H06_VX | T28: CFE_J06_VX | U28: CFE_K06_VX | V28: CFE_M06_VX | W28: CFE_N06_VX | X28: CFE_Q06_VX | Y28: CFE_U06_VX | Z28: CFE_V06_VX | AA28: CFE_X06_VX | AB28: 12.043
C29: 35 | D29: CFE_H06_VX | E29: 2006-02-15 | F29: 2006-02-15 | G29: 2006-03-22 | H29: =VLOOKUP(E29,Master!$B$3:$C$8000,2,0) -> 477 | K29: =VLOOKUP(E30,Master!$B$3:$C$5000,2,0)-VLOOKUP(E29,Master!$B$3:$C$5000,2,0)+J29 -> 24 | L29: 43 | M29: 63 | N29: 20 | O29: 20 | P29: Mar | Q29: Mar-2006 | R29: CFE_H06_VX | S29: CFE_J06_VX | T29: CFE_K06_VX | U29: CFE_M06_VX | V29: CFE_N06_VX | W29: CFE_Q06_VX | X29: CFE_U06_VX | Y29: CFE_V06_VX | Z29: CFE_X06_VX | AA29: CFE_Z06_VX | AB29: 11.145
C30: 28 | D30: CFE_J06_VX | E30: 2006-03-22 | F30: 2006-03-22 | G30: 2006-04-19 | H30: =VLOOKUP(E30,Master!$B$3:$C$8000,2,0) -> 501 | K30: =VLOOKUP(E31,Master!$B$3:$C$5000,2,0)-VLOOKUP(E30,Master!$B$3:$C$5000,2,0)+J30 -> 19 | L30: 39 | M30: 63 | N30: 24 | O30: 24 | P30: Apr | Q30: Apr-2006 | R30: CFE_J06_VX | S30: CFE_K06_VX | T30: CFE_M06_VX | U30: CFE_N06_VX | V30: CFE_Q06_VX | W30: CFE_U06_VX | X30: CFE_V06_VX | Y30: CFE_X06_VX | Z30: CFE_Z06_VX | AA30: CFE_F07_VX | AB30: 11.941
C31: 28 | D31: CFE_K06_VX | E31: 2006-04-19 | F31: 2006-04-19 | G31: 2006-05-17 | H31: =VLOOKUP(E31,Master!$B$3:$C$8000,2,0) -> 520 | K31: =VLOOKUP(E32,Master!$B$3:$C$5000,2,0)-VLOOKUP(E31,Master!$B$3:$C$5000,2,0)+J31 -> 20 | L31: 44 | M31: 63 | N31: 19 | O31: 19 | P31: May | Q31: May-2006 | R31: CFE_K06_VX | S31: CFE_M06_VX | T31: CFE_N06_VX | U31: CFE_Q06_VX | V31: CFE_U06_VX | W31: CFE_V06_VX | X31: CFE_X06_VX | Y31: CFE_Z06_VX | Z31: CFE_F07_VX | AA31: CFE_G07_VX | AB31: 14.025
C32: 35 | D32: CFE_M06_VX | E32: 2006-05-17 | F32: 2006-05-17 | G32: 2006-06-21 | H32: =VLOOKUP(E32,Master!$B$3:$C$8000,2,0) -> 540 | K32: =VLOOKUP(E33,Master!$B$3:$C$5000,2,0)-VLOOKUP(E32,Master!$B$3:$C$5000,2,0)+J32 -> 24 | L32: 43 | M32: 63 | N32: 20 | O32: 20 | P32: Jun | Q32: Jun-2006 | R32: CFE_M06_VX | S32: CFE_N06_VX | T32: CFE_Q06_VX | U32: CFE_U06_VX | V32: CFE_V06_VX | W32: CFE_X06_VX | X32: CFE_Z06_VX | Y32: CFE_F07_VX | Z32: CFE_G07_VX | AA32: CFE_H07_VX | AB32: 17.285
C33: 28 | D33: CFE_N06_VX | E33: 2006-06-21 | F33: 2006-06-21 | G33: 2006-07-19 | H33: =VLOOKUP(E33,Master!$B$3:$C$8000,2,0) -> 564 | K33: =VLOOKUP(E34,Master!$B$3:$C$5000,2,0)-VLOOKUP(E33,Master!$B$3:$C$5000,2,0)+J33 -> 19 | L33: 39 | M33: 63 | N33: 24 | O33: 24 | P33: Jul | Q33: Jul-2006 | R33: CFE_N06_VX | S33: CFE_Q06_VX | T33: CFE_U06_VX | U33: CFE_V06_VX | V33: CFE_X06_VX | W33: CFE_Z06_VX | X33: CFE_F07_VX | Y33: CFE_G07_VX | Z33: CFE_H07_VX | AA33: CFE_J07_VX | AB33: 17.005
C34: 28 | D34: CFE_Q06_VX | E34: 2006-07-19 | F34: 2006-07-19 | G34: 2006-08-16 | H34: =VLOOKUP(E34,Master!$B$3:$C$8000,2,0) -> 583 | K34: =VLOOKUP(E35,Master!$B$3:$C$5000,2,0)-VLOOKUP(E34,Master!$B$3:$C$5000,2,0)+J34 -> 20 | L34: 44 | M34: 64 | N34: 19 | O34: 20 | P34: Aug | Q34: Aug-2006 | R34: CFE_Q06_VX | S34: CFE_U06_VX | T34: CFE_V06_VX | U34: CFE_X06_VX | V34: CFE_Z06_VX | W34: CFE_F07_VX | X34: CFE_G07_VX | Y34: CFE_H07_VX | Z34: CFE_J07_VX | AA34: CFE_K07_VX | AB34: 12.285
C35: 35 | D35: CFE_U06_VX | E35: 2006-08-16 | F35: 2006-08-16 | G35: 2006-09-20 | H35: =VLOOKUP(E35,Master!$B$3:$C$8000,2,0) -> 603 | K35: =VLOOKUP(E36,Master!$B$3:$C$5000,2,0)-VLOOKUP(E35,Master!$B$3:$C$5000,2,0)+J35 -> 24 | L35: 44 | M35: 64 | N35: 20 | O35: 20 | P35: Sep | Q35: =P35&"-"&YEAR(G35) -> Sep-2006 | R35: CFE_U06_VX | S35: CFE_V06_VX | T35: CFE_X06_VX | U35: CFE_Z06_VX | V35: CFE_F07_VX | W35: CFE_G07_VX | X35: CFE_H07_VX | Y35: CFE_J07_VX | Z35: CFE_K07_VX | AA35: CFE_M07_VX | AB35: 11.289
C36: 28 | D36: CFE_V06_VX | E36: 2006-09-20 | F36: 2006-09-20 | G36: 2006-10-18 | H36: =VLOOKUP(E36,Master!$B$3:$C$8000,2,0) -> 627 | K36: =VLOOKUP(E37,Master!$B$3:$C$5000,2,0)-VLOOKUP(E36,Master!$B$3:$C$5000,2,0)+J36 -> 20 | L36: 40 | M36: 64 | N36: 24 | O36: 24 | P36: Oct | Q36: Oct-2006 | R36: CFE_V06_VX | S36: CFE_X06_VX | T36: CFE_Z06_VX | U36: CFE_F07_VX | V36: CFE_G07_VX | W36: CFE_H07_VX | X36: CFE_J07_VX | Y36: CFE_K07_VX | Z36: CFE_M07_VX | AA36: CFE_N07_VX | AB36: 11.434
C37: 28 | D37: CFE_X06_VX | E37: 2006-10-18 | F37: 2006-10-18 | G37: 2006-11-15 | H37: =VLOOKUP(E37,Master!$B$3:$C$8000,2,0) -> 647 | K37: =VLOOKUP(E38,Master!$B$3:$C$5000,2,0)-VLOOKUP(E37,Master!$B$3:$C$5000,2,0)+J37 -> 20 | L37: 44 | M37: 61 | N37: 20 | O37: 17 | P37: Nov | Q37: Nov-2006 | R37: CFE_X06_VX | S37: CFE_Z06_VX | T37: CFE_F07_VX | U37: CFE_G07_VX | V37: CFE_H07_VX | W37: CFE_J07_VX | X37: CFE_K07_VX | Y37: CFE_M07_VX | Z37: CFE_N07_VX | AA37: CFE_Q07_VX | AB37: 10.268
C38: 35 | D38: CFE_Z06_VX | E38: 2006-11-15 | F38: 2006-11-15 | G38: 2006-12-20 | H38: =VLOOKUP(E38,Master!$B$3:$C$8000,2,0) -> 667 | K38: =VLOOKUP(E39,Master!$B$3:$C$5000,2,0)-VLOOKUP(E38,Master!$B$3:$C$5000,2,0)+J38 -> 24 | L38: 41 | M38: 61 | N38: 20 | O38: 20 | P38: Dec | Q38: Dec-2006 | R38: CFE_Z06_VX | S38: CFE_F07_VX | T38: CFE_G07_VX | U38: CFE_H07_VX | V38: CFE_J07_VX | W38: CFE_K07_VX | X38: CFE_M07_VX | Y38: CFE_N07_VX | Z38: CFE_Q07_VX | AA38: CFE_U07_VX | AB38: 10.053
C39: 28 | D39: CFE_F07_VX | E39: 2006-12-20 | F39: 2006-12-20 | G39: 2007-01-17 | H39: =VLOOKUP(E39,Master!$B$3:$C$8000,2,0) -> 691 | I39: 2007-01-02 | J39: 1 | K39: =VLOOKUP(E40,Master!$B$3:$C$5000,2,0)-VLOOKUP(E39,Master!$B$3:$C$5000,2,0)+J39 -> 17 | L39: 37 | M39: 61 | N39: 24 | O39: =K41 -> 24 | P39: =P27 -> Jan | Q39: Jan-2007 | R39: CFE_F07_VX | S39: CFE_G07_VX | T39: CFE_H07_VX | U39: CFE_J07_VX | V39: CFE_K07_VX | W39: CFE_M07_VX | X39: CFE_N07_VX | Y39: CFE_Q07_VX | Z39: CFE_U07_VX | AA39: CFE_V07_VX | AB39: 10.706
C40: 28 | D40: CFE_G07_VX | E40: 2007-01-17 | F40: 2007-01-17 | G40: 2007-02-14 | H40: =VLOOKUP(E40,Master!$B$3:$C$8000,2,0) -> 707 | K40: =VLOOKUP(E41,Master!$B$3:$C$5000,2,0)-VLOOKUP(E40,Master!$B$3:$C$5000,2,0)+J40 -> 20 | L40: 44 | M40: 63 | N40: 17 | O40: =K42 -> 19 | P40: Feb | Q40: Feb-2007 | R40: CFE_G07_VX | S40: CFE_H07_VX | T40: CFE_J07_VX | U40: CFE_K07_VX | V40: CFE_M07_VX | W40: CFE_N07_VX | X40: CFE_Q07_VX | Y40: CFE_U07_VX | Z40: CFE_V07_VX | AA40: CFE_X07_VX | AB40: 9.954
C41: 35 | D41: CFE_H07_VX | E41: 2007-02-14 | F41: 2007-02-14 | G41: 2007-03-21 | H41: =VLOOKUP(E41,Master!$B$3:$C$8000,2,0) -> 727 | K41: =VLOOKUP(E42,Master!$B$3:$C$5000,2,0)-VLOOKUP(E41,Master!$B$3:$C$5000,2,0)+J41 -> 24 | L41: 43 | M41: 63 | N41: 20 | O41: 20 | P41: Mar | Q41: Mar-2007 | R41: CFE_H07_VX | S41: CFE_J07_VX | T41: CFE_K07_VX | U41: CFE_M07_VX | V41: CFE_N07_VX | W41: CFE_Q07_VX | X41: CFE_U07_VX | Y41: CFE_V07_VX | Z41: CFE_X07_VX | AA41: CFE_Z07_VX | AB41: 12.983
C42: 28 | D42: CFE_J07_VX | E42: 2007-03-21 | F42: 2007-03-21 | G42: 2007-04-18 | H42: =VLOOKUP(E42,Master!$B$3:$C$8000,2,0) -> 751 | K42: =VLOOKUP(E43,Master!$B$3:$C$5000,2,0)-VLOOKUP(E42,Master!$B$3:$C$5000,2,0)+J42 -> 19 | L42: 39 | M42: 63 | N42: 24 | O42: 24 | P42: Apr | Q42: Apr-2007 | R42: CFE_J07_VX | S42: CFE_K07_VX | T42: CFE_M07_VX | U42: CFE_N07_VX | V42: CFE_Q07_VX | W42: CFE_U07_VX | X42: CFE_V07_VX | Y42: CFE_X07_VX | Z42: CFE_Z07_VX | AA42: CFE_F08_VX | AB42: 12.03
C43: 28 | D43: CFE_K07_VX | E43: 2007-04-18 | F43: 2007-04-18 | G43: 2007-05-16 | H43: =VLOOKUP(E43,Master!$B$3:$C$8000,2,0) -> 770 | K43: =VLOOKUP(E44,Master!$B$3:$C$5000,2,0)-VLOOKUP(E43,Master!$B$3:$C$5000,2,0)+J43 -> 20 | L43: 44 | M43: 63 | N43: 19 | O43: 19 | P43: May | Q43: May-2007 | R43: CFE_K07_VX | S43: CFE_M07_VX | T43: CFE_N07_VX | U43: CFE_Q07_VX | V43: CFE_U07_VX | W43: CFE_V07_VX | X43: CFE_X07_VX | Y43: CFE_Z07_VX | Z43: CFE_F08_VX | AA43: CFE_G08_VX | AB43: 13.63
C44: 35 | D44: CFE_M07_VX | E44: 2007-05-16 | F44: 2007-05-16 | G44: 2007-06-20 | H44: =VLOOKUP(E44,Master!$B$3:$C$8000,2,0) -> 790 | K44: =VLOOKUP(E45,Master!$B$3:$C$5000,2,0)-VLOOKUP(E44,Master!$B$3:$C$5000,2,0)+J44 -> 24 | L44: 43 | M44: 68 | N44: 20 | O44: 25 | P44: Jun | Q44: Jun-2007 | R44: CFE_M07_VX | S44: CFE_N07_VX | T44: CFE_Q07_VX | U44: CFE_U07_VX | V44: CFE_V07_VX | W44: CFE_X07_VX | X44: CFE_Z07_VX | Y44: CFE_F08_VX | Z44: CFE_G08_VX | AA44: CFE_H08_VX | AB44: 13.01
C45: 28 | D45: CFE_N07_VX | E45: 2007-06-20 | F45: 2007-06-20 | G45: 2007-07-18 | H45: =VLOOKUP(E45,Master!$B$3:$C$8000,2,0) -> 814 | K45: =VLOOKUP(E46,Master!$B$3:$C$5000,2,0)-VLOOKUP(E45,Master!$B$3:$C$5000,2,0)+J45 -> 19 | L45: 44 | M45: 63 | N45: 24 | O45: 19 | P45: Jul | Q45: Jul-2007 | R45: CFE_N07_VX | S45: CFE_Q07_VX | T45: CFE_U07_VX | U45: CFE_V07_VX | V45: CFE_X07_VX | W45: CFE_Z07_VX | X45: CFE_F08_VX | Y45: CFE_G08_VX | Z45: CFE_H08_VX | AA45: CFE_J08_VX | AB45: 16.87
C46: 35 | D46: CFE_Q07_VX | E46: 2007-07-18 | F46: 2007-07-18 | G46: 2007-08-22 | H46: =VLOOKUP(E46,Master!$B$3:$C$8000,2,0) -> 833 | K46: =VLOOKUP(E47,Master!$B$3:$C$5000,2,0)-VLOOKUP(E46,Master!$B$3:$C$5000,2,0)+J46 -> 25 | L46: 44 | M46: 64 | N46: 19 | O46: 20 | P46: Aug | Q46: Aug-2007 | R46: CFE_Q07_VX | S46: CFE_U07_VX | T46: CFE_V07_VX | U46: CFE_X07_VX | V46: CFE_Z07_VX | W46: CFE_F08_VX | X46: CFE_G08_VX | Y46: CFE_H08_VX | Z46: CFE_J08_VX | AA46: CFE_K08_VX | AB46: 25.05
C47: 28 | D47: CFE_U07_VX | E47: 2007-08-22 | F47: 2007-08-22 | G47: 2007-09-19 | H47: =VLOOKUP(E47,Master!$B$3:$C$8000,2,0) -> 858 | K47: =VLOOKUP(E48,Master!$B$3:$C$5000,2,0)-VLOOKUP(E47,Master!$B$3:$C$5000,2,0)+J47 -> 19 | L47: 39 | M47: 64 | N47: 25 | O47: 25 | P47: Sep | Q47: Sep-2007 | R47: CFE_U07_VX | S47: CFE_V07_VX | T47: CFE_X07_VX | U47: CFE_Z07_VX | V47: CFE_F08_VX | W47: CFE_G08_VX | X47: CFE_H08_VX | Y47: CFE_J08_VX | Z47: CFE_K08_VX | AA47: CFE_M08_VX | AB47: 20.29
C48: 28 | D48: CFE_V07_VX | E48: 2007-09-19 | F48: 2007-09-19 | G48: 2007-10-17 | H48: =VLOOKUP(E48,Master!$B$3:$C$8000,2,0) -> 877 | K48: =VLOOKUP(E49,Master!$B$3:$C$5000,2,0)-VLOOKUP(E48,Master!$B$3:$C$5000,2,0)+J48 -> 20 | L48: 45 | M48: 64 | N48: 19 | O48: 19 | P48: Oct | Q48: Oct-2007 | R48: CFE_V07_VX | S48: CFE_X07_VX | T48: CFE_Z07_VX | U48: CFE_F08_VX | V48: CFE_G08_VX | W48: CFE_H08_VX | X48: CFE_J08_VX | Y48: CFE_K08_VX | Z48: CFE_M08_VX | AA48: CFE_N08_VX | AB48: 18.33
C49: 35 | D49: CFE_X07_VX | E49: 2007-10-17 | F49: 2007-10-17 | G49: 2007-11-21 | H49: =VLOOKUP(E49,Master!$B$3:$C$8000,2,0) -> 897 | K49: =VLOOKUP(E50,Master!$B$3:$C$5000,2,0)-VLOOKUP(E49,Master!$B$3:$C$5000,2,0)+J49 -> 25 | L49: 44 | M49: 62 | N49: 20 | O49: 18 | P49: Nov | Q49: Nov-2007 | R49: CFE_X07_VX | S49: CFE_Z07_VX | T49: CFE_F08_VX | U49: CFE_G08_VX | V49: CFE_H08_VX | W49: CFE_J08_VX | X49: CFE_K08_VX | Y49: CFE_M08_VX | Z49: CFE_N08_VX | AA49: CFE_Q08_VX | AB49: 26.7
C50: 28 | D50: CFE_Z07_VX | E50: 2007-11-21 | F50: 2007-11-21 | G50: 2007-12-19 | H50: =VLOOKUP(E50,Master!$B$3:$C$8000,2,0) -> 922 | K50: =VLOOKUP(E51,Master!$B$3:$C$5000,2,0)-VLOOKUP(E50,Master!$B$3:$C$5000,2,0)+J50 -> 19 | L50: 37 | M50: 59 | N50: 25 | O50: 22 | P50: Dec | Q50: Dec-2007 | R50: CFE_Z07_VX | S50: CFE_F08_VX | T50: CFE_G08_VX | U50: CFE_H08_VX | V50: CFE_J08_VX | W50: CFE_K08_VX | X50: CFE_M08_VX | Y50: CFE_N08_VX | Z50: CFE_Q08_VX | AA50: CFE_U08_VX | AB50: 22.08
C51: 28 | D51: CFE_F08_VX | E51: 2007-12-19 | F51: 2007-12-19 | G51: 2008-01-16 | H51: =VLOOKUP(E51,Master!$B$3:$C$8000,2,0) -> 941 | K51: =VLOOKUP(E52,Master!$B$3:$C$5000,2,0)-VLOOKUP(E51,Master!$B$3:$C$5000,2,0)+J51 -> 18 | L51: 40 | M51: 61 | N51: 19 | O51: 21 | P51: =P39 -> Jan | Q51: Jan-2008 | R51: CFE_F08_VX | S51: CFE_G08_VX | T51: CFE_H08_VX | U51: CFE_J08_VX | V51: CFE_K08_VX | W51: CFE_M08_VX | X51: CFE_N08_VX | Y51: CFE_Q08_VX | Z51: CFE_U08_VX | AA51: CFE_V08_VX | AB51: 24.18
C52: 34 | D52: CFE_G08_VX | E52: 2008-01-16 | F52: 2008-01-16 | G52: 2008-02-19 | H52: =VLOOKUP(E52,Master!$B$3:$C$8000,2,0) -> 959 | K52: =VLOOKUP(E53,Master!$B$3:$C$5000,2,0)-VLOOKUP(E52,Master!$B$3:$C$5000,2,0)+J52 -> 22 | L52: 43 | M52: 62 | N52: 18 | O52: 19 | P52: =P40 -> Feb | Q52: Feb-2008 | R52: CFE_G08_VX | S52: CFE_H08_VX | T52: CFE_J08_VX | U52: CFE_K08_VX | V52: CFE_M08_VX | W52: CFE_N08_VX | X52: CFE_Q08_VX | Y52: CFE_U08_VX | Z52: CFE_V08_VX | AA52: CFE_X08_VX | AB52: 25.51
C53: 29 | D53: CFE_H08_VX | E53: 2008-02-19 | F53: 2008-02-19 | G53: 2008-03-19 | H53: =VLOOKUP(E53,Master!$B$3:$C$8000,2,0) -> 981 | K53: =VLOOKUP(E54,Master!$B$3:$C$5000,2,0)-VLOOKUP(E53,Master!$B$3:$C$5000,2,0)+J53 -> 21 | L53: 40 | M53: 65 | N53: 22 | O53: 25 | P53: Mar | Q53: Mar-2008 | R53: CFE_H08_VX | S53: CFE_J08_VX | T53: CFE_K08_VX | U53: CFE_M08_VX | V53: CFE_N08_VX | W53: CFE_Q08_VX | X53: CFE_U08_VX | Y53: CFE_V08_VX | Z53: CFE_X08_VX | AA53: CFE_Z08_VX | AB53: 25.67
C54: 28 | D54: CFE_J08_VX | E54: 2008-03-19 | F54: 2008-03-19 | G54: 2008-04-16 | H54: =VLOOKUP(E54,Master!$B$3:$C$8000,2,0) -> 1002 | K54: =VLOOKUP(E55,Master!$B$3:$C$5000,2,0)-VLOOKUP(E54,Master!$B$3:$C$5000,2,0)+J54 -> 19 | L54: 44 | M54: 63 | N54: 21 | O54: 19 | P54: Apr | Q54: Apr-2008 | R54: CFE_J08_VX | S54: CFE_K08_VX | T54: CFE_M08_VX | U54: CFE_N08_VX | V54: CFE_Q08_VX | W54: CFE_U08_VX | X54: CFE_V08_VX | Y54: CFE_X08_VX | Z54: CFE_Z08_VX | AA54: CFE_F09_VX | AB54: 21.78
C55: 35 | D55: CFE_K08_VX | E55: 2008-04-16 | F55: 2008-04-16 | G55: 2008-05-21 | H55: =VLOOKUP(E55,Master!$B$3:$C$8000,2,0) -> 1021 | K55: =VLOOKUP(E56,Master!$B$3:$C$5000,2,0)-VLOOKUP(E55,Master!$B$3:$C$5000,2,0)+J55 -> 25 | L55: 44 | M55: 63 | N55: 19 | O55: 19 | P55: May | Q55: May-2008 | R55: CFE_K08_VX | S55: CFE_M08_VX | T55: CFE_N08_VX | U55: CFE_Q08_VX | V55: CFE_U08_VX | W55: CFE_V08_VX | X55: CFE_X08_VX | Y55: CFE_Z08_VX | Z55: CFE_F09_VX | AA55: CFE_G09_VX | AB55: 17.16
C56: 28 | D56: CFE_M08_VX | E56: 2008-05-21 | F56: 2008-05-21 | G56: 2008-06-18 | H56: =VLOOKUP(E56,Master!$B$3:$C$8000,2,0) -> 1046 | K56: =VLOOKUP(E57,Master!$B$3:$C$5000,2,0)-VLOOKUP(E56,Master!$B$3:$C$5000,2,0)+J56 -> 19 | L56: 38 | M56: 63 | N56: 25 | O56: 25 | P56: Jun | Q56: Jun-2008 | R56: CFE_M08_VX | S56: CFE_N08_VX | T56: CFE_Q08_VX | U56: CFE_U08_VX | V56: CFE_V08_VX | W56: CFE_X08_VX | X56: CFE_Z08_VX | Y56: CFE_F09_VX | Z56: CFE_G09_VX | AA56: CFE_H09_VX | AB56: 21.54
C57: 28 | D57: CFE_N08_VX | E57: 2008-06-18 | F57: 2008-06-18 | G57: 2008-07-16 | H57: =VLOOKUP(E57,Master!$B$3:$C$8000,2,0) -> 1065 | K57: =VLOOKUP(E58,Master!$B$3:$C$5000,2,0)-VLOOKUP(E57,Master!$B$3:$C$5000,2,0)+J57 -> 19 | L57: 44 | M57: 63 | N57: 19 | O57: 19 | P57: Jul | Q57: Jul-2008 | R57: CFE_N08_VX | S57: CFE_Q08_VX | T57: CFE_U08_VX | U57: CFE_V08_VX | V57: CFE_X08_VX | W57: CFE_Z08_VX | X57: CFE_F09_VX | Y57: CFE_G09_VX | Z57: CFE_H09_VX | AA57: CFE_J09_VX | AB57: 28.4
C58: 35 | D58: CFE_Q08_VX | E58: 2008-07-16 | F58: 2008-07-16 | G58: 2008-08-20 | H58: =VLOOKUP(E58,Master!$B$3:$C$8000,2,0) -> 1084 | K58: =VLOOKUP(E59,Master!$B$3:$C$5000,2,0)-VLOOKUP(E58,Master!$B$3:$C$5000,2,0)+J58 -> 25 | L58: 44 | M58: 69 | N58: 19 | O58: 25 | P58: Aug | Q58: Aug-2008 | R58: CFE_Q08_VX | S58: CFE_U08_VX | T58: CFE_V08_VX | U58: CFE_X08_VX | V58: CFE_Z08_VX | W58: CFE_F09_VX | X58: CFE_G09_VX | Y58: CFE_H09_VX | Z58: CFE_J09_VX | AA58: CFE_K09_VX | AB58: 20.83
C59: 28 | D59: CFE_U08_VX | E59: 2008-08-20 | F59: 2008-08-20 | G59: 2008-09-17 | H59: =VLOOKUP(E59,Master!$B$3:$C$8000,2,0) -> 1109 | K59: =VLOOKUP(E60,Master!$B$3:$C$5000,2,0)-VLOOKUP(E59,Master!$B$3:$C$5000,2,0)+J59 -> 19 | L59: 44 | M59: 64 | N59: 25 | O59: 20 | P59: Sep | Q59: Sep-2008 | R59: CFE_U08_VX | S59: CFE_V08_VX | T59: CFE_X08_VX | U59: CFE_Z08_VX | V59: CFE_F09_VX | W59: CFE_G09_VX | X59: CFE_H09_VX | Y59: CFE_J09_VX | Z59: CFE_K09_VX | AA59: CFE_M09_VX | AB59: 31.54
C60: 35 | D60: CFE_V08_VX | E60: 2008-09-17 | F60: 2008-09-17 | G60: 2008-10-22 | H60: =VLOOKUP(E60,Master!$B$3:$C$8000,2,0) -> 1128 | K60: =VLOOKUP(E61,Master!$B$3:$C$5000,2,0)-VLOOKUP(E60,Master!$B$3:$C$5000,2,0)+J60 -> 25 | L60: 45 | M60: 64 | N60: 19 | O60: 19 | P60: Oct | Q60: Oct-2008 | R60: CFE_V08_VX | S60: CFE_X08_VX | T60: CFE_Z08_VX | U60: CFE_F09_VX | V60: CFE_G09_VX | W60: CFE_H09_VX | X60: CFE_J09_VX | Y60: CFE_K09_VX | Z60: CFE_M09_VX | AA60: CFE_N09_VX | AB60: 63.04
C61: 28 | D61: CFE_X08_VX | E61: 2008-10-22 | F61: 2008-10-22 | G61: 2008-11-19 | H61: =VLOOKUP(E61,Master!$B$3:$C$8000,2,0) -> 1153 | K61: =VLOOKUP(E62,Master!$B$3:$C$5000,2,0)-VLOOKUP(E61,Master!$B$3:$C$5000,2,0)+J61 -> 20 | L61: 39 | M61: 61 | N61: 25 | O61: 22 | P61: Nov | Q61: Nov-2008 | R61: CFE_X08_VX | S61: CFE_Z08_VX | T61: CFE_F09_VX | U61: CFE_G09_VX | V61: CFE_H09_VX | W61: CFE_J09_VX | X61: CFE_K09_VX | Y61: CFE_M09_VX | Z61: CFE_N09_VX | AA61: CFE_Q09_VX | AB61: 67.22
C62: 28 | D62: CFE_Z08_VX | E62: 2008-11-19 | F62: 2008-11-19 | G62: 2008-12-17 | H62: =VLOOKUP(E62,Master!$B$3:$C$8000,2,0) -> 1173 | K62: =VLOOKUP(E63,Master!$B$3:$C$5000,2,0)-VLOOKUP(E62,Master!$B$3:$C$5000,2,0)+J62 -> 19 | L62: 41 | M62: 60 | N62: 20 | O62: 19 | P62: Dec | Q62: Dec-2008 | R62: CFE_Z08_VX | S62: CFE_F09_VX | T62: CFE_G09_VX | U62: CFE_H09_VX | V62: CFE_J09_VX | W62: CFE_K09_VX | X62: CFE_M09_VX | Y62: CFE_N09_VX | Z62: CFE_Q09_VX | AA62: CFE_U09_VX | AB62: 51.29
C63: 35 | D63: CFE_F09_VX | E63: 2008-12-17 | F63: 2008-12-17 | G63: 2009-01-21 | H63: =VLOOKUP(E63,Master!$B$3:$C$8000,2,0) -> 1192 | K63: =VLOOKUP(E64,Master!$B$3:$C$5000,2,0)-VLOOKUP(E63,Master!$B$3:$C$5000,2,0)+J63 -> 22 | L63: 41 | M63: 61 | N63: 19 | O63: 20 | P63: =P51 -> Jan | Q63: Jan-2009 | R63: CFE_F09_VX | S63: CFE_G09_VX | T63: CFE_H09_VX | U63: CFE_J09_VX | V63: CFE_K09_VX | W63: CFE_M09_VX | X63: CFE_N09_VX | Y63: CFE_Q09_VX | Z63: CFE_U09_VX | AA63: CFE_V09_VX | AB63: 49.88
C64: 28 | D64: CFE_G09_VX | E64: 2009-01-21 | F64: 2009-01-21 | G64: 2009-02-18 | H64: =VLOOKUP(E64,Master!$B$3:$C$8000,2,0) -> 1214 | K64: =VLOOKUP(E65,Master!$B$3:$C$5000,2,0)-VLOOKUP(E64,Master!$B$3:$C$5000,2,0)+J64 -> 19 | L64: 39 | M64: 58 | N64: 22 | O64: 19 | P64: Feb | Q64: Feb-2009 | R64: CFE_G09_VX | S64: CFE_H09_VX | T64: CFE_J09_VX | U64: CFE_K09_VX | V64: CFE_M09_VX | W64: CFE_N09_VX | X64: CFE_Q09_VX | Y64: CFE_U09_VX | Z64: CFE_V09_VX | AA64: CFE_X09_VX | AB64: 48.4
C65: 28 | D65: CFE_H09_VX | E65: 2009-02-18 | F65: 2009-02-18 | G65: 2009-03-18 | H65: =VLOOKUP(E65,Master!$B$3:$C$8000,2,0) -> 1233 | K65: =VLOOKUP(E66,Master!$B$3:$C$5000,2,0)-VLOOKUP(E65,Master!$B$3:$C$5000,2,0)+J65 -> 20 | L65: 39 | M65: 64 | N65: 19 | O65: 25 | P65: Mar | Q65: Mar-2009 | R65: CFE_H09_VX | S65: CFE_J09_VX | T65: CFE_K09_VX | U65: CFE_M09_VX | V65: CFE_N09_VX | W65: CFE_Q09_VX | X65: CFE_U09_VX | Y65: CFE_V09_VX | Z65: CFE_X09_VX | AA65: CFE_Z09_VX | AB65: 40.62
C66: 28 | D66: CFE_J09_VX | E66: 2009-03-18 | F66: 2009-03-18 | G66: 2009-04-15 | H66: =VLOOKUP(E66,Master!$B$3:$C$8000,2,0) -> 1253 | K66: =VLOOKUP(E67,Master!$B$3:$C$5000,2,0)-VLOOKUP(E66,Master!$B$3:$C$5000,2,0)+J66 -> 19 | L66: 44 | M66: 63 | N66: 20 | O66: 19 | P66: Apr | Q66: Apr-2009 | R66: CFE_J09_VX | S66: CFE_K09_VX | T66: CFE_M09_VX | U66: CFE_N09_VX | V66: CFE_Q09_VX | W66: CFE_U09_VX | X66: CFE_V09_VX | Y66: CFE_X09_VX | Z66: CFE_Z09_VX | AA66: CFE_F10_VX | AB66: 38.2
C67: 35 | D67: CFE_K09_VX | E67: 2009-04-15 | F67: 2009-04-15 | G67: 2009-05-20 | H67: =VLOOKUP(E67,Master!$B$3:$C$8000,2,0) -> 1272 | K67: =VLOOKUP(E68,Master!$B$3:$C$5000,2,0)-VLOOKUP(E67,Master!$B$3:$C$5000,2,0)+J67 -> 25 | L67: 44 | M67: 68 | N67: 19 | O67: 24 | P67: May | Q67: May-2009 | R67: CFE_K09_VX | S67: CFE_M09_VX | T67: CFE_N09_VX | U67: CFE_Q09_VX | V67: CFE_U09_VX | W67: CFE_V09_VX | X67: CFE_X09_VX | Y67: CFE_Z09_VX | Z67: CFE_F10_VX | AA67: CFE_G10_VX | AB67: 27.04
C68: 28 | D68: CFE_M09_VX | E68: 2009-05-20 | F68: 2009-05-20 | G68: 2009-06-17 | H68: =VLOOKUP(E68,Master!$B$3:$C$8000,2,0) -> 1297 | K68: =VLOOKUP(E69,Master!$B$3:$C$5000,2,0)-VLOOKUP(E68,Master!$B$3:$C$5000,2,0)+J68 -> 19 | L68: 43 | M68: 63 | N68: 25 | O68: 20 | P68: Jun | Q68: Jun-2009 | R68: =D68 -> CFE_M09_VX | S68: CFE_N09_VX | T68: CFE_Q09_VX | U68: CFE_U09_VX | V68: CFE_V09_VX | W68: CFE_X09_VX | X68: CFE_Z09_VX | Y68: CFE_F10_VX | Z68: CFE_G10_VX | AA68: CFE_H10_VX | AB68: 31.03
C69: 35 | D69: CFE_N09_VX | E69: 2009-06-17 | F69: 2009-06-17 | G69: 2009-07-22 | H69: =VLOOKUP(E69,Master!$B$3:$C$8000,2,0) -> 1316 | K69: =VLOOKUP(E70,Master!$B$3:$C$5000,2,0)-VLOOKUP(E69,Master!$B$3:$C$5000,2,0)+J69 -> 24 | L69: 44 | M69: 63 | N69: 19 | O69: 19 | P69: Jul | Q69: Jul-2009 | R69: CFE_N09_VX | S69: CFE_Q09_VX | T69: CFE_U09_VX | U69: CFE_V09_VX | V69: CFE_X09_VX | W69: CFE_Z09_VX | X69: CFE_F10_VX | Y69: CFE_G10_VX | Z69: CFE_H10_VX | AA69: CFE_J10_VX | AB69: 23.48
C70: 28 | D70: CFE_Q09_VX | E70: 2009-07-22 | F70: 2009-07-22 | G70: 2009-08-19 | H70: =VLOOKUP(E70,Master!$B$3:$C$8000,2,0) -> 1340 | K70: =VLOOKUP(E71,Master!$B$3:$C$5000,2,0)-VLOOKUP(E70,Master!$B$3:$C$5000,2,0)+J70 -> 20 | L70: 39 | M70: 64 | N70: 24 | O70: 25 | P70: Aug | Q70: Aug-2009 | R70: CFE_Q09_VX | S70: CFE_U09_VX | T70: CFE_V09_VX | U70: CFE_X09_VX | V70: CFE_Z09_VX | W70: CFE_F10_VX | X70: CFE_G10_VX | Y70: CFE_H10_VX | Z70: CFE_J10_VX | AA70: CFE_K10_VX | AB70: 28.76
C71: 28 | D71: CFE_U09_VX | E71: 2009-08-19 | F71: 2009-08-19 | G71: 2009-09-16 | H71: =VLOOKUP(E71,Master!$B$3:$C$8000,2,0) -> 1360 | K71: =VLOOKUP(E72,Master!$B$3:$C$5000,2,0)-VLOOKUP(E71,Master!$B$3:$C$5000,2,0)+J71 -> 19 | L71: 44 | M71: 64 | N71: 20 | O71: 20 | P71: Sep | Q71: Sep-2009 | R71: CFE_U09_VX | S71: CFE_V09_VX | T71: CFE_X09_VX | U71: CFE_Z09_VX | V71: CFE_F10_VX | W71: CFE_G10_VX | X71: CFE_H10_VX | Y71: CFE_J10_VX | Z71: CFE_K10_VX | AA71: CFE_M10_VX | AB71: 23.64
C72: 35 | D72: CFE_V09_VX | E72: 2009-09-16 | F72: 2009-09-16 | G72: 2009-10-21 | H72: =VLOOKUP(E72,Master!$B$3:$C$8000,2,0) -> 1379 | K72: =VLOOKUP(E73,Master!$B$3:$C$5000,2,0)-VLOOKUP(E72,Master!$B$3:$C$5000,2,0)+J72 -> 25 | L72: 45 | M72: 64 | N72: =K71 -> 19 | O72: 19 | P72: Oct | Q72: Oct-2009 | R72: CFE_V09_VX | S72: CFE_X09_VX | T72: CFE_Z09_VX | U72: CFE_F10_VX | V72: CFE_G10_VX | W72: CFE_H10_VX | X72: CFE_J10_VX | Y72: CFE_K10_VX | Z72: CFE_M10_VX | AA72: CFE_N10_VX | AB72: =VLOOKUP(G72,INDIRECT(R72&"!A1:Z1000"),7,0)/IF(G72<AB$1,10,1) -> 20.82
C73: 28 | D73: CFE_X09_VX | E73: 2009-10-21 | F73: 2009-10-21 | G73: 2009-11-18 | H73: =VLOOKUP(E73,Master!$B$3:$C$8000,2,0) -> 1404 | K73: =VLOOKUP(E74,Master!$B$3:$C$5000,2,0)-VLOOKUP(E73,Master!$B$3:$C$5000,2,0)+J73 -> 20 | L73: =K73+K74 -> 39 | M73: =L73+K75 -> 61 | N73: 25 | O73: 22 | P73: Nov | Q73: Nov-2009 | R73: CFE_X09_VX | S73: CFE_Z09_VX | T73: CFE_F10_VX | U73: CFE_G10_VX | V73: CFE_H10_VX | W73: CFE_J10_VX | X73: CFE_K10_VX | Y73: CFE_M10_VX | Z73: CFE_N10_VX | AA73: CFE_Q10_VX | AB73: 22.54
C74: 28 | D74: CFE_Z09_VX | E74: 2009-11-18 | F74: 2009-11-18 | G74: 2009-12-16 | H74: =VLOOKUP(E74,Master!$B$3:$C$8000,2,0) -> 1424 | K74: =VLOOKUP(E75,Master!$B$3:$C$5000,2,0)-VLOOKUP(E74,Master!$B$3:$C$5000,2,0)+J74 -> 19 | L74: 41 | M74: 60 | N74: 20 | O74: 19 | P74: Dec | Q74: Dec-2009 | R74: CFE_Z09_VX | S74: CFE_F10_VX | T74: CFE_G10_VX | U74: CFE_H10_VX | V74: CFE_J10_VX | W74: CFE_K10_VX | X74: CFE_M10_VX | Y74: CFE_N10_VX | Z74: CFE_Q10_VX | AA74: CFE_U10_VX | AB74: 20.84
C75: =G75-F75 -> 35 | D75: CFE_F10_VX | E75: 2009-12-16 | F75: 2009-12-16 | G75: 2010-01-20 | H75: =VLOOKUP(E75,Master!$B$3:$C$8000,2,0) -> 1443 | K75: =VLOOKUP(E76,Master!$B$3:$C$5000,2,0)-VLOOKUP(E75,Master!$B$3:$C$5000,2,0)+J75 -> 22 | L75: 41 | M75: 61 | N75: 19 | O75: 20 | P75: =P63 -> Jan | Q75: Jan-2010 | R75: CFE_F10_VX | S75: CFE_G10_VX | T75: CFE_H10_VX | U75: CFE_J10_VX | V75: CFE_K10_VX | W75: CFE_M10_VX | X75: CFE_N10_VX | Y75: CFE_Q10_VX | Z75: CFE_U10_VX | AA75: CFE_V10_VX | AB75: 18.87
C76: 28 | D76: CFE_G10_VX | E76: 2010-01-20 | F76: 2010-01-20 | G76: 2010-02-17 | H76: =VLOOKUP(E76,Master!$B$3:$C$8000,2,0) -> 1465 | K76: =VLOOKUP(E77,Master!$B$3:$C$5000,2,0)-VLOOKUP(E76,Master!$B$3:$C$5000,2,0)+J76 -> 19 | L76: 39 | M76: 63 | N76: 22 | O76: 24 | P76: Feb | Q76: Feb-2010 | R76: CFE_G10_VX | S76: CFE_H10_VX | T76: CFE_J10_VX | U76: CFE_K10_VX | V76: CFE_M10_VX | W76: CFE_N10_VX | X76: CFE_Q10_VX | Y76: CFE_U10_VX | Z76: CFE_V10_VX | AA76: CFE_X10_VX | AB76: 22.5
C77: 28 | D77: CFE_H10_VX | E77: 2010-02-17 | F77: 2010-02-17 | G77: 2010-03-17 | H77: =VLOOKUP(E77,Master!$B$3:$C$8000,2,0) -> 1484 | K77: =VLOOKUP(E78,Master!$B$3:$C$5000,2,0)-VLOOKUP(E77,Master!$B$3:$C$5000,2,0)+J77 -> 20 | L77: 44 | M77: 64 | N77: 19 | O77: 20 | P77: Mar | Q77: Mar-2010 | R77: CFE_H10_VX | S77: CFE_J10_VX | T77: CFE_K10_VX | U77: CFE_M10_VX | V77: CFE_N10_VX | W77: CFE_Q10_VX | X77: CFE_U10_VX | Y77: CFE_V10_VX | Z77: CFE_X10_VX | AA77: CFE_Z10_VX | AB77: 16.68
C78: 35 | D78: CFE_J10_VX | E78: 2010-03-17 | F78: 2010-03-17 | G78: 2010-04-21 | H78: =VLOOKUP(E78,Master!$B$3:$C$8000,2,0) -> 1504 | K78: =VLOOKUP(E79,Master!$B$3:$C$5000,2,0)-VLOOKUP(E78,Master!$B$3:$C$5000,2,0)+J78 -> 24 | L78: 44 | M78: 63 | N78: 20 | O78: 19 | P78: Apr | Q78: Apr-2010 | R78: CFE_J10_VX | S78: CFE_K10_VX | T78: CFE_M10_VX | U78: CFE_N10_VX | V78: CFE_Q10_VX | W78: CFE_U10_VX | X78: CFE_V10_VX | Y78: CFE_X10_VX | Z78: CFE_Z10_VX | AA78: CFE_F11_VX | AB78: 15.8
C79: 28 | D79: CFE_K10_VX | E79: 2010-04-21 | F79: 2010-04-21 | G79: 2010-05-19 | H79: =VLOOKUP(E79,Master!$B$3:$C$8000,2,0) -> 1528 | K79: =VLOOKUP(E80,Master!$B$3:$C$5000,2,0)-VLOOKUP(E79,Master!$B$3:$C$5000,2,0)+J79 -> 20 | L79: 39 | M79: 63 | N79: 24 | O79: 24 | P79: May | Q79: May-2010 | R79: CFE_K10_VX | S79: CFE_M10_VX | T79: CFE_N10_VX | U79: CFE_Q10_VX | V79: CFE_U10_VX | W79: CFE_V10_VX | X79: CFE_X10_VX | Y79: CFE_Z10_VX | Z79: CFE_F11_VX | AA79: CFE_G11_VX | AB79: 34.53
C80: 28 | D80: CFE_M10_VX | E80: 2010-05-19 | F80: 2010-05-19 | G80: 2010-06-16 | H80: =VLOOKUP(E80,Master!$B$3:$C$8000,2,0) -> 1548 | K80: =VLOOKUP(E81,Master!$B$3:$C$5000,2,0)-VLOOKUP(E80,Master!$B$3:$C$5000,2,0)+J80 -> 19 | L80: 43 | M80: 63 | N80: 20 | O80: 20 | P80: Jun | Q80: Jun-2010 | R80: CFE_M10_VX | S80: CFE_N10_VX | T80: CFE_Q10_VX | U80: CFE_U10_VX | V80: CFE_V10_VX | W80: CFE_X10_VX | X80: CFE_Z10_VX | Y80: CFE_F11_VX | Z80: CFE_G11_VX | AA80: CFE_H11_VX | AB80: 26.11
C81: 35 | D81: CFE_N10_VX | E81: 2010-06-16 | F81: 2010-06-16 | G81: 2010-07-21 | H81: =VLOOKUP(E81,Master!$B$3:$C$8000,2,0) -> 1567 | K81: =VLOOKUP(E82,Master!$B$3:$C$5000,2,0)-VLOOKUP(E81,Master!$B$3:$C$5000,2,0)+J81 -> 24 | L81: 44 | M81: 63 | N81: 19 | O81: 19 | P81: Jul | Q81: Jul-2010 | R81: CFE_N10_VX | S81: CFE_Q10_VX | T81: CFE_U10_VX | U81: CFE_V10_VX | V81: CFE_X10_VX | W81: CFE_Z10_VX | X81: CFE_F11_VX | Y81: CFE_G11_VX | Z81: CFE_H11_VX | AA81: CFE_J11_VX | AB81: 23.79
C82: 28 | D82: CFE_Q10_VX | E82: 2010-07-21 | F82: 2010-07-21 | G82: 2010-08-18 | H82: =VLOOKUP(E82,Master!$B$3:$C$8000,2,0) -> 1591 | K82: =VLOOKUP(E83,Master!$B$3:$C$5000,2,0)-VLOOKUP(E82,Master!$B$3:$C$5000,2,0)+J82 -> 20 | L82: 39 | M82: 64 | N82: 24 | O82: 25 | P82: Aug | Q82: Aug-2010 | R82: CFE_Q10_VX | S82: CFE_U10_VX | T82: CFE_V10_VX | U82: CFE_X10_VX | V82: CFE_Z10_VX | W82: CFE_F11_VX | X82: CFE_G11_VX | Y82: CFE_H11_VX | Z82: CFE_J11_VX | AA82: CFE_K11_VX | AB82: 24.82
C83: 28 | D83: CFE_U10_VX | E83: 2010-08-18 | F83: 2010-08-18 | G83: 2010-09-15 | H83: =VLOOKUP(E83,Master!$B$3:$C$8000,2,0) -> 1611 | K83: =VLOOKUP(E84,Master!$B$3:$C$5000,2,0)-VLOOKUP(E83,Master!$B$3:$C$5000,2,0)+J83 -> 19 | L83: 44 | M83: 64 | N83: 20 | O83: 20 | P83: Sep | Q83: Sep-2010 | R83: CFE_U10_VX | S83: CFE_V10_VX | T83: CFE_X10_VX | U83: CFE_Z10_VX | V83: CFE_F11_VX | W83: CFE_G11_VX | X83: CFE_H11_VX | Y83: CFE_J11_VX | Z83: CFE_K11_VX | AA83: CFE_M11_VX | AB83: 22.97
C84: 35 | D84: CFE_V10_VX | E84: 2010-09-15 | F84: 2010-09-15 | G84: 2010-10-20 | H84: =VLOOKUP(E84,Master!$B$3:$C$8000,2,0) -> 1630 | K84: =VLOOKUP(E85,Master!$B$3:$C$5000,2,0)-VLOOKUP(E84,Master!$B$3:$C$5000,2,0)+J84 -> 25 | L84: 45 | M84: 69 | N84: 19 | O84: 24 | P84: Oct | Q84: Oct-2010 | R84: CFE_V10_VX | S84: CFE_X10_VX | T84: CFE_Z10_VX | U84: CFE_F11_VX | V84: CFE_G11_VX | W84: CFE_H11_VX | X84: CFE_J11_VX | Y84: CFE_K11_VX | Z84: CFE_M11_VX | AA84: CFE_N11_VX | AB84: 21.41
C85: 28 | D85: CFE_X10_VX | E85: 2010-10-20 | F85: 2010-10-20 | G85: 2010-11-17 | H85: =VLOOKUP(E85,Master!$B$3:$C$8000,2,0) -> 1655 | K85: =VLOOKUP(E86,Master!$B$3:$C$5000,2,0)-VLOOKUP(E85,Master!$B$3:$C$5000,2,0)+J85 -> 20 | L85: 44 | M85: 62 | N85: 25 | O85: 18 | P85: Nov | Q85: Nov-2010 | R85: CFE_X10_VX | S85: CFE_Z10_VX | T85: CFE_F11_VX | U85: CFE_G11_VX | V85: CFE_H11_VX | W85: CFE_J11_VX | X85: CFE_K11_VX | Y85: CFE_M11_VX | Z85: CFE_N11_VX | AA85: CFE_Q11_VX | AB85: 22.21
C86: 35 | D86: CFE_Z10_VX | E86: 2010-11-17 | F86: 2010-11-17 | G86: 2010-12-22 | H86: =VLOOKUP(E86,Master!$B$3:$C$8000,2,0) -> 1675 | K86: =VLOOKUP(E87,Master!$B$3:$C$5000,2,0)-VLOOKUP(E86,Master!$B$3:$C$5000,2,0)+J86 -> 24 | L86: 42 | M86: 62 | N86: 20 | O86: 20 | P86: Dec | Q86: Dec-2010 | R86: CFE_Z10_VX | S86: CFE_F11_VX | T86: CFE_G11_VX | U86: CFE_H11_VX | V86: CFE_J11_VX | W86: CFE_K11_VX | X86: CFE_M11_VX | Y86: CFE_N11_VX | Z86: CFE_Q11_VX | AA86: CFE_U11_VX | AB86: 16.01
C87: 28 | D87: CFE_F11_VX | E87: 2010-12-22 | F87: 2010-12-22 | G87: 2011-01-19 | H87: =VLOOKUP(E87,Master!$B$3:$C$8000,2,0) -> 1699 | K87: =VLOOKUP(E88,Master!$B$3:$C$5000,2,0)-VLOOKUP(E87,Master!$B$3:$C$5000,2,0)+J87 -> 18 | L87: 38 | M87: 57 | N87: 24 | O87: 19 | P87: =P75 -> Jan | Q87: Jan-2011 | R87: CFE_F11_VX | S87: CFE_G11_VX | T87: CFE_H11_VX | U87: CFE_J11_VX | V87: CFE_K11_VX | W87: CFE_M11_VX | X87: CFE_N11_VX | Y87: CFE_Q11_VX | Z87: CFE_U11_VX | AA87: CFE_V11_VX | AB87: 16.38
C88: 28 | D88: CFE_G11_VX | E88: 2011-01-19 | F88: 2011-01-19 | G88: 2011-02-16 | H88: =VLOOKUP(E88,Master!$B$3:$C$8000,2,0) -> 1717 | K88: =VLOOKUP(E89,Master!$B$3:$C$5000,2,0)-VLOOKUP(E88,Master!$B$3:$C$5000,2,0)+J88 -> 20 | L88: 39 | M88: 64 | N88: 18 | O88: 25 | P88: =P76 -> Feb | Q88: Feb-2011 | R88: CFE_G11_VX | S88: CFE_H11_VX | T88: CFE_J11_VX | U88: CFE_K11_VX | V88: CFE_M11_VX | W88: CFE_N11_VX | X88: CFE_Q11_VX | Y88: CFE_U11_VX | Z88: CFE_V11_VX | AA88: CFE_X11_VX | AB88: 16.49
C89: 28 | D89: CFE_H11_VX | E89: 2011-02-16 | F89: 2011-02-16 | G89: 2011-03-16 | H89: =VLOOKUP(E89,Master!$B$3:$C$8000,2,0) -> 1737 | K89: =VLOOKUP(E90,Master!$B$3:$C$5000,2,0)-VLOOKUP(E89,Master!$B$3:$C$5000,2,0)+J89 -> 19 | L89: 44 | M89: 63 | N89: 20 | O89: 19 | P89: Mar | Q89: Mar-2011 | R89: CFE_H11_VX | S89: CFE_J11_VX | T89: CFE_K11_VX | U89: CFE_M11_VX | V89: CFE_N11_VX | W89: CFE_Q11_VX | X89: CFE_U11_VX | Y89: CFE_V11_VX | Z89: CFE_X11_VX | AA89: CFE_Z11_VX | AB89: 25.14
C90: 35 | D90: CFE_J11_VX | E90: 2011-03-16 | F90: 2011-03-16 | G90: 2011-04-20 | H90: =VLOOKUP(E90,Master!$B$3:$C$8000,2,0) -> 1756 | K90: =VLOOKUP(E91,Master!$B$3:$C$5000,2,0)-VLOOKUP(E90,Master!$B$3:$C$5000,2,0)+J90 -> 25 | L90: 44 | M90: 63 | N90: 19 | O90: 19 | P90: Apr | Q90: Apr-2011 | R90: CFE_J11_VX | S90: CFE_K11_VX | T90: CFE_M11_VX | U90: CFE_N11_VX | V90: CFE_Q11_VX | W90: CFE_U11_VX | X90: CFE_V11_VX | Y90: CFE_X11_VX | Z90: CFE_Z11_VX | AA90: CFE_F12_VX | AB90: 14.86
C91: 28 | D91: CFE_K11_VX | E91: 2011-04-20 | F91: 2011-04-20 | G91: 2011-05-18 | H91: =VLOOKUP(E91,Master!$B$3:$C$8000,2,0) -> 1781 | K91: =VLOOKUP(E92,Master!$B$3:$C$5000,2,0)-VLOOKUP(E91,Master!$B$3:$C$5000,2,0)+J91 -> 19 | L91: 38 | M91: 62 | N91: 25 | O91: 24 | P91: May | Q91: May-2011 | R91: CFE_K11_VX | S91: CFE_M11_VX | T91: CFE_N11_VX | U91: CFE_Q11_VX | V91: CFE_U11_VX | W91: CFE_V11_VX | X91: CFE_X11_VX | Y91: CFE_Z11_VX | Z91: CFE_F12_VX | AA91: CFE_G12_VX | AB91: 18.02
C92: 28 | D92: CFE_M11_VX | E92: 2011-05-18 | F92: 2011-05-18 | G92: 2011-06-15 | H92: =VLOOKUP(E92,Master!$B$3:$C$8000,2,0) -> 1800 | K92: =VLOOKUP(E93,Master!$B$3:$C$5000,2,0)-VLOOKUP(E92,Master!$B$3:$C$5000,2,0)+J92 -> 19 | L92: 43 | M92: 63 | N92: 19 | O92: 20 | P92: Jun | Q92: Jun-2011 | R92: CFE_M11_VX | S92: CFE_N11_VX | T92: CFE_Q11_VX | U92: CFE_U11_VX | V92: CFE_V11_VX | W92: CFE_X11_VX | X92: CFE_Z11_VX | Y92: CFE_F12_VX | Z92: CFE_G12_VX | AA92: CFE_H12_VX | AB92: 19.73
C93: 35 | D93: CFE_N11_VX | E93: 2011-06-15 | F93: 2011-06-15 | G93: 2011-07-20 | H93: =VLOOKUP(E93,Master!$B$3:$C$8000,2,0) -> 1819 | K93: =VLOOKUP(E94,Master!$B$3:$C$5000,2,0)-VLOOKUP(E93,Master!$B$3:$C$5000,2,0)+J93 -> 24 | L93: 44 | M93: 68 | N93: 19 | O93: 24 | P93: Jul | Q93: Jul-2011 | R93: CFE_N11_VX | S93: CFE_Q11_VX | T93: CFE_U11_VX | U93: CFE_V11_VX | V93: CFE_X11_VX | W93: CFE_Z11_VX | X93: CFE_F12_VX | Y93: CFE_G12_VX | Z93: CFE_H12_VX | AA93: CFE_J12_VX | AB93: 19.1
C94: 28 | D94: CFE_Q11_VX | E94: 2011-07-20 | F94: 2011-07-20 | G94: 2011-08-17 | H94: =VLOOKUP(E94,Master!$B$3:$C$8000,2,0) -> 1843 | K94: =VLOOKUP(E95,Master!$B$3:$C$5000,2,0)-VLOOKUP(E94,Master!$B$3:$C$5000,2,0)+J94 -> 20 | L94: 44 | M94: 64 | N94: 24 | O94: 20 | P94: Aug | Q94: Aug-2011 | R94: CFE_Q11_VX | S94: CFE_U11_VX | T94: CFE_V11_VX | U94: CFE_X11_VX | V94: CFE_Z11_VX | W94: CFE_F12_VX | X94: CFE_G12_VX | Y94: CFE_H12_VX | Z94: CFE_J12_VX | AA94: CFE_K12_VX | AB94: 32.73
C95: 35 | D95: CFE_U11_VX | E95: 2011-08-17 | F95: 2011-08-17 | G95: 2011-09-21 | H95: =VLOOKUP(E95,Master!$B$3:$C$8000,2,0) -> 1863 | K95: =VLOOKUP(E96,Master!$B$3:$C$5000,2,0)-VLOOKUP(E95,Master!$B$3:$C$5000,2,0)+J95 -> 24 | L95: 44 | M95: 64 | N95: 20 | O95: 20 | P95: Sep | Q95: Sep-2011 | R95: CFE_U11_VX | S95: CFE_V11_VX | T95: CFE_X11_VX | U95: CFE_Z11_VX | V95: CFE_F12_VX | W95: CFE_G12_VX | X95: CFE_H12_VX | Y95: CFE_J12_VX | Z95: CFE_K12_VX | AA95: CFE_M12_VX | AB95: 33.72
C96: 28 | D96: CFE_V11_VX | E96: 2011-09-21 | F96: 2011-09-21 | G96: 2011-10-19 | H96: =VLOOKUP(E96,Master!$B$3:$C$8000,2,0) -> 1887 | K96: =VLOOKUP(E97,Master!$B$3:$C$5000,2,0)-VLOOKUP(E96,Master!$B$3:$C$5000,2,0)+J96 -> 20 | L96: 40 | M96: 64 | N96: 24 | O96: 24 | P96: Oct | Q96: Oct-2011 | R96: CFE_V11_VX | S96: CFE_X11_VX | T96: CFE_Z11_VX | U96: CFE_F12_VX | V96: CFE_G12_VX | W96: CFE_H12_VX | X96: CFE_J12_VX | Y96: CFE_K12_VX | Z96: CFE_M12_VX | AA96: CFE_N12_VX | AB96: 33.15
C97: 28 | D97: CFE_X11_VX | E97: 2011-10-19 | F97: 2011-10-19 | G97: 2011-11-16 | H97: =VLOOKUP(E97,Master!$B$3:$C$8000,2,0) -> 1907 | K97: =VLOOKUP(E98,Master!$B$3:$C$5000,2,0)-VLOOKUP(E97,Master!$B$3:$C$5000,2,0)+J97 -> 20 | L97: 44 | M97: 61 | N97: 20 | O97: 17 | P97: Nov | Q97: Nov-2011 | R97: CFE_X11_VX | S97: CFE_Z11_VX | T97: CFE_F12_VX | U97: CFE_G12_VX | V97: CFE_H12_VX | W97: CFE_J12_VX | X97: CFE_K12_VX | Y97: CFE_M12_VX | Z97: CFE_N12_VX | AA97: CFE_Q12_VX | AB97: 33.36
C98: 35 | D98: CFE_Z11_VX | E98: 2011-11-16 | F98: 2011-11-16 | G98: 2011-12-21 | H98: =VLOOKUP(E98,Master!$B$3:$C$8000,2,0) -> 1927 | K98: =VLOOKUP(E99,Master!$B$3:$C$5000,2,0)-VLOOKUP(E98,Master!$B$3:$C$5000,2,0)+J98 -> 24 | L98: 41 | M98: 61 | N98: 20 | O98: 20 | P98: Dec | Q98: Dec-2011 | R98: CFE_Z11_VX | S98: CFE_F12_VX | T98: CFE_G12_VX | U98: CFE_H12_VX | V98: CFE_J12_VX | W98: CFE_K12_VX | X98: CFE_M12_VX | Y98: CFE_N12_VX | Z98: CFE_Q12_VX | AA98: CFE_U12_VX | AB98: 21.36
C99: 28 | D99: CFE_F12_VX | E99: 2011-12-21 | F99: 2011-12-21 | G99: 2012-01-18 | H99: =VLOOKUP(E99,Master!$B$3:$C$8000,2,0) -> 1951 | K99: =VLOOKUP(E100,Master!$B$3:$C$5000,2,0)-VLOOKUP(E99,Master!$B$3:$C$5000,2,0)+J99 -> 17 | L99: 37 | M99: 61 | N99: 24 | O99: 24 | P99: =P87 -> Jan | Q99: =P99&"-"&YEAR(G99) -> Jan-2012 | R99: CFE_F12_VX | S99: CFE_G12_VX | T99: CFE_H12_VX | U99: CFE_J12_VX | V99: CFE_K12_VX | W99: CFE_M12_VX | X99: CFE_N12_VX | Y99: CFE_Q12_VX | Z99: CFE_U12_VX | AA99: CFE_V12_VX | AB99: 23.64
C100: 28 | D100: CFE_G12_VX | E100: 2012-01-18 | F100: 2012-01-18 | G100: 2012-02-15 | H100: =VLOOKUP(E100,Master!$B$3:$C$8000,2,0) -> 1968 | K100: =VLOOKUP(E101,Master!$B$3:$C$5000,2,0)-VLOOKUP(E100,Master!$B$3:$C$5000,2,0)+J100 -> 20 | L100: 44 | M100: 63 | N100: 17 | O100: 19 | P100: =P88 -> Feb | Q100: Feb-2012 | R100: CFE_G12_VX | S100: CFE_H12_VX | T100: CFE_J12_VX | U100: CFE_K12_VX | V100: CFE_M12_VX | W100: CFE_N12_VX | X100: CFE_Q12_VX | Y100: CFE_U12_VX | Z100: CFE_V12_VX | AA100: CFE_X12_VX | AB100: 20.44
C101: 35 | D101: CFE_H12_VX | E101: 2012-02-15 | F101: 2012-02-15 | G101: 2012-03-21 | H101: =VLOOKUP(E101,Master!$B$3:$C$8000,2,0) -> 1988 | K101: =VLOOKUP(E102,Master!$B$3:$C$5000,2,0)-VLOOKUP(E101,Master!$B$3:$C$5000,2,0)+J101 -> 24 | L101: 43 | M101: 63 | N101: 20 | O101: 20 | P101: Mar | Q101: Mar-2012 | R101: CFE_H12_VX | S101: CFE_J12_VX | T101: CFE_K12_VX | U101: CFE_M12_VX | V101: CFE_N12_VX | W101: CFE_Q12_VX | X101: CFE_U12_VX | Y101: CFE_V12_VX | Z101: CFE_X12_VX | AA101: CFE_Z12_VX | AB101: 14.55
C102: 28 | D102: CFE_J12_VX | E102: 2012-03-21 | F102: 2012-03-21 | G102: 2012-04-18 | H102: =VLOOKUP(E102,Master!$B$3:$C$8000,2,0) -> 2012 | K102: =VLOOKUP(E103,Master!$B$3:$C$5000,2,0)-VLOOKUP(E102,Master!$B$3:$C$5000,2,0)+J102 -> 19 | L102: 39 | M102: 63 | N102: 24 | O102: 24 | P102: Apr | Q102: Apr-2012 | R102: CFE_J12_VX | S102: CFE_K12_VX | T102: CFE_M12_VX | U102: CFE_N12_VX | V102: CFE_Q12_VX | W102: CFE_U12_VX | X102: CFE_V12_VX | Y102: CFE_X12_VX | Z102: CFE_Z12_VX | AA102: CFE_F13_VX | AB102: 19.06
C103: 28 | D103: CFE_K12_VX | E103: 2012-04-18 | F103: 2012-04-18 | G103: 2012-05-16 | H103: =VLOOKUP(E103,Master!$B$3:$C$8000,2,0) -> 2031 | K103: =VLOOKUP(E104,Master!$B$3:$C$5000,2,0)-VLOOKUP(E103,Master!$B$3:$C$5000,2,0)+J103 -> 20 | L103: 44 | M103: 63 | N103: 19 | O103: 19 | P103: May | Q103: May-2012 | R103: CFE_K12_VX | S103: CFE_M12_VX | T103: CFE_N12_VX | U103: CFE_Q12_VX | V103: CFE_U12_VX | W103: CFE_V12_VX | X103: CFE_X12_VX | Y103: CFE_Z12_VX | Z103: CFE_F13_VX | AA103: CFE_G13_VX | AB103: 21.46
C104: 35 | D104: CFE_M12_VX | E104: 2012-05-16 | F104: 2012-05-16 | G104: 2012-06-20 | H104: =VLOOKUP(E104,Master!$B$3:$C$8000,2,0) -> 2051 | K104: =VLOOKUP(E105,Master!$B$3:$C$5000,2,0)-VLOOKUP(E104,Master!$B$3:$C$5000,2,0)+J104 -> 24 | L104: 43 | M104: 68 | N104: 20 | O104: =K106 -> 25 | P104: Jun | Q104: Jun-2012 | R104: CFE_M12_VX | S104: CFE_N12_VX | T104: CFE_Q12_VX | U104: CFE_U12_VX | V104: CFE_V12_VX | W104: CFE_X12_VX | X104: CFE_Z12_VX | Y104: CFE_F13_VX | Z104: CFE_G13_VX | AA104: =Z105 -> CFE_H13_VX | AB104: 17.78
C105: 28 | D105: CFE_N12_VX | E105: 2012-06-20 | F105: 2012-06-20 | G105: 2012-07-18 | H105: =VLOOKUP(E105,Master!$B$3:$C$8000,2,0) -> 2075 | K105: =VLOOKUP(E106,Master!$B$3:$C$5000,2,0)-VLOOKUP(E105,Master!$B$3:$C$5000,2,0)+J105 -> 19 | L105: 44 | M105: 63 | N105: 24 | O105: 19 | P105: Jul | Q105: Jul-2012 | R105: CFE_N12_VX | S105: CFE_Q12_VX | T105: CFE_U12_VX | U105: CFE_V12_VX | V105: CFE_X12_VX | W105: CFE_Z12_VX | X105: CFE_F13_VX | Y105: CFE_G13_VX | Z105: =Y106 -> CFE_H13_VX | AA105: =Z106 -> CFE_J13_VX | AB105: 16.76
C106: 35 | D106: CFE_Q12_VX | E106: 2012-07-18 | F106: 2012-07-18 | G106: 2012-08-22 | H106: =VLOOKUP(E106,Master!$B$3:$C$8000,2,0) -> 2094 | K106: =VLOOKUP(E107,Master!$B$3:$C$5000,2,0)-VLOOKUP(E106,Master!$B$3:$C$5000,2,0)+J106 -> 25 | L106: 44 | M106: 64 | N106: 19 | O106: 20 | P106: Aug | Q106: Aug-2012 | R106: CFE_Q12_VX | S106: CFE_U12_VX | T106: CFE_V12_VX | U106: CFE_X12_VX | V106: CFE_Z12_VX | W106: CFE_F13_VX | X106: CFE_G13_VX | Y106: =X107 -> CFE_H13_VX | Z106: =Y107 -> CFE_J13_VX | AA106: CFE_K13_VX | AB106: 15.13
C107: 28 | D107: CFE_U12_VX | E107: 2012-08-22 | F107: 2012-08-22 | G107: 2012-09-19 | H107: =VLOOKUP(E107,Master!$B$3:$C$8000,2,0) -> 2119 | K107: =VLOOKUP(E108,Master!$B$3:$C$5000,2,0)-VLOOKUP(E107,Master!$B$3:$C$5000,2,0)+J107 -> 19 | L107: 39 | M107: 64 | N107: 25 | O107: 25 | P107: Sep | Q107: Sep-2012 | R107: CFE_U12_VX | S107: CFE_V12_VX | T107: CFE_X12_VX | U107: CFE_Z12_VX | V107: CFE_F13_VX | W107: CFE_G13_VX | X107: =W108 -> CFE_H13_VX | Y107: =X108 -> CFE_J13_VX | Z107: CFE_K13_VX | AA107: CFE_M13_VX | AB107: 14.03
C108: 28 | D108: CFE_V12_VX | E108: 2012-09-19 | F108: 2012-09-19 | G108: 2012-10-17 | H108: =VLOOKUP(E108,Master!$B$3:$C$8000,2,0) -> 2138 | K108: =VLOOKUP(E109,Master!$B$3:$C$5000,2,0)-VLOOKUP(E108,Master!$B$3:$C$5000,2,0)+J108 -> 20 | L108: 45 | M108: 64 | N108: 19 | O108: 19 | P108: Oct | Q108: Oct-2012 | R108: CFE_V12_VX | S108: CFE_X12_VX | T108: CFE_Z12_VX | U108: CFE_F13_VX | V108: CFE_G13_VX | W108: =V109 -> CFE_H13_VX | X108: =W109 -> CFE_J13_VX | Y108: CFE_K13_VX | Z108: CFE_M13_VX | AA108: CFE_N13_VX | AB108: 15.96
C109: 35 | D109: CFE_X12_VX | E109: 2012-10-17 | F109: 2012-10-17 | G109: 2012-11-21 | H109: =VLOOKUP(E109,Master!$B$3:$C$8000,2,0) -> 2158 | I109: 2012-10-29 | J109: 2 | K109: =VLOOKUP(E110,Master!$B$3:$C$5000,2,0)-VLOOKUP(E109,Master!$B$3:$C$5000,2,0)+J109 -> 25 | L109: 44 | M109: 62 | N109: 20 | O109: 18 | P109: Nov | Q109: Nov-2012 | R109: CFE_X12_VX | S109: CFE_Z12_VX | T109: CFE_F13_VX | U109: CFE_G13_VX | V109: =U110 -> CFE_H13_VX | W109: =V110 -> CFE_J13_VX | X109: CFE_K13_VX | Y109: CFE_M13_VX | Z109: CFE_N13_VX | AA109: CFE_Q13_VX | AB109: 15.05
C110: 28 | D110: CFE_Z12_VX | E110: 2012-11-21 | F110: 2012-11-21 | G110: 2012-12-19 | H110: =VLOOKUP(E110,Master!$B$3:$C$8000,2,0) -> 2181 | K110: =VLOOKUP(E111,Master!$B$3:$C$5000,2,0)-VLOOKUP(E110,Master!$B$3:$C$5000,2,0)+J110 -> 19 | L110: 37 | M110: 56 | N110: 25 | O110: 19 | P110: Dec | Q110: Dec-2012 | R110: CFE_Z12_VX | S110: CFE_F13_VX | T110: CFE_G13_VX | U110: =T111 -> CFE_H13_VX | V110: CFE_J13_VX | W110: CFE_K13_VX | X110: CFE_M13_VX | Y110: CFE_N13_VX | Z110: CFE_Q13_VX | AA110: CFE_U13_VX | AB110: 16.69
C111: 28 | D111: CFE_F13_VX | E111: 2012-12-19 | F111: 2012-12-19 | G111: 2013-01-16 | H111: =VLOOKUP(E111,Master!$B$3:$C$8000,2,0) -> 2200 | K111: =VLOOKUP(E112,Master!$B$3:$C$5000,2,0)-VLOOKUP(E111,Master!$B$3:$C$5000,2,0)+J111 -> 18 | L111: 37 | M111: 61 | N111: 19 | O111: 24 | P111: =P99 -> Jan | Q111: Jan-2013 | R111: CFE_F13_VX | S111: CFE_G13_VX | T111: =S112 -> CFE_H13_VX | U111: CFE_J13_VX | V111: CFE_K13_VX | W111: CFE_M13_VX | X111: CFE_N13_VX | Y111: CFE_Q13_VX | Z111: CFE_U13_VX | AA111: CFE_V13_VX | AB111: 13.69
C112: 28 | D112: CFE_G13_VX | E112: 2013-01-16 | F112: 2013-01-16 | G112: 2013-02-13 | H112: =VLOOKUP(E112,Master!$B$3:$C$8000,2,0) -> 2218 | K112: =VLOOKUP(E113,Master!$B$3:$C$5000,2,0)-VLOOKUP(E112,Master!$B$3:$C$5000,2,0)+J112 -> 19 | L112: 43 | M112: 62 | N112: 18 | O112: 19 | P112: Feb | Q112: Feb-2013 | R112: CFE_G13_VX | S112: =R113 -> CFE_H13_VX | T112: CFE_J13_VX | U112: CFE_K13_VX | V112: CFE_M13_VX | W112: CFE_N13_VX | X112: CFE_Q13_VX | Y112: CFE_U13_VX | Z112: CFE_V13_VX | AA112: CFE_X13_VX | AB112: 13.07
C113: 35 | D113: CFE_H13_VX | E113: 2013-02-13 | F113: 2013-02-13 | G113: 2013-03-20 | H113: =VLOOKUP(E113,Master!$B$3:$C$8000,2,0) -> 2237 | K113: =VLOOKUP(E114,Master!$B$3:$C$5000,2,0)-VLOOKUP(E113,Master!$B$3:$C$5000,2,0)+J113 -> 24 | L113: 43 | M113: 68 | N113: 19 | O113: 25 | P113: Mar | Q113: Mar-2013 | R113: CFE_H13_VX | S113: CFE_J13_VX | T113: CFE_K13_VX | U113: CFE_M13_VX | V113: CFE_N13_VX | W113: CFE_Q13_VX | X113: CFE_U13_VX | Y113: CFE_V13_VX | Z113: CFE_X13_VX | AA113: CFE_Z13_VX | AB113: 12.64
C114: 28 | D114: CFE_J13_VX | E114: 2013-03-20 | F114: 2013-03-20 | G114: 2013-04-17 | H114: =VLOOKUP(E114,Master!$B$3:$C$8000,2,0) -> 2261 | K114: =VLOOKUP(E115,Master!$B$3:$C$5000,2,0)-VLOOKUP(E114,Master!$B$3:$C$5000,2,0)+J114 -> 19 | L114: =K114+K115 -> 44 | M114: =L114+K116 -> 63 | N114: =K113 -> 24 | O114: =K116 -> 19 | P114: Apr | Q114: Apr-2013 | R114: CFE_J13_VX | S114: CFE_K13_VX | T114: CFE_M13_VX | U114: CFE_N13_VX | V114: CFE_Q13_VX | W114: CFE_U13_VX | X114: CFE_V13_VX | Y114: CFE_X13_VX | Z114: CFE_Z13_VX | AA114: CFE_F14_VX | AB114: 15.46
C115: =G115-F115 -> 35 | D115: CFE_K13_VX | E115: 2013-04-17 | F115: 2013-04-17 | G115: 2013-05-22 | H115: =VLOOKUP(E115,Master!$B$3:$C$8000,2,0) -> 2280 | K115: =VLOOKUP(E116,Master!$B$3:$C$5000,2,0)-VLOOKUP(E115,Master!$B$3:$C$5000,2,0)+J115 -> 25 | L115: 44 | M115: 63 | N115: 19 | O115: 19 | P115: May | Q115: May-2013 | R115: =D115 -> CFE_K13_VX | S115: CFE_M13_VX | T115: CFE_N13_VX | U115: CFE_Q13_VX | V115: =U116 -> CFE_U13_VX | W115: CFE_V13_VX | X115: CFE_X13_VX | Y115: CFE_Z13_VX | Z115: CFE_F14_VX | AA115: CFE_G14_VX | AB115: 13.17
